Workbook

Sheet Omslag BECEREN (hidden)
A1: Testversion 170302
B5: Förenklad beräkning av energianvändning, klimatpåverkan och kostnader för ombyggnadsprojekt (BECEREN*)
B7: Byggnad | C7: Testbyggnad
B8: Adress | C8: Ringvägen 18
B9: Ort | C9: Ljusdal
B11: Datum | C11: 2017-10-03
B12: Person | C12: MG
B28: *Basic Energy, CO2 and Cost Estimations for Renovation of Buildings (BECEREN) - impact on climate change from energy use and material production
F31: Mauritz Glaumann
A32: © EcoEffect | F32: University of Gävle/KTH, Sweden
A33: © M Glaumann | F33: email: mga@hig.se

Sheet Omslag BECE
B1: Version 2020-10-08
B5: Förenklad beräkning av energianvändning och klimatpåverkan för nybyggnadsprojekt (BECE*)
C6: Skriv i blå celler
B7: Byggnad
B8: Adress
B9: Välj ort (måste fyllas i)
B11: Datum
B12: Person
B14: Fyll i ort här och gå sedan till flik "Basdata" och fyll i de blå cellerna med röd ram på raderna 6-14 så får du första resultatet!
B15: Syftet med programmet är att i tidiga skeden kunna pröva hur olika konstruktioner påverkar energianvändning och klimatpåverkan för att t.ex. nå uppsatta mål. Behovet av indata har minimerats genom att startvärden införts. Därmed får man fort fram resultat. Under fliken "Basdata" ändrar man lätt startvärdena. Under fliken "Undersök" testar man olika åtgärder för att minska energianvänding och klimatpåverkan. Vill man pröva en specifik konstruktion för man in den under fliken "Konstruktion". Annars kan man börja med att välja en standardkonstruktion högst upp under fliken "Basdata".
B28: *Basic Energy and CO2 Estimations for Buildings (BECE) - impact on climate change from energy use and material production
F31: Mauritz Glaumann
A32: © EcoEffect | F32: email: mga@hig.se
A33: © M Glaumann | F33: Tel 0705454238

Sheet Intro
A1: INTRODUKTION
A3: Syftet med det här programmet är underlätta målformulering och utvärdering i tidiga skeden vad gäller energianavändning, klimatpåverkan och driftkostnader. I flik "Basdata" för man in data om den studerade byggnaden. Det är bara 5 värden (turkos celler) som man måste fylla i för att få en beräkning med förvalda startvärden. För resterande celler finns startvärden. Om det inte är ett nytt hus är startvärdena kopplade till när huset byggdes (cell C6). Vill man ha en lite bättre beräkning och har riktigare data för det aktuella huset skriver man in dessa i de ljusblå rutorna. Inga värden i de vita rutorn över den horisontella linjen (rad 61) skall ändras. Flik "Undersök" är upplagd så att man skall börja med att åtgärda byggnadsskalet, därefter arbeta med energieffektiviserande åtgärder för att till sist komplettera med platsgenererad förnybar energi. Det finns ett antal dolda flikar med beräkningar eller data. Energiberäkningarna baseras på månadsmedelvärden för utetemperatur och solinstrålning och skall inte förväntas överenstämma med energisimuleringar per timme vilket kan bli aktuellt i ett senare skede. Enbart kostnader för energi hanteras i den här versionen.
B5: Schematisk skiss över programmets innehåll
A39: Programmet är utvecklat av Mauritz Glumann men utan bistånd av Hans Stymne hade det inte fått den utformning det har.

Sheet 3. Gen info (hidden)
B2: Building Input WorkSheet
D3: Comment
B4: New or Refurbished | F4: CITY
B5: Building Type | F5: =Energi!O10 -> Malmö | H5: Residential
B6: Occupation Date: | F6: =Energi!O6 -> Kalmar | H6: Office
B7: Name of Building: | F7: =Energi!O4 -> Göteborg
F8: =Energi!O5 -> Jönköping
F9: =Energi!O11 -> Stockholm
F10: =Energi!O12 -> Västerås
B11: Postcode: | F11: =Energi!#REF! -> 
B12: City (nearest in scroll list): | F12: =Energi!O8 -> Ljusdal
B13: State: | F13: =Energi!O13 -> Östersund
B14: Building Owner: | F14: =Energi!O9 -> Luleå
B15: Architect: | F15: =Energi!O7 -> Kiruna
B16: Building Contact Person: | F16: =Energi!#REF! -> 
B17: Calculations done by: | F17: =Energi!#REF! -> 
B18: Usable Floor Area (UFA) in m2: | F18: =Energi!#REF! -> 
B19: Gross Floor Area (GFA) in m2: | F19: =Energi!P22 -> 
B20: Net Floor Area (NFA) in m2: | F20: =Energi!P23 -> 0
B21: Heated Floor Area (HFA) in m2: | F21: =Energi!P24 -> 0
B22: No. of Storeys: | F22: =Energi!P20 -> 0
B23: Aticipated life time, years | F23: =Energi!#REF! -> 
B24: Designed Number of Users | F24: =Energi!#REF! -> 
B25: Average Daily Use Time in hours per person | F25: =Energi!L23 -> 0
B26: Est. Building Use in Personhours per year | F26: =Energi!#REF! -> 
B27: Indoor air temperature, average winter, oC | D27: =IF(Basdata!C39>0,Basdata!C39,0) -> 21
B28: Air change rate, liter/m2,s | D28: =IF(Basdata!C42>0,Basdata!C42,0) -> 0.35
B29: Building Description: (Orientation, Form, Structure, Façade, etc.)
B30: Building Services: (Heating, Cooling, Ventilation, Lighting, Lifts, Domestic Hot Water)
B32: Fill in - compulsary
B33: Fill in - volountary
B34: Calculated automatically

Sheet Indata (hidden)
A1: Gävle | G1: Göteborg Liseberg | M1: Jönköping | S1: Kalmar flygplats | Y1: Kiruna flygplats | AE1: Ljusdal | AK1: Luleå | AQ1: Malmö Jägerso | AW1: Stockholm Bromma | BC1: Östersund
A2: Latitud | B2: 60.653112 | G2: Latitud | H2: 57.699635 | M2: Latitud | N2: 57.766268 | S2: Latitud | T2: 56.678284 | Y2: Latitud | Z2: 67.825542 | AE2: Latitud | AF2: 61.832438 | AK2: Latitud | AL2: 65.618831 | AQ2: Latitud | AR2: 55.575361 | AW2: Lat | AX2: 59.353265 | BC2: Latitud | BD2: 63.172637
A3: Longitud | B3: 17.165952 | G3: Longitud | H3: 11.9977374 | M3: Longitud | N3: 14.180394 | S3: Longitud | T3: 16.289122 | Y3: Longitud | Z3: 20.334382 | AE3: Longitud | AF3: 16.130011 | AK3: Longitud | AL3: 22.126276 | AQ3: Longitud | AR3: 13.064718 | AW3: Long | AX3: 17.947934 | BC3: Longitud | BD3: 14.675607
A4: SMHI nr | B4: 10740 | G4: SMHI nr | H4: 7142 | M4: SMHI nr | N4: 7447 | S4: SMHI nr | T4: 6642 | Y4: SMHI nr | Z4: 18094 | AE4: SMHI nr | AF4: 11650 | AK4: SMHI nr | AL4: 16298 | AQ4: SMHI nr | AR4: 5235 | AW4: SMHI nr | AX4: 9720 | BC4: SMHI nr | BD4: 13410
A5: Direktstrålning | D5: Globalstrålning | G5: Direktstrålning | J5: Globalstrålning | M5: Direktstrålning | P5: Globalstrålning | S5: Direktstrålning | V5: Globalstrålning | Y5: Direktstrålning | AB5: Globalstrålning | AE5: Direktstrålning | AH5: Globalstrålning | AK5: Direktstrålning | AN5: Globalstrålning | AQ5: Direktstrålning | AT5: Globalstrålning | AW5: Direktstrålning | AZ5: Globalstrålning | BC5: Direktstrålning | BF5: Globalstrålning
A6: 2006 01 31 23 | B6: 18698.1 | D6: 2006 01 31 23 | E6: 8618.7 | G6: 2006 01 31 23 | H6: 25607 | J6: 2006 01 31 23 | K6: 13027.4 | M6: 2006 01 31 23 | N6: 25521.9 | P6: 2006 01 31 23 | Q6: 13587.3 | S6: 2006 01 31 23 | T6: 17065.3 | V6: 2006 01 31 23 | W6: 12539.7 | Y6: 2006 01 31 23 | Z6: 3817.9 | AB6: 2006 01 31 23 | AC6: 1207 | AE6: 2006 01 31 23 | AF6: 21340.7 | AH6: 2006 01 31 23 | AI6: 7408.5 | AK6: 2006 01 31 23 | AL6: 11976.7 | AN6: 2006 01 31 23 | AO6: 2754.2 | AQ6: 2006 01 31 23 | AR6: 19915.2 | AT6: 2006 01 31 23 | AU6: 14123.6 | AW6: 2006 01 31 23 | AX6: 18975.8 | AZ6: 2006 01 31 23 | BA6: 10386.9 | BC6: 2006 01 31 23 | BD6: 13219 | BF6: 2006 01 31 23 | BG6: 5258.1
A7: 2006 02 28 23 | B7: 33519.7 | D7: 2006 02 28 23 | E7: 21319.1 | G7: 2006 02 28 23 | H7: 35341.4 | J7: 2006 02 28 23 | K7: 24289.4 | M7: 2006 02 28 23 | N7: 38149.3 | P7: 2006 02 28 23 | Q7: 25182.5 | S7: 2006 02 28 23 | T7: 40967.5 | V7: 2006 02 28 23 | W7: 26226.5 | Y7: 2006 02 28 23 | Z7: 27220.5 | AB7: 2006 02 28 23 | AC7: 13778.1 | AE7: 2006 02 28 23 | AF7: 42369 | AH7: 2006 02 28 23 | AI7: 21684.9 | AK7: 2006 02 28 23 | AL7: 45434.6 | AN7: 2006 02 28 23 | AO7: 17645.3 | AQ7: 2006 02 28 23 | AR7: 34507 | AT7: 2006 02 28 23 | AU7: 27840.2 | AW7: 2006 02 28 23 | AX7: 29310.2 | AZ7: 2006 02 28 23 | BA7: 22437.2 | BC7: 2006 02 28 23 | BD7: 32486.6 | BF7: 2006 02 28 23 | BG7: 19391.1
A8: 2006 03 31 23 | B8: 92291.3 | D8: 2006 03 31 23 | E8: 62200.6 | G8: 2006 03 31 23 | H8: 96136.7 | J8: 2006 03 31 23 | K8: 73269.9 | M8: 2006 03 31 23 | N8: 75690.2 | P8: 2006 03 31 23 | Q8: 65613.1 | S8: 2006 03 31 23 | T8: 66182.4 | V8: 2006 03 31 23 | W8: 67535.1 | Y8: 2006 03 31 23 | Z8: 74241.8 | AB8: 2006 03 31 23 | AC8: 51339.6 | AE8: 2006 03 31 23 | AF8: 97577.4 | AH8: 2006 03 31 23 | AI8: 61245.7 | AK8: 2006 03 31 23 | AL8: 110500.7 | AN8: 2006 03 31 23 | AO8: 62865.7 | AQ8: 2006 03 31 23 | AR8: 78275.1 | AT8: 2006 03 31 23 | AU8: 73904.1 | AW8: 2006 03 31 23 | AX8: 85283.7 | AZ8: 2006 03 31 23 | BA8: 67249.7 | BC8: 2006 03 31 23 | BD8: 99622 | BF8: 2006 03 31 23 | BG8: 61437.1
A9: 2006 04 30 23 | B9: 117748.7 | D9: 2006 04 30 23 | E9: 102243.9 | G9: 2006 04 30 23 | H9: 72937.5 | J9: 2006 04 30 23 | K9: 91077.5 | M9: 2006 04 30 23 | N9: 71619.1 | P9: 2006 04 30 23 | Q9: 91029.7 | S9: 2006 04 30 23 | T9: 89004.8 | V9: 2006 04 30 23 | W9: 103471 | Y9: 2006 04 30 23 | Z9: 87212.9 | AB9: 2006 04 30 23 | AC9: 85096.1 | AE9: 2006 04 30 23 | AF9: 104834.8 | AH9: 2006 04 30 23 | AI9: 96209.8 | AK9: 2006 04 30 23 | AL9: 89813.4 | AN9: 2006 04 30 23 | AO9: 84821 | AQ9: 2006 04 30 23 | AR9: 65409.1 | AT9: 2006 04 30 23 | AU9: 95578.9 | AW9: 2006 04 30 23 | AX9: 115860.5 | AZ9: 2006 04 30 23 | BA9: 109405.7 | BC9: 2006 04 30 23 | BD9: 90640.5 | BF9: 2006 04 30 23 | BG9: 95746.5
A10: 2006 05 31 23 | B10: 161905.5 | D10: 2006 05 31 23 | E10: 149017.2 | G10: 2006 05 31 23 | H10: 158148 | J10: 2006 05 31 23 | K10: 157039.6 | M10: 2006 05 31 23 | N10: 142178.9 | P10: 2006 05 31 23 | Q10: 148725 | S10: 2006 05 31 23 | T10: 164887.5 | V10: 2006 05 31 23 | W10: 165269.8 | Y10: 2006 05 31 23 | Z10: 118649.2 | AB10: 2006 05 31 23 | AC10: 126932.9 | AE10: 2006 05 31 23 | AF10: 150176 | AH10: 2006 05 31 23 | AI10: 139632 | AK10: 2006 05 31 23 | AL10: 165541.9 | AN10: 2006 05 31 23 | AO10: 153780.4 | AQ10: 2006 05 31 23 | AR10: 156460.1 | AT10: 2006 05 31 23 | AU10: 158854 | AW10: 2006 05 31 23 | AX10: 166018.9 | AZ10: 2006 05 31 23 | BA10: 159499.3 | BC10: 2006 05 31 23 | BD10: 157591.4 | BF10: 2006 05 31 23 | BG10: 148324.2
A11: 2006 06 30 23 | B11: 186428.8 | D11: 2006 06 30 23 | E11: 175390.8 | G11: 2006 06 30 23 | H11: 163412.9 | J11: 2006 06 30 23 | K11: 168001.7 | M11: 2006 06 30 23 | N11: 198221.7 | P11: 2006 06 30 23 | Q11: 183379.1 | S11: 2006 06 30 23 | T11: 186094 | V11: 2006 06 30 23 | W11: 181928.5 | Y11: 2006 06 30 23 | Z11: 142826.5 | AB11: 2006 06 30 23 | AC11: 151050.1 | AE11: 2006 06 30 23 | AF11: 162587.7 | AH11: 2006 06 30 23 | AI11: 163772 | AK11: 2006 06 30 23 | AL11: 205503 | AN11: 2006 06 30 23 | AO11: 182720.8 | AQ11: 2006 06 30 23 | AR11: 164156 | AT11: 2006 06 30 23 | AU11: 172565.9 | AW11: 2006 06 30 23 | AX11: 223001.7 | AZ11: 2006 06 30 23 | BA11: 192116 | BC11: 2006 06 30 23 | BD11: 148532.7 | BF11: 2006 06 30 23 | BG11: 155492.2
A12: 2006 07 31 23 | B12: 195101.8 | D12: 2006 07 31 23 | E12: 172922.8 | G12: 2006 07 31 23 | H12: 213956.5 | J12: 2006 07 31 23 | K12: 179788.9 | M12: 2006 07 31 23 | N12: 223719.6 | P12: 2006 07 31 23 | Q12: 186724.9 | S12: 2006 07 31 23 | T12: 229126.4 | V12: 2006 07 31 23 | W12: 194971.2 | Y12: 2006 07 31 23 | Z12: 212109.8 | AB12: 2006 07 31 23 | AC12: 169478.8 | AE12: 2006 07 31 23 | AF12: 186990.5 | AH12: 2006 07 31 23 | AI12: 163613.2 | AK12: 2006 07 31 23 | AL12: 239349.7 | AN12: 2006 07 31 23 | AO12: 189055.5 | AQ12: 2006 07 31 23 | AR12: 216430.2 | AT12: 2006 07 31 23 | AU12: 192416.7 | AW12: 2006 07 31 23 | AX12: 246615.9 | AZ12: 2006 07 31 23 | BA12: 198293.3 | BC12: 2006 07 31 23 | BD12: 174313.3 | BF12: 2006 07 31 23 | BG12: 160520.2
A13: 2006 08 31 23 | B13: 134605 | D13: 2006 08 31 23 | E13: 122114 | G13: 2006 08 31 23 | H13: 95568.7 | J13: 2006 08 31 23 | K13: 111736.7 | M13: 2006 08 31 23 | N13: 105511.8 | P13: 2006 08 31 23 | Q13: 112185.8 | S13: 2006 08 31 23 | T13: 101531.5 | V13: 2006 08 31 23 | W13: 113230.5 | Y13: 2006 08 31 23 | Z13: 173342.1 | AB13: 2006 08 31 23 | AC13: 123414.8 | AE13: 2006 08 31 23 | AF13: 121749.3 | AH13: 2006 08 31 23 | AI13: 110760.6 | AK13: 2006 08 31 23 | AL13: 199657.2 | AN13: 2006 08 31 23 | AO13: 142248.1 | AQ13: 2006 08 31 23 | AR13: 68223.2 | AT13: 2006 08 31 23 | AU13: 103084.1 | AW13: 2006 08 31 23 | AX13: 157487 | AZ13: 2006 08 31 23 | BA13: 133792.1 | BC13: 2006 08 31 23 | BD13: 142846.6 | BF13: 2006 08 31 23 | BG13: 124478.8
A14: 2006 09 30 23 | B14: 102105.9 | D14: 2006 09 30 23 | E14: 76471.4 | G14: 2006 09 30 23 | H14: 138073.8 | J14: 2006 09 30 23 | K14: 95479 | M14: 2006 09 30 23 | N14: 131424.3 | P14: 2006 09 30 23 | Q14: 93363.8 | S14: 2006 09 30 23 | T14: 147571.5 | V14: 2006 09 30 23 | W14: 102069 | Y14: 2006 09 30 23 | Z14: 74217.4 | AB14: 2006 09 30 23 | AC14: 50138.1 | AE14: 2006 09 30 23 | AF14: 82789.5 | AH14: 2006 09 30 23 | AI14: 65727.4 | AK14: 2006 09 30 23 | AL14: 64928.4 | AN14: 2006 09 30 23 | AO14: 54764 | AQ14: 2006 09 30 23 | AR14: 126041.6 | AT14: 2006 09 30 23 | AU14: 97159 | AW14: 2006 09 30 23 | AX14: 126836.4 | AZ14: 2006 09 30 23 | BA14: 86163.4 | BC14: 2006 09 30 23 | BD14: 80526.4 | BF14: 2006 09 30 23 | BG14: 66363
A15: 2006 10 31 23 | B15: 36375.4 | D15: 2006 10 31 23 | E15: 28525.3 | G15: 2006 10 31 23 | H15: 40468.9 | J15: 2006 10 31 23 | K15: 36634.1 | M15: 2006 10 31 23 | N15: 25333.6 | P15: 2006 10 31 23 | Q15: 30845.5 | S15: 2006 10 31 23 | T15: 47916.9 | V15: 2006 10 31 23 | W15: 40556.1 | Y15: 2006 10 31 23 | Z15: 33137.7 | AB15: 2006 10 31 23 | AC15: 17138.3 | AE15: 2006 10 31 23 | AF15: 34576.1 | AH15: 2006 10 31 23 | AI15: 25394.7 | AK15: 2006 10 31 23 | AL15: 33229.1 | AN15: 2006 10 31 23 | AO15: 20216.2 | AQ15: 2006 10 31 23 | AR15: 36801.8 | AT15: 2006 10 31 23 | AU15: 41409.1 | AW15: 2006 10 31 23 | AX15: 38526.3 | AZ15: 2006 10 31 23 | BA15: 31337.4 | BC15: 2006 10 31 23 | BD15: 24166.7 | BF15: 2006 10 31 23 | BG15: 20060.8
A16: 2006 11 30 23 | B16: 37072.8 | D16: 2006 11 30 23 | E16: 12680 | G16: 2006 11 30 23 | H16: 28037.7 | J16: 2006 11 30 23 | K16: 16410.2 | M16: 2006 11 30 23 | N16: 26890.7 | P16: 2006 11 30 23 | Q16: 16236.7 | S16: 2006 11 30 23 | T16: 30137.7 | V16: 2006 11 30 23 | W16: 17873.6 | Y16: 2006 11 30 23 | Z16: 13657.6 | AB16: 2006 11 30 23 | AC16: 2841.7 | AE16: 2006 11 30 23 | AF16: 36639.5 | AH16: 2006 11 30 23 | AI16: 11576.5 | AK16: 2006 11 30 23 | AL16: 13348.3 | AN16: 2006 11 30 23 | AO16: 4339.4 | AQ16: 2006 11 30 23 | AR16: 27756.4 | AT16: 2006 11 30 23 | AU16: 18076.6 | AW16: 2006 11 30 23 | AX16: 39080.6 | AZ16: 2006 11 30 23 | BA16: 14773.5 | BC16: 2006 11 30 23 | BD16: 24369.8 | BF16: 2006 11 30 23 | BG16: 8626.5
A17: 2006 12 31 23 | B17: 24952.3 | D17: 2006 12 31 23 | E17: 6136.9 | G17: 2006 12 31 23 | H17: 16764.4 | J17: 2006 12 31 23 | K17: 7921 | M17: 2006 12 31 23 | N17: 20288 | P17: 2006 12 31 23 | Q17: 8177.4 | S17: 2006 12 31 23 | T17: 32570.3 | V17: 2006 12 31 23 | W17: 11220.3 | Y17: 2006 12 31 23 | Z17: 559.8 | AB17: 2006 12 31 23 | AC17: 80.7 | AE17: 2006 12 31 23 | AF17: 16420.8 | AH17: 2006 12 31 23 | AI17: 4052 | AK17: 2006 12 31 23 | AL17: 7847.7 | AN17: 2006 12 31 23 | AO17: 841.5 | AQ17: 2006 12 31 23 | AR17: 14343.3 | AT17: 2006 12 31 23 | AU17: 9628.4 | AW17: 2006 12 31 23 | AX17: 25657 | AZ17: 2006 12 31 23 | BA17: 7941.5 | BC17: 2006 12 31 23 | BD17: 8339.1 | BF17: 2006 12 31 23 | BG17: 2231.3
A18: 2007 01 31 23 | B18: 33108 | D18: 2007 01 31 23 | E18: 10321.7 | G18: 2007 01 31 23 | H18: 31871.2 | J18: 2007 01 31 23 | K18: 13591.7 | M18: 2007 01 31 23 | N18: 24209.8 | P18: 2007 01 31 23 | Q18: 11807.4 | S18: 2007 01 31 23 | T18: 31808.6 | V18: 2007 01 31 23 | W18: 14543.9 | Y18: 2007 01 31 23 | Z18: 14933.3 | AB18: 2007 01 31 23 | AC18: 1773.1 | AE18: 2007 01 31 23 | AF18: 24951.9 | AH18: 2007 01 31 23 | AI18: 7628.7 | AK18: 2007 01 31 23 | AL18: 21247.7 | AN18: 2007 01 31 23 | AO18: 3559.1 | AQ18: 2007 01 31 23 | AR18: 17774.7 | AT18: 2007 01 31 23 | AU18: 13200.9 | AW18: 2007 01 31 23 | AX18: 28575.6 | AZ18: 2007 01 31 23 | BA18: 11470.2 | BC18: 2007 01 31 23 | BD18: 21469.1 | BF18: 2007 01 31 23 | BG18: 5654.3
A19: 2007 02 28 23 | B19: 17190.2 | D19: 2007 02 28 23 | E19: 15824.6 | G19: 2007 02 28 23 | H19: 30242.5 | J19: 2007 02 28 23 | K19: 22073.4 | M19: 2007 02 28 23 | N19: 16176.9 | P19: 2007 02 28 23 | Q19: 17778.9 | S19: 2007 02 28 23 | T19: 18634.9 | V19: 2007 02 28 23 | W19: 18915.4 | Y19: 2007 02 28 23 | Z19: 29184.8 | AB19: 2007 02 28 23 | AC19: 11380.5 | AE19: 2007 02 28 23 | AF19: 17538.6 | AH19: 2007 02 28 23 | AI19: 13821.6 | AK19: 2007 02 28 23 | AL19: 31199.5 | AN19: 2007 02 28 23 | AO19: 14146.9 | AQ19: 2007 02 28 23 | AR19: 15517.2 | AT19: 2007 02 28 23 | AU19: 21426 | AW19: 2007 02 28 23 | AX19: 19235 | AZ19: 2007 02 28 23 | BA19: 18116.1 | BC19: 2007 02 28 23 | BD19: 26660.8 | BF19: 2007 02 28 23 | BG19: 17067.3
A20: 2007 03 31 23 | B20: 93726.9 | D20: 2007 03 31 23 | E20: 62879.3 | G20: 2007 03 31 23 | H20: 109785.8 | J20: 2007 03 31 23 | K20: 75832.7 | M20: 2007 03 31 23 | N20: 98716.9 | P20: 2007 03 31 23 | Q20: 70597.3 | S20: 2007 03 31 23 | T20: 127848.6 | V20: 2007 03 31 23 | W20: 81078.1 | Y20: 2007 03 31 23 | Z20: 117807.1 | AB20: 2007 03 31 23 | AC20: 58137.5 | AE20: 2007 03 31 23 | AF20: 108706.1 | AH20: 2007 03 31 23 | AI20: 67635.9 | AK20: 2007 03 31 23 | AL20: 110028.7 | AN20: 2007 03 31 23 | AO20: 57092.5 | AQ20: 2007 03 31 23 | AR20: 110830.9 | AT20: 2007 03 31 23 | AU20: 83593 | AW20: 2007 03 31 23 | AX20: 94179.2 | AZ20: 2007 03 31 23 | BA20: 65166 | BC20: 2007 03 31 23 | BD20: 95197.5 | BF20: 2007 03 31 23 | BG20: 61315.6
A21: 2007 04 30 23 | B21: 158774.9 | D21: 2007 04 30 23 | E21: 122439.4 | G21: 2007 04 30 23 | H21: 184133.9 | J21: 2007 04 30 23 | K21: 137321.7 | M21: 2007 04 30 23 | N21: 201477 | P21: 2007 04 30 23 | Q21: 141744.5 | S21: 2007 04 30 23 | T21: 195807 | V21: 2007 04 30 23 | W21: 145576.3 | Y21: 2007 04 30 23 | Z21: 126755.8 | AB21: 2007 04 30 23 | AC21: 102857.4 | AE21: 2007 04 30 23 | AF21: 133696.5 | AH21: 2007 04 30 23 | AI21: 110562.8 | AK21: 2007 04 30 23 | AL21: 136943.5 | AN21: 2007 04 30 23 | AO21: 111826.1 | AQ21: 2007 04 30 23 | AR21: 145215.3 | AT21: 2007 04 30 23 | AU21: 134489.5 | AW21: 2007 04 30 23 | AX21: 180654.8 | AZ21: 2007 04 30 23 | BA21: 134188.7 | BC21: 2007 04 30 23 | BD21: 102510.2 | BF21: 2007 04 30 23 | BG21: 97592.3
A22: 2007 05 31 23 | B22: 117912.9 | D22: 2007 05 31 23 | E22: 129178.2 | G22: 2007 05 31 23 | H22: 117562.7 | J22: 2007 05 31 23 | K22: 139002.4 | M22: 2007 05 31 23 | N22: 130081.6 | P22: 2007 05 31 23 | Q22: 142665.2 | S22: 2007 05 31 23 | T22: 166759.9 | V22: 2007 05 31 23 | W22: 160838.6 | Y22: 2007 05 31 23 | Z22: 145708.6 | AB22: 2007 05 31 23 | AC22: 121078.5 | AE22: 2007 05 31 23 | AF22: 78226.7 | AH22: 2007 05 31 23 | AI22: 114483.3 | AK22: 2007 05 31 23 | AL22: 119360.4 | AN22: 2007 05 31 23 | AO22: 128114.6 | AQ22: 2007 05 31 23 | AR22: 132715.4 | AT22: 2007 05 31 23 | AU22: 147389.7 | AW22: 2007 05 31 23 | AX22: 152124.1 | AZ22: 2007 05 31 23 | BA22: 148099.6 | BC22: 2007 05 31 23 | BD22: 123508.2 | BF22: 2007 05 31 23 | BG22: 135780
A23: 2007 06 30 23 | B23: 197513.8 | D23: 2007 06 30 23 | E23: 181300.5 | G23: 2007 06 30 23 | H23: 156021.1 | J23: 2007 06 30 23 | K23: 165051.7 | M23: 2007 06 30 23 | N23: 177514.1 | P23: 2007 06 30 23 | Q23: 170550.4 | S23: 2007 06 30 23 | T23: 164107.5 | V23: 2007 06 30 23 | W23: 167933.3 | Y23: 2007 06 30 23 | Z23: 183082 | AB23: 2007 06 30 23 | AC23: 167174 | AE23: 2007 06 30 23 | AF23: 198450.9 | AH23: 2007 06 30 23 | AI23: 181765.7 | AK23: 2007 06 30 23 | AL23: 202687.8 | AN23: 2007 06 30 23 | AO23: 176364.3 | AQ23: 2007 06 30 23 | AR23: 121779.3 | AT23: 2007 06 30 23 | AU23: 150795.5 | AW23: 2007 06 30 23 | AX23: 218131.4 | AZ23: 2007 06 30 23 | BA23: 189149.8 | BC23: 2007 06 30 23 | BD23: 240188.3 | BF23: 2007 06 30 23 | BG23: 195456.6
A24: 2007 07 31 23 | B24: 135708.1 | D24: 2007 07 31 23 | E24: 145875 | G24: 2007 07 31 23 | H24: 78591.6 | J24: 2007 07 31 23 | K24: 120214.8 | M24: 2007 07 31 23 | N24: 97736.1 | P24: 2007 07 31 23 | Q24: 125501.2 | S24: 2007 07 31 23 | T24: 119850 | V24: 2007 07 31 23 | W24: 139294.2 | Y24: 2007 07 31 23 | Z24: 110852.7 | AB24: 2007 07 31 23 | AC24: 124966.4 | AE24: 2007 07 31 23 | AF24: 99337.9 | AH24: 2007 07 31 23 | AI24: 129491 | AK24: 2007 07 31 23 | AL24: 146713.2 | AN24: 2007 07 31 23 | AO24: 140670.5 | AQ24: 2007 07 31 23 | AR24: 81187 | AT24: 2007 07 31 23 | AU24: 123374.2 | AW24: 2007 07 31 23 | AX24: 157687.4 | AZ24: 2007 07 31 23 | BA24: 156511.7 | BC24: 2007 07 31 23 | BD24: 115212.8 | BF24: 2007 07 31 23 | BG24: 135489.2
A25: 2007 08 31 23 | B25: 154854.5 | D25: 2007 08 31 23 | E25: 128930.5 | G25: 2007 08 31 23 | H25: 119062.7 | J25: 2007 08 31 23 | K25: 127181.8 | M25: 2007 08 31 23 | N25: 107281.5 | P25: 2007 08 31 23 | Q25: 115720.2 | S25: 2007 08 31 23 | T25: 118924.3 | V25: 2007 08 31 23 | W25: 120712.7 | Y25: 2007 08 31 23 | Z25: 105825.3 | AB25: 2007 08 31 23 | AC25: 103015.1 | AE25: 2007 08 31 23 | AF25: 132753.6 | AH25: 2007 08 31 23 | AI25: 120652.5 | AK25: 2007 08 31 23 | AL25: 108399.8 | AN25: 2007 08 31 23 | AO25: 108880 | AQ25: 2007 08 31 23 | AR25: 107782.7 | AT25: 2007 08 31 23 | AU25: 122594.4 | AW25: 2007 08 31 23 | AX25: 158528.8 | AZ25: 2007 08 31 23 | BA25: 139566.4 | BC25: 2007 08 31 23 | BD25: 131021.3 | BF25: 2007 08 31 23 | BG25: 119410.5
A26: 2007 09 30 23 | B26: 84634.2 | D26: 2007 09 30 23 | E26: 73179.5 | G26: 2007 09 30 23 | H26: 78344.4 | J26: 2007 09 30 23 | K26: 77726 | M26: 2007 09 30 23 | N26: 71367.6 | P26: 2007 09 30 23 | Q26: 68461.7 | S26: 2007 09 30 23 | T26: 91726.7 | V26: 2007 09 30 23 | W26: 78504.4 | Y26: 2007 09 30 23 | Z26: 73182.5 | AB26: 2007 09 30 23 | AC26: 53200.7 | AE26: 2007 09 30 23 | AF26: 79197.1 | AH26: 2007 09 30 23 | AI26: 68314.9 | AK26: 2007 09 30 23 | AL26: 76632.7 | AN26: 2007 09 30 23 | AO26: 60028.9 | AQ26: 2007 09 30 23 | AR26: 69751 | AT26: 2007 09 30 23 | AU26: 75578.7 | AW26: 2007 09 30 23 | AX26: 91242.3 | AZ26: 2007 09 30 23 | BA26: 77121.2 | BC26: 2007 09 30 23 | BD26: 72934.7 | BF26: 2007 09 30 23 | BG26: 67008.4
A27: 2007 10 31 23 | B27: 60239 | D27: 2007 10 31 23 | E27: 36367.1 | G27: 2007 10 31 23 | H27: 67745.6 | J27: 2007 10 31 23 | K27: 46089.7 | M27: 2007 10 31 23 | N27: 72123.8 | P27: 2007 10 31 23 | Q27: 46274.4 | S27: 2007 10 31 23 | T27: 67193.4 | V27: 2007 10 31 23 | W27: 48518.9 | Y27: 2007 10 31 23 | Z27: 60417.2 | AB27: 2007 10 31 23 | AC27: 23751.5 | AE27: 2007 10 31 23 | AF27: 64643.2 | AH27: 2007 10 31 23 | AI27: 35488.5 | AK27: 2007 10 31 23 | AL27: 49644.9 | AN27: 2007 10 31 23 | AO27: 24378.9 | AQ27: 2007 10 31 23 | AR27: 58655.5 | AT27: 2007 10 31 23 | AU27: 50519.6 | AW27: 2007 10 31 23 | AX27: 54889.4 | AZ27: 2007 10 31 23 | BA27: 37617.1 | BC27: 2007 10 31 23 | BD27: 49215.1 | BF27: 2007 10 31 23 | BG27: 32840.4
A28: 2007 11 30 23 | B28: 21391.5 | D28: 2007 11 30 23 | E28: 10715.4 | G28: 2007 11 30 23 | H28: 45171.4 | J28: 2007 11 30 23 | K28: 20102.4 | M28: 2007 11 30 23 | N28: 30504.6 | P28: 2007 11 30 23 | Q28: 15109.4 | S28: 2007 11 30 23 | T28: 32237.6 | V28: 2007 11 30 23 | W28: 18919.5 | Y28: 2007 11 30 23 | Z28: 11859.5 | AB28: 2007 11 30 23 | AC28: 2920.4 | AE28: 2007 11 30 23 | AF28: 18978 | AH28: 2007 11 30 23 | AI28: 9855.4 | AK28: 2007 11 30 23 | AL28: 11442 | AN28: 2007 11 30 23 | AO28: 4508.2 | AQ28: 2007 11 30 23 | AR28: 28476.7 | AT28: 2007 11 30 23 | AU28: 20097.2 | AW28: 2007 11 30 23 | AX28: 29824.7 | AZ28: 2007 11 30 23 | BA28: 13671.6 | BC28: 2007 11 30 23 | BD28: 13009.2 | BF28: 2007 11 30 23 | BG28: 7459.9
A29: 2007 12 31 23 | B29: 21000.6 | D29: 2007 12 31 23 | E29: 5128.7 | G29: 2007 12 31 23 | H29: 7910 | J29: 2007 12 31 23 | K29: 5653.2 | M29: 2007 12 31 23 | N29: 799.8 | P29: 2007 12 31 23 | Q29: 3722.6 | S29: 2007 12 31 23 | T29: 8682.3 | V29: 2007 12 31 23 | W29: 6088.9 | Y29: 2007 12 31 23 | Z29: 544.2 | AB29: 2007 12 31 23 | AC29: 67.3 | AE29: 2007 12 31 23 | AF29: 17731.5 | AH29: 2007 12 31 23 | AI29: 3782 | AK29: 2007 12 31 23 | AL29: 6109.6 | AN29: 2007 12 31 23 | AO29: 736.1 | AQ29: 2007 12 31 23 | AR29: 7881.6 | AT29: 2007 12 31 23 | AU29: 7060 | AW29: 2007 12 31 23 | AX29: 12818.2 | AZ29: 2007 12 31 23 | BA29: 4965.6 | BC29: 2007 12 31 23 | BD29: 9698.2 | BF29: 2007 12 31 23 | BG29: 2356.3
A30: 2008 01 31 23 | B30: 20372.7 | D30: 2008 01 31 23 | E30: 7547.2 | G30: 2008 01 31 23 | H30: 17611.6 | J30: 2008 01 31 23 | K30: 10182.2 | M30: 2008 01 31 23 | N30: 8524.2 | P30: 2008 01 31 23 | Q30: 8002.1 | S30: 2008 01 31 23 | T30: 15312.7 | V30: 2008 01 31 23 | W30: 10999.7 | Y30: 2008 01 31 23 | Z30: 9930.1 | AB30: 2008 01 31 23 | AC30: 1374.5 | AE30: 2008 01 31 23 | AF30: 16498.3 | AH30: 2008 01 31 23 | AI30: 6396.8 | AK30: 2008 01 31 23 | AL30: 11913.9 | AN30: 2008 01 31 23 | AO30: 2787 | AQ30: 2008 01 31 23 | AR30: 8767.6 | AT30: 2008 01 31 23 | AU30: 10619.9 | AW30: 2008 01 31 23 | AX30: 18163.8 | AZ30: 2008 01 31 23 | BA30: 9060.3 | BC30: 2008 01 31 23 | BD30: 9913.5 | BF30: 2008 01 31 23 | BG30: 4462.6
A31: 2008 02 29 23 | B31: 57323.6 | D31: 2008 02 29 23 | E31: 28542.9 | G31: 2008 02 29 23 | H31: 31904.1 | J31: 2008 02 29 23 | K31: 26314.5 | M31: 2008 02 29 23 | N31: 38435.5 | P31: 2008 02 29 23 | Q31: 24784.5 | S31: 2008 02 29 23 | T31: 49170.7 | V31: 2008 02 29 23 | W31: 31143.6 | Y31: 2008 02 29 23 | Z31: 19240.2 | AB31: 2008 02 29 23 | AC31: 9986.9 | AE31: 2008 02 29 23 | AF31: 42827.7 | AH31: 2008 02 29 23 | AI31: 23430.8 | AK31: 2008 02 29 23 | AL31: 27044 | AN31: 2008 02 29 23 | AO31: 14542.1 | AQ31: 2008 02 29 23 | AR31: 38133.7 | AT31: 2008 02 29 23 | AU31: 29809.1 | AW31: 2008 02 29 23 | AX31: 50808.9 | AZ31: 2008 02 29 23 | BA31: 27987.9 | BC31: 2008 02 29 23 | BD31: 38478.9 | BF31: 2008 02 29 23 | BG31: 20466.2
A32: 2008 03 31 23 | B32: 72498.2 | D32: 2008 03 31 23 | E32: 58990.6 | G32: 2008 03 31 23 | H32: 75722.2 | J32: 2008 03 31 23 | K32: 64941.5 | M32: 2008 03 31 23 | N32: 81950.5 | P32: 2008 03 31 23 | Q32: 67261.6 | S32: 2008 03 31 23 | T32: 92873.6 | V32: 2008 03 31 23 | W32: 75294.2 | Y32: 2008 03 31 23 | Z32: 91805.8 | AB32: 2008 03 31 23 | AC32: 48099.5 | AE32: 2008 03 31 23 | AF32: 70272.5 | AH32: 2008 03 31 23 | AI32: 55515.2 | AK32: 2008 03 31 23 | AL32: 51120.2 | AN32: 2008 03 31 23 | AO32: 41687.8 | AQ32: 2008 03 31 23 | AR32: 72743.9 | AT32: 2008 03 31 23 | AU32: 71517.7 | AW32: 2008 03 31 23 | AX32: 85670.2 | AZ32: 2008 03 31 23 | BA32: 65700.2 | BC32: 2008 03 31 23 | BD32: 79485 | BF32: 2008 03 31 23 | BG32: 59192.8
A33: 2008 04 30 23 | B33: 124816 | D33: 2008 04 30 23 | E33: 104225 | G33: 2008 04 30 23 | H33: 147017.5 | J33: 2008 04 30 23 | K33: 125797.1 | M33: 2008 04 30 23 | N33: 144098.6 | P33: 2008 04 30 23 | Q33: 125823.9 | S33: 2008 04 30 23 | T33: 141159.4 | V33: 2008 04 30 23 | W33: 123720.1 | Y33: 2008 04 30 23 | Z33: 100424.2 | AB33: 2008 04 30 23 | AC33: 89394 | AE33: 2008 04 30 23 | AF33: 111968.9 | AH33: 2008 04 30 23 | AI33: 94673.7 | AK33: 2008 04 30 23 | AL33: 92894.8 | AN33: 2008 04 30 23 | AO33: 92912.1 | AQ33: 2008 04 30 23 | AR33: 123260.6 | AT33: 2008 04 30 23 | AU33: 125897.9 | AW33: 2008 04 30 23 | AX33: 142046.9 | AZ33: 2008 04 30 23 | BA33: 122150.1 | BC33: 2008 04 30 23 | BD33: 122773 | BF33: 2008 04 30 23 | BG33: 98867.8
A34: 2008 05 31 23 | B34: 181531.1 | D34: 2008 05 31 23 | E34: 167219.5 | G34: 2008 05 31 23 | H34: 227767.9 | J34: 2008 05 31 23 | K34: 195146.8 | M34: 2008 05 31 23 | N34: 211988.4 | P34: 2008 05 31 23 | Q34: 183974.6 | S34: 2008 05 31 23 | T34: 199740.7 | V34: 2008 05 31 23 | W34: 179794 | Y34: 2008 05 31 23 | Z34: 130114.6 | AB34: 2008 05 31 23 | AC34: 133266.7 | AE34: 2008 05 31 23 | AF34: 137829.8 | AH34: 2008 05 31 23 | AI34: 144102.1 | AK34: 2008 05 31 23 | AL34: 179366.7 | AN34: 2008 05 31 23 | AO34: 165650.9 | AQ34: 2008 05 31 23 | AR34: 241157.6 | AT34: 2008 05 31 23 | AU34: 203471 | AW34: 2008 05 31 23 | AX34: 226856.9 | AZ34: 2008 05 31 23 | BA34: 186913.7 | BC34: 2008 05 31 23 | BD34: 144214.5 | BF34: 2008 05 31 23 | BG34: 143593.3
A35: 2008 06 30 23 | B35: 172790.8 | D35: 2008 06 30 23 | E35: 171774 | G35: 2008 06 30 23 | H35: 178555.1 | J35: 2008 06 30 23 | K35: 175489.7 | M35: 2008 06 30 23 | N35: 177656.7 | P35: 2008 06 30 23 | Q35: 176099.9 | S35: 2008 06 30 23 | T35: 197109.7 | V35: 2008 06 30 23 | W35: 189088.5 | Y35: 2008 06 30 23 | Z35: 99469 | AB35: 2008 06 30 23 | AC35: 125010.5 | AE35: 2008 06 30 23 | AF35: 166291.6 | AH35: 2008 06 30 23 | AI35: 165882 | AK35: 2008 06 30 23 | AL35: 159253.8 | AN35: 2008 06 30 23 | AO35: 161033.3 | AQ35: 2008 06 30 23 | AR35: 186073 | AT35: 2008 06 30 23 | AU35: 185420.9 | AW35: 2008 06 30 23 | AX35: 234001.9 | AZ35: 2008 06 30 23 | BA35: 201102.7 | BC35: 2008 06 30 23 | BD35: 173868.2 | BF35: 2008 06 30 23 | BG35: 169559.3
A36: 2008 07 31 23 | B36: 200485.7 | D36: 2008 07 31 23 | E36: 178404.5 | G36: 2008 07 31 23 | H36: 187265.2 | J36: 2008 07 31 23 | K36: 175602.1 | M36: 2008 07 31 23 | N36: 186311 | P36: 2008 07 31 23 | Q36: 171853.5 | S36: 2008 07 31 23 | T36: 191339.5 | V36: 2008 07 31 23 | W36: 176807.8 | Y36: 2008 07 31 23 | Z36: 160849.3 | AB36: 2008 07 31 23 | AC36: 150427.8 | AE36: 2008 07 31 23 | AF36: 159211 | AH36: 2008 07 31 23 | AI36: 160161.1 | AK36: 2008 07 31 23 | AL36: 163369.9 | AN36: 2008 07 31 23 | AO36: 158118 | AQ36: 2008 07 31 23 | AR36: 187283 | AT36: 2008 07 31 23 | AU36: 181526.1 | AW36: 2008 07 31 23 | AX36: 230234.8 | AZ36: 2008 07 31 23 | BA36: 195097.1 | BC36: 2008 07 31 23 | BD36: 185811 | BF36: 2008 07 31 23 | BG36: 169324.5
A37: 2008 08 31 23 | B37: 74479.8 | D37: 2008 08 31 23 | E37: 92488.7 | G37: 2008 08 31 23 | H37: 103941.5 | J37: 2008 08 31 23 | K37: 112064.1 | M37: 2008 08 31 23 | N37: 82497.1 | P37: 2008 08 31 23 | Q37: 100721.4 | S37: 2008 08 31 23 | T37: 87738.3 | V37: 2008 08 31 23 | W37: 106283.7 | Y37: 2008 08 31 23 | Z37: 78632.4 | AB37: 2008 08 31 23 | AC37: 91724 | AE37: 2008 08 31 23 | AF37: 68951.9 | AH37: 2008 08 31 23 | AI37: 90908.2 | AK37: 2008 08 31 23 | AL37: 96043.4 | AN37: 2008 08 31 23 | AO37: 101856.2 | AQ37: 2008 08 31 23 | AR37: 88104.9 | AT37: 2008 08 31 23 | AU37: 111177.8 | AW37: 2008 08 31 23 | AX37: 90458.2 | AZ37: 2008 08 31 23 | BA37: 107786.7 | BC37: 2008 08 31 23 | BD37: 86031 | BF37: 2008 08 31 23 | BG37: 97764.3
A38: 2008 09 30 23 | B38: 64587.6 | D38: 2008 09 30 23 | E38: 62920.7 | G38: 2008 09 30 23 | H38: 74437.4 | J38: 2008 09 30 23 | K38: 76143.7 | M38: 2008 09 30 23 | N38: 54902.4 | P38: 2008 09 30 23 | Q38: 64952.7 | S38: 2008 09 30 23 | T38: 67142.7 | V38: 2008 09 30 23 | W38: 72588.4 | Y38: 2008 09 30 23 | Z38: 92950.5 | AB38: 2008 09 30 23 | AC38: 62342.1 | AE38: 2008 09 30 23 | AF38: 64106 | AH38: 2008 09 30 23 | AI38: 63789.6 | AK38: 2008 09 30 23 | AL38: 71689.9 | AN38: 2008 09 30 23 | AO38: 64297.5 | AQ38: 2008 09 30 23 | AR38: 83925.4 | AT38: 2008 09 30 23 | AU38: 87445.2 | AW38: 2008 09 30 23 | AX38: 74317.6 | AZ38: 2008 09 30 23 | BA38: 69718.5 | BC38: 2008 09 30 23 | BD38: 70767.4 | BF38: 2008 09 30 23 | BG38: 64986.4
A39: 2008 10 31 23 | B39: 57100.7 | D39: 2008 10 31 23 | E39: 33020.8 | G39: 2008 10 31 23 | H39: 61472.3 | J39: 2008 10 31 23 | K39: 43122 | M39: 2008 10 31 23 | N39: 44757.2 | P39: 2008 10 31 23 | Q39: 37555.9 | S39: 2008 10 31 23 | T39: 51509.6 | V39: 2008 10 31 23 | W39: 43550 | Y39: 2008 10 31 23 | Z39: 32109.1 | AB39: 2008 10 31 23 | AC39: 18624.1 | AE39: 2008 10 31 23 | AF39: 44537.1 | AH39: 2008 10 31 23 | AI39: 30131.9 | AK39: 2008 10 31 23 | AL39: 50748.1 | AN39: 2008 10 31 23 | AO39: 25398.7 | AQ39: 2008 10 31 23 | AR39: 57515.4 | AT39: 2008 10 31 23 | AU39: 46762 | AW39: 2008 10 31 23 | AX39: 61510.5 | AZ39: 2008 10 31 23 | BA39: 38147.4 | BC39: 2008 10 31 23 | BD39: 49124.1 | BF39: 2008 10 31 23 | BG39: 29216.2
A40: 2008 11 30 23 | B40: 31907.8 | D40: 2008 11 30 23 | E40: 12184.5 | G40: 2008 11 30 23 | H40: 40840.2 | J40: 2008 11 30 23 | K40: 17437.5 | M40: 2008 11 30 23 | N40: 34635.4 | P40: 2008 11 30 23 | Q40: 16080.6 | S40: 2008 11 30 23 | T40: 30195.9 | V40: 2008 11 30 23 | W40: 17074.1 | Y40: 2008 11 30 23 | Z40: 20880.4 | AB40: 2008 11 30 23 | AC40: 3634.7 | AE40: 2008 11 30 23 | AF40: 26565.1 | AH40: 2008 11 30 23 | AI40: 10720.7 | AK40: 2008 11 30 23 | AL40: 20302.1 | AN40: 2008 11 30 23 | AO40: 5669.9 | AQ40: 2008 11 30 23 | AR40: 18724.3 | AT40: 2008 11 30 23 | AU40: 16441.2 | AW40: 2008 11 30 23 | AX40: 29746.1 | AZ40: 2008 11 30 23 | BA40: 13117 | BC40: 2008 11 30 23 | BD40: 16199 | BF40: 2008 11 30 23 | BG40: 8279.7
A41: 2008 12 31 23 | B41: 17831.7 | D41: 2008 12 31 23 | E41: 4189.9 | G41: 2008 12 31 23 | H41: 11610.5 | J41: 2008 12 31 23 | K41: 6712 | M41: 2008 12 31 23 | N41: 9110.9 | P41: 2008 12 31 23 | Q41: 4911.5 | S41: 2008 12 31 23 | T41: 14825.9 | V41: 2008 12 31 23 | W41: 7435.2 | Y41: 2008 12 31 23 | Z41: 713.9 | AB41: 2008 12 31 23 | AC41: 88.6 | AE41: 2008 12 31 23 | AF41: 14384.7 | AH41: 2008 12 31 23 | AI41: 3133.6 | AK41: 2008 12 31 23 | AL41: 2826.3 | AN41: 2008 12 31 23 | AO41: 601.8 | AQ41: 2008 12 31 23 | AR41: 12648.2 | AT41: 2008 12 31 23 | AU41: 9405.4 | AW41: 2008 12 31 23 | AX41: 15319.7 | AZ41: 2008 12 31 23 | BA41: 5508.6 | BC41: 2008 12 31 23 | BD41: 5550.4 | BF41: 2008 12 31 23 | BG41: 2037.6
A42: 2009 01 31 23 | B42: 23089.7 | D42: 2009 01 31 23 | E42: 7057.9 | G42: 2009 01 31 23 | H42: 22847.6 | J42: 2009 01 31 23 | K42: 10164.8 | M42: 2009 01 31 23 | N42: 19199.1 | P42: 2009 01 31 23 | Q42: 9234.7 | S42: 2009 01 31 23 | T42: 21788.2 | V42: 2009 01 31 23 | W42: 11201.3 | Y42: 2009 01 31 23 | Z42: 3866.8 | AB42: 2009 01 31 23 | AC42: 935.5 | AE42: 2009 01 31 23 | AF42: 14976.2 | AH42: 2009 01 31 23 | AI42: 5727.6 | AK42: 2009 01 31 23 | AL42: 8664.3 | AN42: 2009 01 31 23 | AO42: 2071.7 | AQ42: 2009 01 31 23 | AR42: 19345.2 | AT42: 2009 01 31 23 | AU42: 13295.6 | AW42: 2009 01 31 23 | AX42: 26353.8 | AZ42: 2009 01 31 23 | BA42: 8935.8 | BC42: 2009 01 31 23 | BD42: 11268.8 | BF42: 2009 01 31 23 | BG42: 4301
A43: 2009 02 28 23 | B43: 27880.6 | D43: 2009 02 28 23 | E43: 20058.7 | G43: 2009 02 28 23 | H43: 35287.9 | J43: 2009 02 28 23 | K43: 25503.5 | M43: 2009 02 28 23 | N43: 32792.6 | P43: 2009 02 28 23 | Q43: 23918.9 | S43: 2009 02 28 23 | T43: 38241.7 | V43: 2009 02 28 23 | W43: 26070.3 | Y43: 2009 02 28 23 | Z43: 32022.7 | AB43: 2009 02 28 23 | AC43: 12627.8 | AE43: 2009 02 28 23 | AF43: 54704.9 | AH43: 2009 02 28 23 | AI43: 23405.7 | AK43: 2009 02 28 23 | AL43: 41314.5 | AN43: 2009 02 28 23 | AO43: 16854.9 | AQ43: 2009 02 28 23 | AR43: 31219.9 | AT43: 2009 02 28 23 | AU43: 28047.1 | AW43: 2009 02 28 23 | AX43: 32397.1 | AZ43: 2009 02 28 23 | BA43: 23452.2 | BC43: 2009 02 28 23 | BD43: 42559.9 | BF43: 2009 02 28 23 | BG43: 19597.2
A44: 2009 03 31 23 | B44: 48844 | D44: 2009 03 31 23 | E44: 50341.4 | G44: 2009 03 31 23 | H44: 77275 | J44: 2009 03 31 23 | K44: 62928.1 | M44: 2009 03 31 23 | N44: 57602 | P44: 2009 03 31 23 | Q44: 54640.4 | S44: 2009 03 31 23 | T44: 45917.3 | V44: 2009 03 31 23 | W44: 55974.9 | Y44: 2009 03 31 23 | Z44: 79732 | AB44: 2009 03 31 23 | AC44: 48755.5 | AE44: 2009 03 31 23 | AF44: 56759.3 | AH44: 2009 03 31 23 | AI44: 51464.9 | AK44: 2009 03 31 23 | AL44: 69380.1 | AN44: 2009 03 31 23 | AO44: 49611.3 | AQ44: 2009 03 31 23 | AR44: 54753.7 | AT44: 2009 03 31 23 | AU44: 62675.2 | AW44: 2009 03 31 23 | AX44: 52923.6 | AZ44: 2009 03 31 23 | BA44: 53558.5 | BC44: 2009 03 31 23 | BD44: 72620.2 | BF44: 2009 03 31 23 | BG44: 55750.4
A45: 2009 04 30 23 | B45: 138706.4 | D45: 2009 04 30 23 | E45: 117525.2 | G45: 2009 04 30 23 | H45: 174161.1 | J45: 2009 04 30 23 | K45: 136303.1 | M45: 2009 04 30 23 | N45: 201139.7 | P45: 2009 04 30 23 | Q45: 145800.7 | S45: 2009 04 30 23 | T45: 210986.9 | V45: 2009 04 30 23 | W45: 156266.7 | Y45: 2009 04 30 23 | Z45: 119284.6 | AB45: 2009 04 30 23 | AC45: 95241.6 | AE45: 2009 04 30 23 | AF45: 117071.9 | AH45: 2009 04 30 23 | AI45: 105605.2 | AK45: 2009 04 30 23 | AL45: 131191.8 | AN45: 2009 04 30 23 | AO45: 103890 | AQ45: 2009 04 30 23 | AR45: 198226.6 | AT45: 2009 04 30 23 | AU45: 157886 | AW45: 2009 04 30 23 | AX45: 179783.4 | AZ45: 2009 04 30 23 | BA45: 137932.9 | BC45: 2009 04 30 23 | BD45: 105228.5 | BF45: 2009 04 30 23 | BG45: 97465.1
A46: 2009 05 31 23 | B46: 168606 | D46: 2009 05 31 23 | E46: 160587.1 | G46: 2009 05 31 23 | H46: 187032.8 | J46: 2009 05 31 23 | K46: 173654.2 | M46: 2009 05 31 23 | N46: 170875.4 | P46: 2009 05 31 23 | Q46: 165322 | S46: 2009 05 31 23 | T46: 188496.7 | V46: 2009 05 31 23 | W46: 175959.3 | Y46: 2009 05 31 23 | Z46: 168726.8 | AB46: 2009 05 31 23 | AC46: 145991.1 | AE46: 2009 05 31 23 | AF46: 145396.8 | AH46: 2009 05 31 23 | AI46: 151088.8 | AK46: 2009 05 31 23 | AL46: 184392.3 | AN46: 2009 05 31 23 | AO46: 159690.2 | AQ46: 2009 05 31 23 | AR46: 163563.9 | AT46: 2009 05 31 23 | AU46: 168601.1 | AW46: 2009 05 31 23 | AX46: 210142.8 | AZ46: 2009 05 31 23 | BA46: 180200.9 | BC46: 2009 05 31 23 | BD46: 169128.7 | BF46: 2009 05 31 23 | BG46: 155771.1
A47: 2009 06 30 23 | B47: 153677.6 | D47: 2009 06 30 23 | E47: 151541.2 | G47: 2009 06 30 23 | H47: 197111.5 | J47: 2009 06 30 23 | K47: 180669.1 | M47: 2009 06 30 23 | N47: 163071.8 | P47: 2009 06 30 23 | Q47: 160825.5 | S47: 2009 06 30 23 | T47: 203256.9 | V47: 2009 06 30 23 | W47: 181328.6 | Y47: 2009 06 30 23 | Z47: 163566.7 | AB47: 2009 06 30 23 | AC47: 160280.5 | AE47: 2009 06 30 23 | AF47: 128633.9 | AH47: 2009 06 30 23 | AI47: 141355.9 | AK47: 2009 06 30 23 | AL47: 179967.8 | AN47: 2009 06 30 23 | AO47: 169590.8 | AQ47: 2009 06 30 23 | AR47: 145427.6 | AT47: 2009 06 30 23 | AU47: 161194.1 | AW47: 2009 06 30 23 | AX47: 187553.4 | AZ47: 2009 06 30 23 | BA47: 161519.8 | BC47: 2009 06 30 23 | BD47: 142222.2 | BF47: 2009 06 30 23 | BG47: 155986.2
A48: 2009 07 31 23 | B48: 107159.6 | D48: 2009 07 31 23 | E48: 118021.4 | G48: 2009 07 31 23 | H48: 101106 | J48: 2009 07 31 23 | K48: 121221.1 | M48: 2009 07 31 23 | N48: 90917.8 | P48: 2009 07 31 23 | Q48: 112781.7 | S48: 2009 07 31 23 | T48: 133343.7 | V48: 2009 07 31 23 | W48: 141935.7 | Y48: 2009 07 31 23 | Z48: 87585.1 | AB48: 2009 07 31 23 | AC48: 114694.5 | AE48: 2009 07 31 23 | AF48: 79767.7 | AH48: 2009 07 31 23 | AI48: 105808 | AK48: 2009 07 31 23 | AL48: 128683.2 | AN48: 2009 07 31 23 | AO48: 137645.4 | AQ48: 2009 07 31 23 | AR48: 123528.3 | AT48: 2009 07 31 23 | AU48: 136454.7 | AW48: 2009 07 31 23 | AX48: 159847.8 | AZ48: 2009 07 31 23 | BA48: 139994.7 | BC48: 2009 07 31 23 | BD48: 109517.4 | BF48: 2009 07 31 23 | BG48: 122632
A49: 2009 08 31 23 | B49: 134302.9 | D49: 2009 08 31 23 | E49: 122289.1 | G49: 2009 08 31 23 | H49: 124660.8 | J49: 2009 08 31 23 | K49: 119332.6 | M49: 2009 08 31 23 | N49: 134328.1 | P49: 2009 08 31 23 | Q49: 124678.4 | S49: 2009 08 31 23 | T49: 168042 | V49: 2009 08 31 23 | W49: 143002.8 | Y49: 2009 08 31 23 | Z49: 105067.1 | AB49: 2009 08 31 23 | AC49: 101098.6 | AE49: 2009 08 31 23 | AF49: 86399.1 | AH49: 2009 08 31 23 | AI49: 101310.9 | AK49: 2009 08 31 23 | AL49: 141471.5 | AN49: 2009 08 31 23 | AO49: 120255 | AQ49: 2009 08 31 23 | AR49: 140646 | AT49: 2009 08 31 23 | AU49: 132295.2 | AW49: 2009 08 31 23 | AX49: 190541.3 | AZ49: 2009 08 31 23 | BA49: 136979.8 | BC49: 2009 08 31 23 | BD49: 99313.9 | BF49: 2009 08 31 23 | BG49: 108300.7
A50: 2009 09 30 23 | B50: 100298.7 | D50: 2009 09 30 23 | E50: 78725.4 | G50: 2009 09 30 23 | H50: 90903.9 | J50: 2009 09 30 23 | K50: 77287.8 | M50: 2009 09 30 23 | N50: 94027.4 | P50: 2009 09 30 23 | Q50: 77458.7 | S50: 2009 09 30 23 | T50: 99469.6 | V50: 2009 09 30 23 | W50: 80515.2 | Y50: 2009 09 30 23 | Z50: 77562.7 | AB50: 2009 09 30 23 | AC50: 59813.7 | AE50: 2009 09 30 23 | AF50: 74827.2 | AH50: 2009 09 30 23 | AI50: 71566.4 | AK50: 2009 09 30 23 | AL50: 87611.5 | AN50: 2009 09 30 23 | AO50: 65759.3 | AQ50: 2009 09 30 23 | AR50: 91199.2 | AT50: 2009 09 30 23 | AU50: 78380.3 | AW50: 2009 09 30 23 | AX50: 135731.7 | AZ50: 2009 09 30 23 | BA50: 90516 | BC50: 2009 09 30 23 | BD50: 70783 | BF50: 2009 09 30 23 | BG50: 68677.1
A51: 2009 10 31 23 | B51: 56786.4 | D51: 2009 10 31 23 | E51: 34825.5 | G51: 2009 10 31 23 | H51: 53361.3 | J51: 2009 10 31 23 | K51: 38322.1 | M51: 2009 10 31 23 | N51: 39201.4 | P51: 2009 10 31 23 | Q51: 33627.4 | S51: 2009 10 31 23 | T51: 40355.2 | V51: 2009 10 31 23 | W51: 34669.2 | Y51: 2009 10 31 23 | Z51: 53087.5 | AB51: 2009 10 31 23 | AC51: 23444.9 | AE51: 2009 10 31 23 | AF51: 57181.7 | AH51: 2009 10 31 23 | AI51: 33300.3 | AK51: 2009 10 31 23 | AL51: 65738.1 | AN51: 2009 10 31 23 | AO51: 27997.6 | AQ51: 2009 10 31 23 | AR51: 47876.4 | AT51: 2009 10 31 23 | AU51: 40683.7 | AW51: 2009 10 31 23 | AX51: 59006.9 | AZ51: 2009 10 31 23 | BA51: 38087.8 | BC51: 2009 10 31 23 | BD51: 45957.2 | BF51: 2009 10 31 23 | BG51: 30385.9
A52: 2009 11 30 23 | B52: 6319.8 | D52: 2009 11 30 23 | E52: 6610.1 | G52: 2009 11 30 23 | H52: 5540.3 | J52: 2009 11 30 23 | K52: 9120.9 | M52: 2009 11 30 23 | N52: 7406.7 | P52: 2009 11 30 23 | Q52: 9319.4 | S52: 2009 11 30 23 | T52: 12395.6 | V52: 2009 11 30 23 | W52: 12022.1 | Y52: 2009 11 30 23 | Z52: 4384.3 | AB52: 2009 11 30 23 | AC52: 1943.4 | AE52: 2009 11 30 23 | AF52: 9417.4 | AH52: 2009 11 30 23 | AI52: 6071.9 | AK52: 2009 11 30 23 | AL52: 5832.7 | AN52: 2009 11 30 23 | AO52: 2826.7 | AQ52: 2009 11 30 23 | AR52: 12073.9 | AT52: 2009 11 30 23 | AU52: 12943.9 | AW52: 2009 11 30 23 | AX52: 8480.1 | AZ52: 2009 11 30 23 | BA52: 8330.5 | BC52: 2009 11 30 23 | BD52: 6450.2 | BF52: 2009 11 30 23 | BG52: 4592.2
A53: 2009 12 31 23 | B53: 10074.4 | D53: 2009 12 31 23 | E53: 4139.7 | G53: 2009 12 31 23 | H53: 20434.4 | J53: 2009 12 31 23 | K53: 8046 | M53: 2009 12 31 23 | N53: 15965.9 | P53: 2009 12 31 23 | Q53: 7104.8 | S53: 2009 12 31 23 | T53: 16245.6 | V53: 2009 12 31 23 | W53: 8494.9 | Y53: 2009 12 31 23 | Z53: 894.3 | AB53: 2009 12 31 23 | AC53: 102.3 | AE53: 2009 12 31 23 | AF53: 10212.5 | AH53: 2009 12 31 23 | AI53: 3148.1 | AK53: 2009 12 31 23 | AL53: 2854.7 | AN53: 2009 12 31 23 | AO53: 633.5 | AQ53: 2009 12 31 23 | AR53: 8412.8 | AT53: 2009 12 31 23 | AU53: 8731.2 | AW53: 2009 12 31 23 | AX53: 6430.5 | AZ53: 2009 12 31 23 | BA53: 4500.2 | BC53: 2009 12 31 23 | BD53: 6199.3 | BF53: 2009 12 31 23 | BG53: 2099.7
A54: 2010 01 31 23 | B54: 17437.3 | D54: 2010 01 31 23 | E54: 7081.1 | G54: 2010 01 31 23 | H54: 34779.6 | J54: 2010 01 31 23 | K54: 13994.5 | M54: 2010 01 31 23 | N54: 12655.4 | P54: 2010 01 31 23 | Q54: 10419.7 | S54: 2010 01 31 23 | T54: 9990 | V54: 2010 01 31 23 | W54: 10207.6 | Y54: 2010 01 31 23 | Z54: 2966.5 | AB54: 2010 01 31 23 | AC54: 1137.3 | AE54: 2010 01 31 23 | AF54: 21858.8 | AH54: 2010 01 31 23 | AI54: 6771.7 | AK54: 2010 01 31 23 | AL54: 4398 | AN54: 2010 01 31 23 | AO54: 1845.4 | AQ54: 2010 01 31 23 | AR54: 25184 | AT54: 2010 01 31 23 | AU54: 14538.9 | AW54: 2010 01 31 23 | AX54: 8293.1 | AZ54: 2010 01 31 23 | BA54: 7929.4 | BC54: 2010 01 31 23 | BD54: 12694.2 | BF54: 2010 01 31 23 | BG54: 5067.4
A55: 2010 02 28 23 | B55: 24178.2 | D55: 2010 02 28 23 | E55: 16555.7 | G55: 2010 02 28 23 | H55: 10926.6 | J55: 2010 02 28 23 | K55: 16985.2 | M55: 2010 02 28 23 | N55: 9952.9 | P55: 2010 02 28 23 | Q55: 13833.6 | S55: 2010 02 28 23 | T55: 9155.7 | V55: 2010 02 28 23 | W55: 13929.5 | Y55: 2010 02 28 23 | Z55: 27328 | AB55: 2010 02 28 23 | AC55: 12379.6 | AE55: 2010 02 28 23 | AF55: 33012 | AH55: 2010 02 28 23 | AI55: 18395.3 | AK55: 2010 02 28 23 | AL55: 39646 | AN55: 2010 02 28 23 | AO55: 16203.3 | AQ55: 2010 02 28 23 | AR55: 9206.7 | AT55: 2010 02 28 23 | AU55: 16037.7 | AW55: 2010 02 28 23 | AX55: 14766.8 | AZ55: 2010 02 28 23 | BA55: 15107 | BC55: 2010 02 28 23 | BD55: 24305.2 | BF55: 2010 02 28 23 | BG55: 16317
A56: 2010 03 31 23 | B56: 74437 | D56: 2010 03 31 23 | E56: 54165.9 | G56: 2010 03 31 23 | H56: 82568.1 | J56: 2010 03 31 23 | K56: 59496.7 | M56: 2010 03 31 23 | N56: 103366.6 | P56: 2010 03 31 23 | Q56: 65820 | S56: 2010 03 31 23 | T56: 97949.6 | V56: 2010 03 31 23 | W56: 71080.6 | Y56: 2010 03 31 23 | Z56: 94994.2 | AB56: 2010 03 31 23 | AC56: 50297.6 | AE56: 2010 03 31 23 | AF56: 71389 | AH56: 2010 03 31 23 | AI56: 54428.2 | AK56: 2010 03 31 23 | AL56: 81474.8 | AN56: 2010 03 31 23 | AO56: 50784.3 | AQ56: 2010 03 31 23 | AR56: 67212.9 | AT56: 2010 03 31 23 | AU56: 57305.6 | AW56: 2010 03 31 23 | AX56: 89442.6 | AZ56: 2010 03 31 23 | BA56: 61953.3 | BC56: 2010 03 31 23 | BD56: 68155.8 | BF56: 2010 03 31 23 | BG56: 52369.2
A57: 2010 04 30 23 | B57: 114500.1 | D57: 2010 04 30 23 | E57: 99829.8 | G57: 2010 04 30 23 | H57: 128612.9 | J57: 2010 04 30 23 | K57: 107504.8 | M57: 2010 04 30 23 | N57: 111325.3 | P57: 2010 04 30 23 | Q57: 99453 | S57: 2010 04 30 23 | T57: 119778.8 | V57: 2010 04 30 23 | W57: 105070.4 | Y57: 2010 04 30 23 | Z57: 112944.4 | AB57: 2010 04 30 23 | AC57: 97743.7 | AE57: 2010 04 30 23 | AF57: 109254.9 | AH57: 2010 04 30 23 | AI57: 100072.8 | AK57: 2010 04 30 23 | AL57: 91169.5 | AN57: 2010 04 30 23 | AO57: 86488.2 | AQ57: 2010 04 30 23 | AR57: 122825.6 | AT57: 2010 04 30 23 | AU57: 106757.5 | AW57: 2010 04 30 23 | AX57: 126819.7 | AZ57: 2010 04 30 23 | BA57: 105986.6 | BC57: 2010 04 30 23 | BD57: 103305.2 | BF57: 2010 04 30 23 | BG57: 102132
A58: 2010 05 31 23 | B58: 123152.6 | D58: 2010 05 31 23 | E58: 121338.5 | G58: 2010 05 31 23 | H58: 114922.5 | J58: 2010 05 31 23 | K58: 122226.8 | M58: 2010 05 31 23 | N58: 93380.6 | P58: 2010 05 31 23 | Q58: 103564 | S58: 2010 05 31 23 | T58: 90182.9 | V58: 2010 05 31 23 | W58: 108196 | Y58: 2010 05 31 23 | Z58: 110645.6 | AB58: 2010 05 31 23 | AC58: 116896.4 | AE58: 2010 05 31 23 | AF58: 100289.8 | AH58: 2010 05 31 23 | AI58: 110776.3 | AK58: 2010 05 31 23 | AL58: 168533.8 | AN58: 2010 05 31 23 | AO58: 136134.5 | AQ58: 2010 05 31 23 | AR58: 39324.2 | AT58: 2010 05 31 23 | AU58: 96350.8 | AW58: 2010 05 31 23 | AX58: 181758 | AZ58: 2010 05 31 23 | BA58: 142654.2 | BC58: 2010 05 31 23 | BD58: 101924.1 | BF58: 2010 05 31 23 | BG58: 116519.8
A59: 2010 06 30 23 | B59: 164675.5 | D59: 2010 06 30 23 | E59: 152366 | G59: 2010 06 30 23 | H59: 157118.9 | J59: 2010 06 30 23 | K59: 149862.9 | M59: 2010 06 30 23 | N59: 172453.7 | P59: 2010 06 30 23 | Q59: 157256.9 | S59: 2010 06 30 23 | T59: 199082.9 | V59: 2010 06 30 23 | W59: 172405.5 | Y59: 2010 06 30 23 | Z59: 119103.7 | AB59: 2010 06 30 23 | AC59: 144273.3 | AE59: 2010 06 30 23 | AF59: 128315.2 | AH59: 2010 06 30 23 | AI59: 146214.5 | AK59: 2010 06 30 23 | AL59: 147293.2 | AN59: 2010 06 30 23 | AO59: 138788.4 | AQ59: 2010 06 30 23 | AR59: 167144.1 | AT59: 2010 06 30 23 | AU59: 149688.7 | AW59: 2010 06 30 23 | AX59: 232195.8 | AZ59: 2010 06 30 23 | BA59: 172782.2 | BC59: 2010 06 30 23 | BD59: 123577 | BF59: 2010 06 30 23 | BG59: 146578.3
A60: 2010 07 31 23 | B60: 179801.2 | D60: 2010 07 31 23 | E60: 156420.8 | G60: 2010 07 31 23 | H60: 164386.5 | J60: 2010 07 31 23 | K60: 149052.7 | M60: 2010 07 31 23 | N60: 173855 | P60: 2010 07 31 23 | Q60: 146895.8 | S60: 2010 07 31 23 | T60: 227382.9 | V60: 2010 07 31 23 | W60: 172758.3 | Y60: 2010 07 31 23 | Z60: 104966.2 | AB60: 2010 07 31 23 | AC60: 112622.5 | AE60: 2010 07 31 23 | AF60: 145089.8 | AH60: 2010 07 31 23 | AI60: 141148.1 | AK60: 2010 07 31 23 | AL60: 155963.3 | AN60: 2010 07 31 23 | AO60: 131669.3 | AQ60: 2010 07 31 23 | AR60: 207049.2 | AT60: 2010 07 31 23 | AU60: 169324.9 | AW60: 2010 07 31 23 | AX60: 237361.6 | AZ60: 2010 07 31 23 | BA60: 165411.2 | BC60: 2010 07 31 23 | BD60: 133066.2 | BF60: 2010 07 31 23 | BG60: 145959.1
A61: 2010 08 31 23 | B61: 71743.3 | D61: 2010 08 31 23 | E61: 82569 | G61: 2010 08 31 23 | H61: 70631.9 | J61: 2010 08 31 23 | K61: 93835.9 | M61: 2010 08 31 23 | N61: 46352.9 | P61: 2010 08 31 23 | Q61: 82118.1 | S61: 2010 08 31 23 | T61: 97630.3 | V61: 2010 08 31 23 | W61: 104061.6 | Y61: 2010 08 31 23 | Z61: 76039.1 | AB61: 2010 08 31 23 | AC61: 81534.3 | AE61: 2010 08 31 23 | AF61: 58015.7 | AH61: 2010 08 31 23 | AI61: 71103.4 | AK61: 2010 08 31 23 | AL61: 89138.8 | AN61: 2010 08 31 23 | AO61: 87745.3 | AQ61: 2010 08 31 23 | AR61: 73706.2 | AT61: 2010 08 31 23 | AU61: 93901.5 | AW61: 2010 08 31 23 | AX61: 105044.7 | AZ61: 2010 08 31 23 | BA61: 98978.3 | BC61: 2010 08 31 23 | BD61: 81880.3 | BF61: 2010 08 31 23 | BG61: 87977.8
A62: 2010 09 30 23 | B62: 68318.1 | D62: 2010 09 30 23 | E62: 63442.8 | G62: 2010 09 30 23 | H62: 75914.1 | J62: 2010 09 30 23 | K62: 71712.4 | M62: 2010 09 30 23 | N62: 66040.8 | P62: 2010 09 30 23 | Q62: 66315.6 | S62: 2010 09 30 23 | T62: 82780.5 | V62: 2010 09 30 23 | W62: 69517.8 | Y62: 2010 09 30 23 | Z62: 74860.1 | AB62: 2010 09 30 23 | AC62: 53410.1 | AE62: 2010 09 30 23 | AF62: 69956.2 | AH62: 2010 09 30 23 | AI62: 62517.3 | AK62: 2010 09 30 23 | AL62: 91975.1 | AN62: 2010 09 30 23 | AO62: 63989.5 | AQ62: 2010 09 30 23 | AR62: 80100.4 | AT62: 2010 09 30 23 | AU62: 69412.4 | AW62: 2010 09 30 23 | AX62: 84555.6 | AZ62: 2010 09 30 23 | BA62: 71922.3 | BC62: 2010 09 30 23 | BD62: 84208.2 | BF62: 2010 09 30 23 | BG62: 65547.6
A63: 2010 10 31 23 | B63: 60186.5 | D63: 2010 10 31 23 | E63: 36347.1 | G63: 2010 10 31 23 | H63: 51905.1 | J63: 2010 10 31 23 | K63: 39203 | M63: 2010 10 31 23 | N63: 66734.5 | P63: 2010 10 31 23 | Q63: 43683.9 | S63: 2010 10 31 23 | T63: 77616.7 | V63: 2010 10 31 23 | W63: 48762 | Y63: 2010 10 31 23 | Z63: 38109.2 | AB63: 2010 10 31 23 | AC63: 20216.5 | AE63: 2010 10 31 23 | AF63: 58988.5 | AH63: 2010 10 31 23 | AI63: 34975.4 | AK63: 2010 10 31 23 | AL63: 31609.3 | AN63: 2010 10 31 23 | AO63: 23387.2 | AQ63: 2010 10 31 23 | AR63: 67718.4 | AT63: 2010 10 31 23 | AU63: 46016.4 | AW63: 2010 10 31 23 | AX63: 71069.1 | AZ63: 2010 10 31 23 | BA63: 43017.6 | BC63: 2010 10 31 23 | BD63: 51851.8 | BF63: 2010 10 31 23 | BG63: 31624.4
A64: 2010 11 30 23 | B64: 24317.6 | D64: 2010 11 30 23 | E64: 10437.2 | G64: 2010 11 30 23 | H64: 25158.6 | J64: 2010 11 30 23 | K64: 15042.8 | M64: 2010 11 30 23 | N64: 24127.5 | P64: 2010 11 30 23 | Q64: 13748.1 | S64: 2010 11 30 23 | T64: 11158.2 | V64: 2010 11 30 23 | W64: 12653.3 | Y64: 2010 11 30 23 | Z64: 9045.9 | AB64: 2010 11 30 23 | AC64: 2616.5 | AE64: 2010 11 30 23 | AF64: 23604.9 | AH64: 2010 11 30 23 | AI64: 9468.2 | AK64: 2010 11 30 23 | AL64: 21221.2 | AN64: 2010 11 30 23 | AO64: 4968.2 | AQ64: 2010 11 30 23 | AR64: 13106.9 | AT64: 2010 11 30 23 | AU64: 15174.4 | AW64: 2010 11 30 23 | AX64: 29965.6 | AZ64: 2010 11 30 23 | BA64: 12546.6 | BC64: 2010 11 30 23 | BD64: 13551.7 | BF64: 2010 11 30 23 | BG64: 7300.6
A65: 2010 12 31 23 | B65: 11847.6 | D65: 2010 12 31 23 | E65: 4446.5 | G65: 2010 12 31 23 | H65: 28110.9 | J65: 2010 12 31 23 | K65: 10440.1 | M65: 2010 12 31 23 | N65: 14019.6 | P65: 2010 12 31 23 | Q65: 7029.5 | S65: 2010 12 31 23 | T65: 15036.2 | V65: 2010 12 31 23 | W65: 8551.6 | Y65: 2010 12 31 23 | Z65: 433.5 | AB65: 2010 12 31 23 | AC65: 86.7 | AE65: 2010 12 31 23 | AF65: 14431.9 | AH65: 2010 12 31 23 | AI65: 3723.4 | AK65: 2010 12 31 23 | AL65: 6280 | AN65: 2010 12 31 23 | AO65: 820.8 | AQ65: 2010 12 31 23 | AR65: 19721.2 | AT65: 2010 12 31 23 | AU65: 11462.4 | AW65: 2010 12 31 23 | AX65: 15804.9 | AZ65: 2010 12 31 23 | BA65: 5868.2 | BC65: 2010 12 31 23 | BD65: 7171.1 | BF65: 2010 12 31 23 | BG65: 2330.8
A66: 2011 01 31 23 | B66: 20464.3 | D66: 2011 01 31 23 | E66: 8830.4 | G66: 2011 01 31 23 | H66: 27601.8 | J66: 2011 01 31 23 | K66: 12502.5 | M66: 2011 01 31 23 | N66: 22335.8 | P66: 2011 01 31 23 | Q66: 11553.5 | S66: 2011 01 31 23 | T66: 28224.4 | V66: 2011 01 31 23 | W66: 13477 | Y66: 2011 01 31 23 | Z66: 5915.8 | AB66: 2011 01 31 23 | AC66: 1201.9 | AE66: 2011 01 31 23 | AF66: 17436.2 | AH66: 2011 01 31 23 | AI66: 6993.5 | AK66: 2011 01 31 23 | AL66: 7754 | AN66: 2011 01 31 23 | AO66: 2501.3 | AQ66: 2011 01 31 23 | AR66: 23393.7 | AT66: 2011 01 31 23 | AU66: 13135.7 | AW66: 2011 01 31 23 | AX66: 25932.2 | AZ66: 2011 01 31 23 | BA66: 10140.1 | BC66: 2011 01 31 23 | BD66: 10827.9 | BF66: 2011 01 31 23 | BG66: 5162.4
A67: 2011 02 28 23 | B67: 28847 | D67: 2011 02 28 23 | E67: 22912.4 | G67: 2011 02 28 23 | H67: 34930.3 | J67: 2011 02 28 23 | K67: 28208.7 | M67: 2011 02 28 23 | N67: 41463.9 | P67: 2011 02 28 23 | Q67: 28168.6 | S67: 2011 02 28 23 | T67: 24999.3 | V67: 2011 02 28 23 | W67: 24624.7 | Y67: 2011 02 28 23 | Z67: 32354.9 | AB67: 2011 02 28 23 | AC67: 13073 | AE67: 2011 02 28 23 | AF67: 33209.8 | AH67: 2011 02 28 23 | AI67: 20342.2 | AK67: 2011 02 28 23 | AL67: 39918.2 | AN67: 2011 02 28 23 | AO67: 16886.5 | AQ67: 2011 02 28 23 | AR67: 17895.4 | AT67: 2011 02 28 23 | AU67: 27669.7 | AW67: 2011 02 28 23 | AX67: 36246.2 | AZ67: 2011 02 28 23 | BA67: 24862.9 | BC67: 2011 02 28 23 | BD67: 41702 | BF67: 2011 02 28 23 | BG67: 20809.5
A68: 2011 03 31 23 | B68: 104723.4 | D68: 2011 03 31 23 | E68: 69790.5 | G68: 2011 03 31 23 | H68: 75282.7 | J68: 2011 03 31 23 | K68: 60048.3 | M68: 2011 03 31 23 | N68: 90500.9 | P68: 2011 03 31 23 | Q68: 68367.2 | S68: 2011 03 31 23 | T68: 77932.5 | V68: 2011 03 31 23 | W68: 69427.3 | Y68: 2011 03 31 23 | Z68: 61913.2 | AB68: 2011 03 31 23 | AC68: 50666.8 | AE68: 2011 03 31 23 | AF68: 96114.2 | AH68: 2011 03 31 23 | AI68: 63967.5 | AK68: 2011 03 31 23 | AL68: 98309.1 | AN68: 2011 03 31 23 | AO68: 60219.5 | AQ68: 2011 03 31 23 | AR68: 67437 | AT68: 2011 03 31 23 | AU68: 64533.2 | AW68: 2011 03 31 23 | AX68: 127534.7 | AZ68: 2011 03 31 23 | BA68: 75087.5 | BC68: 2011 03 31 23 | BD68: 72589.7 | BF68: 2011 03 31 23 | BG68: 57997.5
A69: 2011 04 30 23 | B69: 130785.6 | D69: 2011 04 30 23 | E69: 113976 | G69: 2011 04 30 23 | H69: 144951.9 | J69: 2011 04 30 23 | K69: 119794.4 | M69: 2011 04 30 23 | N69: 145283.5 | P69: 2011 04 30 23 | Q69: 120933 | S69: 2011 04 30 23 | T69: 151826.3 | V69: 2011 04 30 23 | W69: 128419.2 | Y69: 2011 04 30 23 | Z69: 111515.1 | AB69: 2011 04 30 23 | AC69: 100642.9 | AE69: 2011 04 30 23 | AF69: 108453.9 | AH69: 2011 04 30 23 | AI69: 104118.5 | AK69: 2011 04 30 23 | AL69: 119166.5 | AN69: 2011 04 30 23 | AO69: 103372.6 | AQ69: 2011 04 30 23 | AR69: 150902.4 | AT69: 2011 04 30 23 | AU69: 130167.8 | AW69: 2011 04 30 23 | AX69: 156321 | AZ69: 2011 04 30 23 | BA69: 122238 | BC69: 2011 04 30 23 | BD69: 92694.5 | BF69: 2011 04 30 23 | BG69: 98863.4
A70: 2011 05 31 23 | B70: 152417.3 | D70: 2011 05 31 23 | E70: 151251.4 | G70: 2011 05 31 23 | H70: 141410.2 | J70: 2011 05 31 23 | K70: 156815.4 | M70: 2011 05 31 23 | N70: 163936.1 | P70: 2011 05 31 23 | Q70: 167984.2 | S70: 2011 05 31 23 | T70: 189748.3 | V70: 2011 05 31 23 | W70: 180992.8 | Y70: 2011 05 31 23 | Z70: 78065.6 | AB70: 2011 05 31 23 | AC70: 105981.7 | AE70: 2011 05 31 23 | AF70: 101635 | AH70: 2011 05 31 23 | AI70: 126323.8 | AK70: 2011 05 31 23 | AL70: 120137.3 | AN70: 2011 05 31 23 | AO70: 134638.2 | AQ70: 2011 05 31 23 | AR70: 158124.7 | AT70: 2011 05 31 23 | AU70: 166496.4 | AW70: 2011 05 31 23 | AX70: 196110.2 | AZ70: 2011 05 31 23 | BA70: 171476.3 | BC70: 2011 05 31 23 | BD70: 94311.5 | BF70: 2011 05 31 23 | BG70: 126655.8
A71: 2011 06 30 23 | B71: 152480.7 | D71: 2011 06 30 23 | E71: 154032.1 | G71: 2011 06 30 23 | H71: 143576.1 | J71: 2011 06 30 23 | K71: 159874 | M71: 2011 06 30 23 | N71: 142357.9 | P71: 2011 06 30 23 | Q71: 153965 | S71: 2011 06 30 23 | T71: 163892.2 | V71: 2011 06 30 23 | W71: 171779.5 | Y71: 2011 06 30 23 | Z71: 127045 | AB71: 2011 06 30 23 | AC71: 139312.3 | AE71: 2011 06 30 23 | AF71: 120570.5 | AH71: 2011 06 30 23 | AI71: 143998 | AK71: 2011 06 30 23 | AL71: 215820.7 | AN71: 2011 06 30 23 | AO71: 178884.7 | AQ71: 2011 06 30 23 | AR71: 175884.5 | AT71: 2011 06 30 23 | AU71: 182140.4 | AW71: 2011 06 30 23 | AX71: 205238 | AZ71: 2011 06 30 23 | BA71: 182317.3 | BC71: 2011 06 30 23 | BD71: 109269.2 | BF71: 2011 06 30 23 | BG71: 140069.5
A72: 2011 07 31 23 | B72: 96371.9 | D72: 2011 07 31 23 | E72: 124044 | G72: 2011 07 31 23 | H72: 95523.5 | J72: 2011 07 31 23 | K72: 134248 | M72: 2011 07 31 23 | N72: 73690.6 | P72: 2011 07 31 23 | Q72: 119679.7 | S72: 2011 07 31 23 | T72: 93354.9 | V72: 2011 07 31 23 | W72: 124324.1 | Y72: 2011 07 31 23 | Z72: 98537.1 | AB72: 2011 07 31 23 | AC72: 127965.8 | AE72: 2011 07 31 23 | AF72: 96801 | AH72: 2011 07 31 23 | AI72: 129275.1 | AK72: 2011 07 31 23 | AL72: 189214.2 | AN72: 2011 07 31 23 | AO72: 174653.8 | AQ72: 2011 07 31 23 | AR72: 98660.3 | AT72: 2011 07 31 23 | AU72: 126525.2 | AW72: 2011 07 31 23 | AX72: 151726.8 | AZ72: 2011 07 31 23 | BA72: 156572.2 | BC72: 2011 07 31 23 | BD72: 113037.1 | BF72: 2011 07 31 23 | BG72: 134652.3
A73: 2011 08 31 23 | B73: 117597.5 | D73: 2011 08 31 23 | E73: 115673.8 | G73: 2011 08 31 23 | H73: 83691.7 | J73: 2011 08 31 23 | K73: 108330.4 | M73: 2011 08 31 23 | N73: 96359.4 | P73: 2011 08 31 23 | Q73: 107301.5 | S73: 2011 08 31 23 | T73: 107189.3 | V73: 2011 08 31 23 | W73: 118315.5 | Y73: 2011 08 31 23 | Z73: 63899.4 | AB73: 2011 08 31 23 | AC73: 82670.7 | AE73: 2011 08 31 23 | AF73: 98079.4 | AH73: 2011 08 31 23 | AI73: 107823.6 | AK73: 2011 08 31 23 | AL73: 105285.9 | AN73: 2011 08 31 23 | AO73: 102158.8 | AQ73: 2011 08 31 23 | AR73: 78780.7 | AT73: 2011 08 31 23 | AU73: 106959.2 | AW73: 2011 08 31 23 | AX73: 133618.7 | AZ73: 2011 08 31 23 | BA73: 127037 | BC73: 2011 08 31 23 | BD73: 76627.3 | BF73: 2011 08 31 23 | BG73: 97154
A74: 2011 09 30 23 | B74: 79428.3 | D74: 2011 09 30 23 | E74: 70034 | G74: 2011 09 30 23 | H74: 54389.9 | J74: 2011 09 30 23 | K74: 67127.3 | M74: 2011 09 30 23 | N74: 67496.3 | P74: 2011 09 30 23 | Q74: 71797.1 | S74: 2011 09 30 23 | T74: 82919.4 | V74: 2011 09 30 23 | W74: 84147 | Y74: 2011 09 30 23 | Z74: 32925.2 | AB74: 2011 09 30 23 | AC74: 37072.6 | AE74: 2011 09 30 23 | AF74: 63704 | AH74: 2011 09 30 23 | AI74: 62499.5 | AK74: 2011 09 30 23 | AL74: 34766.4 | AN74: 2011 09 30 23 | AO74: 40408 | AQ74: 2011 09 30 23 | AR74: 75312.8 | AT74: 2011 09 30 23 | AU74: 81932.9 | AW74: 2011 09 30 23 | AX74: 102338.1 | AZ74: 2011 09 30 23 | BA74: 81127.1 | BC74: 2011 09 30 23 | BD74: 40653.6 | BF74: 2011 09 30 23 | BG74: 52731
A75: 2011 10 31 23 | B75: 70472.9 | D75: 2011 10 31 23 | E75: 39607.1 | G75: 2011 10 31 23 | H75: 54387.9 | J75: 2011 10 31 23 | K75: 39997 | M75: 2011 10 31 23 | N75: 58132.3 | P75: 2011 10 31 23 | Q75: 41574.5 | S75: 2011 10 31 23 | T75: 83613.8 | V75: 2011 10 31 23 | W75: 50371 | Y75: 2011 10 31 23 | Z75: 24883.8 | AB75: 2011 10 31 23 | AC75: 18416.3 | AE75: 2011 10 31 23 | AF75: 71625.4 | AH75: 2011 10 31 23 | AI75: 40085.8 | AK75: 2011 10 31 23 | AL75: 41966.3 | AN75: 2011 10 31 23 | AO75: 23722.3 | AQ75: 2011 10 31 23 | AR75: 78817.2 | AT75: 2011 10 31 23 | AU75: 51565.9 | AW75: 2011 10 31 23 | AX75: 81175.6 | AZ75: 2011 10 31 23 | BA75: 44489.6 | BC75: 2011 10 31 23 | BD75: 49147.2 | BF75: 2011 10 31 23 | BG75: 34484
A76: 2011 11 30 23 | B76: 27649.2 | D76: 2011 11 30 23 | E76: 10666.3 | G76: 2011 11 30 23 | H76: 20874.1 | J76: 2011 11 30 23 | K76: 12769.1 | M76: 2011 11 30 23 | N76: 22998.7 | P76: 2011 11 30 23 | Q76: 13162.6 | S76: 2011 11 30 23 | T76: 21429.7 | V76: 2011 11 30 23 | W76: 13514.3 | Y76: 2011 11 30 23 | Z76: 7596.2 | AB76: 2011 11 30 23 | AC76: 2594.1 | AE76: 2011 11 30 23 | AF76: 27249.4 | AH76: 2011 11 30 23 | AI76: 10186.9 | AK76: 2011 11 30 23 | AL76: 12163 | AN76: 2011 11 30 23 | AO76: 4936.5 | AQ76: 2011 11 30 23 | AR76: 29192 | AT76: 2011 11 30 23 | AU76: 18279.5 | AW76: 2011 11 30 23 | AX76: 27729 | AZ76: 2011 11 30 23 | BA76: 11447.2 | BC76: 2011 11 30 23 | BD76: 20927.7 | BF76: 2011 11 30 23 | BG76: 8088.6
A77: 2011 12 31 23 | B77: 22276.1 | D77: 2011 12 31 23 | E77: 5007.8 | G77: 2011 12 31 23 | H77: 16191.5 | J77: 2011 12 31 23 | K77: 7950.1 | M77: 2011 12 31 23 | N77: 15529.3 | P77: 2011 12 31 23 | Q77: 7667.8 | S77: 2011 12 31 23 | T77: 17117.4 | V77: 2011 12 31 23 | W77: 9400.4 | Y77: 2011 12 31 23 | Z77: 243.2 | AB77: 2011 12 31 23 | AC77: 73.8 | AE77: 2011 12 31 23 | AF77: 16023.7 | AH77: 2011 12 31 23 | AI77: 3569.7 | AK77: 2011 12 31 23 | AL77: 3061 | AN77: 2011 12 31 23 | AO77: 611.2 | AQ77: 2011 12 31 23 | AR77: 11081.4 | AT77: 2011 12 31 23 | AU77: 9558.8 | AW77: 2011 12 31 23 | AX77: 23283.1 | AZ77: 2011 12 31 23 | BA77: 6967.2 | BC77: 2011 12 31 23 | BD77: 6999.5 | BF77: 2011 12 31 23 | BG77: 1972.6
A78: 2012 01 31 23 | B78: 22003.1 | D78: 2012 01 31 23 | E78: 8413.9 | G78: 2012 01 31 23 | H78: 27616.6 | J78: 2012 01 31 23 | K78: 13255.5 | M78: 2012 01 31 23 | N78: 19786.1 | P78: 2012 01 31 23 | Q78: 10923.1 | S78: 2012 01 31 23 | T78: 15929.2 | V78: 2012 01 31 23 | W78: 11468.1 | Y78: 2012 01 31 23 | Z78: 4554.1 | AB78: 2012 01 31 23 | AC78: 1213.1 | AE78: 2012 01 31 23 | AF78: 14844.9 | AH78: 2012 01 31 23 | AI78: 5826.1 | AK78: 2012 01 31 23 | AL78: 2639.9 | AN78: 2012 01 31 23 | AO78: 1477.1 | AQ78: 2012 01 31 23 | AR78: 32489.3 | AT78: 2012 01 31 23 | AU78: 15768.4 | AW78: 2012 01 31 23 | AX78: 16645.3 | AZ78: 2012 01 31 23 | BA78: 8829.8 | BC78: 2012 01 31 23 | BD78: 11034.8 | BF78: 2012 01 31 23 | BG78: 4659.5
A79: 2012 02 29 23 | B79: 43897.7 | D79: 2012 02 29 23 | E79: 26380.5 | G79: 2012 02 29 23 | H79: 61505 | J79: 2012 02 29 23 | K79: 31476.8 | M79: 2012 02 29 23 | N79: 50271.5 | P79: 2012 02 29 23 | Q79: 30485.2 | S79: 2012 02 29 23 | T79: 49382 | V79: 2012 02 29 23 | W79: 32558.3 | Y79: 2012 02 29 23 | Z79: 35507.6 | AB79: 2012 02 29 23 | AC79: 14196.9 | AE79: 2012 02 29 23 | AF79: 47362.5 | AH79: 2012 02 29 23 | AI79: 25161.5 | AK79: 2012 02 29 23 | AL79: 36950.7 | AN79: 2012 02 29 23 | AO79: 17217.4 | AQ79: 2012 02 29 23 | AR79: 50051.7 | AT79: 2012 02 29 23 | AU79: 33020.2 | AW79: 2012 02 29 23 | AX79: 44247.5 | AZ79: 2012 02 29 23 | BA79: 27302.4 | BC79: 2012 02 29 23 | BD79: 41460.7 | BF79: 2012 02 29 23 | BG79: 22503.8
A80: 2012 03 31 23 | B80: 99623.8 | D80: 2012 03 31 23 | E80: 67411 | G80: 2012 03 31 23 | H80: 93283.6 | J80: 2012 03 31 23 | K80: 75577.7 | M80: 2012 03 31 23 | N80: 118718.7 | P80: 2012 03 31 23 | Q80: 82082.7 | S80: 2012 03 31 23 | T80: 126060.1 | V80: 2012 03 31 23 | W80: 86102.4 | Y80: 2012 03 31 23 | Z80: 82038.1 | AB80: 2012 03 31 23 | AC80: 50425.3 | AE80: 2012 03 31 23 | AF80: 74538.8 | AH80: 2012 03 31 23 | AI80: 58908.5 | AK80: 2012 03 31 23 | AL80: 85315.7 | AN80: 2012 03 31 23 | AO80: 53544.6 | AQ80: 2012 03 31 23 | AR80: 94926.7 | AT80: 2012 03 31 23 | AU80: 77399.6 | AW80: 2012 03 31 23 | AX80: 95754.1 | AZ80: 2012 03 31 23 | BA80: 67336.7 | BC80: 2012 03 31 23 | BD80: 61746.5 | BF80: 2012 03 31 23 | BG80: 52900.8
A81: 2012 04 30 23 | B81: 85333.6 | D81: 2012 04 30 23 | E81: 92823.6 | G81: 2012 04 30 23 | H81: 83717.1 | J81: 2012 04 30 23 | K81: 95410.8 | M81: 2012 04 30 23 | N81: 88344.5 | P81: 2012 04 30 23 | Q81: 98795.4 | S81: 2012 04 30 23 | T81: 95223.5 | V81: 2012 04 30 23 | W81: 105902.1 | Y81: 2012 04 30 23 | Z81: 96196.1 | AB81: 2012 04 30 23 | AC81: 90492.2 | AE81: 2012 04 30 23 | AF81: 73450 | AH81: 2012 04 30 23 | AI81: 87857.2 | AK81: 2012 04 30 23 | AL81: 109507 | AN81: 2012 04 30 23 | AO81: 90409 | AQ81: 2012 04 30 23 | AR81: 90478.6 | AT81: 2012 04 30 23 | AU81: 109322.3 | AW81: 2012 04 30 23 | AX81: 105207.1 | AZ81: 2012 04 30 23 | BA81: 104550.6 | BC81: 2012 04 30 23 | BD81: 76263.8 | BF81: 2012 04 30 23 | BG81: 89771
A82: 2012 05 31 23 | B82: 141072.8 | D82: 2012 05 31 23 | E82: 149341.5 | G82: 2012 05 31 23 | H82: 147326.4 | J82: 2012 05 31 23 | K82: 157888.6 | M82: 2012 05 31 23 | N82: 170431 | P82: 2012 05 31 23 | Q82: 171989.2 | S82: 2012 05 31 23 | T82: 183617.8 | V82: 2012 05 31 23 | W82: 184906.7 | Y82: 2012 05 31 23 | Z82: 149500.8 | AB82: 2012 05 31 23 | AC82: 153317.2 | AE82: 2012 05 31 23 | AF82: 121121.9 | AH82: 2012 05 31 23 | AI82: 134173.6 | AK82: 2012 05 31 23 | AL82: 186776.3 | AN82: 2012 05 31 23 | AO82: 161919.1 | AQ82: 2012 05 31 23 | AR82: 166838.1 | AT82: 2012 05 31 23 | AU82: 173914.3 | AW82: 2012 05 31 23 | AX82: 192898.3 | AZ82: 2012 05 31 23 | BA82: 185015.3 | BC82: 2012 05 31 23 | BD82: 104653 | BF82: 2012 05 31 23 | BG82: 129921.8
A83: 2012 06 30 23 | B83: 111158 | D83: 2012 06 30 23 | E83: 142719.1 | G83: 2012 06 30 23 | H83: 108826.2 | J83: 2012 06 30 23 | K83: 148789.1 | M83: 2012 06 30 23 | N83: 134955.6 | P83: 2012 06 30 23 | Q83: 165967.1 | S83: 2012 06 30 23 | T83: 145945 | V83: 2012 06 30 23 | W83: 181465.1 | Y83: 2012 06 30 23 | Z83: 82625.1 | AB83: 2012 06 30 23 | AC83: 130752.1 | AE83: 2012 06 30 23 | AF83: 102598.2 | AH83: 2012 06 30 23 | AI83: 141787.5 | AK83: 2012 06 30 23 | AL83: 123659.4 | AN83: 2012 06 30 23 | AO83: 152401.3 | AQ83: 2012 06 30 23 | AR83: 128030 | AT83: 2012 06 30 23 | AU83: 163259.8 | AW83: 2012 06 30 23 | AX83: 144037.7 | AZ83: 2012 06 30 23 | BA83: 163217 | BC83: 2012 06 30 23 | BD83: 113095.4 | BF83: 2012 06 30 23 | BG83: 149327.4
A84: 2012 07 31 23 | B84: 112223.8 | D84: 2012 07 31 23 | E84: 140605.5 | G84: 2012 07 31 23 | H84: 115707.6 | J84: 2012 07 31 23 | K84: 151700.4 | M84: 2012 07 31 23 | N84: 132378.1 | P84: 2012 07 31 23 | Q84: 158894.9 | S84: 2012 07 31 23 | T84: 138907.7 | V84: 2012 07 31 23 | W84: 166512.6 | Y84: 2012 07 31 23 | Z84: 121972.8 | AB84: 2012 07 31 23 | AC84: 141105.6 | AE84: 2012 07 31 23 | AF84: 91714.5 | AH84: 2012 07 31 23 | AI84: 134065.4 | AK84: 2012 07 31 23 | AL84: 169064.5 | AN84: 2012 07 31 23 | AO84: 163904.8 | AQ84: 2012 07 31 23 | AR84: 141480.8 | AT84: 2012 07 31 23 | AU84: 165286 | AW84: 2012 07 31 23 | AX84: 150705.7 | AZ84: 2012 07 31 23 | BA84: 169353.8 | BC84: 2012 07 31 23 | BD84: 77704.4 | BF84: 2012 07 31 23 | BG84: 128096.1
A85: 2012 08 31 23 | B85: 77513.7 | D85: 2012 08 31 23 | E85: 106563.5 | G85: 2012 08 31 23 | H85: 108844 | J85: 2012 08 31 23 | K85: 126361.4 | M85: 2012 08 31 23 | N85: 115569.8 | P85: 2012 08 31 23 | Q85: 129098.8 | S85: 2012 08 31 23 | T85: 101645 | V85: 2012 08 31 23 | W85: 133148.1 | Y85: 2012 08 31 23 | Z85: 99341.8 | AB85: 2012 08 31 23 | AC85: 104097.8 | AE85: 2012 08 31 23 | AF85: 67874.1 | AH85: 2012 08 31 23 | AI85: 100635.5 | AK85: 2012 08 31 23 | AL85: 145038.6 | AN85: 2012 08 31 23 | AO85: 126730.5 | AQ85: 2012 08 31 23 | AR85: 120185.9 | AT85: 2012 08 31 23 | AU85: 141721.1 | AW85: 2012 08 31 23 | AX85: 115475.1 | AZ85: 2012 08 31 23 | BA85: 133264.6 | BC85: 2012 08 31 23 | BD85: 75568.2 | BF85: 2012 08 31 23 | BG85: 102137.2
A86: 2012 09 30 23 | B86: 80068.7 | D86: 2012 09 30 23 | E86: 69290.3 | G86: 2012 09 30 23 | H86: 57041 | J86: 2012 09 30 23 | K86: 72830.1 | M86: 2012 09 30 23 | N86: 70638.1 | P86: 2012 09 30 23 | Q86: 77001.8 | S86: 2012 09 30 23 | T86: 79001.6 | V86: 2012 09 30 23 | W86: 84888.9 | Y86: 2012 09 30 23 | Z86: 64181.6 | AB86: 2012 09 30 23 | AC86: 54694.8 | AE86: 2012 09 30 23 | AF86: 72432.3 | AH86: 2012 09 30 23 | AI86: 67672.8 | AK86: 2012 09 30 23 | AL86: 75944.2 | AN86: 2012 09 30 23 | AO86: 59407 | AQ86: 2012 09 30 23 | AR86: 74114.2 | AT86: 2012 09 30 23 | AU86: 86410.9 | AW86: 2012 09 30 23 | AX86: 95790.8 | AZ86: 2012 09 30 23 | BA86: 83429.1 | BC86: 2012 09 30 23 | BD86: 52034.1 | BF86: 2012 09 30 23 | BG86: 61773
A87: 2012 10 31 23 | B87: 34138.6 | D87: 2012 10 31 23 | E87: 30933.9 | G87: 2012 10 31 23 | H87: 49186.5 | J87: 2012 10 31 23 | K87: 39873.1 | M87: 2012 10 31 23 | N87: 54802.4 | P87: 2012 10 31 23 | Q87: 41401.6 | S87: 2012 10 31 23 | T87: 59276.3 | V87: 2012 10 31 23 | W87: 48700.7 | Y87: 2012 10 31 23 | Z87: 35007.6 | AB87: 2012 10 31 23 | AC87: 17359.8 | AE87: 2012 10 31 23 | AF87: 28482.6 | AH87: 2012 10 31 23 | AI87: 27384.1 | AK87: 2012 10 31 23 | AL87: 37764.2 | AN87: 2012 10 31 23 | AO87: 19926.8 | AQ87: 2012 10 31 23 | AR87: 53039.9 | AT87: 2012 10 31 23 | AU87: 48561.9 | AW87: 2012 10 31 23 | AX87: 60129.3 | AZ87: 2012 10 31 23 | BA87: 41341.2 | BC87: 2012 10 31 23 | BD87: 22942.5 | BF87: 2012 10 31 23 | BG87: 23988.7
A88: 2012 11 30 23 | B88: 23182.2 | D88: 2012 11 30 23 | E88: 10684.7 | G88: 2012 11 30 23 | H88: 10557.8 | J88: 2012 11 30 23 | K88: 12535.2 | M88: 2012 11 30 23 | N88: 13902.4 | P88: 2012 11 30 23 | Q88: 13637.3 | S88: 2012 11 30 23 | T88: 17908 | V88: 2012 11 30 23 | W88: 15168 | Y88: 2012 11 30 23 | Z88: 5296.7 | AB88: 2012 11 30 23 | AC88: 2289.1 | AE88: 2012 11 30 23 | AF88: 19245.1 | AH88: 2012 11 30 23 | AI88: 9229.9 | AK88: 2012 11 30 23 | AL88: 12173.9 | AN88: 2012 11 30 23 | AO88: 4048.7 | AQ88: 2012 11 30 23 | AR88: 17987.4 | AT88: 2012 11 30 23 | AU88: 17035 | AW88: 2012 11 30 23 | AX88: 24577.3 | AZ88: 2012 11 30 23 | BA88: 12785.8 | BC88: 2012 11 30 23 | BD88: 12692.2 | BF88: 2012 11 30 23 | BG88: 7330
A89: 2012 12 31 23 | B89: 10373.4 | D89: 2012 12 31 23 | E89: 3868.9 | G89: 2012 12 31 23 | H89: 18247.1 | J89: 2012 12 31 23 | K89: 8276.2 | M89: 2012 12 31 23 | N89: 10854.2 | P89: 2012 12 31 23 | Q89: 7346.4 | S89: 2012 12 31 23 | T89: 13405.9 | V89: 2012 12 31 23 | W89: 7966.2 | Y89: 2012 12 31 23 | Z89: 155.7 | AB89: 2012 12 31 23 | AC89: 54.3 | AE89: 2012 12 31 23 | AF89: 8247.8 | AH89: 2012 12 31 23 | AI89: 3140 | AK89: 2012 12 31 23 | AL89: 757.8 | AN89: 2012 12 31 23 | AO89: 485.2 | AQ89: 2012 12 31 23 | AR89: 9098.9 | AT89: 2012 12 31 23 | AU89: 9434.8 | AW89: 2012 12 31 23 | AX89: 7629.8 | AZ89: 2012 12 31 23 | BA89: 5028.1 | BC89: 2012 12 31 23 | BD89: 3878.5 | BF89: 2012 12 31 23 | BG89: 2000.2
A90: 2013 01 31 23 | B90: 24641.3 | D90: 2013 01 31 23 | E90: 8619.1 | G90: 2013 01 31 23 | H90: 17155.7 | J90: 2013 01 31 23 | K90: 11453.6 | M90: 2013 01 31 23 | N90: 10671.2 | P90: 2013 01 31 23 | Q90: 10894.7 | S90: 2013 01 31 23 | T90: 10028.7 | V90: 2013 01 31 23 | W90: 11705.1 | Y90: 2013 01 31 23 | Z90: 7004.2 | AB90: 2013 01 31 23 | AC90: 1309.4 | AE90: 2013 01 31 23 | AF90: 25172.9 | AH90: 2013 01 31 23 | AI90: 8323 | AK90: 2013 01 31 23 | AL90: 15604.6 | AN90: 2013 01 31 23 | AO90: 2958.7 | AQ90: 2013 01 31 23 | AR90: 21235.3 | AT90: 2013 01 31 23 | AU90: 16457.5 | AW90: 2013 01 31 23 | AX90: 20713.1 | AZ90: 2013 01 31 23 | BA90: 9488.8 | BC90: 2013 01 31 23 | BD90: 11246.3 | BF90: 2013 01 31 23 | BG90: 5460.8
A91: 2013 02 28 23 | B91: 22091.5 | D91: 2013 02 28 23 | E91: 17458.1 | G91: 2013 02 28 23 | H91: 22149 | J91: 2013 02 28 23 | K91: 25035.8 | M91: 2013 02 28 23 | N91: 17535.5 | P91: 2013 02 28 23 | Q91: 23439.6 | S91: 2013 02 28 23 | T91: 18918.6 | V91: 2013 02 28 23 | W91: 23251.6 | Y91: 2013 02 28 23 | Z91: 18365.1 | AB91: 2013 02 28 23 | AC91: 11199.7 | AE91: 2013 02 28 23 | AF91: 23069.7 | AH91: 2013 02 28 23 | AI91: 17418.1 | AK91: 2013 02 28 23 | AL91: 32655.2 | AN91: 2013 02 28 23 | AO91: 16722.7 | AQ91: 2013 02 28 23 | AR91: 10020.1 | AT91: 2013 02 28 23 | AU91: 22966.8 | AW91: 2013 02 28 23 | AX91: 27799.1 | AZ91: 2013 02 28 23 | BA91: 21540.1 | BC91: 2013 02 28 23 | BD91: 12493.5 | BF91: 2013 02 28 23 | BG91: 15095.9
A92: 2013 03 31 23 | B92: 164739.5 | D92: 2013 03 31 23 | E92: 90399.3 | G92: 2013 03 31 23 | H92: 128868.5 | J92: 2013 03 31 23 | K92: 90339.6 | M92: 2013 03 31 23 | N92: 122341.2 | P92: 2013 03 31 23 | Q92: 88246 | S92: 2013 03 31 23 | T92: 109615.3 | V92: 2013 03 31 23 | W92: 89048 | Y92: 2013 03 31 23 | Z92: 73832.4 | AB92: 2013 03 31 23 | AC92: 54776.3 | AE92: 2013 03 31 23 | AF92: 145681.8 | AH92: 2013 03 31 23 | AI92: 82066.4 | AK92: 2013 03 31 23 | AL92: 146429 | AN92: 2013 03 31 23 | AO92: 74437.1 | AQ92: 2013 03 31 23 | AR92: 112394.1 | AT92: 2013 03 31 23 | AU92: 91538.5 | AW92: 2013 03 31 23 | AX92: 157188.5 | AZ92: 2013 03 31 23 | BA92: 95207.7 | BC92: 2013 03 31 23 | BD92: 135858.3 | BF92: 2013 03 31 23 | BG92: 77098.6
A93: 2013 04 30 23 | B93: 133207.9 | D93: 2013 04 30 23 | E93: 114726 | G93: 2013 04 30 23 | H93: 138907.1 | J93: 2013 04 30 23 | K93: 123886.8 | M93: 2013 04 30 23 | N93: 150625 | P93: 2013 04 30 23 | Q93: 128642.4 | S93: 2013 04 30 23 | T93: 142660.2 | V93: 2013 04 30 23 | W93: 134185.4 | Y93: 2013 04 30 23 | Z93: 93396.2 | AB93: 2013 04 30 23 | AC93: 91955.1 | AE93: 2013 04 30 23 | AF93: 109001 | AH93: 2013 04 30 23 | AI93: 106046.6 | AK93: 2013 04 30 23 | AL93: 137771.3 | AN93: 2013 04 30 23 | AO93: 105878.3 | AQ93: 2013 04 30 23 | AR93: 134496.7 | AT93: 2013 04 30 23 | AU93: 132510.5 | AW93: 2013 04 30 23 | AX93: 156570.9 | AZ93: 2013 04 30 23 | BA93: 125333.3 | BC93: 2013 04 30 23 | BD93: 104546.1 | BF93: 2013 04 30 23 | BG93: 106788.6
A94: 2013 05 31 23 | B94: 151841.9 | D94: 2013 05 31 23 | E94: 154870.9 | G94: 2013 05 31 23 | H94: 135458.1 | J94: 2013 05 31 23 | K94: 158030.5 | M94: 2013 05 31 23 | N94: 147510.2 | P94: 2013 05 31 23 | Q94: 157596.2 | S94: 2013 05 31 23 | T94: 181671.4 | V94: 2013 05 31 23 | W94: 171754.8 | Y94: 2013 05 31 23 | Z94: 152651.9 | AB94: 2013 05 31 23 | AC94: 144289.8 | AE94: 2013 05 31 23 | AF94: 130872.9 | AH94: 2013 05 31 23 | AI94: 144136 | AK94: 2013 05 31 23 | AL94: 208281.1 | AN94: 2013 05 31 23 | AO94: 166230.5 | AQ94: 2013 05 31 23 | AR94: 177771 | AT94: 2013 05 31 23 | AU94: 174580.6 | AW94: 2013 05 31 23 | AX94: 188827.1 | AZ94: 2013 05 31 23 | BA94: 172843.7 | BC94: 2013 05 31 23 | BD94: 138732.4 | BF94: 2013 05 31 23 | BG94: 148331.8
A95: 2013 06 30 23 | B95: 120330.1 | D95: 2013 06 30 23 | E95: 152767.4 | G95: 2013 06 30 23 | H95: 137294.3 | J95: 2013 06 30 23 | K95: 160827.3 | M95: 2013 06 30 23 | N95: 141591.5 | P95: 2013 06 30 23 | Q95: 162403.2 | S95: 2013 06 30 23 | T95: 169191 | V95: 2013 06 30 23 | W95: 177554.5 | Y95: 2013 06 30 23 | Z95: 78401.5 | AB95: 2013 06 30 23 | AC95: 119899.8 | AE95: 2013 06 30 23 | AF95: 89804.8 | AH95: 2013 06 30 23 | AI95: 135649.8 | AK95: 2013 06 30 23 | AL95: 160879.4 | AN95: 2013 06 30 23 | AO95: 162418.3 | AQ95: 2013 06 30 23 | AR95: 172672.6 | AT95: 2013 06 30 23 | AU95: 177987 | AW95: 2013 06 30 23 | AX95: 188691.5 | AZ95: 2013 06 30 23 | BA95: 185070.1 | BC95: 2013 06 30 23 | BD95: 105276.2 | BF95: 2013 06 30 23 | BG95: 139927.7
A96: 2013 07 31 23 | B96: 172160 | D96: 2013 07 31 23 | E96: 170931.9 | G96: 2013 07 31 23 | H96: 177996.8 | J96: 2013 07 31 23 | K96: 178072.5 | M96: 2013 07 31 23 | N96: 174850.3 | P96: 2013 07 31 23 | Q96: 175578.9 | S96: 2013 07 31 23 | T96: 165687.1 | V96: 2013 07 31 23 | W96: 177256.3 | Y96: 2013 07 31 23 | Z96: 117224.4 | AB96: 2013 07 31 23 | AC96: 136944.1 | AE96: 2013 07 31 23 | AF96: 136897.6 | AH96: 2013 07 31 23 | AI96: 152522.8 | AK96: 2013 07 31 23 | AL96: 172079.8 | AN96: 2013 07 31 23 | AO96: 166033.4 | AQ96: 2013 07 31 23 | AR96: 183258.6 | AT96: 2013 07 31 23 | AU96: 187465.4 | AW96: 2013 07 31 23 | AX96: 202552.2 | AZ96: 2013 07 31 23 | BA96: 186488.9 | BC96: 2013 07 31 23 | BD96: 96004.4 | BF96: 2013 07 31 23 | BG96: 134336.1
A97: 2013 08 31 23 | B97: 151100 | D97: 2013 08 31 23 | E97: 130644.2 | G97: 2013 08 31 23 | H97: 105946.3 | J97: 2013 08 31 23 | K97: 124993.7 | M97: 2013 08 31 23 | N97: 127947.8 | P97: 2013 08 31 23 | Q97: 131792.7 | S97: 2013 08 31 23 | T97: 136291.1 | V97: 2013 08 31 23 | W97: 145998.6 | Y97: 2013 08 31 23 | Z97: 90967.5 | AB97: 2013 08 31 23 | AC97: 103255.2 | AE97: 2013 08 31 23 | AF97: 103437.1 | AH97: 2013 08 31 23 | AI97: 108706.8 | AK97: 2013 08 31 23 | AL97: 160416.1 | AN97: 2013 08 31 23 | AO97: 128099 | AQ97: 2013 08 31 23 | AR97: 133352.7 | AT97: 2013 08 31 23 | AU97: 141966.9 | AW97: 2013 08 31 23 | AX97: 176030.4 | AZ97: 2013 08 31 23 | BA97: 153276.4 | BC97: 2013 08 31 23 | BD97: 98824.3 | BF97: 2013 08 31 23 | BG97: 110251.2
A98: 2013 09 30 23 | B98: 100034.9 | D98: 2013 09 30 23 | E98: 81718.7 | G98: 2013 09 30 23 | H98: 84154 | J98: 2013 09 30 23 | K98: 83134.4 | M98: 2013 09 30 23 | N98: 96380.6 | P98: 2013 09 30 23 | Q98: 89790.6 | S98: 2013 09 30 23 | T98: 111256.7 | V98: 2013 09 30 23 | W98: 95382.5 | Y98: 2013 09 30 23 | Z98: 34010.3 | AB98: 2013 09 30 23 | AC98: 43792.9 | AE98: 2013 09 30 23 | AF98: 60356.6 | AH98: 2013 09 30 23 | AI98: 66545.5 | AK98: 2013 09 30 23 | AL98: 56137.3 | AN98: 2013 09 30 23 | AO98: 55619 | AQ98: 2013 09 30 23 | AR98: 107961.9 | AT98: 2013 09 30 23 | AU98: 92151.5 | AW98: 2013 09 30 23 | AX98: 127912 | AZ98: 2013 09 30 23 | BA98: 96968.2 | BC98: 2013 09 30 23 | BD98: 57865.7 | BF98: 2013 09 30 23 | BG98: 63188.6
A99: 2013 10 31 23 | B99: 72074.5 | D99: 2013 10 31 23 | E99: 39929.7 | G99: 2013 10 31 23 | H99: 38264.5 | J99: 2013 10 31 23 | K99: 35428.1 | M99: 2013 10 31 23 | N99: 48306.1 | P99: 2013 10 31 23 | Q99: 40579 | S99: 2013 10 31 23 | T99: 38575.4 | V99: 2013 10 31 23 | W99: 41148.1 | Y99: 2013 10 31 23 | Z99: 32103.2 | AB99: 2013 10 31 23 | AC99: 20652.2 | AE99: 2013 10 31 23 | AF99: 64373.3 | AH99: 2013 10 31 23 | AI99: 36277.6 | AK99: 2013 10 31 23 | AL99: 56926.3 | AN99: 2013 10 31 23 | AO99: 28607.8 | AQ99: 2013 10 31 23 | AR99: 42563.8 | AT99: 2013 10 31 23 | AU99: 44027 | AW99: 2013 10 31 23 | AX99: 62348.6 | AZ99: 2013 10 31 23 | BA99: 41368.2 | BC99: 2013 10 31 23 | BD99: 44596.6 | BF99: 2013 10 31 23 | BG99: 31217.9
A100: 2013 11 30 23 | B100: 29972.9 | D100: 2013 11 30 23 | E100: 11934.3 | G100: 2013 11 30 23 | H100: 30217.8 | J100: 2013 11 30 23 | K100: 16862 | M100: 2013 11 30 23 | N100: 30202.6 | P100: 2013 11 30 23 | Q100: 16297.7 | S100: 2013 11 30 23 | T100: 35665.5 | V100: 2013 11 30 23 | W100: 18688.8 | Y100: 2013 11 30 23 | Z100: 7909.6 | AB100: 2013 11 30 23 | AC100: 2507.7 | AE100: 2013 11 30 23 | AF100: 23310.4 | AH100: 2013 11 30 23 | AI100: 9861.4 | AK100: 2013 11 30 23 | AL100: 18150.1 | AN100: 2013 11 30 23 | AO100: 4971.8 | AQ100: 2013 11 30 23 | AR100: 33005.8 | AT100: 2013 11 30 23 | AU100: 18113.1 | AW100: 2013 11 30 23 | AX100: 35264.9 | AZ100: 2013 11 30 23 | BA100: 15687.8 | BC100: 2013 11 30 23 | BD100: 12383.4 | BF100: 2013 11 30 23 | BG100: 7174.8
A101: 2013 12 31 23 | B101: 16686.4 | D101: 2013 12 31 23 | E101: 4901.4 | G101: 2013 12 31 23 | H101: 12299.9 | J101: 2013 12 31 23 | K101: 7331.9 | M101: 2013 12 31 23 | N101: 14869.5 | P101: 2013 12 31 23 | Q101: 7688.3 | S101: 2013 12 31 23 | T101: 17388.3 | V101: 2013 12 31 23 | W101: 9197.9 | Y101: 2013 12 31 23 | Z101: 610.4 | AB101: 2013 12 31 23 | AC101: 115.3 | AE101: 2013 12 31 23 | AF101: 10970.2 | AH101: 2013 12 31 23 | AI101: 3397.8 | AK101: 2013 12 31 23 | AL101: 6992.2 | AN101: 2013 12 31 23 | AO101: 859.5 | AQ101: 2013 12 31 23 | AR101: 8796.8 | AT101: 2013 12 31 23 | AU101: 8714.4 | AW101: 2013 12 31 23 | AX101: 18227 | AZ101: 2013 12 31 23 | BA101: 6705.9 | BC101: 2013 12 31 23 | BD101: 5112.4 | BF101: 2013 12 31 23 | BG101: 2128.1
A102: 2014 01 31 23 | B102: 4232.5 | D102: 2014 01 31 23 | E102: 6100.4 | G102: 2014 01 31 23 | H102: 9286.2 | J102: 2014 01 31 23 | K102: 10559.2 | M102: 2014 01 31 23 | N102: 6615.6 | P102: 2014 01 31 23 | Q102: 9864.8 | S102: 2014 01 31 23 | T102: 7033.1 | V102: 2014 01 31 23 | W102: 9973.1 | Y102: 2014 01 31 23 | Z102: 3449.1 | AB102: 2014 01 31 23 | AC102: 1234.4 | AE102: 2014 01 31 23 | AF102: 4355.9 | AH102: 2014 01 31 23 | AI102: 4892.6 | AK102: 2014 01 31 23 | AL102: 11390.4 | AN102: 2014 01 31 23 | AO102: 3009.8 | AQ102: 2014 01 31 23 | AR102: 3644.9 | AT102: 2014 01 31 23 | AU102: 10008.3 | AW102: 2014 01 31 23 | AX102: 12763.5 | AZ102: 2014 01 31 23 | BA102: 9367.1 | BC102: 2014 01 31 23 | BD102: 7957.1 | BF102: 2014 01 31 23 | BG102: 4658.9
A103: 2014 02 28 23 | B103: 12591.1 | D103: 2014 02 28 23 | E103: 13335.5 | G103: 2014 02 28 23 | H103: 12830.4 | J103: 2014 02 28 23 | K103: 20335.1 | M103: 2014 02 28 23 | N103: 8811 | P103: 2014 02 28 23 | Q103: 17364.9 | S103: 2014 02 28 23 | T103: 19121.3 | V103: 2014 02 28 23 | W103: 23705.7 | Y103: 2014 02 28 23 | Z103: 6120.5 | AB103: 2014 02 28 23 | AC103: 6916.5 | AE103: 2014 02 28 23 | AF103: 5891.7 | AH103: 2014 02 28 23 | AI103: 11802.1 | AK103: 2014 02 28 23 | AL103: 5207.2 | AN103: 2014 02 28 23 | AO103: 7455.5 | AQ103: 2014 02 28 23 | AR103: 27354 | AT103: 2014 02 28 23 | AU103: 31088.7 | AW103: 2014 02 28 23 | AX103: 14389.3 | AZ103: 2014 02 28 23 | BA103: 16474.1 | BC103: 2014 02 28 23 | BD103: 14417.2 | BF103: 2014 02 28 23 | BG103: 14837.9
A104: 2014 03 31 23 | B104: 104960.6 | D104: 2014 03 31 23 | E104: 71987.8 | G104: 2014 03 31 23 | H104: 82350.2 | J104: 2014 03 31 23 | K104: 71513.9 | M104: 2014 03 31 23 | N104: 85717.5 | P104: 2014 03 31 23 | Q104: 73607.4 | S104: 2014 03 31 23 | T104: 86482.7 | V104: 2014 03 31 23 | W104: 79469.1 | Y104: 2014 03 31 23 | Z104: 55442.4 | AB104: 2014 03 31 23 | AC104: 46195 | AE104: 2014 03 31 23 | AF104: 85344.2 | AH104: 2014 03 31 23 | AI104: 62955.9 | AK104: 2014 03 31 23 | AL104: 83282.3 | AN104: 2014 03 31 23 | AO104: 58642.3 | AQ104: 2014 03 31 23 | AR104: 90876.9 | AT104: 2014 03 31 23 | AU104: 79560.7 | AW104: 2014 03 31 23 | AX104: 51299.8 | AZ104: 2014 03 31 23 | BA104: 62777.4 | BC104: 2014 03 31 23 | BD104: 64161.7 | BF104: 2014 03 31 23 | BG104: 58153
A105: 2014 04 30 23 | B105: 156272.5 | D105: 2014 04 30 23 | E105: 125637.3 | G105: 2014 04 30 23 | H105: 114208.5 | J105: 2014 04 30 23 | K105: 111761.4 | M105: 2014 04 30 23 | N105: 136374.7 | P105: 2014 04 30 23 | Q105: 124151.3 | S105: 2014 04 30 23 | T105: 141896.6 | V105: 2014 04 30 23 | W105: 129215.3 | Y105: 2014 04 30 23 | Z105: 105287.6 | AB105: 2014 04 30 23 | AC105: 98168.6 | AE105: 2014 04 30 23 | AF105: 111218.9 | AH105: 2014 04 30 23 | AI105: 109562.8 | AK105: 2014 04 30 23 | AL105: 122703.7 | AN105: 2014 04 30 23 | AO105: 110563.5 | AQ105: 2014 04 30 23 | AR105: 115892.3 | AT105: 2014 04 30 23 | AU105: 120972.1 | AW105: 2014 04 30 23 | AX105: 59350.2 | AZ105: 2014 04 30 23 | BA105: 97353.3 | BC105: 2014 04 30 23 | BD105: 105534 | BF105: 2014 04 30 23 | BG105: 102879.8
A106: 2014 05 31 23 | B106: 139590.1 | D106: 2014 05 31 23 | E106: 146892.3 | G106: 2014 05 31 23 | H106: 159330.8 | J106: 2014 05 31 23 | K106: 161497.3 | M106: 2014 05 31 23 | N106: 150565 | P106: 2014 05 31 23 | Q106: 156608.6 | S106: 2014 05 31 23 | T106: 150837.1 | V106: 2014 05 31 23 | W106: 164992.7 | Y106: 2014 05 31 23 | Z106: 101439.9 | AB106: 2014 05 31 23 | AC106: 125314.8 | AE106: 2014 05 31 23 | AF106: 102962.1 | AH106: 2014 05 31 23 | AI106: 128340.2 | AK106: 2014 05 31 23 | AL106: 140231.4 | AN106: 2014 05 31 23 | AO106: 149232.6 | AQ106: 2014 05 31 23 | AR106: 144669.2 | AT106: 2014 05 31 23 | AU106: 157919.2 | AW106: 2014 05 31 23 | AX106: 63998.9 | AZ106: 2014 05 31 23 | BA106: 124647.8 | BC106: 2014 05 31 23 | BD106: 103948.5 | BF106: 2014 05 31 23 | BG106: 126982.1
A107: 2014 06 30 23 | B107: 113235.2 | D107: 2014 06 30 23 | E107: 144389 | G107: 2014 06 30 23 | H107: 149521 | J107: 2014 06 30 23 | K107: 172807.1 | M107: 2014 06 30 23 | N107: 159345.6 | P107: 2014 06 30 23 | Q107: 174194.1 | S107: 2014 06 30 23 | T107: 144936.7 | V107: 2014 06 30 23 | W107: 171647 | Y107: 2014 06 30 23 | Z107: 91594.4 | AB107: 2014 06 30 23 | AC107: 133048.5 | AE107: 2014 06 30 23 | AF107: 94157.4 | AH107: 2014 06 30 23 | AI107: 131887.8 | AK107: 2014 06 30 23 | AL107: 165542.4 | AN107: 2014 06 30 23 | AO107: 174112.8 | AQ107: 2014 06 30 23 | AR107: 157868 | AT107: 2014 06 30 23 | AU107: 179287 | AW107: 2014 06 30 23 | AX107: 93174 | AZ107: 2014 06 30 23 | BA107: 148301.7 | BC107: 2014 06 30 23 | BD107: 100243.6 | BF107: 2014 06 30 23 | BG107: 139090.8
A108: 2014 07 31 23 | B108: 216233.1 | D108: 2014 07 31 23 | E108: 189073.7 | G108: 2014 07 31 23 | H108: 192130.1 | J108: 2014 07 31 23 | K108: 187401 | M108: 2014 07 31 23 | N108: 209276.2 | P108: 2014 07 31 23 | Q108: 188629.6 | S108: 2014 07 31 23 | T108: 194465.3 | V108: 2014 07 31 23 | W108: 184579.6 | Y108: 2014 07 31 23 | Z108: 150937.4 | AB108: 2014 07 31 23 | AC108: 149704.2 | AE108: 2014 07 31 23 | AF108: 178264.2 | AH108: 2014 07 31 23 | AI108: 169769.2 | AK108: 2014 07 31 23 | AL108: 234700.9 | AN108: 2014 07 31 23 | AO108: 186986.8 | AQ108: 2014 07 31 23 | AR108: 209882.9 | AT108: 2014 07 31 23 | AU108: 196444.1 | AW108: 2014 07 31 23 | AX108: 186186.5 | AZ108: 2014 07 31 23 | BA108: 184817.7 | BC108: 2014 07 31 23 | BD108: 189292.3 | BF108: 2014 07 31 23 | BG108: 171019.4
A109: 2014 08 31 23 | B109: 112661.8 | D109: 2014 08 31 23 | E109: 122371.2 | G109: 2014 08 31 23 | H109: 105721.4 | J109: 2014 08 31 23 | K109: 126988.6 | M109: 2014 08 31 23 | N109: 111973.8 | P109: 2014 08 31 23 | Q109: 122804.7 | S109: 2014 08 31 23 | T109: 122857.1 | V109: 2014 08 31 23 | W109: 136465.9 | Y109: 2014 08 31 23 | Z109: 84584.1 | AB109: 2014 08 31 23 | AC109: 95754.7 | AE109: 2014 08 31 23 | AF109: 82924.2 | AH109: 2014 08 31 23 | AI109: 106083.5 | AK109: 2014 08 31 23 | AL109: 130795.4 | AN109: 2014 08 31 23 | AO109: 116447.7 | AQ109: 2014 08 31 23 | AR109: 117409 | AT109: 2014 08 31 23 | AU109: 134803.2 | AW109: 2014 08 31 23 | AX109: 112464.8 | AZ109: 2014 08 31 23 | BA109: 127449.6 | BC109: 2014 08 31 23 | BD109: 85066.1 | BF109: 2014 08 31 23 | BG109: 104744.8
A110: 2014 09 30 23 | B110: 138398 | D110: 2014 09 30 23 | E110: 92695.5 | G110: 2014 09 30 23 | H110: 125806 | J110: 2014 09 30 23 | K110: 99093.8 | M110: 2014 09 30 23 | N110: 114175.6 | P110: 2014 09 30 23 | Q110: 90972.6 | S110: 2014 09 30 23 | T110: 121322.1 | V110: 2014 09 30 23 | W110: 97036.9 | Y110: 2014 09 30 23 | Z110: 50340.8 | AB110: 2014 09 30 23 | AC110: 53793.5 | AE110: 2014 09 30 23 | AF110: 125394.9 | AH110: 2014 09 30 23 | AI110: 85712.4 | AK110: 2014 09 30 23 | AL110: 116672.5 | AN110: 2014 09 30 23 | AO110: 77166.8 | AQ110: 2014 09 30 23 | AR110: 111504.6 | AT110: 2014 09 30 23 | AU110: 97459 | AW110: 2014 09 30 23 | AX110: 127841.4 | AZ110: 2014 09 30 23 | BA110: 93150.1 | BC110: 2014 09 30 23 | BD110: 70805.4 | BF110: 2014 09 30 23 | BG110: 66418.3
A111: 2014 10 31 23 | B111: 27033.5 | D111: 2014 10 31 23 | E111: 24810.4 | G111: 2014 10 31 23 | H111: 32574 | J111: 2014 10 31 23 | K111: 35896.9 | M111: 2014 10 31 23 | N111: 37272.6 | P111: 2014 10 31 23 | Q111: 38092.7 | S111: 2014 10 31 23 | T111: 34881 | V111: 2014 10 31 23 | W111: 38202.6 | Y111: 2014 10 31 23 | Z111: 18123.3 | AB111: 2014 10 31 23 | AC111: 15866.8 | AE111: 2014 10 31 23 | AF111: 25996.9 | AH111: 2014 10 31 23 | AI111: 21540.4 | AK111: 2014 10 31 23 | AL111: 38417.9 | AN111: 2014 10 31 23 | AO111: 20671.4 | AQ111: 2014 10 31 23 | AR111: 39955 | AT111: 2014 10 31 23 | AU111: 40212.9 | AW111: 2014 10 31 23 | AX111: 23731.5 | AZ111: 2014 10 31 23 | BA111: 27474.4 | BC111: 2014 10 31 23 | BD111: 21795.6 | BF111: 2014 10 31 23 | BG111: 20571.8
A112: 2014 11 30 23 | B112: 8509.4 | D112: 2014 11 30 23 | E112: 7304.8 | G112: 2014 11 30 23 | H112: 13297.6 | J112: 2014 11 30 23 | K112: 12673.1 | M112: 2014 11 30 23 | N112: 10399 | P112: 2014 11 30 23 | Q112: 11198.2 | S112: 2014 11 30 23 | T112: 13447.2 | V112: 2014 11 30 23 | W112: 11535.3 | Y112: 2014 11 30 23 | Z112: 9568.1 | AB112: 2014 11 30 23 | AC112: 3411.1 | AE112: 2014 11 30 23 | AF112: 10506.3 | AH112: 2014 11 30 23 | AI112: 6564.1 | AK112: 2014 11 30 23 | AL112: 18933.7 | AN112: 2014 11 30 23 | AO112: 5189.3 | AQ112: 2014 11 30 23 | AR112: 12839.8 | AT112: 2014 11 30 23 | AU112: 15152.4 | AW112: 2014 11 30 23 | AX112: 2994.2 | AZ112: 2014 11 30 23 | BA112: 7198.1 | BC112: 2014 11 30 23 | BD112: 10673.2 | BF112: 2014 11 30 23 | BG112: 6293.3
A113: 2014 12 31 23 | B113: 22801.5 | D113: 2014 12 31 23 | E113: 5716.6 | G113: 2014 12 31 23 | H113: 17035.4 | J113: 2014 12 31 23 | K113: 8995.9 | M113: 2014 12 31 23 | N113: 10670.9 | P113: 2014 12 31 23 | Q113: 7557.9 | S113: 2014 12 31 23 | T113: 21658.4 | V113: 2014 12 31 23 | W113: 10525.9 | Y113: 2014 12 31 23 | Z113: 664 | AB113: 2014 12 31 23 | AC113: 89 | AE113: 2014 12 31 23 | AF113: 14864.9 | AH113: 2014 12 31 23 | AI113: 3724.6 | AK113: 2014 12 31 23 | AL113: 4513.2 | AN113: 2014 12 31 23 | AO113: 773.1 | AQ113: 2014 12 31 23 | AR113: 12595.9 | AT113: 2014 12 31 23 | AU113: 9512.8 | AW113: 2014 12 31 23 | AX113: 21186 | AZ113: 2014 12 31 23 | BA113: 6774.4 | BC113: 2014 12 31 23 | BD113: 8688.5 | BF113: 2014 12 31 23 | BG113: 2466.4
A114: 2015 01 31 23 | B114: 19921 | D114: 2015 01 31 23 | E114: 7062.2 | G114: 2015 01 31 23 | H114: 13894.8 | J114: 2015 01 31 23 | K114: 10060.5 | M114: 2015 01 31 23 | N114: 9121.9 | P114: 2015 01 31 23 | Q114: 9001.3 | S114: 2015 01 31 23 | T114: 23217.5 | V114: 2015 01 31 23 | W114: 12244.5 | Y114: 2015 01 31 23 | Z114: 2875.3 | AB114: 2015 01 31 23 | AC114: 900.7 | AE114: 2015 01 31 23 | AF114: 15243 | AH114: 2015 01 31 23 | AI114: 5435.1 | AK114: 2015 01 31 23 | AL114: 7522 | AN114: 2015 01 31 23 | AO114: 1954.1 | AQ114: 2015 01 31 23 | AR114: 13349 | AT114: 2015 01 31 23 | AU114: 12188.3 | AW114: 2015 01 31 23 | AX114: 9548.7 | AZ114: 2015 01 31 23 | BA114: 6601.7 | BC114: 2015 01 31 23 | BD114: 7751 | BF114: 2015 01 31 23 | BG114: 4335.1
A115: 2015 02 28 23 | B115: 28628 | D115: 2015 02 28 23 | E115: 20702.7 | G115: 2015 02 28 23 | H115: 10714.9 | J115: 2015 02 28 23 | K115: 18285 | M115: 2015 02 28 23 | N115: 22264.5 | P115: 2015 02 28 23 | Q115: 23255.2 | S115: 2015 02 28 23 | T115: 26134.8 | V115: 2015 02 28 23 | W115: 24376.5 | Y115: 2015 02 28 23 | Z115: 23205 | AB115: 2015 02 28 23 | AC115: 11344.5 | AE115: 2015 02 28 23 | AF115: 21829.3 | AH115: 2015 02 28 23 | AI115: 19203.3 | AK115: 2015 02 28 23 | AL115: 31962.7 | AN115: 2015 02 28 23 | AO115: 13673.6 | AQ115: 2015 02 28 23 | AR115: 25115.2 | AT115: 2015 02 28 23 | AU115: 26754 | AW115: 2015 02 28 23 | AX115: 30145.9 | AZ115: 2015 02 28 23 | BA115: 22335 | BC115: 2015 02 28 23 | BD115: 22812.9 | BF115: 2015 02 28 23 | BG115: 18064.7
A116: 2015 03 31 23 | B116: 101808.5 | D116: 2015 03 31 23 | E116: 64031.3 | G116: 2015 03 31 23 | H116: 75879.3 | J116: 2015 03 31 23 | K116: 65739.1 | M116: 2015 03 31 23 | N116: 91286.1 | P116: 2015 03 31 23 | Q116: 74200.9 | S116: 2015 03 31 23 | T116: 93138.2 | V116: 2015 03 31 23 | W116: 76097.6 | Y116: 2015 03 31 23 | Z116: 64746.8 | AB116: 2015 03 31 23 | AC116: 46742.8 | AE116: 2015 03 31 23 | AF116: 104851.5 | AH116: 2015 03 31 23 | AI116: 64160.3 | AK116: 2015 03 31 23 | AL116: 99475.3 | AN116: 2015 03 31 23 | AO116: 53154.7 | AQ116: 2015 03 31 23 | AR116: 71931.6 | AT116: 2015 03 31 23 | AU116: 67678.5 | AW116: 2015 03 31 23 | AX116: 98874.8 | AZ116: 2015 03 31 23 | BA116: 66375.9 | BC116: 2015 03 31 23 | BD116: 96233.1 | BF116: 2015 03 31 23 | BG116: 62508.4
A117: 2015 04 30 23 | B117: 115637.1 | D117: 2015 04 30 23 | E117: 118258.5 | G117: 2015 04 30 23 | H117: 146746.7 | J117: 2015 04 30 23 | K117: 127247.2 | M117: 2015 04 30 23 | N117: 140946 | P117: 2015 04 30 23 | Q117: 131513.8 | S117: 2015 04 30 23 | T117: 133333.9 | V117: 2015 04 30 23 | W117: 132269 | Y117: 2015 04 30 23 | Z117: 64288.4 | AB117: 2015 04 30 23 | AC117: 81324.2 | AE117: 2015 04 30 23 | AF117: 94417 | AH117: 2015 04 30 23 | AI117: 104827.8 | AK117: 2015 04 30 23 | AL117: 115601.7 | AN117: 2015 04 30 23 | AO117: 101876.8 | AQ117: 2015 04 30 23 | AR117: 111403 | AT117: 2015 04 30 23 | AU117: 115353.1 | AW117: 2015 04 30 23 | AX117: 124011.1 | AZ117: 2015 04 30 23 | BA117: 120695.4 | BC117: 2015 04 30 23 | BD117: 72489.5 | BF117: 2015 04 30 23 | BG117: 93339.4
A118: 2015 05 31 23 | B118: 77198.8 | D118: 2015 05 31 23 | E118: 121392.2 | G118: 2015 05 31 23 | H118: 104554.4 | J118: 2015 05 31 23 | K118: 134586.3 | M118: 2015 05 31 23 | N118: 110100.7 | P118: 2015 05 31 23 | Q118: 146335.5 | S118: 2015 05 31 23 | T118: 152524.8 | V118: 2015 05 31 23 | W118: 167162.2 | Y118: 2015 05 31 23 | Z118: 72959.6 | AB118: 2015 05 31 23 | AC118: 107766.7 | AE118: 2015 05 31 23 | AF118: 62522.7 | AH118: 2015 05 31 23 | AI118: 109663.7 | AK118: 2015 05 31 23 | AL118: 96037.7 | AN118: 2015 05 31 23 | AO118: 117766.1 | AQ118: 2015 05 31 23 | AR118: 115004.9 | AT118: 2015 05 31 23 | AU118: 134450.6 | AW118: 2015 05 31 23 | AX118: 109973.9 | AZ118: 2015 05 31 23 | BA118: 134811 | BC118: 2015 05 31 23 | BD118: 67468 | BF118: 2015 05 31 23 | BG118: 114125
A119: 2015 06 30 23 | B119: 100089.8 | D119: 2015 06 30 23 | E119: 144104.9 | G119: 2015 06 30 23 | H119: 134716.1 | J119: 2015 06 30 23 | K119: 163973.1 | M119: 2015 06 30 23 | N119: 137661.5 | P119: 2015 06 30 23 | Q119: 168311.5 | S119: 2015 06 30 23 | T119: 170498.8 | V119: 2015 06 30 23 | W119: 187051.2 | Y119: 2015 06 30 23 | Z119: 96707.5 | AB119: 2015 06 30 23 | AC119: 139781.5 | AE119: 2015 06 30 23 | AF119: 82858.9 | AH119: 2015 06 30 23 | AI119: 137558.8 | AK119: 2015 06 30 23 | AL119: 154936 | AN119: 2015 06 30 23 | AO119: 164910.8 | AQ119: 2015 06 30 23 | AR119: 105019.3 | AT119: 2015 06 30 23 | AU119: 131884 | AW119: 2015 06 30 23 | AX119: 139128.7 | AZ119: 2015 06 30 23 | BA119: 165891.7 | BC119: 2015 06 30 23 | BD119: 89830.2 | BF119: 2015 06 30 23 | BG119: 137505.4
A120: 2015 07 31 23 | B120: 108102.3 | D120: 2015 07 31 23 | E120: 139905 | G120: 2015 07 31 23 | H120: 126976.2 | J120: 2015 07 31 23 | K120: 155259.7 | M120: 2015 07 31 23 | N120: 129184.7 | P120: 2015 07 31 23 | Q120: 155440.6 | S120: 2015 07 31 23 | T120: 145890.3 | V120: 2015 07 31 23 | W120: 168378 | Y120: 2015 07 31 23 | Z120: 68321.6 | AB120: 2015 07 31 23 | AC120: 111694.7 | AE120: 2015 07 31 23 | AF120: 79304.6 | AH120: 2015 07 31 23 | AI120: 123917.7 | AK120: 2015 07 31 23 | AL120: 131187.3 | AN120: 2015 07 31 23 | AO120: 146160.4 | AQ120: 2015 07 31 23 | AR120: 128169 | AT120: 2015 07 31 23 | AU120: 142387.8 | AW120: 2015 07 31 23 | AX120: 106090.8 | AZ120: 2015 07 31 23 | BA120: 143783.1 | BC120: 2015 07 31 23 | BD120: 84856.6 | BF120: 2015 07 31 23 | BG120: 127283.3
A121: 2015 08 31 23 | B121: 190368.1 | D121: 2015 08 31 23 | E121: 150462.2 | G121: 2015 08 31 23 | H121: 147205.6 | J121: 2015 08 31 23 | K121: 140874.6 | M121: 2015 08 31 23 | N121: 174591.4 | P121: 2015 08 31 23 | Q121: 155412.5 | S121: 2015 08 31 23 | T121: 162519 | V121: 2015 08 31 23 | W121: 157883.4 | Y121: 2015 08 31 23 | Z121: 121365.4 | AB121: 2015 08 31 23 | AC121: 101420.1 | AE121: 2015 08 31 23 | AF121: 154202 | AH121: 2015 08 31 23 | AI121: 133525.5 | AK121: 2015 08 31 23 | AL121: 174392.1 | AN121: 2015 08 31 23 | AO121: 133664.2 | AQ121: 2015 08 31 23 | AR121: 176319.4 | AT121: 2015 08 31 23 | AU121: 145599 | AW121: 2015 08 31 23 | AX121: 200977.2 | AZ121: 2015 08 31 23 | BA121: 161885.5 | BC121: 2015 08 31 23 | BD121: 138239.7 | BF121: 2015 08 31 23 | BG121: 122318.5
A122: 2015 09 30 23 | B122: 69658.9 | D122: 2015 09 30 23 | E122: 67144 | G122: 2015 09 30 23 | H122: 87222.9 | J122: 2015 09 30 23 | K122: 86045.4 | M122: 2015 09 30 23 | N122: 90646.6 | P122: 2015 09 30 23 | Q122: 85872.6 | S122: 2015 09 30 23 | T122: 99976.2 | V122: 2015 09 30 23 | W122: 93100.2 | Y122: 2015 09 30 23 | Z122: 64305.2 | AB122: 2015 09 30 23 | AC122: 51541.2 | AE122: 2015 09 30 23 | AF122: 50720.7 | AH122: 2015 09 30 23 | AI122: 55298.1 | AK122: 2015 09 30 23 | AL122: 99528.4 | AN122: 2015 09 30 23 | AO122: 67386.7 | AQ122: 2015 09 30 23 | AR122: 80447.6 | AT122: 2015 09 30 23 | AU122: 82593.9 | AW122: 2015 09 30 23 | AX122: 83829 | AZ122: 2015 09 30 23 | BA122: 77061.8 | BC122: 2015 09 30 23 | BD122: 54795.2 | BF122: 2015 09 30 23 | BG122: 61044
A123: 2015 10 31 23 | B123: 80109.7 | D123: 2015 10 31 23 | E123: 45632.7 | G123: 2015 10 31 23 | H123: 46729.1 | J123: 2015 10 31 23 | K123: 45201 | M123: 2015 10 31 23 | N123: 52673.6 | P123: 2015 10 31 23 | Q123: 46819.3 | S123: 2015 10 31 23 | T123: 38073.4 | V123: 2015 10 31 23 | W123: 43542.5 | Y123: 2015 10 31 23 | Z123: 35957.3 | AB123: 2015 10 31 23 | AC123: 21764.4 | AE123: 2015 10 31 23 | AF123: 63287.8 | AH123: 2015 10 31 23 | AI123: 37449.2 | AK123: 2015 10 31 23 | AL123: 78448.3 | AN123: 2015 10 31 23 | AO123: 35096.1 | AQ123: 2015 10 31 23 | AR123: 30388.8 | AT123: 2015 10 31 23 | AU123: 40038.5 | AW123: 2015 10 31 23 | AX123: 74363.2 | AZ123: 2015 10 31 23 | BA123: 45141.1 | BC123: 2015 10 31 23 | BD123: 36987.9 | BF123: 2015 10 31 23 | BG123: 30601.3
A124: 2015 11 30 23 | B124: 29709.2 | D124: 2015 11 30 23 | E124: 12528.2 | G124: 2015 11 30 23 | H124: 16944.2 | J124: 2015 11 30 23 | K124: 13466.2 | M124: 2015 11 30 23 | N124: 17074.8 | P124: 2015 11 30 23 | Q124: 15179.3 | S124: 2015 11 30 23 | T124: 29340 | V124: 2015 11 30 23 | W124: 19171.8 | Y124: 2015 11 30 23 | Z124: 5598.5 | AB124: 2015 11 30 23 | AC124: 2294.7 | AE124: 2015 11 30 23 | AF124: 26503.3 | AH124: 2015 11 30 23 | AI124: 10846.1 | AK124: 2015 11 30 23 | AL124: 11408.4 | AN124: 2015 11 30 23 | AO124: 4007.2 | AQ124: 2015 11 30 23 | AR124: 13519.8 | AT124: 2015 11 30 23 | AU124: 13815.5 | AW124: 2015 11 30 23 | AX124: 23383.7 | AZ124: 2015 11 30 23 | BA124: 11522.2 | BC124: 2015 11 30 23 | BD124: 16619.6 | BF124: 2015 11 30 23 | BG124: 8257.7
A125: 2015 12 31 23 | B125: 27638.1 | D125: 2015 12 31 23 | E125: 6510.2 | G125: 2015 12 31 23 | H125: 16348.8 | J125: 2015 12 31 23 | K125: 8458.8 | M125: 2015 12 31 23 | N125: 14068.1 | P125: 2015 12 31 23 | Q125: 8478.7 | S125: 2015 12 31 23 | T125: 27439 | V125: 2015 12 31 23 | W125: 11374.9 | Y125: 2015 12 31 23 | Z125: 1051.1 | AB125: 2015 12 31 23 | AC125: 120.5 | AE125: 2015 12 31 23 | AF125: 16481 | AH125: 2015 12 31 23 | AI125: 4482.9 | AK125: 2015 12 31 23 | AL125: 8337 | AN125: 2015 12 31 23 | AO125: 962.6 | AQ125: 2015 12 31 23 | AR125: 14656.9 | AT125: 2015 12 31 23 | AU125: 9951.8 | AW125: 2015 12 31 23 | AX125: 25263.7 | AZ125: 2015 12 31 23 | BA125: 7681.7 | BC125: 2015 12 31 23 | BD125: 7906.6 | BF125: 2015 12 31 23 | BG125: 2733.1

Sheet 4. Dimension (hidden)
B1: 171017
B2: Building Dimensions | D2: Fill in | F2: Fill in | G2: Autocalculation
B3: ='Omslag BECE'!C7 -> 0 | C3: 171023
B4: Summary from detailed description below
C5: Input here | E5: From calculations below
B6: Net Floor Area (Atemp) | E6: =IF(C6>0,C6,F34) -> 0 | G6: Fill in
B7: Net area towards ground | D7: or | E7: =IF(C7>0,C7,IF(F26>0,F26,F27)) -> 0 | G7: Fill in - Instaed of blue
B8: Attic area (inside ext. walls) | D8: from below | E8: =IF(C8>0,C8,IF(F33>0,F33,IF(F32>0,F32,IF(F31>0,F31,IF(F30>0,F30,IF(F29>0,F29,IF(F28>0,F28,F27))))))) -> 0 | G8: Autocalculation
B9: Roof area | E9: =IF(C9>0,C9,H36) -> 0
B10: Building interior volume | E10: =IF(C10>0,C10,K34) -> 0
B11: Glass area/floor area | E11: =IF(C11>0,C11,(J52+J68+J84+J100)/E6) -> 
B12: Ext. Door area/floor area | E12: =IF(C12>0,C12,(L52+L68+L84+L100)/E6) ->  | M12: Ratios
L13: Volume/heated area | M13: =E10/E6 ->  | N13: Interior air volume | O13: =K34 -> 0
B14: Exterior walls | C14: Input here | E14: Elevation 1 - S | F14: Elevation 2 - W | G14: Elevation 3 - N | H14: Elevation 4 - E | I14: Sum | J14: Fraction | L14: Facade/heated area | M14: =I19/E6 ->  | N14: % ventilated
B15: Solid walls towards air | E15: =O52 -> 0 | F15: =O68 -> 0 | G15: =O84 -> 0 | H15: =O100 -> 0 | I15: =IF(C15>0,C15,SUM(E15:H15)) -> 0 | J15: =I15/$I$19 ->  | L15: Windows/heated area | M15: =I17/E6 ->  | N15: Ventilated vol. | O15: =O13*O14 -> 0
B16: Walss towards ground | D16: or | E16: =G43 -> 0 | F16: =G59 -> 0 | G16: =G75 -> 0 | H16: =G91 -> 0 | I16: =IF(C16>0,C16,SUM(E16:H16)) -> 0 | J16: =I16/$I$19 ->  | L16: Doors/heated area | M16: =I18/E6 ->  | N16: Own calculation
B17: Windows (including frames) | D17: from below | E17: =IF(H53>0,H53,H52) -> 0 | F17: =IF(H69>0,H69,H68) -> 0 | G17: =IF(H85>0,H85,H84) -> 0 | H17: =IF(H101>0,H101,H100) -> 0 | I17: =IF(C17>0,C17,SUM(E17:H17)) -> 0 | J17: =I17/$I$19 ->  | L17: Roof area/heated area | M17: =E9/E6 ->  | N17: Internal envelop | O17: =E9+E7+I19 -> 0
B18: Exterior doors (including frames) | E18: =L52 -> 0 | F18: =L68 -> 0 | G18: =L84 -> 0 | H18: =L100 -> 0 | I18: =IF(C18>0,C18,SUM(E18:H18)) -> 0 | J18: =I18/$I$19 ->  | L18: Heated envelop/Atemp | M18: =(E7+E8+I19)/E6 -> 
E19: =SUM(E15:E18) -> 0 | F19: 0 | G19: 0 | H19: 0 | I19: 0 | L19: Ground area/heated area | M19: =E7/E6 -> 
B22: Interior dimensions
B24: Internal main measures, rectangular building | I24: Else | J24: Else | K24: Interior air volume, m3 | L24: External Perimeter, m
B25: Floor | C25: Ceiling height, m | D25: Length, m to the South | E25: Width, m | F25: Net area, m2 Atemp | G25: Gross Area, m2 | I25: Measured net area, m2 | J25: Measured gross area, m3
B26: Basement towards ground | F26: =D26*E26 -> 0 | G26: =E43*E59 -> 0 | K26: =IF(I26>0,I26,F26)*C26 -> 0 | L26: =(E43+E59)*2 -> 0
B27: 1 | F27: =D27*E27 -> 0 | G27: =E45*E61 -> 0 | K27: =IF(I27>0,I27,F27)*C27 -> 0 | L27: =(E45+E61)*2 -> 0
B28: 2 | F28: 0 | G28: =E46*E62 -> 0 | K28: =IF(I28>0,I28,F28)*C28/2 -> 0 | L28: =(E46+E62)*2 -> 0
B29: 3 | F29: 0 | G29: =IF(E47=" ",0,E47*E63) -> 0 | K29: =IF(I29>0,I29,F29)*C29 -> 0 | L29: =IF(E47=" "," ",(E47+E63)*2) -> 0
B30: 4 | F30: 0 | G30: =IF(E48=" ",0,E48*E64) -> 0 | K30: =IF(I30>0,I30,F30)*C30 -> 0 | L30: =IF(E48=" "," ",(E48+E64)*2) -> 0
B31: 5 | F31: 0 | G31: =IF(E48=" ",0,E49*E65) -> 0 | K31: =IF(I31>0,I31,F31)*C31 -> 0 | L31: =IF(E49=" "," ",(E49+E65)*2) -> 0
B32: 6 | F32: 0 | G32: =IF(E50=" ",0,E50*E66) -> 0 | K32: =IF(I32>0,I32,F32)*C32 -> 0 | L32: =IF(E50=" "," ",(E50+E66)*2) -> 0
B33: Top floor | F33: 0 | G33: =IF(E51=" ",0,E51*E67) -> 0 | K33: =IF(I33>0,I33,F33)*C33 -> 0 | L33: =IF(E51=" "," ",(E51+E67)*2) -> 0
B34: =COUNT(C26:C33) -> 0 | C34: =IF(SUM(C26:C33)=0,0, AVERAGE(C26:C33)) -> 0 | D34: =IF(SUM(D26:D33)=0,0, AVERAGE(D26:D33)) -> 0 | E34: =IF(SUM(E26:E33)=0,0, AVERAGE(E26:E33)) -> 0 | F34: =SUM(F26:F33) -> 0 | G34: =SUM(G26:G33) -> 0 | I34: =SUM(I26:I33) -> 0 | J34: =SUM(J26:J33) -> 0 | K34: =SUM(K26:K33) -> 0
B36: Total fasade area, m2 | C36: =2*(D34+E34+0.6)*(C34+0.3) -> 0.36 | F36: Degree | G36: Roof area, m2 | H36: =F26/COS(E36*PI()/180) -> 0 | I36: =IF(G33>0,G33,IF(G32>0,G32,IF(G31>0,G31,IF(G30>0,G30,IF(G29>0,G29,IF(G28>0,G28,G27))))))/COS(E36*PI()/180) -> 0 | J36: Ext envelope | K36: =2*(D26+0.6)*E26+C36 -> 0.36
B39: External dimensions
B41: S | C41: External wall 1 - Elevation towards the South
B42: Floor | C42: Height below ground, m | D42: Height m | E42: Length m | F42: Facade area, m2 | G42: Area, m2 | H42: Windows (incl frames), m2 | I42: Glass fraction, % | J42: Glass area, m2 | K42: Glass area/ facade area, % | L42: External doors, m2 | M42: Glass fraction, % | N42: Glass area, m2 | O42: Facade area excl windows and doors, m2
B43: Basement towards ground | E43: =IF(D43=0,0,D26+2*IF(Konstruktion!C$200>0,Konstruktion!C$200/1000,0.6)) -> 0 | G43: =IF(F43>0,F43,C43*E43) -> 0 | N43: =L43*M43 -> 0 | O43: =G43-H43-L43 -> 0
B44: Basement towards air | E44: =IF(D44=0,0,D26+2*IF(Konstruktion!C$200>0,Konstruktion!C$200/1000,0.6)) -> 0 | G44: =IF(F44>0,F44,D44*E44) -> 0
B45: 1 | E45: =IF(D45=0,0,D27+2*IF(Konstruktion!C$200>0,Konstruktion!C$200/1000,0.6)) -> 0 | G45: =IF(F45>0,F45,D45*E45) -> 0 | J45: =H45*I45 -> 0 | K45: =IF(G45=0,0,J45/G45) -> 0 | N45: =L45*M45 -> 0 | O45: =G45-H45-L45 -> 0
B46: 2 | E46: =IF(D46=0,0,D28+2*IF(Konstruktion!C$200>0,Konstruktion!C$200/1000,0.6)) -> 0 | G46: 0 | J46: 0 | K46: 0 | N46: 0 | O46: =G46-H46-L46 -> 0
B47: 3 | E47: =IF(D47=0,0,D29+2*IF(Konstruktion!C$200>0,Konstruktion!C$200/1000,0.6)) -> 0 | G47: =IF(F47>0,F47,D47*E47) -> 0 | J47: 0 | K47: 0 | N47: 0 | O47: =G47-H47-L47 -> 0
B48: 4 | E48: =IF(D48=0,0,D30+2*IF(Konstruktion!C$200>0,Konstruktion!C$200/1000,0.6)) -> 0 | G48: 0 | J48: 0 | K48: 0 | N48: 0 | O48: 0
B49: 5 | E49: =IF(D49=0,0,D31+2*IF(Konstruktion!C$200>0,Konstruktion!C$200/1000,0.6)) -> 0 | G49: 0 | J49: 0 | K49: 0 | N49: 0 | O49: 0
B50: 6 | E50: =IF(D50=0,0,D32+2*IF(Konstruktion!C$200>0,Konstruktion!C$200/1000,0.6)) -> 0 | G50: 0 | J50: 0 | K50: 0 | N50: 0 | O50: 0
B51: Top floor | E51: =IF(D51=0,0,D33+2*IF(Konstruktion!C$200>0,Konstruktion!C$200/1000,0.6)) -> 0 | G51: =IF(F51>0,F51,D51*E51) -> 0 | J51: 0 | K51: 0 | N51: 0 | O51: 0
B52: =COUNT(D43:D51) -> 0 | D52: =SUM(D45:D51) -> 0 | G52: =SUM(G44:G51) -> 0 | H52: =SUM(H43:H51) -> 0 | I52: =IF(SUM(I43:I51)=0,0,AVERAGE(I43:I51)) -> 0 | J52: =SUM(J43:J51) -> 0 | K52: =IF(G52=0,0,J52/G52) -> 0 | L52: =SUM(L44:L51) -> 0 | M52: =IF(SUM(M43:M51)=0,0,AVERAGE(M43:M51)) -> 0 | N52: =SUM(N44:N51) -> 0 | O52: =SUM(O44:O51) -> 0
J53: =IF(H53>0,H53*I53," ") ->  | K53: =IF(J53=" "," ",J53/G52) ->  | N53: =IF(L53>0,L53*M53," ") -> 
F54: Windows to facade | G54: =IF(H53>0,H53,H52)/G52 ->  | J54: Doors to facade | K54: =IF(L53>0,L53,L52)/G52 ->  | N54: Total glass, m2 | O54: =J52+N52 -> 0
F55: Windows to Atemp | G55: =IF(H53>0,H53,H52)/E$6 ->  | J55: Doors to Atemp | K55: =IF(L53>0,L53,L52)/E$6 -> 
B57: V | C57: External wall 2 - Elevation towards the West
B58: Floor | C58: Height above ground, m | D58: Height m | E58: Length m | F58: Facade area, m2 | G58: Facade area, m2 | H58: Windows (incl frames), m2 | I58: Glass fraction, % | J58: Glass area, m2 | K58: Glass area/ facade area, % | L58: External doors, m2 | M58: Glass fraction, % | N58: Glass area, m2 | O58: Facade area excl windows and doors, m2
B59: Basement towards ground | E59: =IF(D59=0,0,E26+2*IF(Konstruktion!C$200>0,Konstruktion!C$200/1000,0.6)) -> 0 | G59: =IF(F59>0,F59,C59*E59) -> 0 | J59: =H59*I59 -> 0 | K59: =IF(G59=0,0,J59/G59) -> 0 | N59: =L59*M59 -> 0 | O59: =G59-H59-L59 -> 0
B60: Basement towards air | E60: =IF(D60=0,0,E26+2*IF(Konstruktion!C$200>0,Konstruktion!C$200/1000,0.6)) -> 0 | G60: =IF(F60>0,F60,D60*E60) -> 0
B61: 1 | E61: =IF(D61=0,0,E27+2*IF(Konstruktion!C$200>0,Konstruktion!C$200/1000,0.6)) -> 0 | G61: =IF(F61>0,F61,D61*E61) -> 0 | J61: 0 | K61: 0 | N61: 0 | O61: 0
B62: 2 | E62: =IF(D62=0,0,E28+2*IF(Konstruktion!C$200>0,Konstruktion!C$200/1000,0.6)) -> 0 | G62: =IF(F62>0,F62,D62*E62) -> 0 | J62: 0 | K62: 0 | N62: 0 | O62: 0
B63: 3 | E63: =IF(D63=0,0,E29+2*IF(Konstruktion!C$200>0,Konstruktion!C$200/1000,0.6)) -> 0 | G63: =IF(F63>0,F63,D63*E63) -> 0 | J63: 0 | K63: 0 | N63: 0 | O63: 0
B64: 4 | E64: =IF(D64=0,0,E30+2*IF(Konstruktion!C$200>0,Konstruktion!C$200/1000,0.6)) -> 0 | G64: 0 | J64: 0 | K64: 0 | N64: 0 | O64: 0
B65: 5 | E65: =IF(D65=0,0,E31+2*IF(Konstruktion!C$200>0,Konstruktion!C$200/1000,0.6)) -> 0 | G65: 0 | J65: 0 | K65: 0 | N65: 0 | O65: 0
B66: 6 | E66: =IF(D66=0,0,E32+2*IF(Konstruktion!C$200>0,Konstruktion!C$200/1000,0.6)) -> 0 | G66: 0 | J66: 0 | K66: 0 | N66: 0 | O66: 0
B67: Top floor | E67: =IF(D67=0,0,E33+2*IF(Konstruktion!C$200>0,Konstruktion!C$200/1000,0.6)) -> 0 | G67: 0 | J67: 0 | K67: 0 | N67: 0 | O67: 0
B68: =COUNT(D59:D67) -> 0 | D68: =SUM(D61:D67) -> 0 | G68: =SUM(G59:G67) -> 0 | H68: =SUM(H60:H67) -> 0 | I68: =IF(SUM(I59:I67)=0,0,AVERAGE(I59:I67)) -> 0 | J68: =SUM(J59:J67) -> 0 | K68: =IF(G68=0,0,J68/G68) -> 0 | L68: =SUM(L60:L67) -> 0 | M68: =IF(SUM(M59:M67)=0,0,AVERAGE(M59:M67)) -> 0 | N68: =SUM(N60:N67) -> 0 | O68: =SUM(O60:O67) -> 0
J69: =IF(H69>0,H69*I69," ") ->  | K69: =IF(J69=" "," ",J69/G68) ->  | N69: =IF(L69>0,L69*M69," ") -> 
F70: Windows to facade | G70: =IF(H69>0,H69,H68)/G68 ->  | J70: Doors to facade | K70: =IF(L69>0,L69,L68)/G68 ->  | O70: =J68+N68 -> 0
F71: Windows to Atemp | G71: =IF(H69>0,H69,H68)/E$6 ->  | J71: Doors to Atemp | K71: =IF(L69>0,L69,L68)/E$6 -> 
B73: N | C73: External wall 3 - Elevation towards the North
B74: Floor | C74: Height above ground, m | D74: Height m | E74: Length m | F74: Facade area, m2 | G74: Facade area, m2 | H74: Windows (incl frames), m2 | I74: Glass fraction, % | J74: Glass area, m2 | K74: Glass area/ facade area, % | L74: External doors, m2 | M74: Glass fraction, % | N74: Glass area, m2 | O74: Facade area excl windows and doors, m2
B75: Basement towards ground | E75: =IF(D75=0,0,D26+2*IF(Konstruktion!C$200>0,Konstruktion!C$200/1000,0.6)) -> 0 | G75: =IF(F75>0,F75,C75*E75) -> 0 | J75: =H75*I75 -> 0 | K75: =IF(G75=0,0,J75/G75) -> 0 | N75: =L75*M75 -> 0 | O75: =G75-H75-L75 -> 0
B76: Basement towards air | E76: =IF(D76=0,0,D26+2*IF(Konstruktion!C$200>0,Konstruktion!C$200/1000,0.6)) -> 0 | G76: =IF(F76>0,F76,D76*E76) -> 0
B77: 1 | E77: =IF(D77=0,0,D27+2*IF(Konstruktion!C$200>0,Konstruktion!C$200/1000,0.6)) -> 0 | G77: =IF(F77>0,F77,D77*E77) -> 0 | J77: 0 | K77: 0 | N77: 0 | O77: 0
B78: 2 | E78: =IF(D78=0,0,D28+2*IF(Konstruktion!C$200>0,Konstruktion!C$200/1000,0.6)) -> 0 | G78: =IF(F78>0,F78,D78*E78) -> 0 | J78: 0 | K78: 0 | N78: 0 | O78: 0
B79: 3 | E79: =IF(D79=0,0,D29+2*IF(Konstruktion!C$200>0,Konstruktion!C$200/1000,0.6)) -> 0 | G79: =IF(F79>0,F79,D79*E79) -> 0 | J79: 0 | K79: 0 | N79: 0 | O79: 0
B80: 4 | E80: =IF(D80=0,0,D30+2*IF(Konstruktion!C$200>0,Konstruktion!C$200/1000,0.6)) -> 0 | G80: 0 | J80: 0 | K80: 0 | N80: 0 | O80: 0
B81: 5 | E81: =IF(D81=0,0,D31+2*IF(Konstruktion!C$200>0,Konstruktion!C$200/1000,0.6)) -> 0 | G81: 0 | J81: 0 | K81: 0 | N81: 0 | O81: 0
B82: 6 | E82: =IF(D82=0,0,D32+2*IF(Konstruktion!C$200>0,Konstruktion!C$200/1000,0.6)) -> 0 | G82: 0 | J82: 0 | K82: 0 | N82: 0 | O82: 0
B83: 7 | E83: =IF(D83=0,0,D33+2*IF(Konstruktion!C$200>0,Konstruktion!C$200/1000,0.6)) -> 0 | G83: 0 | J83: 0 | K83: 0 | N83: 0 | O83: 0
B84: =COUNT(D75:D83) -> 0 | D84: =SUM(D77:D83) -> 0 | G84: =SUM(G75:G83) -> 0 | H84: =SUM(H76:H83) -> 0 | I84: =IF(SUM(I75:I83)=0,0,AVERAGE(I75:I83)) -> 0 | J84: =SUM(J75:J83) -> 0 | L84: =SUM(L76:L83) -> 0 | M84: =IF(SUM(M75:M83)=0,0,AVERAGE(M75:M83)) -> 0 | N84: =SUM(N76:N83) -> 0 | O84: =SUM(O76:O83) -> 0
J85: =IF(H85>0,H85*I85," ") ->  | K85: =IF(J85=" "," ",J85/G84) ->  | N85: =IF(L85>0,L85*M85," ") -> 
F86: Windows to facade | G86: =IF(H85>0,H85,H84)/G84 ->  | J86: Doors to facade | K86: =IF(L85>0,L85,L84)/G84 ->  | O86: =J84+N84 -> 0
F87: Windows to Atemp | G87: =IF(H85>0,H85,H84)/E$6 ->  | J87: Doors to Atemp | K87: =IF(L85>0,L85,L84)/E$6 -> 
B89: O | C89: External wall 4 - Elevation towards the East
B90: Floor | C90: Height above ground, m | D90: Height m | E90: Length m | F90: Facade area, m2 | G90: Facade area, m2 | H90: Windows (incl frames), m2 | I90: Glass fraction, % | J90: Glass area, m2 | K90: Glass area/ facade area, % | L90: External doors, m2 | M90: Glass fraction, % | N90: Glass area, m2 | O90: Facade area excl windows and doors, m2
B91: Basement towards ground | E91: =IF(D91=0,0,E26+2*IF(Konstruktion!C$200>0,Konstruktion!C$200/1000,0.6)) -> 0 | G91: =IF(F91>0,F91,C91*E91) -> 0 | J91: =H91*I91 -> 0 | K91: =IF(G91=0,0,J91/G91) -> 0 | N91: =L91*M91 -> 0 | O91: =G91-H91-L91 -> 0
B92: Basement towards air | E92: =IF(D92=0,0,E26+2*IF(Konstruktion!C$200>0,Konstruktion!C$200/1000,0.6)) -> 0 | G92: =IF(F92>0,F92,D92*E92) -> 0
B93: 1 | E93: =IF(D93=0,0,E27+2*IF(Konstruktion!C$200>0,Konstruktion!C$200/1000,0.6)) -> 0 | G93: =IF(F93>0,F93,D93*E93) -> 0 | J93: 0 | K93: 0 | N93: 0 | O93: 0
B94: 2 | E94: =IF(D94=0,0,E28+2*IF(Konstruktion!C$200>0,Konstruktion!C$200/1000,0.6)) -> 0 | G94: =IF(F94>0,F94,D94*E94) -> 0 | J94: 0 | K94: 0 | N94: 0 | O94: 0
B95: 3 | E95: =IF(D95=0,0,E29+2*IF(Konstruktion!C$200>0,Konstruktion!C$200/1000,0.6)) -> 0 | G95: =IF(F95>0,F95,D95*E95) -> 0 | J95: 0 | K95: 0 | N95: 0 | O95: 0
B96: 4 | E96: =IF(D96=0,0,E30+2*IF(Konstruktion!C$200>0,Konstruktion!C$200/1000,0.6)) -> 0 | G96: 0 | J96: 0 | K96: 0 | N96: 0 | O96: 0
B97: 5 | E97: =IF(D97=0,0,E31+2*IF(Konstruktion!C$200>0,Konstruktion!C$200/1000,0.6)) -> 0 | G97: 0 | J97: 0 | K97: 0 | N97: 0 | O97: 0
B98: 6 | E98: =IF(D98=0,0,E32+2*IF(Konstruktion!C$200>0,Konstruktion!C$200/1000,0.6)) -> 0 | G98: 0 | J98: 0 | K98: 0 | N98: 0 | O98: 0
B99: 7 | E99: =IF(D99=0,0,E33+2*IF(Konstruktion!C$200>0,Konstruktion!C$200/1000,0.6)) -> 0 | G99: 0 | J99: 0 | K99: 0 | N99: 0 | O99: 0
B100: =COUNT(D91:D99) -> 0 | D100: =SUM(D93:D99) -> 0 | G100: =SUM(G91:G99) -> 0 | H100: =SUM(H92:H99) -> 0 | I100: =IF(SUM(I91:I99)=0,0,AVERAGE(I91:I99)) -> 0 | J100: =SUM(J91:J99) -> 0 | K100: =J100/G100 ->  | L100: =SUM(L92:L99) -> 0 | M100: =IF(SUM(M91:M99)=0,0,AVERAGE(M91:M99)) -> 0 | N100: =SUM(N92:N99) -> 0 | O100: =SUM(O92:O99) -> 0
J101: =IF(H101>0,H101*I101," ") ->  | K101: =IF(J101=" "," ",J101/G100) ->  | N101: =IF(L101>0,L101*M101," ") -> 
F102: Windows to facade | G102: =IF(H101>0,H101,H100)/G100 ->  | H102: Glass ratio, med | I102: =(I52+I68+I84+I100)/4 -> 0 | J102: Doors to facade | K102: =IF(L101>0,L101,L100)/G100 ->  | L102: Glass ratio, med | M102: =(M52+M68+M84+M100)/4 -> 0 | O102: =J100+N100 -> 0
F103: Windows to Atemp | G103: =IF(H101>0,H101,H100)/E$6 ->  | J103: Doors to Atemp | K103: =IF(L101>0,L101,L100)/E$6 -> 
F104: Total windows to Atemp | G104: =(H52+H68+H84+H100)/$F34 ->  | J104: Tot doors to Atemp | K104: =(L52+L68+L84+L100)/$F34 -> 

Sheet Basdata
B1: ENERGI- OCH KLIMATPRESTANDA FÖR BYGGNADSSKAL, MELLANVÄGGAR OCH BJÄLKLAG. INDATA OCH SCHABLONVÄRDEN. | I1: ant vån | K1: =I3*J3*J3/(6*J3*J3) -> 0.3333333333 | M1: Övergångasmotstånd | O1: mi+mu
B2: Ändringar görs i blå celler. För att få en beräkning måste de rött inringade blå cellerna fyllas i !! | I2: 1 | J2: =I2*2.7 -> 2.7 | K2: =I4*J4*J4/(6*J4*J4) -> 0.5 | M2: Vägg och tak mot det fria | O2: 0.25 | Q2: U-värden (W/m2,K) inkluderande köldbryggor enligt schabloner föreslagna av Aton 2007.
I3: 2 | J3: 5.4 | K3: =I5*J5*J5/(6*J5*J5) -> 0.6666666667 | M3: Golv- och takbjälklag | O3: 0.3 | Q3: Byggår | R3: Ytterväggar | T3: Vindsbjälklag | V3: Grund | W3: Fönster | X3: Dörrar | Y3: Källarvägg mot mark | Z3: Yttertak | AA3: Antal glas | AB3: G-fönster
B4: Byggnad | C4: =IF('Omslag BECE'!C7="","-",'Omslag BECE'!C7) -> - | D4: Om ny - mata in på flik Konstruktion eller välj färdig konstuktion t.h. | I4: 3 | J4: 8.1 | K4: =I6*J6*J6/(6*J6*J6) -> 0.8333333333 | R4: Utan åtgärd | S4: Tilläggsisol. | T4: Utan åtgärd | U4: Tilläggsisol.
B5: Ort - skriv in på flik Omslag BECE | C5: ='Omslag BECE'!C9 -> 0 | I5: 4 | J5: 10.8 | K5: =I7*J7*J7/(6*J7*J7) -> 1 | L5: Ingen | M5: Vägg, tak, golv mot uppvärmd lokal | O5: 0.35 | Q5: Småhus
B6: Byggår | D6: Våningar, antal | E6: Invändiga mått | G6: Marknivå till lägsta golv,+-m | H6: Bruttoarea, BTA m2 | I6: 5 | J6: 13.5 | K6: 1 | L6: Gävle | P6: 1 | Q6: -1920 | R6: 0.9 | S6: 0.4 | T6: 0.6 | U6: 0.25 | V6: 0.3 | W6: 2.8 | X6: 3 | Y6: 2.5 | Z6: 2 | AA6: 2 | AB6: 0.76 | AP6: Energianvändning | AQ6: Klimatpåverkan från driftenergi
B7: Byggnadstyp | D7: =ROUND(POWER((I8/(I60*I60)),1/3),0) -> 0 | E7: Bredd,m | F7: Längd,m | I7: 6 | J7: 16.2 | K7: 2 | L7: Göteborg | P7: 2 | Q7: 1921-40 | R7: 0.85 | S7: 0.4 | T7: 0.5 | U7: 0.25 | V7: 0.3 | W7: 2.8 | X7: 3 | Y7: 2.5 | Z7: 2 | AA7: 2 | AB7: 0.76 | AO7: Uppv + Vent. | AP7: =E17 -> kWh/m2,år | AQ7: =F17 -> kg CO2 e/m2,år | AR7: =C27 -> 0
B8: Uppvärmd yta, m2 Atemp | C8: =D8*E8*F8 -> 0 | H8: =IF(H9>0,H9,C8/0.9) -> 0 | I8: =C8 -> 0 | J8: m2 | K8: 3 | L8: Jönköping | P8: 3 | Q8: 1941-60 | R8: 0.6 | S8: 0.4 | T8: 0.45 | U8: 0.2 | V8: 0.3 | W8: 2.8 | X8: 3 | Y8: 2 | Z8: 2 | AA8: 2 | AB8: 0.76 | AO8: =B20 -> Värmetillskott - sol genom fönster och spillvärme från människor och apparater -"- | AP8: =-E20 -> 0 | AQ8: =F20 -> 0
E9: Formfaktor | F9: =IF(I8=0,0,I70/I8) -> 0 | G9: Annan BTA, m2 | I9: inv omkr | J9: =I45 -> 0 | K9: 4 | L9: Kalmar | P9: 4 | Q9: 1961-75 | R9: 0.4 | S9: 0.3 | T9: 0.3 | U9: 0.18 | V9: 0.3 | W9: 2.8 | X9: 2.9 | Y9: 1.5 | Z9: 2 | AA9: 2 | AB9: 0.76 | AO9: Fastighetsel | AP9: =-E21 -> 0 | AQ9: =F21 -> 0
B10: Färdig konstruktion: | C10: =IF(Konstruktion!B3>0,Konstruktion!B3,"") ->  | I10: utv omkr | J10: =I45+8*(IF(Konstruktion!C200>0,Konstruktion!J200/1000,0.35)) -> 2.8 | K10: 5 | L10: Kiruna | P10: 5 | Q10: 1976-85 | R10: 0.25 | S10: 0.25 | T10: 0.18 | U10: 0.18 | V10: 0.16 | W10: 2.8 | X10: 2 | Y10: 0.6 | Z10: 2 | AA10: 2 | AB10: 0.76 | AO10: Brukarel | AP10: =-E22 -> 0 | AQ10: =F22 -> 0
D11: Behov minus lokalt pro-ducerad energi, kWh/år | E11: Pris, kr/kWh | I11: utv höjd | J11: =D8*I60+(Konstruktion!C179-Konstruktion!C272)/1000-G8 -> 0 | K11: 6 | L11: Ljusdal | P11: 6 | Q11: 1986-2010 | R11: 0.2 | S11: 0.2 | T11: 0.15 | U11: 0.15 | V11: 0.13 | W11: 1.7 | X11: 1.5 | Y11: 0.4 | Z11: 2 | AA11: 3 | AB11: 0.6 | AO11: Summa | AP11: =-E23 -> 0 | AQ11: =F23 -> 0
E12: Schablon | F12: Justerat | I12: Omsl. yta utv | J12: =J10*J11+I51+I55 -> 0 | K12: 7 | L12: Luleå | P12: 7 | Q12: Nytt | R12: 0.1 | S12: 0.1 | T12: 0.1 | U12: 0.1 | V12: 0.1 | W12: 1 | X12: 0.8 | Y12: 0.2 | Z12: 2 | AA12: 3 | AB12: 0.57
B13: Energislag/Leverantör - värme | D13: =IF(D97="ja",0,D18+D21+F107) -> 0 | E13: =IF(C13=0,0,VLOOKUP(C13,Energy_emissions,24)) -> 0 | I13: Omsl. yta inv | J13: =2*(E8+F8)*((D8-1)*I60+2.4)+2*(E8*F8) -> 0 | K13: 8 | L13: Malmö | Q13: Flerbostadshus | Z13: =IF(C6="Före 1920",1,IF(C6="1921-40",2,IF(C6="1941-60",3,IF(C6="1961-75",4,IF(C6="1976-85",5,IF(C6="1986-2010",6,7)))))) -> 7
B14: Energileverantör - elektricitet | D14: =D21+D22 -> 0 | E14: =IF(C14=0,0,VLOOKUP(C14,Energy_emissions,24)) -> 0 | I14: =IF(F13>0,F13,E13) -> 0 | K14: 9 | L14: Stockholm | P14: 1 | Q14: Före 1920 | R14: 1 | S14: 0.4 | T14: 0.65 | U14: 0.25 | V14: 0.3 | W14: 2.8 | X14: 3 | Y14: 2.5 | Z14: 2 | AA14: 2 | AB14: 0.76
I15: =IF(F14>0,F14,E14) -> 0 | K15: 10 | L15: Västerås | P15: 2 | Q15: 1921-40 | R15: 1 | S15: 0.4 | T15: 0.6 | U15: 0.25 | V15: 0.3 | W15: 2.8 | X15: 3 | Y15: 2.5 | Z15: 2 | AA15: 2 | AB15: 0.76
D16: Energianvändning | F16: Klimatp. energi | G16: Energikostnad | K16: 11 | L16: Östersund | P16: 3 | Q16: 1941-60 | R16: 0.7 | S16: 0.4 | T16: 0.5 | U16: 0.2 | V16: 0.3 | W16: 2.8 | X16: 3 | Y16: 2 | Z16: 2 | AA16: 2 | AB16: 0.76
B17: ENERGIBEHOV, KLIMATPÅVERKAN OCH KOSTNADER PER ÅR | D17: kWh/år | E17: kWh/m2,år | F17: kg CO2 e/m2,år | G17: Kr/år | H17: Kr/m2,år | I17: Fasad S/N | P17: 4 | Q17: 1961-75 | R17: 0.45 | S17: 0.3 | T17: 0.4 | U17: 0.18 | V17: 0.3 | W17: 2.8 | X17: 2.5 | Y17: 1.5 | Z17: 2 | AA17: 2 | AB17: 0.76
B18: Transmissonsförluster (förluster genom byggnadsskalet) under uppvärmningsäsongen | D18: =IF(I8=0,0,'Energibalans 1'!T22) -> 0 | E18: =IF(I$8=0,0,D18/C$8) -> 0 | F18: =IF(I8=0,0,Energi!K12) -> 0 | G18: =-IF(F$13>0,F$13,E$13)*E18*I$8 -> 0 | H18: =IF(I$8=0,0,G18/I$8) -> 0 | K18: Flerbostadshus | P18: 5 | Q18: 1976-85 | R18: 0.3 | S18: 0.3 | T18: 0.18 | U18: 0.18 | V18: 0.16 | W18: 2.8 | X18: 2 | Y18: 0.6 | Z18: 2 | AA18: 2 | AB18: 0.76
B19: Ventilationsförluster under uppvärmningssäsongen | D19: =IF(I8=0,0,'Energibalans 1'!T39) -> 0 | E19: =IF(I$8=0,0,D19/C$8) -> 0 | F19: =IF(I$8=0,0,Energi!K14) -> 0 | G19: 0 | H19: =IF(I$8=0,0,G19/I$8) -> 0 | K19: Småhus | P19: 6 | Q19: 1986-2010 | R19: 0.25 | S19: 0.25 | T19: 0.15 | U19: 0.15 | V19: 0.13 | W19: 1.7 | X19: 1.5 | Y19: 0.4 | Z19: 2 | AA19: 3 | AB19: 0.6
B20: Värmetillskott - sol genom fönster och spillvärme från människor och apparater -"- | D20: =IF(I8=0,0,('Energibalans 1'!T31+'Energibalans 1'!T45)) -> 0 | E20: 0 | F20: =IF(I$8=0,0,Energi!K17+Energi!K18) -> 0 | G20: 0 | H20: 0 | I20: Fasad Ö/V | K20: Lokal | P20: 7 | Q20: Nytt | R20: 0.1 | S20: 0.1 | T20: 0.1 | U20: 0.1 | V20: 0.1 | W20: 1 | X20: 0.8 | Y20: 0.2 | Z20: 2 | AA20: 3 | AB20: 0.57
B21: Varmvatten | D21: =IF(I8=0,0,Energi!D21) -> 0 | E21: 0 | F21: =IF(I8=0,0,Energi!K21) -> 0 | G21: 0 | H21: 0 | K21: Nej | P21: 1 | Q21: 2 | R21: 3 | S21: 4 | T21: 5 | U21: 6 | V21: 7 | W21: 8 | X21: 9 | Y21: 10 | Z21: 11
B22: El för fastighetsdrift | D22: =IF(I8=0,0,Energi!D29) -> 0 | E22: 0 | F22: =IF(I8=0,0,Energi!K29) -> 0 | G22: 0 | H22: 0 | K22: Enkel
B23: El för verksamhet (brukarel - hushåll eller annat) | D23: =IF(I8=0,0,Energi!D30) -> 0 | E23: 0 | F23: =IF(I8=0,0,Energi!K30) -> 0 | G23: 0 | H23: 0 | K23: Avancerad
B24: Summa Energibehov - värme + el | D24: =SUM(D18:D23) -> 0 | E24: =SUM(E18:E23) -> 0 | F24: =SUM(F18:F23) -> 0 | G24: =SUM(G18:G23) -> 0 | H24: 0 | I24: Värme
B25: Förnybar energitillförsel | D25: =Energi!D26+Energi!D27+Energi!D31 -> 0 | E25: =IF(C8=0,0,D25/C$8) -> 0 | F25: =IF(I8=0,0,Energi!K26+Energi!K27+Energi!K31) -> 0
B26: Köpt energi (externt - klimatpåverkan för köpt och egenproducerad energi) | D26: =D24+D25 -> 0 | E26: =E24+E25 -> 0 | F26: =F24+F25 -> 0
B27: Energanvändning utan brukarel (Energiprestanda) | D27: =D26-D23 -> 0 | E27: =IF(C8=0,0,IF(I15=0,0,D27/C$8)) -> 0 | G27: =SUM(G18:G22) -> 0 | H27: =IF(I8=0,0,G27/I8) -> 0 | K27: Klimatpåv. energi under kalkylper.
B28: Klimatpåv. tillverkn. mtrl kgCO2e/per m2,Atemp,år resp. per m2 | C28: =IF(I8=0,0,ROUND((Konstruktion!K470),1)&" resp. "&ROUND((Konstruktion!K468),0)) -> 0 | D28: Primärenergi, kWh/m2,år | E28: =Energi!G28+1.6*(Energi!G29+Energi!G30) -> 0 | L28: =F26*I37 -> 0
B29: Klimatpåv. totalt (driftenergi + materialtillv.) kgCO2e/m2,år | C29: =Energi!K34+Konstruktion!K470 -> 0 | D29: Klimatpåv. utan brukarel | E29: -
B30: Medel värmegenomgångstal U, W/m2,K | C30: =IF(I8=0,0,Energi!J47) -> 0 | F30: Klimatbelastning totalt utan kolinlagring, ton | G30: =Konstruktion!K466/1000 -> 0
B31: Max värmeeffektbehov, uppv. + vent., W/m2Atemp | C31: =Energi!E52 -> 0 | F31: Klimatbelastning totalt med kolinlagring, ton CO2 | G31: =Konstruktion!K467/1000 -> 0
B32: Spec. värmeförlusttal, W/K | C32: =IF(I8=0,0,Energi!C49) -> 0 | F32: Klimatbelastning tot, kg CO2/pers,år | G32: =IF(I38=0,0,C29*I8/I38) -> 0
B33: Dagar per år med uppvärmningsbehov (transm. + vent.) | C33: ='Energibalans 1'!S49 -> 0 | F33: Klimatbelast. med kolinlagr. kgCO2e/m2 BTA | G33: =Konstruktion!K474 -> 0
B34: Max eleffektbehov för värmepump luft-luft, W/m2,Atemp | C34: =Energi!E59 -> 0 | F34: Datakvalitet för omräkningsfaktorer | G34: =Konstruktion!O467 -> 0
B36: INDATA | C36: Schablonvärden | D36: Nytt värde | E36: Kommentar | F36: Nyckeltal | M36: Inget
B37: Beräkningsperiod, år | C37: 50 | H37: Antal lägenheter | I37: =IF(D37<>"",D37,C37) -> 50 | K37: ja
B38: Antal boende, st | C38: =ROUNDUP(I8/50,0) -> 0 | F38: =IF(I8=0,0,1/IF(D37<>0,D37/$I8,C37/$I8)) -> 0 | G38: m2/boende | I38: 0 | K38: nej
B39: Innetemperatur vintertid, oC | C39: =21 -> 21 | I39: 21 | L39: =IF(D64>0,1/D64,1/C64)-O$2 -> 
B40: Ventilationssystem - S, F, FT, FTX | C40: F | I40: F | K40: =IF(I40="FT",1,0) -> 0 | L40: =IF(D65>0,1/D65,1/C65)-O$2 -> 
B41: Temperaturverkningsgr. om FTX eller VÅV | C41: =IF(OR(C40=L46,D40=L46),0.75,0) -> 0 | I41: 0 | L41: =IF(D66>0,1/D66,1/C66)-O$2 -> 
B42: Ventilation, liter/m2 Atemp,sek | C42: =IF(C40="Självdrag, S",0.3,0.35) -> 0.35 | I42: 0.35 | P42: Ingen
B43: Ventilation läckflöde, liter/m2 Atemp,sek | C43: 0.03 | I43: 0.03 | L43: =Energi!P36 -> Ja | M43: Tilläggsisolering yttervägg | P43: Tilläggsisolering
B44: Internvärme (folk, apparater mm), W/m2 Atemp | C44: =C88 -> 2.4 | I44: 2.4 | J44: fasad | L44: Inget | M44: Tilläggsisolering vind | P44: Inget
B45: Omkrets - invändigt, m | C45: =2*(E8+F8) -> 0 | I45: 0 | L45: S | M45: Fönsterbyte till 3-glas | P45: Byte till 3-glas
B46: Fönsterarea, m2 (inkl. karm och båge) | C46: =IF('4. Dimension'!I17>0,'4. Dimension'!I17,0.15*I8) -> 0 | F46: =IF(I8=0,0,I46/(I46+I47+I48)) -> 0 | G46: =IF(I8=0,0,IF(D46>0,D46/I$8,C46/I$8)) -> 0 | H46: Inkl glasade altandörrar | I46: 0 | J46: =I46+I47+I48 -> 0 | L46: FTX
B47: Ytterdörrsarea, m2 (inkl. karm och båge) | C47: =IF('4. Dimension'!I18>0,'4. Dimension'!I18,0.04*I8) -> 0 | F47: =IF(I8=0,0,I47/(I46+I47+I48)) -> 0 | G47: =IF(I8=0,0,IF(D47>0,D47/I$8,C47/I$8)) -> 0 | I47: 0 | L47: F | M47: Fönsterbyte tillenergiglas | P47: Byte till energiglas
B48: Yttervägg (exkl fönster, dörrar, källare), m2 | C48: =IF(C8=0,0,(IF('4. Dimension'!I15>0,'4. Dimension'!I15,I56-Basdata!I46-Basdata!I47))) -> 0 | F48: =IF(I8=0,0,(I48+I46+I47+I51)/$I$8) -> 0 | G48: klimatskal mot luft/Atemp | I48: 0 | L48: FT
B49: Fasadarea mot söder (yttervägg + fönster + dörrrar) | C49: =D8*F8*I60 -> 0 | I49: 0 | L49: VÅV | O49: Fjärrvärme - Gävle
B50: Mellanbjälklag, m2 | C50: =IF(C8=0,0,E8*F8) -> 0 | I50: 0
B51: Vindsbjälklag, m2 | C51: =IF(I8=0,0,IF('4. Dimension'!E8>0,'4. Dimension'!E8,I8/D8)) -> 0 | I51: 0 | O51: Fjärrvärme - Sollentuna
B52: Taklutning, grader | C52: =IF(I8=0,0,IF('4. Dimension'!E36>0,'4. Dimension'!E36,26.6)) -> 0 | I52: 0 | L52: ='Energi em'!A5 -> Elektricitet - Europeisk mix | M52: 0 | O52: Fjärrvärme - Stockholm
B53: Yttertak, m2 | C53: =IF('4. Dimension'!E9>0,'4. Dimension'!E9,I51/COS(I52*PI()/180)*1.08) -> 0 | I53: 0 | L53: ='Energi em'!A7 -> Elektricitet - Lokal | M53: 20 | O53: Naturgas
B54: Taksprång, m2 | C54: =0.08*I53 -> 0 | I54: =IF(D54<>"",D54,C54) -> 0 | L54: ='Energi em'!A8 -> Elektricitet - Nordisk mix | M54: 45 | O54: Olja
B55: Grundplatta mot mark (bottenbjälklag), m2 | C55: =IF(I8=0,0,IF('4. Dimension'!E7>0,'4. Dimension'!E7,E8*F8+4*IF(Konstruktion!C88>0,Konstruktion!C88/1000,0.35))) -> 0 | F55: =IF(I8=0,0,(IF(D55<>0,D54,C55)+IF(D56<>0,D55,C56))/I8) -> 0 | G55: byggnadsskal mot mark/Atemp | I55: 0 | L55: ='Energi em'!A9 -> Elektricitet - nästan CO2 fri | O55: Solfångare
B56: Fasadarea (utvändig mot luft), m2 | C56: =J10*J11 -> 0 | I56: 0 | L56: ='Energi em'!A10 -> Elektricitet - Solceller kisel | O56: Torv
B57: Källarvägg mot mark (grundmur), m2 | C57: =J10*G8 -> 0 | I57: 0 | L57: ='Energi em'!A11 -> Elektricitet - Solceller Tunnfilm | O57: Ved
B58: Innervägg 1 lägenhetsskiljande, m2 | C58: =I8*0.2 -> 0 | I58: 0 | L58: ='Energi em'!A12 -> Elektricitet - Svensk elmix
B59: Innervägg 2 inom lägenhet, m2 | C59: =I8*0.3 -> 0 | I59: =IF(D59<>"",D59,C59) -> 0 | L59: ='Energi em'!A13 -> Elektricitet - Vattenkraft
B60: Våningshöjd (golv till golv),m | C60: =IF(C5="Ingen",0,2.4+IF(Konstruktion!C272>0,Konstruktion!C272/1000,0.4)) -> 2.8 | I60: =IF(D60<>"",D60,C60) -> 2.8 | L60: ='Energi em'!A14 -> Elektricitet - vindenergi 2 MW
B61: U-värde - Yttervägg, W/m2,K | C61: =IF(C6="",0,IF(Konstruktion!B200>0,Konstruktion!B200,IF(C$7="Flerbostadshus",VLOOKUP(Z$13,P$14:Z$20,3),VLOOKUP(Z$13,P$6:Z$12,3)))) -> 0 | I61: =IF(D61<>"",D61,C61) -> 0 | L61: ='Energi em'!A15 -> Fjärrvärme - Bollnäs | O61: El - Europeisk mix
B62: U-värde - Yttertak, W/m2,K | C62: =IF(C6="",0,IF(Konstruktion!B142>0,Konstruktion!B142,IF(C$7="Flerbostadshus",VLOOKUP(Z$13,P$14:Z$20,11),VLOOKUP(Z$13,P$6:Z$12,11)))) -> 0 | I62: =IF(D62<>"",D62,C62) -> 0 | J62: =IF(I63=0,I62,IF(I62=0,0,1/(0.5*1/I62+1/I63))) -> 0 | L62: ='Energi em'!A16 -> Fjärrvärme - Falun | O62: El - Nordisk mix
B63: U-värde - Vindsbjälklag, W/m2,K | C63: =IF(C6="",0,IF(Konstruktion!B180>0,Konstruktion!B180,IF(C$7="Flerbostadshus",VLOOKUP(Z$13,P$14:Z$20,5),VLOOKUP(Z$13,P$6:Z$12,5)))) -> 0 | I63: =IF(D63<>"",D63,C63) -> 0 | L63: ='Energi em'!A17 -> Fjärrvärme - Gävle | O63: El - Svensk mix
B64: U-värde - Bottenbjälklag W/m2,K | C64: =IF(C$6="",0,IF(Konstruktion!B181>0,Konstruktion!B181,IF(C$7="Flerbostadshus",VLOOKUP(Z$13,P$14:Z$20,7),VLOOKUP(Z$13,P$6:Z$12,7)))) -> 0 | I64: =IF(D64<>"",D64,C64) -> 0 | L64: ='Energi em'!A18 -> Fjärrvärme - Göteborg | O64: El - Europeisk mix
B65: U-värde - Källarvägg mot mark, W/m2,K | C65: =IF(C$6="",0,IF(Konstruktion!B88>0,Konstruktion!B88,IF(C$7="Flerbostadshus",VLOOKUP(Z$13,P$14:Z$20,10),VLOOKUP(Z$13,P$6:Z$12,10)))) -> 0 | I65: 0 | L65: ='Energi em'!A20 -> Fjärrvärme - Hudiksvall | O65: El - Solceller
B66: U-värde - Fönster, W/m2,K | C66: =IF(C$6="",0,IF(Konstruktion!B366>0,Konstruktion!B366,IF(C$7="Flerbostadshus",VLOOKUP(Z$13,P$14:Z$20,8),VLOOKUP(Z$13,P$6:Z$12,8)))) -> 0 | I66: 0 | L66: ='Energi em'!A21 -> Fjärrvärme - Ljusdal
B67: U-värde - Ytterdörrar, W/m2,K | C67: =IF(C$6="",0,IF(Konstruktion!B405>0,Konstruktion!B405,IF(C$7="Flerbostadshus",VLOOKUP(Z$13,P$14:Z$20,9),VLOOKUP(Z$13,P$6:Z$12,9)))) -> 0 | I67: 0 | L67: ='Energi em'!A22 -> Fjärrvärme - Luleå | N67: Norr schablon = 30%
B68: Köldbryggor, W/oC (default 10%) | C68: 0.1 | I68: 0.1 | L68: ='Energi em'!A23 -> Fjärrvärme - Malmö - residual | N68: Öster schablon = 10%
B69: Volym innanför ytterväggarna, m3 | C69: =IF('4. Dimension'!K34>0,'4. Dimension'!K34,I60*I8) -> 0 | I69: 0 | L69: ='Energi em'!A25 -> Fjärrvärme - Norrköping - residual | N69: Söder schablon = 50%
B70: Omslutande klimatskal invändigt, Aom, m2 | C70: =J13 -> 0 | I70: 0 | L70: ='Energi em'!A27 -> Fjärrvärme - Sandviken | N70: Väster schablon =10%
L71: ='Energi em'!A28 -> Fjärrvärme - Sollentuna
B72: Fönster, detaljerat med karm | C72: Fördelning fönsterarea, % | D72: Ny fördelning, % | E72: Glasandel,% | F72: Glasarea, m2 | G72: Horisontavskärmning | L72: ='Energi em'!A29 -> Fjärrvärme - Stockholm | O72: Tung
B73: Norr | C73: =IF('4. Dimension'!G17>0,'4. Dimension'!G17/'4. Dimension'!I17,0.3) -> 0.3 | G73: 5 | I73: =IF(D73>0,D73,C73) -> 0.3 | J73: =IF(F73>0,F73,I$79) -> 0.8 | K73: =IF(H73>0,H73,G73) -> 5 | L73: ='Energi em'!A30 -> Fjärrvärme - Sundsvall | O73: Medel
B74: Öster | C74: =IF('4. Dimension'!H17>0,'4. Dimension'!H17/'4. Dimension'!I17,0.2) -> 0.2 | G74: 5 | I74: =IF(D74>0,D74,C74) -> 0.2 | J74: =IF(F74>0,F74,I$79) -> 0.8 | K74: =IF(H74>0,H74,G74) -> 5 | L74: ='Energi em'!A31 -> Fjärrvärme - Söderhamn | O74: Lätt
B75: Söder | C75: =IF('4. Dimension'!E17>0,'4. Dimension'!E17/'4. Dimension'!I17,0.3) -> 0.3 | G75: 5 | I75: =IF(D75>0,D75,C75) -> 0.3 | J75: =IF(F75>0,F75,I$79) -> 0.8 | K75: =IF(H75>0,H75,G75) -> 5 | L75: ='Energi em'!A32 -> Fjärrvärme - Umeå
B76: Väster | C76: =IF('4. Dimension'!F17>0,'4. Dimension'!F17/'4. Dimension'!I17,0.2) -> 0.2 | G76: 5 | I76: =IF(D76>0,D76,C76) -> 0.2 | J76: =IF(F76>0,F76,I$79) -> 0.8 | K76: =IF(H76>0,H76,G76) -> 5 | L76: ='Energi em'!A34 -> Fjärrvärme 60% Naturg. 40% VP
B77: Summa | C77: =SUM(C73:C76) -> 1 | F77: =SUM(F73:F76) -> 0 | I77: =IF(E77>0,E77,C77) -> 1 | L77: ='Energi em'!A35 -> Fossilbränsle - eldningsolja
C78: Alla | D78: Alla | E78: Norr % | F78: Öster % | G78: Söder % | H78: Väster % | L78: ='Energi em'!A36 -> Fossilbränsle - kol
B79: Andel glas i fönstren | C79: =IF('4. Dimension'!I102>0,'4. Dimension'!I102,0.8) -> 0.8 | I79: =IF(E77>0,E77,IF(D79>0,D79,C79)) -> 0.8 | L79: ='Energi em'!A37 -> Fossilbränsle - torv
B80: Antal glas i fönstren | C80: =IF(I66<1.8,3,2) -> 3 | I80: =IF(D80>0,D80,C80) -> 3 | L80: ='Energi em'!A38 -> Fossilbränsle -naturgas
B81: G-värde för fönster | C81: =IF(I66<=1,0.57,IF(I66<=1.8,0.6,0.76)) -> 0.57 | I81: 0.57
B82: Andel solstrålning till rum | C82: 0.5 | I82: 0.5 | L82: ='Energi em'!A39 -> Solfångare - plana | N82: Inget | P82: Inget
I83: 0 | L83: ='Energi em'!A40 -> Träbränsle - flis | N83: Solfångare
B84: Internvärme/spillvärme | L84: ='Energi em'!A41 -> Träbränsle - panna 100 kW | N84: Solceller
B85: Värmetillskott apparater, W/m2 | C85: =2.4*K94/K93 -> 2.4 | I85: 2.4 | L85: ='Energi em'!A42 -> 0 | N85: Välj markreflektion (albedo)
B86: Värmetillskott personer, W/m2 | C86: =IF(I8=0,0,I38*80*14/24/I8) -> 0 | I86: 0 | L86: ='Energi em'!A43 -> 0 | N86: 0.2 | P86: sommar | Q86: maj-sep
B87: Värmetillskott annat, W/m2 | C87: 0 | I87: 0 | L87: ='Energi em'!A44 -> 0 | N87: 0.5 | P87: vinter | Q87: nov-april
B88: Värmetillskott Totalt, W/m2 | C88: =SUM(C85:C87) -> 2.4 | I88: 2.4
B89: Byggnadens termiska vikt | C89: Medel | I89: Medel | L89: SKUGGNINGAR | M89: Vänster | N89: Höger
L90: Vertikal avskärmning | M90: 0 | N90: 0
B91: El och vatten | F91: Långsiktigt mål bostäder | L91: Horisontell avskärmning | M91: 0
B92: Varmvatten, kWh/m2,år | C92: =-IF(Basdata!C7="Lokal",0.2,IF(Basdata!C7="Flerbostadshus",1,1))*25 -> -25 | F92: 15 | I92: =IF(D92<0,D92,C92) -> -25 | K92: =I92*I8 -> 0 | L92: Horisontavskärmning | M92: =D106 -> 0
B93: Fastighetsel, kWh/m2,år | C93: =-IF(Basdata!C7="lokal",35,IF(I40=Basdata!L45,12,IF(I40=Basdata!L47,15,IF(I40=Basdata!L48,18,IF(I40=Basdata!L46,20,IF(I40=L49,13,15)))))) -> -15 | F93: 5 | I93: =IF(D93<0,D93,C93) -> -15 | J93: =IF(D93<0,D93,C93) -> -15 | K93: =C93+C94 -> -45
B94: Brukarel, kWh/m2,år | C94: -30 | F94: 10 | I94: =IF(D94="",C94,D94) -> -30 | K94: =IF(D93>0,D93,C93)+IF(D94>0,D94,C94) -> -45 | L94: Medeleffekt vvb | M94: =I92*I8/(365*24) -> 0 | N94: kW
E95: Besparing | J95: Genomsnittlig eleffekt | K95: =K94*1000/365/24 -> -5.136986301 | L95: före ändr
B96: Lokal energitillförsel | C96: Årsvärmefaktor (SCOP) eller höjn. av tillufttemperatur | E96: El | F96: Värme | L96: efter ändr
B97: Bergvärmepump | C97: =IF(I97="ja",4.5,0) -> 0 | E97: =-IF(F97=0,0,F97/C97) -> 0 | F97: =IF(Basdata!I97="ja",-Energi!D$23-Energi!D27,0) -> 0 | I97: =D97 -> 0 | L97: W/m2
B98: Frånluftvärmepump | C98: =IF(I98="ja",2.5,0) -> 0 | E98: =IF(Basdata!I98="ja",F98/(Basdata!C98),0) -> 0 | F98: =IF(Basdata!I98="ja",'Energibalans 1'!S57,0) -> 0 | I98: =D98 -> 0
B99: Luftvärmepump (luft-luft) | C99: =IF(I99="ja",4,0) -> 0 | E99: =IF(Basdata!I99="ja",F99/(Basdata!C99),0) -> 0 | F99: =IF(Basdata!I99="ja",-Energi!D19,0) -> 0 | I99: =D99 -> 0
B100: Markkulvert | C100: =IF(D100="ja",5,0) -> 0 | E100: =0.1*F100 -> 0 | F100: ='Energibalans 1'!T37 -> 0 | I100: =IF(D100="ja","ja","nej") -> nej
E101: =SUM(E97:E100) -> 0 | F101: =SUM(F97:F100) -> 0
B103: Solfångare (varmvatten), solceller (el) - behövs noggrannare beräkning. Använd SITIS-programmet (www.ecoeffect.se) | L103: Invändiga mått | O103: Solvärme | P103: kWh/m2,år
C104: Lutning
C105: Orientering (Ö=90;S=180;V=270) | L105: L=längd | N105: Globalstrålning | O105: =(IF(C5="Gävle",Klimatdata!R87,IF(C5="Göteborg",Klimatdata!R36,IF(C5="Jönköping",Klimatdata!R48,IF(C5="Kalmar",Klimatdata!R24,IF(C5="Kiruna",Klimatdata!R135,IF(C5="Ljusdal",Klimatdata!R99,IF(C5="Luleå",Klimatdata!R123,IF(C5="Malmö",Klimatdata!R12,IF(C5="Stockholm",Klimatdata!R60,IF(C5="Västerås",Klimatdata!R73,IF(C5="Östersund",Klimatdata!R111,0)))))))))))) -> 0 | P105: kWh/m2,år
C106: Horisontavskärmning | E106: El | F106: Värme | L106: B=bredd | N106: Prod vv | O106: =D107*O105*0.35 -> 0 | P106: kWh/m2,år
B107: Solfångare mot söder | C107: Area, m2 | F107: =D107*O105*0.35 -> 0 | G107: Max yta | H107: =IF(O105=0,0,-O107*0.5/(O105*0.35)) -> 0 | I107: =IF(D107>0,"ja","nej") -> nej | L107: n=antal vån | N107: Max | O107: =I92*C8*0.5 -> 0
B108: Solceller mot söder | C108: Area, m2 | E108: =IF(D108>0,D108,0)*(IF(C5="Gävle",Klimatdata!R87,IF(C5="Göteborg",Klimatdata!R36,IF(C5="Jönköping",Klimatdata!R48,IF(C5="Kalmar",Klimatdata!R24,IF(C5="Kiruna",Klimatdata!R135,IF(C5="Ljusdal",Klimatdata!R99,IF(C5="Luleå",Klimatdata!R123,IF(C5="Malmö",Klimatdata!R12,IF(C5="Stockholm",Klimatdata!R60,IF(C5="Västerås",Klimatdata!R73,IF(C5="Östersund",Klimatdata!R111,0))))))))))))*0.12 -> 0 | G108: Total takyta | H108: =INT(IF(D53>0,D53,C53)) -> 0 | I108: =IF(D108>0,"ja","nej") -> nej | L108: hv=våningshöjd
B109: Vindturbin | C109: Diameter turbin, m | E109: =(I109/2)*(I109/2)*PI()*200 -> 0 | I109: =IF(D109>0,D109,IF(H109>0,H109,0)) -> 0 | L109: H=hushöjd=n*hv | N109: B*L*n
E110: =SUM(E107:E109) -> 0 | F110: =SUM(F107:F109) -> 0 | L110: A=Atemp | N110: 2*(L*B)+2*(L+B)*H
L111: Y=area | N111: B*L*H
L112: V=volym
B113: Anteckningar | L113: KUB

Sheet Konstruktion
A1: Byggnadskonstruktion - inmatningsblad (OBS! Behövs fler rader - lägg in material under "Övriga konstruktioner, detaljer" (rad 410) eller eller "Utaför klimatskalet" (rad449). Annars kommer du radera oönskade rader med knappen "Rensa inmatning".
B2: Atemp | C2: =Basdata!I8 -> 0 | E2: Beräkningstid, år | F2: =IF(Basdata!D37>0,Basdata!D37,Basdata!C37) -> 50 | H2: BTA | I2: =Basdata!H8 -> 0
V3: Window | W3: kg/m3 | X3: U-value
A4: Inlagring i träprodukter kg CO2-ekv/kg granvirke | R4: vikt | S4: Klimatbelastning | T4: Kolinlagrong | U4: Belastning
A5: Källare eller bottenvåning mot mark | R5: kg | S5: kg CO2 equiv | U5: Andel, %
A6: A | D6: Andel av bv. | J6: Area våningsplan, m2 | K6: =Basdata!I$50 -> 0 | Q6: Grund/källare | R6: =I53+I88 -> 0 | S6: =K53+K88 -> 0 | T6: =L53+L88 -> 0 | U6: =S6/S$16 ->  | V6: 1 Glas | W6: 2600 | X6: 2.9
A7: Skikt nr inifrån och ut | B7: Material | C7: Tjocklek mm | D7: Andel av skikt | E7: Avskriv-ningstid | F7: Återvin-ning | G7: Area, m2 direkt | H7: Volym, m3 | I7: Vikt, kg (inkl.spill) | J7: Värmemotstånd m2 K/W | K7: Klimatpåv. kg CO2 ekv. | L7: Kolinlagr. i trä, kgCO2ekv | M7: Data-kvalitet | N7: KOMMENTAR | O7: Data-kvalitet | Q7: Yttertak | R7: =I142 -> 0 | S7: =K142 -> 0 | T7: =L142 -> 0 | U7: =S7/S$16 ->  | V7: 3 Glas | W7: =2600*3 -> 7800
H8: =IF(G8>0,G8*C8/1000,C8*D8*C$6*K$6/1000) -> 0 | I8: =IF(B8="Luftspalt",0,IF(B8>0,H8*VLOOKUP(B8,Data,2,FALSE)*(1+VLOOKUP(B8,Material!B$5:L$125,6)),0)) -> 0 | J8: =IF(B8="Ground",2.5,IF(B8=0,0,(1/VLOOKUP(B8,Data,3,FALSE))*IF(G8>0,H8/G8,C8/1000*D8))) -> 0 | K8: =-IF(C8>0,I8*VLOOKUP(B8,Mtrl_emission,20,FALSE),0)*$F$2/IF(E8>0,E8,$F$2) -> 0 | L8: =I8*IF(I8=0,0,VLOOKUP(B8,'Mtrl em'!B$5:Z$124,24)*IF(E8="",I$473,IF(E8>=50,Avskrivningstider!G$5,IF(E8>=40,Avskrivningstider!G$6,IF(E8>=20,Avskrivningstider!G$7,Avskrivningstider!G$13))))) -> 0 | M8: =IF(B8="",0,VLOOKUP(B8,Mtrl_emission,23)) -> 0 | O8: =K8*M8 -> 0 | Q8: Vindsbjälklag | R8: =I179 -> 0 | S8: =K179 -> 0 | T8: =L179 -> 0 | V8: 4 Glas | W8: =2600*4 -> 10400
H9: =IF(G9>0,G9*C9/1000,C9*D9*C$6*K$6/1000) -> 0 | I9: =IF(B9="Luftspalt",0,IF(B9>0,H9*VLOOKUP(B9,Data,2,FALSE)*(1+VLOOKUP(B9,Material!B$5:L$125,6)),0)) -> 0 | J9: =IF(B9="Ground",2.5,IF(B9=0,0,(1/VLOOKUP(B9,Data,3,FALSE))*IF(G9>0,H9/G9,C9/1000*D9))) -> 0 | K9: 0 | L9: =I9*IF(I9=0,0,VLOOKUP(B9,'Mtrl em'!B$5:Z$124,24)*IF(E9="",I$473,IF(E9>=50,Avskrivningstider!G$5,IF(E9>=40,Avskrivningstider!G$6,IF(E9>=20,Avskrivningstider!G$7,Avskrivningstider!G$13))))) -> 0 | M9: 0 | O9: =K9*M9 -> 0 | Q9: Ytterväggar | R9: =I241 -> 0 | S9: =K241 -> 0 | T9: =L241 -> 0
H10: =IF(G10>0,G10*C10/1000,C10*D10*C$6*K$6/1000) -> 0 | I10: =IF(B10="Luftspalt",0,IF(B10>0,H10*VLOOKUP(B10,Data,2,FALSE)*(1+VLOOKUP(B10,Material!B$5:L$125,6)),0)) -> 0 | J10: 0 | K10: =-IF(C10>0,I10*VLOOKUP(B10,Mtrl_emission,20,FALSE),0)*$F$2/IF(E10>0,E10,$F$2) -> 0 | L10: =I10*IF(I10=0,0,VLOOKUP(B10,'Mtrl em'!B$5:Z$124,24)*IF(E10="",I$473,IF(E10>=50,Avskrivningstider!G$5,IF(E10>=40,Avskrivningstider!G$6,IF(E10>=20,Avskrivningstider!G$7,Avskrivningstider!G$13))))) -> 0 | M10: 0 | O10: 0 | Q10: Mellanbjälklag | R10: =I272 -> 0 | S10: =K272 -> 0 | T10: =L272 -> 0
H11: 0 | I11: =IF(B11="Luftspalt",0,IF(B11>0,H11*VLOOKUP(B11,Data,2,FALSE)*(1+VLOOKUP(B11,Material!B$5:L$125,6)),0)) -> 0 | J11: 0 | K11: 0 | L11: =I11*IF(I11=0,0,VLOOKUP(B11,'Mtrl em'!B$5:Z$124,24)*IF(E11="",I$473,IF(E11>=50,Avskrivningstider!G$5,IF(E11>=40,Avskrivningstider!G$6,IF(E11>=20,Avskrivningstider!G$7,Avskrivningstider!G$13))))) -> 0 | M11: 0 | O11: 0 | Q11: Innerväggar | R11: =I329 -> 0 | S11: =K329 -> 0 | T11: =L329 -> 0
H12: 0 | I12: =IF(B12="Luftspalt",0,IF(B12>0,H12*VLOOKUP(B12,Data,2,FALSE)*(1+VLOOKUP(B12,Material!B$5:L$125,6)),0)) -> 0 | J12: 0 | K12: 0 | L12: =I12*IF(I12=0,0,VLOOKUP(B12,'Mtrl em'!B$5:Z$124,24)*IF(E12="",I$473,IF(E12>=50,Avskrivningstider!G$5,IF(E12>=40,Avskrivningstider!G$6,IF(E12>=20,Avskrivningstider!G$7,Avskrivningstider!G$13))))) -> 0 | M12: 0 | O12: 0 | Q12: Fönster | R12: =I366 -> 0 | S12: =K366 -> 0 | T12: =L366 -> 0 | V12: 2700
H13: 0 | I13: =IF(B13="Luftspalt",0,IF(B13>0,H13*VLOOKUP(B13,Data,2,FALSE)*(1+VLOOKUP(B13,Material!B$5:L$125,6)),0)) -> 0 | J13: 0 | K13: 0 | L13: =I13*IF(I13=0,0,VLOOKUP(B13,'Mtrl em'!B$5:Z$124,24)*IF(E13="",I$473,IF(E13>=50,Avskrivningstider!G$5,IF(E13>=40,Avskrivningstider!G$6,IF(E13>=20,Avskrivningstider!G$7,Avskrivningstider!G$13))))) -> 0 | M13: 0 | O13: 0 | Q13: Dörrar | R13: =I404 -> 0 | S13: =K404 -> 0 | T13: =L404 -> 0
H14: 0 | I14: =IF(B14="Luftspalt",0,IF(B14>0,H14*VLOOKUP(B14,Data,2,FALSE)*(1+VLOOKUP(B14,Material!B$5:L$125,6)),0)) -> 0 | J14: 0 | K14: 0 | L14: =I14*IF(I14=0,0,VLOOKUP(B14,'Mtrl em'!B$5:Z$124,24)*IF(E14="",I$473,IF(E14>=50,Avskrivningstider!G$5,IF(E14>=40,Avskrivningstider!G$6,IF(E14>=20,Avskrivningstider!G$7,Avskrivningstider!G$13))))) -> 0 | M14: 0 | O14: 0 | Q14: Övrigt | R14: =I443 -> 0 | S14: =K443 -> 0 | T14: =L443 -> 0
H15: 0 | I15: =IF(B15="Luftspalt",0,IF(B15>0,H15*VLOOKUP(B15,Data,2,FALSE)*(1+VLOOKUP(B15,Material!B$5:L$125,6)),0)) -> 0 | J15: 0 | K15: 0 | L15: =I15*IF(I15=0,0,VLOOKUP(B15,'Mtrl em'!B$5:Z$124,24)*IF(E15="",I$473,IF(E15>=50,Avskrivningstider!G$5,IF(E15>=40,Avskrivningstider!G$6,IF(E15>=20,Avskrivningstider!G$7,Avskrivningstider!G$13))))) -> 0 | M15: 0 | O15: 0 | Q15: Balkonger | R15: =I465 -> 0 | S15: =K465 -> 0 | T15: =L465 -> 0 | V15: Övergångasmotstånd | Y15: mi+mu
H16: 0 | I16: =IF(B16="Luftspalt",0,IF(B16>0,H16*VLOOKUP(B16,Data,2,FALSE)*(1+VLOOKUP(B16,Material!B$5:L$125,6)),0)) -> 0 | J16: 0 | K16: 0 | L16: =I16*IF(I16=0,0,VLOOKUP(B16,'Mtrl em'!B$5:Z$124,24)*IF(E16="",I$473,IF(E16>=50,Avskrivningstider!G$5,IF(E16>=40,Avskrivningstider!G$6,IF(E16>=20,Avskrivningstider!G$7,Avskrivningstider!G$13))))) -> 0 | M16: 0 | O16: 0 | Q16: Summa | R16: =SUM(R6:R15) -> 0 | S16: =SUM(S6:S15) -> 0 | T16: =SUM(T6:T15) -> 0 | U16: =SUM(U6:U15) ->  | V16: Vägg och tak mot det fria | Y16: 0.21
H17: 0 | I17: =IF(B17="Luftspalt",0,IF(B17>0,H17*VLOOKUP(B17,Data,2,FALSE)*(1+VLOOKUP(B17,Material!B$5:L$125,6)),0)) -> 0 | J17: 0 | K17: 0 | L17: =I17*IF(I17=0,0,VLOOKUP(B17,'Mtrl em'!B$5:Z$124,24)*IF(E17="",I$473,IF(E17>=50,Avskrivningstider!G$5,IF(E17>=40,Avskrivningstider!G$6,IF(E17>=20,Avskrivningstider!G$7,Avskrivningstider!G$13))))) -> 0 | M17: 0 | O17: 0 | Q17: Summa per m2 Atemp | R17: =IF($C2=0,0,R16/C2) -> 0 | S17: =IF($C2=0,0,S16/C2) -> 0 | T17: =IF($C2=0,0,T16/C2) -> 0 | V17: Golv- och takbjälklag | Y17: 0.17
H18: 0 | I18: =IF(B18="Luftspalt",0,IF(B18>0,H18*VLOOKUP(B18,Data,2,FALSE)*(1+VLOOKUP(B18,Material!B$5:L$125,6)),0)) -> 0 | J18: 0 | K18: 0 | L18: =I18*IF(I18=0,0,VLOOKUP(B18,'Mtrl em'!B$5:Z$124,24)*IF(E18="",I$473,IF(E18>=50,Avskrivningstider!G$5,IF(E18>=40,Avskrivningstider!G$6,IF(E18>=20,Avskrivningstider!G$7,Avskrivningstider!G$13))))) -> 0 | M18: 0 | O18: 0 | V18: Vägg, tak, golv mot uppvärmd lokal | Y18: 0.35
H19: =IF(G19>0,G19*C19/1000,C19*D19*C$6*K$6/1000) -> 0 | I19: =IF(B19="Luftspalt",0,IF(B19>0,H19*VLOOKUP(B19,Data,2,FALSE)*(1+VLOOKUP(B19,Material!B$5:L$125,6)),0)) -> 0 | J19: =IF(B19="Ground",2.5,IF(B19=0,0,(1/VLOOKUP(B19,Data,3,FALSE))*IF(G19>0,H19/G19,C19/1000*D19))) -> 0 | K19: 0 | L19: =I19*IF(I19=0,0,VLOOKUP(B19,'Mtrl em'!B$5:Z$124,24)*IF(E19="",I$473,IF(E19>=50,Avskrivningstider!G$5,IF(E19>=40,Avskrivningstider!G$6,IF(E19>=20,Avskrivningstider!G$7,Avskrivningstider!G$13))))) -> 0 | M19: =IF(B19="",0,VLOOKUP(B19,Mtrl_emission,23)) -> 0 | O19: 0 | Q19: Väggar o bjälklag, tot | R19: =R9+R10+R11 -> 0 | S19: =S9+S10+S11 -> 0 | T19: 0
A20: U-värde/Tjockl. | B20: =IF(J20=0,0,1/(J20+$Z$17)) -> 0 | C20: =C8+IF(A9=A8,0,C9)+IF(A10=A9,0,C10)+IF(A11=A10,0,C11)+IF(A12=A11,0,C12)+IF(A13=A12,0,C13)+IF(A14=A13,0,C14)+IF(A15=A14,0,C15)+IF(A16=A15,0,C16)+IF(A17=A16,0,C17)+IF(A18=A17,0,C18) -> 0 | G20: Summa | H20: =SUM(H8:H19) -> 0 | I20: =SUM(I8:I19) -> 0 | J20: =SUM(J8:J19) -> 0 | K20: =SUM(K8:K19) -> 0 | L20: =SUM(L8:L19) -> 0 | M20: =IF(K20=0,0,(K8*M8+K9*M9+K10*M10+K11*M11+K12*M12+K13*M13+K14*M14+K15*M15+K16*M16+K17*M17+K19*M18+K18*M19)/K20) -> 0 | N20: Totalt kgCO2 ekv | Q20: -"- per m2 | R20: =R19/$C2 ->  | S20: =S19/$C2 ->  | V20: Luft, volumetrisk värmekapacitet | Y20: 1212 | Z20: J/m3,K
J21: kgCO2 ekv/m2konstr.,år | K21: =IF(K6=0,0,K20/$K6/$F$2) -> 0 | L21: =IF(L6=0,0,L20/$K6/$F$2) -> 0 | N21: kgCO2 ekv/m2konstr.,år | Q21: Andel | R21: =R19/R16 ->  | S21: =S19/S16 ->  | T21: =T19/T16 ->  | V21: Luft, volumetrisk värmekapacitet | Y21: =Y20/3600 -> 0.3366666667 | Z21: Wh/m3,K
J22: kgCO2 ekv/m2 Atemp,år | K22: =IF(C$2=0,0,K20/$C$2/$F$2) -> 0 | L22: =IF(C$2=0,0,L20/$C$2/$F$2) -> 0 | N22: kgCO2 ekv/m2 Atemp,år | V22: 1
A24: B | D24: Andel av bv. | J24: Area våningsplan, m2 | K24: =Basdata!I$50 -> 0
A25: Skikt nr inifrån och ut | B25: Material | C25: Tjocklek mm | D25: Andel av skikt | E25: Avskriv-ningstid | F25: Återvin-ning | G25: Area, m2 | H25: Volym, m3 | I25: Vikt, kg (inkl.spill) | J25: Värmemotstånd m2 K/W | K25: Klimatpåv. kg CO2 ekv. | L25: Kolinlagring kgCO2ekv | M25: Data-kvalitet | N25: Kommentar
H26: =IF(G26>0,G26*C26/1000,C26*D26*C$24*K$24/1000) -> 0 | I26: =IF(B26="Luftspalt",0,IF(B26>0,H26*VLOOKUP(B26,Data,2,FALSE)*(1+VLOOKUP(B26,Material!B$5:L$125,6)),0)) -> 0 | J26: =IF(B26="Ground",2.5,IF(B26=0,0,(1/VLOOKUP(B26,Data,3,FALSE))*IF(G26>0,H26/G26,C26/1000*D26))) -> 0 | K26: =-IF(C26>0,I26*VLOOKUP(B26,Mtrl_emission,20,FALSE),0)*$F$2/IF(E26>0,E26,$F$2) -> 0 | L26: =I26*IF(I26=0,0,VLOOKUP(B26,'Mtrl em'!B$5:Z$124,24)*IF(E26="",I$473,IF(E26>=50,Avskrivningstider!G$5,IF(E26>=40,Avskrivningstider!G$6,IF(E26>=20,Avskrivningstider!G$7,Avskrivningstider!G$13))))) -> 0 | M26: =IF(B26="",0,VLOOKUP(B26,Mtrl_emission,23)) -> 0 | O26: =K26*M26 -> 0
H27: 0 | I27: =IF(B27="Luftspalt",0,IF(B27>0,H27*VLOOKUP(B27,Data,2,FALSE)*(1+VLOOKUP(B27,Material!B$5:L$125,6)),0)) -> 0 | J27: 0 | K27: 0 | L27: =I27*IF(I27=0,0,VLOOKUP(B27,'Mtrl em'!B$5:Z$124,24)*IF(E27="",I$473,IF(E27>=50,Avskrivningstider!G$5,IF(E27>=40,Avskrivningstider!G$6,IF(E27>=20,Avskrivningstider!G$7,Avskrivningstider!G$13))))) -> 0 | M27: 0 | O27: 0
H28: 0 | I28: =IF(B28="Luftspalt",0,IF(B28>0,H28*VLOOKUP(B28,Data,2,FALSE)*(1+VLOOKUP(B28,Material!B$5:L$125,6)),0)) -> 0 | J28: 0 | K28: 0 | L28: =I28*IF(I28=0,0,VLOOKUP(B28,'Mtrl em'!B$5:Z$124,24)*IF(E28="",I$473,IF(E28>=50,Avskrivningstider!G$5,IF(E28>=40,Avskrivningstider!G$6,IF(E28>=20,Avskrivningstider!G$7,Avskrivningstider!G$13))))) -> 0 | M28: 0 | O28: 0
H29: 0 | I29: =IF(B29="Luftspalt",0,IF(B29>0,H29*VLOOKUP(B29,Data,2,FALSE)*(1+VLOOKUP(B29,Material!B$5:L$125,6)),0)) -> 0 | J29: 0 | K29: 0 | L29: =I29*IF(I29=0,0,VLOOKUP(B29,'Mtrl em'!B$5:Z$124,24)*IF(E29="",I$473,IF(E29>=50,Avskrivningstider!G$5,IF(E29>=40,Avskrivningstider!G$6,IF(E29>=20,Avskrivningstider!G$7,Avskrivningstider!G$13))))) -> 0 | M29: 0 | O29: 0
H30: 0 | I30: =IF(B30="Luftspalt",0,IF(B30>0,H30*VLOOKUP(B30,Data,2,FALSE)*(1+VLOOKUP(B30,Material!B$5:L$125,6)),0)) -> 0 | J30: 0 | K30: 0 | L30: =I30*IF(I30=0,0,VLOOKUP(B30,'Mtrl em'!B$5:Z$124,24)*IF(E30="",I$473,IF(E30>=50,Avskrivningstider!G$5,IF(E30>=40,Avskrivningstider!G$6,IF(E30>=20,Avskrivningstider!G$7,Avskrivningstider!G$13))))) -> 0 | M30: 0 | O30: 0 | X30: 2
H31: 0 | I31: =IF(B31="Luftspalt",0,IF(B31>0,H31*VLOOKUP(B31,Data,2,FALSE)*(1+VLOOKUP(B31,Material!B$5:L$125,6)),0)) -> 0 | J31: 0 | K31: 0 | L31: =I31*IF(I31=0,0,VLOOKUP(B31,'Mtrl em'!B$5:Z$124,24)*IF(E31="",I$473,IF(E31>=50,Avskrivningstider!G$5,IF(E31>=40,Avskrivningstider!G$6,IF(E31>=20,Avskrivningstider!G$7,Avskrivningstider!G$13))))) -> 0 | M31: 0 | O31: 0 | X31: 3
H32: 0 | I32: =IF(B32="Luftspalt",0,IF(B32>0,H32*VLOOKUP(B32,Data,2,FALSE)*(1+VLOOKUP(B32,Material!B$5:L$125,6)),0)) -> 0 | J32: 0 | K32: 0 | L32: =I32*IF(I32=0,0,VLOOKUP(B32,'Mtrl em'!B$5:Z$124,24)*IF(E32="",I$473,IF(E32>=50,Avskrivningstider!G$5,IF(E32>=40,Avskrivningstider!G$6,IF(E32>=20,Avskrivningstider!G$7,Avskrivningstider!G$13))))) -> 0 | M32: 0 | O32: 0 | X32: 4
H33: 0 | I33: =IF(B33="Luftspalt",0,IF(B33>0,H33*VLOOKUP(B33,Data,2,FALSE)*(1+VLOOKUP(B33,Material!B$5:L$125,6)),0)) -> 0 | J33: 0 | K33: 0 | L33: =I33*IF(I33=0,0,VLOOKUP(B33,'Mtrl em'!B$5:Z$124,24)*IF(E33="",I$473,IF(E33>=50,Avskrivningstider!G$5,IF(E33>=40,Avskrivningstider!G$6,IF(E33>=20,Avskrivningstider!G$7,Avskrivningstider!G$13))))) -> 0 | M33: 0 | O33: 0 | X33: 5
H34: 0 | I34: =IF(B34="Luftspalt",0,IF(B34>0,H34*VLOOKUP(B34,Data,2,FALSE)*(1+VLOOKUP(B34,Material!B$5:L$125,6)),0)) -> 0 | J34: 0 | K34: 0 | L34: =I34*IF(I34=0,0,VLOOKUP(B34,'Mtrl em'!B$5:Z$124,24)*IF(E34="",I$473,IF(E34>=50,Avskrivningstider!G$5,IF(E34>=40,Avskrivningstider!G$6,IF(E34>=20,Avskrivningstider!G$7,Avskrivningstider!G$13))))) -> 0 | M34: 0 | O34: 0 | X34: 6
H35: 0 | I35: =IF(B35="Luftspalt",0,IF(B35>0,H35*VLOOKUP(B35,Data,2,FALSE)*(1+VLOOKUP(B35,Material!B$5:L$125,6)),0)) -> 0 | J35: 0 | K35: 0 | L35: =I35*IF(I35=0,0,VLOOKUP(B35,'Mtrl em'!B$5:Z$124,24)*IF(E35="",I$473,IF(E35>=50,Avskrivningstider!G$5,IF(E35>=40,Avskrivningstider!G$6,IF(E35>=20,Avskrivningstider!G$7,Avskrivningstider!G$13))))) -> 0 | M35: 0 | O35: 0 | X35: 7
A36: U-värde/Tjockl. | B36: =IF(SUM(J25:J35)=0,0,1/(SUM(J25:J35)+$Z$17)) -> 0 | C36: =C26+IF(A27=A26,0,C27)+IF(A28=A27,0,C28)+IF(A29=A28,0,C29)+IF(A30=A29,0,C30)+IF(A31=A30,0,C31)+IF(A32=A31,0,C32)+IF(A33=A32,0,C33)+IF(A34=A33,0,C34)+IF(A35=A34,0,C35) -> 0 | G36: Summa | H36: =SUM(H25:H35) -> 0 | I36: =SUM(I26:I35) -> 0 | J36: =SUM(J26:J35) -> 0 | K36: =SUM(K25:K35) -> 0 | L36: =SUM(L25:L35) -> 0 | M36: =IF(K36=0,0,(K26*M26+K27*M27+K28*M28+K29*M29+K30*M30+K31*M31+K32*M32+K33*M33+K35*M34+K34*M35)/K36) -> 0 | N36: Totalt kgCO2 ekv | X36: 8
J37: kgCO2 ekv/m2konstr.,år | K37: =IF(K24=0,0,K36/$K24/$F$2) -> 0 | L37: =IF(L36=0,0,L36/$K24/$F$2) -> 0 | N37: kgCO2 ekv/m2konstr.,år | X37: 9
J38: kgCO2 ekv/m2 Atemp,år | K38: =IF(C$2=0,0,K36/C$2/F$2) -> 0 | L38: =IF(C$2=0,0,L36/$C$2/$F$2) -> 0 | N38: kgCO2 ekv/m2 Atemp,år | X38: 10
A40: C | D40: Andel av bv. | J40: Area våningsplan, m2 | K40: =Basdata!I$50 -> 0
A41: Skikt nr inifrån och ut | B41: Material | C41: Tjocklek mm | D41: Andel av skikt/yta | E41: Avskriv-ningstid | F41: Återvin-ning | G41: Area, m2 | H41: Volym, m3 | I41: Vikt, kg (inkl.spill) | J41: Värmemotstånd m2 K/W | K41: Klimatpåv. kg CO2 ekv. | L41: Kolinlagring kgCO2ekv | M41: Data-kvalitet | N41: Kommentar
H42: =IF(G42>0,G42*C42/1000,C42*D42*C$40*K$40/1000) -> 0 | I42: =IF(B42="Luftspalt",0,IF(B42>0,H42*VLOOKUP(B42,Data,2,FALSE)*(1+VLOOKUP(B42,Material!B$5:L$125,6)),0)) -> 0 | J42: =IF(B42="Ground",2.5,IF(B42=0,0,(1/VLOOKUP(B42,Data,3,FALSE))*IF(G42>0,H42/G42,C42/1000*D42))) -> 0 | K42: =-IF(C42>0,I42*VLOOKUP(B42,Mtrl_emission,20,FALSE),0)*$F$2/IF(E42>0,E42,$F$2) -> 0 | L42: =I42*IF(I42=0,0,VLOOKUP(B42,'Mtrl em'!B$5:Z$124,24)*IF(E42="",I$473,IF(E42>=50,Avskrivningstider!G$5,IF(E42>=40,Avskrivningstider!G$6,IF(E42>=20,Avskrivningstider!G$7,Avskrivningstider!G$13))))) -> 0 | M42: =IF(B42="",0,VLOOKUP(B42,Mtrl_emission,23)) -> 0 | O42: 0
H43: 0 | I43: =IF(B43="Luftspalt",0,IF(B43>0,H43*VLOOKUP(B43,Data,2,FALSE)*(1+VLOOKUP(B43,Material!B$5:L$125,6)),0)) -> 0 | J43: 0 | K43: 0 | L43: =I43*IF(I43=0,0,VLOOKUP(B43,'Mtrl em'!B$5:Z$124,24)*IF(E43="",I$473,IF(E43>=50,Avskrivningstider!G$5,IF(E43>=40,Avskrivningstider!G$6,IF(E43>=20,Avskrivningstider!G$7,Avskrivningstider!G$13))))) -> 0 | M43: 0 | O43: 0
H44: 0 | I44: =IF(B44="Luftspalt",0,IF(B44>0,H44*VLOOKUP(B44,Data,2,FALSE)*(1+VLOOKUP(B44,Material!B$5:L$125,6)),0)) -> 0 | J44: 0 | K44: 0 | L44: =I44*IF(I44=0,0,VLOOKUP(B44,'Mtrl em'!B$5:Z$124,24)*IF(E44="",I$473,IF(E44>=50,Avskrivningstider!G$5,IF(E44>=40,Avskrivningstider!G$6,IF(E44>=20,Avskrivningstider!G$7,Avskrivningstider!G$13))))) -> 0 | M44: 0 | O44: 0
H45: 0 | I45: =IF(B45="Luftspalt",0,IF(B45>0,H45*VLOOKUP(B45,Data,2,FALSE)*(1+VLOOKUP(B45,Material!B$5:L$125,6)),0)) -> 0 | J45: 0 | K45: 0 | L45: =I45*IF(I45=0,0,VLOOKUP(B45,'Mtrl em'!B$5:Z$124,24)*IF(E45="",I$473,IF(E45>=50,Avskrivningstider!G$5,IF(E45>=40,Avskrivningstider!G$6,IF(E45>=20,Avskrivningstider!G$7,Avskrivningstider!G$13))))) -> 0 | M45: 0 | O45: 0
H46: 0 | I46: =IF(B46="Luftspalt",0,IF(B46>0,H46*VLOOKUP(B46,Data,2,FALSE)*(1+VLOOKUP(B46,Material!B$5:L$125,6)),0)) -> 0 | J46: 0 | K46: 0 | L46: =I46*IF(I46=0,0,VLOOKUP(B46,'Mtrl em'!B$5:Z$124,24)*IF(E46="",I$473,IF(E46>=50,Avskrivningstider!G$5,IF(E46>=40,Avskrivningstider!G$6,IF(E46>=20,Avskrivningstider!G$7,Avskrivningstider!G$13))))) -> 0 | M46: 0 | O46: 0
H47: 0 | I47: =IF(B47="Luftspalt",0,IF(B47>0,H47*VLOOKUP(B47,Data,2,FALSE)*(1+VLOOKUP(B47,Material!B$5:L$125,6)),0)) -> 0 | J47: 0 | K47: 0 | L47: =I47*IF(I47=0,0,VLOOKUP(B47,'Mtrl em'!B$5:Z$124,24)*IF(E47="",I$473,IF(E47>=50,Avskrivningstider!G$5,IF(E47>=40,Avskrivningstider!G$6,IF(E47>=20,Avskrivningstider!G$7,Avskrivningstider!G$13))))) -> 0 | M47: 0 | O47: 0
H48: 0 | I48: =IF(B48="Luftspalt",0,IF(B48>0,H48*VLOOKUP(B48,Data,2,FALSE)*(1+VLOOKUP(B48,Material!B$5:L$125,6)),0)) -> 0 | J48: 0 | K48: 0 | L48: =I48*IF(I48=0,0,VLOOKUP(B48,'Mtrl em'!B$5:Z$124,24)*IF(E48="",I$473,IF(E48>=50,Avskrivningstider!G$5,IF(E48>=40,Avskrivningstider!G$6,IF(E48>=20,Avskrivningstider!G$7,Avskrivningstider!G$13))))) -> 0 | M48: 0 | O48: 0
H49: 0 | I49: =IF(B49="Luftspalt",0,IF(B49>0,H49*VLOOKUP(B49,Data,2,FALSE)*(1+VLOOKUP(B49,Material!B$5:L$125,6)),0)) -> 0 | J49: 0 | K49: 0 | L49: =I49*IF(I49=0,0,VLOOKUP(B49,'Mtrl em'!B$5:Z$124,24)*IF(E49="",I$473,IF(E49>=50,Avskrivningstider!G$5,IF(E49>=40,Avskrivningstider!G$6,IF(E49>=20,Avskrivningstider!G$7,Avskrivningstider!G$13))))) -> 0 | M49: 0 | O49: 0
H50: 0 | I50: =IF(B50="Luftspalt",0,IF(B50>0,H50*VLOOKUP(B50,Data,2,FALSE)*(1+VLOOKUP(B50,Material!B$5:L$125,6)),0)) -> 0 | J50: 0 | K50: 0 | L50: =I50*IF(I50=0,0,VLOOKUP(B50,'Mtrl em'!B$5:Z$124,24)*IF(E50="",I$473,IF(E50>=50,Avskrivningstider!G$5,IF(E50>=40,Avskrivningstider!G$6,IF(E50>=20,Avskrivningstider!G$7,Avskrivningstider!G$13))))) -> 0 | M50: 0 | O50: 0
H51: 0 | I51: =IF(B51="Luftspalt",0,IF(B51>0,H51*VLOOKUP(B51,Data,2,FALSE)*(1+VLOOKUP(B51,Material!B$5:L$125,6)),0)) -> 0 | J51: 0 | K51: 0 | L51: =I51*IF(I51=0,0,VLOOKUP(B51,'Mtrl em'!B$5:Z$124,24)*IF(E51="",I$473,IF(E51>=50,Avskrivningstider!G$5,IF(E51>=40,Avskrivningstider!G$6,IF(E51>=20,Avskrivningstider!G$7,Avskrivningstider!G$13))))) -> 0 | M51: 0 | O51: 0
A52: U-värde/Tjockl. | B52: =IF(SUM(J41:J51)=0,0,1/(SUM(J41:J51)+$Z$17)) -> 0 | C52: =C42+IF(A43=A42,0,C43)+IF(A44=A43,0,C44)+IF(A45=A44,0,C45)+IF(A46=A45,0,C46)+IF(A47=A46,0,C47)+IF(A48=A47,0,C48)+IF(A49=A48,0,C49)+IF(A50=A49,0,C50)+IF(A51=A50,0,C51) -> 0 | G52: Summa | H52: =SUM(H41:H51) -> 0 | I52: =SUM(I42:I51) -> 0 | J52: =SUM(J42:J51) -> 0 | K52: =SUM(K41:K51) -> 0 | L52: =SUM(L41:L51) -> 0 | M52: =IF(K52=0,0,(K42*M42+K43*M43+K44*M44+K45*M45+K46*M46+K47*M47+K48*M48+K49*M49+K51*M50+K50*M51)/K52) -> 0 | N52: Totalt kgCO2 ekv
A53: U-medel källare | B53: =C6*B20+C24*B36+C40*B52 -> 0 | G53: Totalt källare/grund | H53: =H20+H36+H52 -> 0 | I53: =I20+I36+I52 -> 0 | J53: =J20+J36+J52 -> 0 | K53: =K20+K36+K52 -> 0 | L53: =L20+L36+L52 -> 0 | N53: kgCO2 ekv/m2konstr.,år
J54: kgCO2 ekv/m2konstr.,år | K54: =IF(K40=0,0,K53/K40/$F$2) -> 0 | L54: =IF(K40=0,0,L53/K40/$F$2) -> 0 | N54: kgCO2 ekv/m2 Atemp,år
J55: kgCO2 ekv/m2 Atemp,år | K55: =IF(C$2=0,0,K53/C$2/F$2) -> 0 | L55: =IF(C$2=0,0,L53/$C$2/$F$2) -> 0
A56: Yttervägg källare mot mark
A57: A | C57: 1 | D57: Andel av bv. | J57: Area, m2 | K57: =Basdata!I57 -> 0
A58: Skikt nr inifrån och ut | B58: Material | C58: Tjocklek mm | D58: Andel av skikt | E58: Avskriv-ningstid | F58: Återvin-ning | G58: Area, m2 | H58: Volym, m3 | I58: Vikt, kg (inkl.spill) | J58: Värmemotstånd m2 K/W | K58: kg CO2 ekv. | L58: Kolinlagring kgCO2e | M58: Data-kvalitet | N58: Kommentar
H59: =IF(G59>0,G59*C59/1000,C59*D59)*C$57*K$57/1000 -> 0 | I59: =IF(B59="Luftspalt",0,IF(B59>0,H59*VLOOKUP(B59,Data,2,FALSE)*(1+VLOOKUP(B59,Material!B$5:L$125,6)),0)) -> 0 | J59: =IF(B59="Ground",2.5,IF(B59=0,0,(1/VLOOKUP(B59,Data,3,FALSE))*IF(G59>0,H59/G59,C59/1000*D59))) -> 0 | K59: =-IF(C59>0,I59*VLOOKUP(B59,Mtrl_emission,20,FALSE),0)*$F$2/IF(E59>0,E59,$F$2) -> 0 | L59: =I59*IF(I59=0,0,VLOOKUP(B59,'Mtrl em'!B$5:Z$124,24)*IF(E59="",I$473,IF(E59>=50,Avskrivningstider!G$5,IF(E59>=40,Avskrivningstider!G$6,IF(E59>=20,Avskrivningstider!G$7,Avskrivningstider!G$13))))) -> 0 | M59: =IF(B59="",0,VLOOKUP(B59,Mtrl_emission,23)) -> 0 | O59: 0
H60: =IF(G60>0,G60*C60/1000,C60*D60)*C$57*K$57/1000 -> 0 | I60: =IF(B60="Luftspalt",0,IF(B60>0,H60*VLOOKUP(B60,Data,2,FALSE)*(1+VLOOKUP(B60,Material!B$5:L$125,6)),0)) -> 0 | J60: 0 | K60: 0 | L60: =I60*IF(I60=0,0,VLOOKUP(B60,'Mtrl em'!B$5:Z$124,24)*IF(E60="",I$473,IF(E60>=50,Avskrivningstider!G$5,IF(E60>=40,Avskrivningstider!G$6,IF(E60>=20,Avskrivningstider!G$7,Avskrivningstider!G$13))))) -> 0 | M60: 0 | O60: 0
H61: 0 | I61: =IF(B61="Luftspalt",0,IF(B61>0,H61*VLOOKUP(B61,Data,2,FALSE)*(1+VLOOKUP(B61,Material!B$5:L$125,6)),0)) -> 0 | J61: 0 | K61: 0 | L61: =I61*IF(I61=0,0,VLOOKUP(B61,'Mtrl em'!B$5:Z$124,24)*IF(E61="",I$473,IF(E61>=50,Avskrivningstider!G$5,IF(E61>=40,Avskrivningstider!G$6,IF(E61>=20,Avskrivningstider!G$7,Avskrivningstider!G$13))))) -> 0 | M61: 0 | O61: 0
H62: 0 | I62: =IF(B62="Luftspalt",0,IF(B62>0,H62*VLOOKUP(B62,Data,2,FALSE)*(1+VLOOKUP(B62,Material!B$5:L$125,6)),0)) -> 0 | J62: 0 | K62: 0 | L62: =I62*IF(I62=0,0,VLOOKUP(B62,'Mtrl em'!B$5:Z$124,24)*IF(E62="",I$473,IF(E62>=50,Avskrivningstider!G$5,IF(E62>=40,Avskrivningstider!G$6,IF(E62>=20,Avskrivningstider!G$7,Avskrivningstider!G$13))))) -> 0 | M62: 0 | O62: 0
H63: 0 | I63: =IF(B63="Luftspalt",0,IF(B63>0,H63*VLOOKUP(B63,Data,2,FALSE)*(1+VLOOKUP(B63,Material!B$5:L$125,6)),0)) -> 0 | J63: 0 | K63: 0 | L63: =I63*IF(I63=0,0,VLOOKUP(B63,'Mtrl em'!B$5:Z$124,24)*IF(E63="",I$473,IF(E63>=50,Avskrivningstider!G$5,IF(E63>=40,Avskrivningstider!G$6,IF(E63>=20,Avskrivningstider!G$7,Avskrivningstider!G$13))))) -> 0 | M63: 0 | O63: 0
H64: 0 | I64: =IF(B64="Luftspalt",0,IF(B64>0,H64*VLOOKUP(B64,Data,2,FALSE)*(1+VLOOKUP(B64,Material!B$5:L$125,6)),0)) -> 0 | J64: 0 | K64: 0 | L64: =I64*IF(I64=0,0,VLOOKUP(B64,'Mtrl em'!B$5:Z$124,24)*IF(E64="",I$473,IF(E64>=50,Avskrivningstider!G$5,IF(E64>=40,Avskrivningstider!G$6,IF(E64>=20,Avskrivningstider!G$7,Avskrivningstider!G$13))))) -> 0 | M64: 0 | O64: 0
H65: 0 | I65: =IF(B65="Luftspalt",0,IF(B65>0,H65*VLOOKUP(B65,Data,2,FALSE)*(1+VLOOKUP(B65,Material!B$5:L$125,6)),0)) -> 0 | J65: 0 | K65: 0 | L65: =I65*IF(I65=0,0,VLOOKUP(B65,'Mtrl em'!B$5:Z$124,24)*IF(E65="",I$473,IF(E65>=50,Avskrivningstider!G$5,IF(E65>=40,Avskrivningstider!G$6,IF(E65>=20,Avskrivningstider!G$7,Avskrivningstider!G$13))))) -> 0 | M65: 0 | O65: 0
H66: 0 | I66: =IF(B66="Luftspalt",0,IF(B66>0,H66*VLOOKUP(B66,Data,2,FALSE)*(1+VLOOKUP(B66,Material!B$5:L$125,6)),0)) -> 0 | J66: 0 | K66: 0 | L66: =I66*IF(I66=0,0,VLOOKUP(B66,'Mtrl em'!B$5:Z$124,24)*IF(E66="",I$473,IF(E66>=50,Avskrivningstider!G$5,IF(E66>=40,Avskrivningstider!G$6,IF(E66>=20,Avskrivningstider!G$7,Avskrivningstider!G$13))))) -> 0 | M66: 0 | O66: 0
H67: 0 | I67: =IF(B67="Luftspalt",0,IF(B67>0,H67*VLOOKUP(B67,Data,2,FALSE)*(1+VLOOKUP(B67,Material!B$5:L$125,6)),0)) -> 0 | J67: 0 | K67: 0 | L67: =I67*IF(I67=0,0,VLOOKUP(B67,'Mtrl em'!B$5:Z$124,24)*IF(E67="",I$473,IF(E67>=50,Avskrivningstider!G$5,IF(E67>=40,Avskrivningstider!G$6,IF(E67>=20,Avskrivningstider!G$7,Avskrivningstider!G$13))))) -> 0 | M67: 0 | O67: 0
H68: 0 | I68: =IF(B68="Luftspalt",0,IF(B68>0,H68*VLOOKUP(B68,Data,2,FALSE)*(1+VLOOKUP(B68,Material!B$5:L$125,6)),0)) -> 0 | J68: 0 | K68: 0 | L68: =I68*IF(I68=0,0,VLOOKUP(B68,'Mtrl em'!B$5:Z$124,24)*IF(E68="",I$473,IF(E68>=50,Avskrivningstider!G$5,IF(E68>=40,Avskrivningstider!G$6,IF(E68>=20,Avskrivningstider!G$7,Avskrivningstider!G$13))))) -> 0 | M68: 0 | O68: 0
H69: =IF(B69="Luftspalt",0,IF(C69>0,$K$57*(C69/1000)*D69*VLOOKUP(B69,Data,2,FALSE),0)) -> 0 | I69: =IF(B69="Luftspalt",0,IF(B69>0,H69*VLOOKUP(B69,Data,2,FALSE)*(1+VLOOKUP(B69,Material!B$5:L$125,6)),0)) -> 0 | J69: =IF(B69="Ground",2.5,IF(B69=0,0,(1/VLOOKUP(B69,'Mtrl data'!$B$7:$D$110,3,FALSE))*(C69/1000)*D69)) -> 0 | K69: 0 | L69: =I69*IF(I69=0,0,VLOOKUP(B69,'Mtrl em'!B$5:Z$124,24)*IF(E69="",I$473,IF(E69>=50,Avskrivningstider!G$5,IF(E69>=40,Avskrivningstider!G$6,IF(E69>=20,Avskrivningstider!G$7,Avskrivningstider!G$13))))) -> 0 | M69: 0 | O69: 0
A70: U-värde/Tjockl. | B70: =IF(SUM(J59:J69)=0,0,1/(SUM(J59:J69)+$Z$17)) -> 0 | C70: =C59+IF(A60=A59,0,C60)+IF(A61=A60,0,C61)+IF(A62=A61,0,C62)+IF(A63=A62,0,C63)+IF(A64=A63,0,C64)+IF(A65=A64,0,C65)+IF(A66=A65,0,C66)+IF(A67=A66,0,C67)+IF(A68=A67,0,C68)+IF(A69=A68,0,C69) -> 0 | G70: Summa | H70: =SUM(H59:H69) -> 0 | I70: =SUM(I59:I69) -> 0 | J70: =SUM(J59:J69) -> 0 | K70: =SUM(K59:K69) -> 0 | L70: =SUM(L59:L69) -> 0 | M70: =IF(K70=0,0,(K59*M59+K60*M60+K61*M61+K62*M62+K63*M63+K64*M64+K65*M65+K66*M66+K67*M67+K69*M68+K68*M69)/K70) -> 0 | N70: Totalt kgCO2 ekv
J71: kgCO2 ekv/m2konstr.,år | K71: =IF(K57=0,0,K70/$K57/$F$2) -> 0 | L71: =IF(K57=0,0,L70/$K57/$F$2) -> 0 | N71: kgCO2 ekv/m2konstr.,år
J72: kgCO2 ekv/m2 Atemp,år | K72: =IF(C$2=0,0,K70/$C$2/$F$2) -> 0 | L72: =IF(C$2=0,0,L70/$C$2/$F$2) -> 0 | N72: kgCO2 ekv/m2 Atemp,år
A74: B | D74: Andel av bv. | J74: Area, m2 | K74: =Basdata!I57 -> 0
A75: Skikt nr inifrån och ut | B75: Material | C75: Tjocklek mm | D75: Andel av skikt | E75: Avskriv-ningstid | F75: Återvin-ning | G75: Area, m2 | H75: Volym, m3 | I75: Vikt, kg (inkl.spill) | J75: Värmemotstånd m2 K/W | K75: kg CO2 ekv. | L75: Kolinlagring kgCO2e | M75: Data-kvalitet | N75: Kommentar
H76: =IF(G76>0,G76*C76/1000,C76*D76)*C$74*K$74/1000 -> 0 | I76: =IF(B76="Luftspalt",0,IF(B76>0,H76*VLOOKUP(B76,Data,2,FALSE)*(1+VLOOKUP(B76,Material!B$5:L$125,10)),0)) -> 0 | J76: =IF(B76="Ground",2.5,IF(B76=0,0,(1/VLOOKUP(B76,Data,3,FALSE))*IF(G76>0,H76/G76,C76/1000*D76))) -> 0 | K76: =-IF(C76>0,I76*VLOOKUP(B76,Mtrl_emission,20,FALSE),0)*$F$2/IF(E76>0,E76,$F$2) -> 0 | L76: =I76*IF(I76=0,0,VLOOKUP(B76,'Mtrl em'!B$5:Z$124,24)*IF(E76="",I$473,IF(E76>=50,Avskrivningstider!G$5,IF(E76>=40,Avskrivningstider!G$6,IF(E76>=20,Avskrivningstider!G$7,Avskrivningstider!G$13))))) -> 0 | M76: =IF(B76="",0,VLOOKUP(B76,Mtrl_emission,23)) -> 0 | O76: =K76*M76 -> 0
H77: 0 | I77: =IF(B77="Luftspalt",0,IF(B77>0,H77*VLOOKUP(B77,Data,2,FALSE)*(1+VLOOKUP(B77,Material!B$5:L$125,10)),0)) -> 0 | J77: 0 | K77: 0 | L77: =I77*IF(I77=0,0,VLOOKUP(B77,'Mtrl em'!B$5:Z$124,24)*IF(E77="",I$473,IF(E77>=50,Avskrivningstider!G$5,IF(E77>=40,Avskrivningstider!G$6,IF(E77>=20,Avskrivningstider!G$7,Avskrivningstider!G$13))))) -> 0 | M77: 0 | O77: 0
H78: 0 | I78: =IF(B78="Luftspalt",0,IF(B78>0,H78*VLOOKUP(B78,Data,2,FALSE)*(1+VLOOKUP(B78,Material!B$5:L$125,10)),0)) -> 0 | J78: 0 | K78: 0 | L78: =I78*IF(I78=0,0,VLOOKUP(B78,'Mtrl em'!B$5:Z$124,24)*IF(E78="",I$473,IF(E78>=50,Avskrivningstider!G$5,IF(E78>=40,Avskrivningstider!G$6,IF(E78>=20,Avskrivningstider!G$7,Avskrivningstider!G$13))))) -> 0 | M78: 0 | O78: 0
H79: 0 | I79: =IF(B79="Luftspalt",0,IF(B79>0,H79*VLOOKUP(B79,Data,2,FALSE)*(1+VLOOKUP(B79,Material!B$5:L$125,10)),0)) -> 0 | J79: 0 | K79: 0 | L79: =I79*IF(I79=0,0,VLOOKUP(B79,'Mtrl em'!B$5:Z$124,24)*IF(E79="",I$473,IF(E79>=50,Avskrivningstider!G$5,IF(E79>=40,Avskrivningstider!G$6,IF(E79>=20,Avskrivningstider!G$7,Avskrivningstider!G$13))))) -> 0 | M79: 0 | O79: 0
H80: 0 | I80: =IF(B80="Luftspalt",0,IF(B80>0,H80*VLOOKUP(B80,Data,2,FALSE)*(1+VLOOKUP(B80,Material!B$5:L$125,10)),0)) -> 0 | J80: 0 | K80: 0 | L80: =I80*IF(I80=0,0,VLOOKUP(B80,'Mtrl em'!B$5:Z$124,24)*IF(E80="",I$473,IF(E80>=50,Avskrivningstider!G$5,IF(E80>=40,Avskrivningstider!G$6,IF(E80>=20,Avskrivningstider!G$7,Avskrivningstider!G$13))))) -> 0 | M80: 0 | O80: 0
H81: 0 | I81: =IF(B81="Luftspalt",0,IF(B81>0,H81*VLOOKUP(B81,Data,2,FALSE)*(1+VLOOKUP(B81,Material!B$5:L$125,10)),0)) -> 0 | J81: 0 | K81: 0 | L81: =I81*IF(I81=0,0,VLOOKUP(B81,'Mtrl em'!B$5:Z$124,24)*IF(E81="",I$473,IF(E81>=50,Avskrivningstider!G$5,IF(E81>=40,Avskrivningstider!G$6,IF(E81>=20,Avskrivningstider!G$7,Avskrivningstider!G$13))))) -> 0 | M81: 0 | O81: 0
H82: 0 | I82: =IF(B82="Luftspalt",0,IF(B82>0,H82*VLOOKUP(B82,Data,2,FALSE)*(1+VLOOKUP(B82,Material!B$5:L$125,10)),0)) -> 0 | J82: 0 | K82: 0 | L82: =I82*IF(I82=0,0,VLOOKUP(B82,'Mtrl em'!B$5:Z$124,24)*IF(E82="",I$473,IF(E82>=50,Avskrivningstider!G$5,IF(E82>=40,Avskrivningstider!G$6,IF(E82>=20,Avskrivningstider!G$7,Avskrivningstider!G$13))))) -> 0 | M82: 0 | O82: 0
H83: 0 | I83: =IF(B83="Luftspalt",0,IF(B83>0,H83*VLOOKUP(B83,Data,2,FALSE)*(1+VLOOKUP(B83,Material!B$5:L$125,10)),0)) -> 0 | J83: 0 | K83: 0 | L83: =I83*IF(I83=0,0,VLOOKUP(B83,'Mtrl em'!B$5:Z$124,24)*IF(E83="",I$473,IF(E83>=50,Avskrivningstider!G$5,IF(E83>=40,Avskrivningstider!G$6,IF(E83>=20,Avskrivningstider!G$7,Avskrivningstider!G$13))))) -> 0 | M83: 0 | O83: 0
H84: 0 | I84: =IF(B84="Luftspalt",0,IF(B84>0,H84*VLOOKUP(B84,Data,2,FALSE)*(1+VLOOKUP(B84,Material!B$5:L$125,10)),0)) -> 0 | J84: 0 | K84: 0 | L84: =I84*IF(I84=0,0,VLOOKUP(B84,'Mtrl em'!B$5:Z$124,24)*IF(E84="",I$473,IF(E84>=50,Avskrivningstider!G$5,IF(E84>=40,Avskrivningstider!G$6,IF(E84>=20,Avskrivningstider!G$7,Avskrivningstider!G$13))))) -> 0 | M84: 0 | O84: 0
H85: 0 | I85: =IF(B85="Luftspalt",0,IF(B85>0,H85*VLOOKUP(B85,Data,2,FALSE)*(1+VLOOKUP(B85,Material!B$5:L$125,10)),0)) -> 0 | J85: 0 | K85: 0 | L85: =I85*IF(I85=0,0,VLOOKUP(B85,'Mtrl em'!B$5:Z$124,24)*IF(E85="",I$473,IF(E85>=50,Avskrivningstider!G$5,IF(E85>=40,Avskrivningstider!G$6,IF(E85>=20,Avskrivningstider!G$7,Avskrivningstider!G$13))))) -> 0 | M85: 0 | O85: 0
H86: 0 | I86: =IF(B86="Luftspalt",0,IF(B86>0,H86*VLOOKUP(B86,Data,2,FALSE)*(1+VLOOKUP(B86,Material!B$5:L$125,10)),0)) -> 0 | J86: 0 | K86: 0 | L86: =I86*IF(I86=0,0,VLOOKUP(B86,'Mtrl em'!B$5:Z$124,24)*IF(E86="",I$473,IF(E86>=50,Avskrivningstider!G$5,IF(E86>=40,Avskrivningstider!G$6,IF(E86>=20,Avskrivningstider!G$7,Avskrivningstider!G$13))))) -> 0 | M86: 0 | O86: 0
A87: U-värde/Tjockl. | B87: =IF(SUM(J76:J86)=0,0,1/(SUM(J76:J86)+$Z$17)) -> 0 | C87: =C76+IF(C77=C76,0,C77)+IF(A78=A77,0,C78)+IF(A79=A78,0,C79)+IF(A80=A79,0,C80)+IF(A81=A80,0,C81)+IF(A82=A81,0,C82)+IF(A83=A82,0,C83)+IF(A84=A83,0,C84)+IF(A85=A84,0,C85)+IF(A86=A85,0,C86) -> 0 | G87: Summa | H87: =SUM(H76:H86) -> 0 | I87: =SUM(I76:I86) -> 0 | J87: =SUM(J76:J86) -> 0 | K87: =SUM(K76:K86) -> 0 | L87: =SUM(L76:L86) -> 0 | M87: =IF(K87=0,0,(K76*M76+K77*M77+K78*M78+K79*M79+K80*M80+K81*M81+K82*M82+K83*M83+K84*M84+K86*M85+K85*M86)/K87) -> 0 | N87: Totalt kgCO2 ekv
A88: U-/tjockl-medel | B88: =J70*C57+J88*C74 -> 0 | C88: =C57*C70+C74*C87 -> 0 | G88: Totalt yttervägg källare | H88: =H70+H87 -> 0 | I88: =I70+I87 -> 0 | J88: =J70+J87 -> 0 | K88: =K70+K87 -> 0 | L88: =L70+L87 -> 0 | N88: kgCO2 ekv/m2konstr.,år
J89: kgCO2 ekv/m2konstr.,år | K89: =IF((K57+K74)=0,0,K88/(K57+K74)/$F$2) -> 0 | L89: =IF(D$2=0,0,L88/(K57+K74)/$F$2) -> 0 | N89: kgCO2 ekv/m2 Atemp,år
J90: kgCO2 ekv/m2 Atemp,år | K90: =IF(C$2=0,0,K88/$C$2/$F$2) -> 0 | L90: =IF(C$2=0,0,L88/$C$2/$F$2) -> 0
A91: Yttertak
A92: A | C92: 1 | D92: Andel area | J92: Area, m2 | K92: =Basdata!I53 -> 0
A93: Skikt nr inifrån och ut | B93: Material | C93: Tjocklek mm | D93: Andel av skikt | E93: Avskriv-ningstid | F93: Återvin-ning | G93: Area, m2 | H93: Volym, m3 | I93: Vikt, kg (inkl.spill) | J93: Värmemotstånd m2 K/W | K93: kg CO2 ekv. | L93: Kolinlagring kgCO2e | M93: Data-kvalitet | N93: Kommentar
H94: =IF(G94>0,G94*C94/1000,C94*D94)*C$92*K$92/1000 -> 0 | I94: =IF(B94="Luftspalt",0,IF(B94>0,H94*VLOOKUP(B94,Data,2,FALSE)*(1+VLOOKUP(B94,Material!B$5:L$125,6)),0)) -> 0 | J94: =IF(B94="Ground",2.5,IF(B94=0,0,(1/VLOOKUP(B94,Data,3,FALSE))*IF(G94>0,H94/G94,C94/1000*D94))) -> 0 | K94: =-IF(C94>0,I94*VLOOKUP(B94,Mtrl_emission,20,FALSE),0)*$F$2/IF(E94>0,E94,$F$2) -> 0 | L94: =I94*IF(I94=0,0,VLOOKUP(B94,'Mtrl em'!B$5:Z$124,24)*IF(E94="",I$473,IF(E94>=50,Avskrivningstider!G$5,IF(E94>=40,Avskrivningstider!G$6,IF(E94>=20,Avskrivningstider!G$7,Avskrivningstider!G$13))))) -> 0 | M94: =IF(B94="",0,VLOOKUP(B94,Mtrl_emission,23)) -> 0 | O94: 0
H95: =IF(G95>0,G95*C95/1000,C95*D95)*C$92*K$92/1000 -> 0 | I95: =IF(B95="Luftspalt",0,IF(B95>0,H95*VLOOKUP(B95,Data,2,FALSE)*(1+VLOOKUP(B95,Material!B$5:L$125,6)),0)) -> 0 | J95: 0 | K95: 0 | L95: =I95*IF(I95=0,0,VLOOKUP(B95,'Mtrl em'!B$5:Z$124,24)*IF(E95="",I$473,IF(E95>=50,Avskrivningstider!G$5,IF(E95>=40,Avskrivningstider!G$6,IF(E95>=20,Avskrivningstider!G$7,Avskrivningstider!G$13))))) -> 0 | M95: 0 | O95: 0
H96: 0 | I96: =IF(B96="Luftspalt",0,IF(B96>0,H96*VLOOKUP(B96,Data,2,FALSE)*(1+VLOOKUP(B96,Material!B$5:L$125,6)),0)) -> 0 | J96: 0 | K96: 0 | L96: =I96*IF(I96=0,0,VLOOKUP(B96,'Mtrl em'!B$5:Z$124,24)*IF(E96="",I$473,IF(E96>=50,Avskrivningstider!G$5,IF(E96>=40,Avskrivningstider!G$6,IF(E96>=20,Avskrivningstider!G$7,Avskrivningstider!G$13))))) -> 0 | M96: 0 | O96: 0
H97: 0 | I97: =IF(B97="Luftspalt",0,IF(B97>0,H97*VLOOKUP(B97,Data,2,FALSE)*(1+VLOOKUP(B97,Material!B$5:L$125,6)),0)) -> 0 | J97: 0 | K97: 0 | L97: =I97*IF(I97=0,0,VLOOKUP(B97,'Mtrl em'!B$5:Z$124,24)*IF(E97="",I$473,IF(E97>=50,Avskrivningstider!G$5,IF(E97>=40,Avskrivningstider!G$6,IF(E97>=20,Avskrivningstider!G$7,Avskrivningstider!G$13))))) -> 0 | M97: 0 | O97: 0
H98: 0 | I98: =IF(B98="Luftspalt",0,IF(B98>0,H98*VLOOKUP(B98,Data,2,FALSE)*(1+VLOOKUP(B98,Material!B$5:L$125,6)),0)) -> 0 | J98: 0 | K98: 0 | L98: =I98*IF(I98=0,0,VLOOKUP(B98,'Mtrl em'!B$5:Z$124,24)*IF(E98="",I$473,IF(E98>=50,Avskrivningstider!G$5,IF(E98>=40,Avskrivningstider!G$6,IF(E98>=20,Avskrivningstider!G$7,Avskrivningstider!G$13))))) -> 0 | M98: 0 | O98: 0
H99: 0 | I99: =IF(B99="Luftspalt",0,IF(B99>0,H99*VLOOKUP(B99,Data,2,FALSE)*(1+VLOOKUP(B99,Material!B$5:L$125,6)),0)) -> 0 | J99: 0 | K99: 0 | L99: =I99*IF(I99=0,0,VLOOKUP(B99,'Mtrl em'!B$5:Z$124,24)*IF(E99="",I$473,IF(E99>=50,Avskrivningstider!G$5,IF(E99>=40,Avskrivningstider!G$6,IF(E99>=20,Avskrivningstider!G$7,Avskrivningstider!G$13))))) -> 0 | M99: 0 | O99: 0
H100: 0 | I100: =IF(B100="Luftspalt",0,IF(B100>0,H100*VLOOKUP(B100,Data,2,FALSE)*(1+VLOOKUP(B100,Material!B$5:L$125,6)),0)) -> 0 | J100: 0 | K100: 0 | L100: =I100*IF(I100=0,0,VLOOKUP(B100,'Mtrl em'!B$5:Z$124,24)*IF(E100="",I$473,IF(E100>=50,Avskrivningstider!G$5,IF(E100>=40,Avskrivningstider!G$6,IF(E100>=20,Avskrivningstider!G$7,Avskrivningstider!G$13))))) -> 0 | M100: 0 | O100: 0
H101: 0 | I101: =IF(B101="Luftspalt",0,IF(B101>0,H101*VLOOKUP(B101,Data,2,FALSE)*(1+VLOOKUP(B101,Material!B$5:L$125,6)),0)) -> 0 | J101: 0 | K101: 0 | L101: =I101*IF(I101=0,0,VLOOKUP(B101,'Mtrl em'!B$5:Z$124,24)*IF(E101="",I$473,IF(E101>=50,Avskrivningstider!G$5,IF(E101>=40,Avskrivningstider!G$6,IF(E101>=20,Avskrivningstider!G$7,Avskrivningstider!G$13))))) -> 0 | M101: 0 | O101: 0
H102: 0 | I102: =IF(B102="Luftspalt",0,IF(B102>0,H102*VLOOKUP(B102,Data,2,FALSE)*(1+VLOOKUP(B102,Material!B$5:L$125,6)),0)) -> 0 | J102: 0 | K102: 0 | L102: =I102*IF(I102=0,0,VLOOKUP(B102,'Mtrl em'!B$5:Z$124,24)*IF(E102="",I$473,IF(E102>=50,Avskrivningstider!G$5,IF(E102>=40,Avskrivningstider!G$6,IF(E102>=20,Avskrivningstider!G$7,Avskrivningstider!G$13))))) -> 0 | M102: 0 | O102: 0
H103: 0 | I103: =IF(B103="Luftspalt",0,IF(B103>0,H103*VLOOKUP(B103,Data,2,FALSE)*(1+VLOOKUP(B103,Material!B$5:L$125,6)),0)) -> 0 | J103: 0 | K103: 0 | L103: =I103*IF(I103=0,0,VLOOKUP(B103,'Mtrl em'!B$5:Z$124,24)*IF(E103="",I$473,IF(E103>=50,Avskrivningstider!G$5,IF(E103>=40,Avskrivningstider!G$6,IF(E103>=20,Avskrivningstider!G$7,Avskrivningstider!G$13))))) -> 0 | M103: 0 | O103: 0
H104: 0 | I104: =IF(B104="Luftspalt",0,IF(B104>0,H104*VLOOKUP(B104,Data,2,FALSE)*(1+VLOOKUP(B104,Material!B$5:L$125,6)),0)) -> 0 | J104: 0 | K104: 0 | L104: =I104*IF(I104=0,0,VLOOKUP(B104,'Mtrl em'!B$5:Z$124,24)*IF(E104="",I$473,IF(E104>=50,Avskrivningstider!G$5,IF(E104>=40,Avskrivningstider!G$6,IF(E104>=20,Avskrivningstider!G$7,Avskrivningstider!G$13))))) -> 0 | M104: 0 | O104: 0
H105: =IF(B105="Luftspalt",0,IF(C105>0,$K$92*(C105/1000)*D105*VLOOKUP(B105,Data,2,FALSE),0)) -> 0 | I105: =IF(B105="Luftspalt",0,IF(B105>0,H105*VLOOKUP(B105,Data,2,FALSE)*(1+VLOOKUP(B105,Material!B$5:L$125,6)),0)) -> 0 | J105: =IF(B105="Ground",2.5,IF(B105=0,0,(1/VLOOKUP(B105,'Mtrl data'!$B$7:$D$110,3,FALSE))*(C105/1000)*D105)) -> 0 | K105: 0 | L105: =I105*IF(I105=0,0,VLOOKUP(B105,'Mtrl em'!B$5:Z$124,24)*IF(E105="",I$473,IF(E105>=50,Avskrivningstider!G$5,IF(E105>=40,Avskrivningstider!G$6,IF(E105>=20,Avskrivningstider!G$7,Avskrivningstider!G$13))))) -> 0 | M105: 0 | O105: 0
A106: U-värde/Tjockl. | B106: =IF(J106=0,0,1/(J106+$Z$16)) -> 0 | C106: =C94+IF(A95=A94,0,C95)+IF(A96=A95,0,C96)+IF(A97=A96,0,C97)+IF(A98=A97,0,C98)+IF(A99=A96,0,C99)+IF(A100=A99,0,C100)+IF(A101=A100,0,C101)+IF(A102=A101,0,C102)+IF(A103=A102,0,C103)+IF(A104=A103,0,C104)+IF(A105=A104,0,C105) -> 0 | G106: Summa | H106: =SUM(H94:H105) -> 0 | I106: =SUM(I94:I105) -> 0 | J106: =SUM(J94:J105) -> 0 | K106: =SUM(K94:K105) -> 0 | L106: =SUM(L94:L105) -> 0 | M106: =IF(K106=0,0,(K94*M94+K95*M95+K96*M96+K97*M97+K98*M98+K99*M99+K100*M100+K101*M101+K102*M102+K103*M103+K105*M104+K104*M105)/K106) -> 0
J107: kgCO2 ekv/m2konstr.,år | K107: =IF(K92=0,0,K106/K92/$F$2) -> 0 | L107: =IF(K92=0,0,L106/K92/$F$2) -> 0
J108: kgCO2 ekv/m2 Atemp,år | K108: =IF(C$2=0,0,K106/$C$2/$F$2) -> 0 | L108: =IF(C$2=0,0,L106/$C$2/$F$2) -> 0
A110: B | D110: Andel area | J110: Area, m2 | K110: =C110*Basdata!I53 -> 0
A111: Skikt nr inifrån och ut | B111: Material | C111: Tjocklek mm | D111: Andel av skikt | E111: Avskriv-ningstid | F111: Återvin-ning | G111: Area, m2 | H111: Volym, m3 | I111: Vikt, kg (inkl.spill) | J111: Värmemotstånd m2 K/W | K111: kg CO2 ekv. | L111: Kolinlagring kgCO2e | M111: Data-kvalitet | N111: Kommentar
H112: =IF(G112>0,G112*C112/1000,C112*D112)*C$92*K$92/1000 -> 0 | I112: =IF(B112="Luftspalt",0,IF(B112>0,H112*VLOOKUP(B112,Data,2,FALSE)*(1+VLOOKUP(B112,Material!B$5:L$125,10)),0)) -> 0 | J112: =IF(B112="Ground",2.5,IF(B112=0,0,(1/VLOOKUP(B112,Data,3,FALSE))*IF(G112>0,H112/G112,C112/1000*D112))) -> 0 | K112: =-IF(C112>0,I112*VLOOKUP(B112,Mtrl_emission,20,FALSE),0)*$F$2/IF(E112>0,E112,$F$2) -> 0 | L112: =I112*IF(I112=0,0,VLOOKUP(B112,'Mtrl em'!B$5:Z$124,24)*IF(E112="",I$473,IF(E112>=50,Avskrivningstider!G$5,IF(E112>=40,Avskrivningstider!G$6,IF(E112>=20,Avskrivningstider!G$7,Avskrivningstider!G$13))))) -> 0 | M112: =IF(B112="",0,VLOOKUP(B112,Mtrl_emission,23)) -> 0 | O112: 0
H113: 0 | I113: =IF(B113="Luftspalt",0,IF(B113>0,H113*VLOOKUP(B113,Data,2,FALSE)*(1+VLOOKUP(B113,Material!B$5:L$125,10)),0)) -> 0 | J113: 0 | K113: 0 | L113: =I113*IF(I113=0,0,VLOOKUP(B113,'Mtrl em'!B$5:Z$124,24)*IF(E113="",I$473,IF(E113>=50,Avskrivningstider!G$5,IF(E113>=40,Avskrivningstider!G$6,IF(E113>=20,Avskrivningstider!G$7,Avskrivningstider!G$13))))) -> 0 | M113: 0 | O113: 0
H114: 0 | I114: =IF(B114="Luftspalt",0,IF(B114>0,H114*VLOOKUP(B114,Data,2,FALSE)*(1+VLOOKUP(B114,Material!B$5:L$125,10)),0)) -> 0 | J114: 0 | K114: 0 | L114: =I114*IF(I114=0,0,VLOOKUP(B114,'Mtrl em'!B$5:Z$124,24)*IF(E114="",I$473,IF(E114>=50,Avskrivningstider!G$5,IF(E114>=40,Avskrivningstider!G$6,IF(E114>=20,Avskrivningstider!G$7,Avskrivningstider!G$13))))) -> 0 | M114: 0 | O114: 0
H115: 0 | I115: =IF(B115="Luftspalt",0,IF(B115>0,H115*VLOOKUP(B115,Data,2,FALSE)*(1+VLOOKUP(B115,Material!B$5:L$125,10)),0)) -> 0 | J115: 0 | K115: 0 | L115: =I115*IF(I115=0,0,VLOOKUP(B115,'Mtrl em'!B$5:Z$124,24)*IF(E115="",I$473,IF(E115>=50,Avskrivningstider!G$5,IF(E115>=40,Avskrivningstider!G$6,IF(E115>=20,Avskrivningstider!G$7,Avskrivningstider!G$13))))) -> 0 | M115: 0 | O115: 0
H116: 0 | I116: =IF(B116="Luftspalt",0,IF(B116>0,H116*VLOOKUP(B116,Data,2,FALSE)*(1+VLOOKUP(B116,Material!B$5:L$125,10)),0)) -> 0 | J116: 0 | K116: 0 | L116: =I116*IF(I116=0,0,VLOOKUP(B116,'Mtrl em'!B$5:Z$124,24)*IF(E116="",I$473,IF(E116>=50,Avskrivningstider!G$5,IF(E116>=40,Avskrivningstider!G$6,IF(E116>=20,Avskrivningstider!G$7,Avskrivningstider!G$13))))) -> 0 | M116: 0 | O116: 0
H117: 0 | I117: =IF(B117="Luftspalt",0,IF(B117>0,H117*VLOOKUP(B117,Data,2,FALSE)*(1+VLOOKUP(B117,Material!B$5:L$125,10)),0)) -> 0 | J117: 0 | K117: 0 | L117: =I117*IF(I117=0,0,VLOOKUP(B117,'Mtrl em'!B$5:Z$124,24)*IF(E117="",I$473,IF(E117>=50,Avskrivningstider!G$5,IF(E117>=40,Avskrivningstider!G$6,IF(E117>=20,Avskrivningstider!G$7,Avskrivningstider!G$13))))) -> 0 | M117: 0 | O117: 0
H118: 0 | I118: =IF(B118="Luftspalt",0,IF(B118>0,H118*VLOOKUP(B118,Data,2,FALSE)*(1+VLOOKUP(B118,Material!B$5:L$125,10)),0)) -> 0 | J118: 0 | K118: 0 | L118: =I118*IF(I118=0,0,VLOOKUP(B118,'Mtrl em'!B$5:Z$124,24)*IF(E118="",I$473,IF(E118>=50,Avskrivningstider!G$5,IF(E118>=40,Avskrivningstider!G$6,IF(E118>=20,Avskrivningstider!G$7,Avskrivningstider!G$13))))) -> 0 | M118: 0 | O118: 0
H119: 0 | I119: =IF(B119="Luftspalt",0,IF(B119>0,H119*VLOOKUP(B119,Data,2,FALSE)*(1+VLOOKUP(B119,Material!B$5:L$125,10)),0)) -> 0 | J119: 0 | K119: 0 | L119: =I119*IF(I119=0,0,VLOOKUP(B119,'Mtrl em'!B$5:Z$124,24)*IF(E119="",I$473,IF(E119>=50,Avskrivningstider!G$5,IF(E119>=40,Avskrivningstider!G$6,IF(E119>=20,Avskrivningstider!G$7,Avskrivningstider!G$13))))) -> 0 | M119: 0 | O119: 0
H120: 0 | I120: =IF(B120="Luftspalt",0,IF(B120>0,H120*VLOOKUP(B120,Data,2,FALSE)*(1+VLOOKUP(B120,Material!B$5:L$125,10)),0)) -> 0 | J120: 0 | K120: 0 | L120: =I120*IF(I120=0,0,VLOOKUP(B120,'Mtrl em'!B$5:Z$124,24)*IF(E120="",I$473,IF(E120>=50,Avskrivningstider!G$5,IF(E120>=40,Avskrivningstider!G$6,IF(E120>=20,Avskrivningstider!G$7,Avskrivningstider!G$13))))) -> 0 | M120: 0 | O120: 0
H121: 0 | I121: =IF(B121="Luftspalt",0,IF(B121>0,H121*VLOOKUP(B121,Data,2,FALSE)*(1+VLOOKUP(B121,Material!B$5:L$125,10)),0)) -> 0 | J121: 0 | K121: 0 | L121: =I121*IF(I121=0,0,VLOOKUP(B121,'Mtrl em'!B$5:Z$124,24)*IF(E121="",I$473,IF(E121>=50,Avskrivningstider!G$5,IF(E121>=40,Avskrivningstider!G$6,IF(E121>=20,Avskrivningstider!G$7,Avskrivningstider!G$13))))) -> 0 | M121: 0 | O121: 0
H122: 0 | I122: =IF(B122="Luftspalt",0,IF(B122>0,H122*VLOOKUP(B122,Data,2,FALSE)*(1+VLOOKUP(B122,Material!B$5:L$125,10)),0)) -> 0 | J122: 0 | K122: 0 | L122: =I122*IF(I122=0,0,VLOOKUP(B122,'Mtrl em'!B$5:Z$124,24)*IF(E122="",I$473,IF(E122>=50,Avskrivningstider!G$5,IF(E122>=40,Avskrivningstider!G$6,IF(E122>=20,Avskrivningstider!G$7,Avskrivningstider!G$13))))) -> 0 | M122: 0 | O122: 0
A123: U-värde/Tjockl. | B123: =IF(J123=0,0,1/(J123+$Z$16)) -> 0 | C123: =C115+IF(A116=A115,0,C116)+IF(A117=A116,0,C117)+IF(A118=A117,0,C118)+IF(A119=A118,0,C119)+IF(A120=A117,0,C120)+IF(A121=A120,0,C121)+IF(A122=A121,0,C122) -> 0 | G123: Summa | H123: =SUM(H112:H122) -> 0 | I123: =SUM(I112:I122) -> 0 | J123: =SUM(J112:J122) -> 0 | K123: =SUM(K112:K122) -> 0 | L123: =SUM(L112:L122) -> 0 | M123: =IF(K123=0,0,(K112*M112+K113*M113+K114*M114+K115*M115+K116*M116+K117*M117+K118*M118+K119*M119+K120*M120+K122*M121+K121*M122)/K123) -> 0
J124: kgCO2 ekv/m2konstr.,år | K124: =IF(K110=0,0,K123/K110/$F$2) -> 0 | L124: =IF(K110=0,0,L123/K110/$F$2) -> 0
J125: kgCO2 ekv/m2 Atemp,år | K125: =IF(C$2=0,0,K123/C$2/F$2) -> 0 | L125: =IF(C$2=0,0,L123/$C$2/$F$2) -> 0
A128: C | D128: Andel area | J128: Area, m2 | K128: =C128*Basdata!I53 -> 0
A129: Skikt nr inifrån och ut | B129: Material | C129: Tjocklek mm | D129: Andel av skikt | E129: Avskriv-ningstid | F129: Återvin-ning | G129: Area, m2 | H129: Volym, m3 | I129: Vikt, kg (inkl.spill) | J129: Värmemotstånd m2 K/W | K129: kg CO2 ekv. | L129: Kolinlagring kgCO2e | M129: Data-kvalitet | N129: Kommentar
H130: =IF(G130>0,G130*C130/1000,C130*D130)*C$128*K$128/1000 -> 0 | I130: =IF(B130="Luftspalt",0,IF(B130>0,H130*VLOOKUP(B130,Data,2,FALSE)*(1+VLOOKUP(B130,Material!B$5:L$125,10)),0)) -> 0 | J130: =IF(B130="Ground",2.5,IF(B130=0,0,(1/VLOOKUP(B130,Data,3,FALSE))*IF(G130>0,H130/G130,C130/1000*D130))) -> 0 | K130: =-IF(C130>0,I130*VLOOKUP(B130,Mtrl_emission,20,FALSE),0)*$F$2/IF(E130>0,E130,$F$2) -> 0 | L130: =I130*IF(I130=0,0,VLOOKUP(B130,'Mtrl em'!B$5:Z$124,24)*IF(E130="",I$473,IF(E130>=50,Avskrivningstider!G$5,IF(E130>=40,Avskrivningstider!G$6,IF(E130>=20,Avskrivningstider!G$7,Avskrivningstider!G$13))))) -> 0 | M130: =IF(B130="",0,VLOOKUP(B130,Mtrl_emission,23)) -> 0 | O130: 0
H131: 0 | I131: =IF(B131="Luftspalt",0,IF(B131>0,H131*VLOOKUP(B131,Data,2,FALSE)*(1+VLOOKUP(B131,Material!B$5:L$125,10)),0)) -> 0 | J131: 0 | K131: 0 | L131: =I131*IF(I131=0,0,VLOOKUP(B131,'Mtrl em'!B$5:Z$124,24)*IF(E131="",I$473,IF(E131>=50,Avskrivningstider!G$5,IF(E131>=40,Avskrivningstider!G$6,IF(E131>=20,Avskrivningstider!G$7,Avskrivningstider!G$13))))) -> 0 | M131: 0 | O131: 0
H132: 0 | I132: =IF(B132="Luftspalt",0,IF(B132>0,H132*VLOOKUP(B132,Data,2,FALSE)*(1+VLOOKUP(B132,Material!B$5:L$125,10)),0)) -> 0 | J132: 0 | K132: 0 | L132: =I132*IF(I132=0,0,VLOOKUP(B132,'Mtrl em'!B$5:Z$124,24)*IF(E132="",I$473,IF(E132>=50,Avskrivningstider!G$5,IF(E132>=40,Avskrivningstider!G$6,IF(E132>=20,Avskrivningstider!G$7,Avskrivningstider!G$13))))) -> 0 | M132: 0 | O132: 0
H133: 0 | I133: =IF(B133="Luftspalt",0,IF(B133>0,H133*VLOOKUP(B133,Data,2,FALSE)*(1+VLOOKUP(B133,Material!B$5:L$125,10)),0)) -> 0 | J133: 0 | K133: 0 | L133: =I133*IF(I133=0,0,VLOOKUP(B133,'Mtrl em'!B$5:Z$124,24)*IF(E133="",I$473,IF(E133>=50,Avskrivningstider!G$5,IF(E133>=40,Avskrivningstider!G$6,IF(E133>=20,Avskrivningstider!G$7,Avskrivningstider!G$13))))) -> 0 | M133: 0 | O133: 0
H134: 0 | I134: =IF(B134="Luftspalt",0,IF(B134>0,H134*VLOOKUP(B134,Data,2,FALSE)*(1+VLOOKUP(B134,Material!B$5:L$125,10)),0)) -> 0 | J134: 0 | K134: 0 | L134: =I134*IF(I134=0,0,VLOOKUP(B134,'Mtrl em'!B$5:Z$124,24)*IF(E134="",I$473,IF(E134>=50,Avskrivningstider!G$5,IF(E134>=40,Avskrivningstider!G$6,IF(E134>=20,Avskrivningstider!G$7,Avskrivningstider!G$13))))) -> 0 | M134: 0 | O134: 0
H135: 0 | I135: =IF(B135="Luftspalt",0,IF(B135>0,H135*VLOOKUP(B135,Data,2,FALSE)*(1+VLOOKUP(B135,Material!B$5:L$125,10)),0)) -> 0 | J135: 0 | K135: 0 | L135: =I135*IF(I135=0,0,VLOOKUP(B135,'Mtrl em'!B$5:Z$124,24)*IF(E135="",I$473,IF(E135>=50,Avskrivningstider!G$5,IF(E135>=40,Avskrivningstider!G$6,IF(E135>=20,Avskrivningstider!G$7,Avskrivningstider!G$13))))) -> 0 | M135: 0 | O135: 0
H136: 0 | I136: =IF(B136="Luftspalt",0,IF(B136>0,H136*VLOOKUP(B136,Data,2,FALSE)*(1+VLOOKUP(B136,Material!B$5:L$125,10)),0)) -> 0 | J136: 0 | K136: 0 | L136: =I136*IF(I136=0,0,VLOOKUP(B136,'Mtrl em'!B$5:Z$124,24)*IF(E136="",I$473,IF(E136>=50,Avskrivningstider!G$5,IF(E136>=40,Avskrivningstider!G$6,IF(E136>=20,Avskrivningstider!G$7,Avskrivningstider!G$13))))) -> 0 | M136: 0 | O136: 0
H137: 0 | I137: =IF(B137="Luftspalt",0,IF(B137>0,H137*VLOOKUP(B137,Data,2,FALSE)*(1+VLOOKUP(B137,Material!B$5:L$125,10)),0)) -> 0 | J137: 0 | K137: 0 | L137: =I137*IF(I137=0,0,VLOOKUP(B137,'Mtrl em'!B$5:Z$124,24)*IF(E137="",I$473,IF(E137>=50,Avskrivningstider!G$5,IF(E137>=40,Avskrivningstider!G$6,IF(E137>=20,Avskrivningstider!G$7,Avskrivningstider!G$13))))) -> 0 | M137: 0 | O137: =K137*M137 -> 0
H138: 0 | I138: =IF(B138="Luftspalt",0,IF(B138>0,H138*VLOOKUP(B138,Data,2,FALSE)*(1+VLOOKUP(B138,Material!B$5:L$125,10)),0)) -> 0 | J138: 0 | K138: 0 | L138: =I138*IF(I138=0,0,VLOOKUP(B138,'Mtrl em'!B$5:Z$124,24)*IF(E138="",I$473,IF(E138>=50,Avskrivningstider!G$5,IF(E138>=40,Avskrivningstider!G$6,IF(E138>=20,Avskrivningstider!G$7,Avskrivningstider!G$13))))) -> 0 | M138: 0 | O138: 0
H139: 0 | I139: =IF(B139="Luftspalt",0,IF(B139>0,H139*VLOOKUP(B139,Data,2,FALSE)*(1+VLOOKUP(B139,Material!B$5:L$125,10)),0)) -> 0 | J139: 0 | K139: 0 | L139: =I139*IF(I139=0,0,VLOOKUP(B139,'Mtrl em'!B$5:Z$124,24)*IF(E139="",I$473,IF(E139>=50,Avskrivningstider!G$5,IF(E139>=40,Avskrivningstider!G$6,IF(E139>=20,Avskrivningstider!G$7,Avskrivningstider!G$13))))) -> 0 | M139: 0 | O139: 0
H140: 0 | I140: =IF(B140="Luftspalt",0,IF(B140>0,H140*VLOOKUP(B140,Data,2,FALSE)*(1+VLOOKUP(B140,Material!B$5:L$125,10)),0)) -> 0 | J140: 0 | K140: 0 | L140: =I140*IF(I140=0,0,VLOOKUP(B140,'Mtrl em'!B$5:Z$124,24)*IF(E140="",I$473,IF(E140>=50,Avskrivningstider!G$5,IF(E140>=40,Avskrivningstider!G$6,IF(E140>=20,Avskrivningstider!G$7,Avskrivningstider!G$13))))) -> 0 | M140: 0 | O140: 0
A141: U-värde/Tjockl. | B141: =IF(J141=0,0,1/(J141+$Z$16)) -> 0 | C141: =C130+IF(A131=A130,0,C131)+IF(A132=A131,0,C132)+IF(A133=A132,0,C133)+IF(A134=A133,0,C134)+IF(A135=A134,0,C135)+IF(A136=A135,0,C136)+IF(A137=A136,0,C137)+IF(A138=A135,0,C138)+IF(A139=A138,0,C139)+IF(A140=A139,0,C140) -> 0 | G141: Summa | H141: =SUM(H130:H140) -> 0 | I141: =SUM(I130:I140) -> 0 | J141: =SUM(J130:J140) -> 0 | K141: =SUM(K130:K140) -> 0 | L141: =SUM(L130:L140) -> 0 | M141: =IF(K141=0,0,(K130*M130+K131*M131+K132*M132+K133*M133+K134*M134+K135*M135+K136*M136+K137*M137+K138*M138+K140*M139+K139*M140)/K141) -> 0
A142: Medel U | B142: =C92*B106+C110*B123+C128*B141 -> 0 | G142: Totalt yttertak | H142: =H106+H123+H141 -> 0 | I142: =I106+I123+I141 -> 0 | J142: =J106+J123+J141 -> 0 | K142: =K106+K123+K141 -> 0 | L142: =L106+L123+L141 -> 0
J143: kgCO2 ekv/m2konstr.,år | K143: =IF(K128=0,0,K142/K128/F$2) -> 0 | L143: =IF(K128=0,0,L142/K128/$F$2) -> 0
J144: kgCO2 ekv/m2 Atemp,år | K144: =IF(C$2=0,0,K142/C$2/F$2) -> 0 | L144: =IF(C$2=0,0,L142/$C$2/$F$2) -> 0
A145: Vindsbjälklag
A146: A | C146: 1 | D146: Andel area | J146: Area, m2 | K146: =IF(C146=0,Basdata!I51,C146*Basdata!I51) -> 0
A147: Skikt nr inifrån och ut | B147: Material | C147: Tjocklek mm | D147: Andel av skikt | E147: Avskriv-ningstid | F147: Återvin-ning | G147: Area, m2 | H147: Volym, m3 | I147: Vikt, kg (inkl.spill) | J147: Värmemotstånd m2 K/W | K147: kg CO2 ekv. | L147: Kolinlagring kgCO2e | M147: Data-kvalitet | N147: Kommentar
H148: =IF(G148>0,G148*C148/1000,C148*D148*C$146*K$146/1000) -> 0 | I148: =IF(B148="Luftspalt",0,IF(B148>0,H148*VLOOKUP(B148,Data,2,FALSE)*(1+VLOOKUP(B148,Material!B$5:L$125,6)),0)) -> 0 | J148: =IF(B148="Ground",2.5,IF(B148=0,0,(1/VLOOKUP(B148,Data,3,FALSE))*IF(G148>0,H148/G148,C148/1000*D148))) -> 0 | K148: =-IF(C148>0,I148*VLOOKUP(B148,Mtrl_emission,20,FALSE),0)*$F$2/IF(E148>0,E148,$F$2) -> 0 | L148: =I148*IF(I148=0,0,VLOOKUP(B148,'Mtrl em'!B$5:Z$124,24)*IF(E148="",I$473,IF(E148>=50,Avskrivningstider!G$5,IF(E148>=40,Avskrivningstider!G$6,IF(E148>=20,Avskrivningstider!G$7,Avskrivningstider!G$13))))) -> 0 | M148: =IF(B148="",0,VLOOKUP(B148,Mtrl_emission,23)) -> 0 | O148: 0
H149: 0 | I149: =IF(B149="Luftspalt",0,IF(B149>0,H149*VLOOKUP(B149,Data,2,FALSE)*(1+VLOOKUP(B149,Material!B$5:L$125,6)),0)) -> 0 | J149: 0 | K149: 0 | L149: =I149*IF(I149=0,0,VLOOKUP(B149,'Mtrl em'!B$5:Z$124,24)*IF(E149="",I$473,IF(E149>=50,Avskrivningstider!G$5,IF(E149>=40,Avskrivningstider!G$6,IF(E149>=20,Avskrivningstider!G$7,Avskrivningstider!G$13))))) -> 0 | M149: 0 | O149: 0
H150: 0 | I150: =IF(B150="Luftspalt",0,IF(B150>0,H150*VLOOKUP(B150,Data,2,FALSE)*(1+VLOOKUP(B150,Material!B$5:L$125,6)),0)) -> 0 | J150: 0 | K150: 0 | L150: =I150*IF(I150=0,0,VLOOKUP(B150,'Mtrl em'!B$5:Z$124,24)*IF(E150="",I$473,IF(E150>=50,Avskrivningstider!G$5,IF(E150>=40,Avskrivningstider!G$6,IF(E150>=20,Avskrivningstider!G$7,Avskrivningstider!G$13))))) -> 0 | M150: 0 | O150: 0
H151: 0 | I151: =IF(B151="Luftspalt",0,IF(B151>0,H151*VLOOKUP(B151,Data,2,FALSE)*(1+VLOOKUP(B151,Material!B$5:L$125,6)),0)) -> 0 | J151: 0 | K151: 0 | L151: =I151*IF(I151=0,0,VLOOKUP(B151,'Mtrl em'!B$5:Z$124,24)*IF(E151="",I$473,IF(E151>=50,Avskrivningstider!G$5,IF(E151>=40,Avskrivningstider!G$6,IF(E151>=20,Avskrivningstider!G$7,Avskrivningstider!G$13))))) -> 0 | M151: 0 | O151: 0
H152: 0 | I152: =IF(B152="Luftspalt",0,IF(B152>0,H152*VLOOKUP(B152,Data,2,FALSE)*(1+VLOOKUP(B152,Material!B$5:L$125,6)),0)) -> 0 | J152: 0 | K152: 0 | L152: =I152*IF(I152=0,0,VLOOKUP(B152,'Mtrl em'!B$5:Z$124,24)*IF(E152="",I$473,IF(E152>=50,Avskrivningstider!G$5,IF(E152>=40,Avskrivningstider!G$6,IF(E152>=20,Avskrivningstider!G$7,Avskrivningstider!G$13))))) -> 0 | M152: 0 | O152: 0
H153: 0 | I153: =IF(B153="Luftspalt",0,IF(B153>0,H153*VLOOKUP(B153,Data,2,FALSE)*(1+VLOOKUP(B153,Material!B$5:L$125,6)),0)) -> 0 | J153: 0 | K153: 0 | L153: =I153*IF(I153=0,0,VLOOKUP(B153,'Mtrl em'!B$5:Z$124,24)*IF(E153="",I$473,IF(E153>=50,Avskrivningstider!G$5,IF(E153>=40,Avskrivningstider!G$6,IF(E153>=20,Avskrivningstider!G$7,Avskrivningstider!G$13))))) -> 0 | M153: 0 | O153: 0
H154: 0 | I154: =IF(B154="Luftspalt",0,IF(B154>0,H154*VLOOKUP(B154,Data,2,FALSE)*(1+VLOOKUP(B154,Material!B$5:L$125,6)),0)) -> 0 | J154: 0 | K154: 0 | L154: =I154*IF(I154=0,0,VLOOKUP(B154,'Mtrl em'!B$5:Z$124,24)*IF(E154="",I$473,IF(E154>=50,Avskrivningstider!G$5,IF(E154>=40,Avskrivningstider!G$6,IF(E154>=20,Avskrivningstider!G$7,Avskrivningstider!G$13))))) -> 0 | M154: 0 | O154: 0
H155: 0 | I155: =IF(B155="Luftspalt",0,IF(B155>0,H155*VLOOKUP(B155,Data,2,FALSE)*(1+VLOOKUP(B155,Material!B$5:L$125,6)),0)) -> 0 | J155: 0 | K155: 0 | L155: =I155*IF(I155=0,0,VLOOKUP(B155,'Mtrl em'!B$5:Z$124,24)*IF(E155="",I$473,IF(E155>=50,Avskrivningstider!G$5,IF(E155>=40,Avskrivningstider!G$6,IF(E155>=20,Avskrivningstider!G$7,Avskrivningstider!G$13))))) -> 0 | M155: 0 | O155: 0
H156: 0 | I156: =IF(B156="Luftspalt",0,IF(B156>0,H156*VLOOKUP(B156,Data,2,FALSE)*(1+VLOOKUP(B156,Material!B$5:L$125,6)),0)) -> 0 | J156: 0 | K156: 0 | L156: =I156*IF(I156=0,0,VLOOKUP(B156,'Mtrl em'!B$5:Z$124,24)*IF(E156="",I$473,IF(E156>=50,Avskrivningstider!G$5,IF(E156>=40,Avskrivningstider!G$6,IF(E156>=20,Avskrivningstider!G$7,Avskrivningstider!G$13))))) -> 0 | M156: 0 | O156: 0
H157: 0 | I157: =IF(B157="Luftspalt",0,IF(B157>0,H157*VLOOKUP(B157,Data,2,FALSE)*(1+VLOOKUP(B157,Material!B$5:L$125,6)),0)) -> 0 | J157: 0 | K157: 0 | L157: =I157*IF(I157=0,0,VLOOKUP(B157,'Mtrl em'!B$5:Z$124,24)*IF(E157="",I$473,IF(E157>=50,Avskrivningstider!G$5,IF(E157>=40,Avskrivningstider!G$6,IF(E157>=20,Avskrivningstider!G$7,Avskrivningstider!G$13))))) -> 0 | M157: 0 | O157: 0
H158: 0 | I158: =IF(B158="Luftspalt",0,IF(B158>0,H158*VLOOKUP(B158,Data,2,FALSE)*(1+VLOOKUP(B158,Material!B$5:L$125,6)),0)) -> 0 | J158: 0 | K158: 0 | L158: =I158*IF(I158=0,0,VLOOKUP(B158,'Mtrl em'!B$5:Z$124,24)*IF(E158="",I$473,IF(E158>=50,Avskrivningstider!G$5,IF(E158>=40,Avskrivningstider!G$6,IF(E158>=20,Avskrivningstider!G$7,Avskrivningstider!G$13))))) -> 0 | M158: 0 | O158: 0
H159: =IF(B159="Luftspalt",0,IF(C159>0,$K$146*(C159/1000)*D159*VLOOKUP(B159,Data,2,FALSE),0)) -> 0 | I159: =IF(B159="Luftspalt",0,IF(B159>0,H159*VLOOKUP(B159,Data,2,FALSE)*(1+VLOOKUP(B159,Material!B$5:L$125,6)),0)) -> 0 | J159: =IF(B159="Ground",2.5,IF(B159=0,0,(1/VLOOKUP(B159,'Mtrl data'!$B$7:$D$110,3,FALSE))*(C159/1000)*D159)) -> 0 | K159: 0 | L159: =I159*IF(I159=0,0,VLOOKUP(B159,'Mtrl em'!B$5:Z$124,24)*IF(E159="",I$473,IF(E159>=50,Avskrivningstider!G$5,IF(E159>=40,Avskrivningstider!G$6,IF(E159>=20,Avskrivningstider!G$7,Avskrivningstider!G$13))))) -> 0 | M159: 0 | O159: 0
A160: U-värde/Tjockl. | B160: =IF(SUM(J148:J158)=0,0,1/(SUM(J148:J158)+$Z$17)) -> 0 | C160: =C148+IF(A149=A148,0,C149)+IF(A150=A149,0,C150)+IF(A151=A150,0,C151)+IF(A152=A151,0,C152)+IF(A153=A152,0,C153)+IF(A154=A153,0,C154)+IF(A155=A154,0,C155)+IF(A156=A155,0,C156)+IF(A157=A156,0,C157)+IF(A158=A157,0,C158)+IF(A159=A158,0,C159) -> 0 | G160: Summa | H160: =SUM(H148:H159) -> 0 | I160: =SUM(I148:I159) -> 0 | J160: =SUM(J148:J159) -> 0 | K160: =SUM(K148:K159) -> 0 | L160: =SUM(L148:L159) -> 0 | M160: =IF(K160=0,0,(K148*M148+K149*M149+K150*M150+K151*M151+K152*M152+K153*M153+K154*M154+K155*M155+K156*M156+K157*M157+K159*M158+K158*M159)/K160) -> 0 | N160: Totalt kgCO2 ekv
J161: kgCO2 ekv/m2konstr.,år | K161: =IF(K146=0,0,K160/K146/$F$2) -> 0 | L161: =IF(K146=0,0,L160/K146/$F$2) -> 0 | N161: kgCO2 ekv/m2konstr.,år
J162: kgCO2 ekv/m2 Atemp,år | K162: =IF(C$2=0,0,K160/C$2/F$2) -> 0 | L162: =IF(C$2=0,0,L160/$C$2/$F$2) -> 0 | N162: kgCO2 ekv/m2 Atemp,år
A164: B | D164: Andel, % | F164: Andel; % | J164: Area, m2: | K164: =C164*Basdata!I51 -> 0
A165: Skikt nr inifrån och ut | B165: Material | C165: Tjocklek mm | D165: Andel av skikt | E165: Avskriv-ningstid | F165: Återvin-ning | G165: Area, m2 | H165: Volym, m3 | I165: Vikt, kg (inkl.spill) | J165: Värmemotstånd m2 K/W | K165: kg CO2 ekv. | L165: Kolinlagring kgCO2e | M165: Data-kvalitet | N165: Kommentar
H166: =IF(G166>0,G166*C166/1000,C166*D166*C$164*K$164/1000) -> 0 | I166: =IF(B166="Luftspalt",0,IF(B166>0,H166*VLOOKUP(B166,Data,2,FALSE)*(1+VLOOKUP(B166,Material!B$5:L$125,10)),0)) -> 0 | J166: =IF(B166="Ground",2.5,IF(B166=0,0,(1/VLOOKUP(B166,Data,3,FALSE))*IF(G166>0,H166/G166,C166/1000*D166))) -> 0 | K166: =-IF(C166>0,I166*VLOOKUP(B166,Mtrl_emission,20,FALSE),0)*$F$2/IF(E166>0,E166,$F$2) -> 0 | L166: =I166*IF(I166=0,0,VLOOKUP(B166,'Mtrl em'!B$5:Z$124,24)*IF(E166="",I$473,IF(E166>=50,Avskrivningstider!G$5,IF(E166>=40,Avskrivningstider!G$6,IF(E166>=20,Avskrivningstider!G$7,Avskrivningstider!G$13))))) -> 0 | M166: =IF(B166="",0,VLOOKUP(B166,Mtrl_emission,23)) -> 0 | O166: 0
H167: 0 | I167: =IF(B167="Luftspalt",0,IF(B167>0,H167*VLOOKUP(B167,Data,2,FALSE)*(1+VLOOKUP(B167,Material!B$5:L$125,10)),0)) -> 0 | J167: 0 | K167: 0 | L167: =I167*IF(I167=0,0,VLOOKUP(B167,'Mtrl em'!B$5:Z$124,24)*IF(E167="",I$473,IF(E167>=50,Avskrivningstider!G$5,IF(E167>=40,Avskrivningstider!G$6,IF(E167>=20,Avskrivningstider!G$7,Avskrivningstider!G$13))))) -> 0 | M167: 0 | O167: 0
H168: 0 | I168: =IF(B168="Luftspalt",0,IF(B168>0,H168*VLOOKUP(B168,Data,2,FALSE)*(1+VLOOKUP(B168,Material!B$5:L$125,10)),0)) -> 0 | J168: 0 | K168: 0 | L168: =I168*IF(I168=0,0,VLOOKUP(B168,'Mtrl em'!B$5:Z$124,24)*IF(E168="",I$473,IF(E168>=50,Avskrivningstider!G$5,IF(E168>=40,Avskrivningstider!G$6,IF(E168>=20,Avskrivningstider!G$7,Avskrivningstider!G$13))))) -> 0 | M168: 0 | O168: 0
H169: 0 | I169: =IF(B169="Luftspalt",0,IF(B169>0,H169*VLOOKUP(B169,Data,2,FALSE)*(1+VLOOKUP(B169,Material!B$5:L$125,10)),0)) -> 0 | J169: 0 | K169: 0 | L169: =I169*IF(I169=0,0,VLOOKUP(B169,'Mtrl em'!B$5:Z$124,24)*IF(E169="",I$473,IF(E169>=50,Avskrivningstider!G$5,IF(E169>=40,Avskrivningstider!G$6,IF(E169>=20,Avskrivningstider!G$7,Avskrivningstider!G$13))))) -> 0 | M169: 0 | O169: 0
H170: 0 | I170: =IF(B170="Luftspalt",0,IF(B170>0,H170*VLOOKUP(B170,Data,2,FALSE)*(1+VLOOKUP(B170,Material!B$5:L$125,10)),0)) -> 0 | J170: 0 | K170: 0 | L170: =I170*IF(I170=0,0,VLOOKUP(B170,'Mtrl em'!B$5:Z$124,24)*IF(E170="",I$473,IF(E170>=50,Avskrivningstider!G$5,IF(E170>=40,Avskrivningstider!G$6,IF(E170>=20,Avskrivningstider!G$7,Avskrivningstider!G$13))))) -> 0 | M170: 0 | O170: 0
H171: 0 | I171: =IF(B171="Luftspalt",0,IF(B171>0,H171*VLOOKUP(B171,Data,2,FALSE)*(1+VLOOKUP(B171,Material!B$5:L$125,10)),0)) -> 0 | J171: 0 | K171: 0 | L171: =I171*IF(I171=0,0,VLOOKUP(B171,'Mtrl em'!B$5:Z$124,24)*IF(E171="",I$473,IF(E171>=50,Avskrivningstider!G$5,IF(E171>=40,Avskrivningstider!G$6,IF(E171>=20,Avskrivningstider!G$7,Avskrivningstider!G$13))))) -> 0 | M171: 0 | O171: 0
H172: 0 | I172: =IF(B172="Luftspalt",0,IF(B172>0,H172*VLOOKUP(B172,Data,2,FALSE)*(1+VLOOKUP(B172,Material!B$5:L$125,10)),0)) -> 0 | J172: 0 | K172: 0 | L172: =I172*IF(I172=0,0,VLOOKUP(B172,'Mtrl em'!B$5:Z$124,24)*IF(E172="",I$473,IF(E172>=50,Avskrivningstider!G$5,IF(E172>=40,Avskrivningstider!G$6,IF(E172>=20,Avskrivningstider!G$7,Avskrivningstider!G$13))))) -> 0 | M172: 0 | O172: 0
H173: 0 | I173: =IF(B173="Luftspalt",0,IF(B173>0,H173*VLOOKUP(B173,Data,2,FALSE)*(1+VLOOKUP(B173,Material!B$5:L$125,10)),0)) -> 0 | J173: 0 | K173: 0 | L173: =I173*IF(I173=0,0,VLOOKUP(B173,'Mtrl em'!B$5:Z$124,24)*IF(E173="",I$473,IF(E173>=50,Avskrivningstider!G$5,IF(E173>=40,Avskrivningstider!G$6,IF(E173>=20,Avskrivningstider!G$7,Avskrivningstider!G$13))))) -> 0 | M173: 0 | O173: 0
H174: 0 | I174: =IF(B174="Luftspalt",0,IF(B174>0,H174*VLOOKUP(B174,Data,2,FALSE)*(1+VLOOKUP(B174,Material!B$5:L$125,10)),0)) -> 0 | J174: 0 | K174: 0 | L174: =I174*IF(I174=0,0,VLOOKUP(B174,'Mtrl em'!B$5:Z$124,24)*IF(E174="",I$473,IF(E174>=50,Avskrivningstider!G$5,IF(E174>=40,Avskrivningstider!G$6,IF(E174>=20,Avskrivningstider!G$7,Avskrivningstider!G$13))))) -> 0 | M174: 0 | O174: 0
H175: 0 | I175: =IF(B175="Luftspalt",0,IF(B175>0,H175*VLOOKUP(B175,Data,2,FALSE)*(1+VLOOKUP(B175,Material!B$5:L$125,10)),0)) -> 0 | J175: 0 | K175: 0 | L175: =I175*IF(I175=0,0,VLOOKUP(B175,'Mtrl em'!B$5:Z$124,24)*IF(E175="",I$473,IF(E175>=50,Avskrivningstider!G$5,IF(E175>=40,Avskrivningstider!G$6,IF(E175>=20,Avskrivningstider!G$7,Avskrivningstider!G$13))))) -> 0 | M175: 0 | O175: 0
H176: 0 | I176: =IF(B176="Luftspalt",0,IF(B176>0,H176*VLOOKUP(B176,Data,2,FALSE)*(1+VLOOKUP(B176,Material!B$5:L$125,10)),0)) -> 0 | J176: 0 | K176: 0 | L176: =I176*IF(I176=0,0,VLOOKUP(B176,'Mtrl em'!B$5:Z$124,24)*IF(E176="",I$473,IF(E176>=50,Avskrivningstider!G$5,IF(E176>=40,Avskrivningstider!G$6,IF(E176>=20,Avskrivningstider!G$7,Avskrivningstider!G$13))))) -> 0 | M176: 0 | O176: 0
H177: 0 | I177: =IF(B177="Luftspalt",0,IF(B177>0,H177*VLOOKUP(B177,Data,2,FALSE)*(1+VLOOKUP(B177,Material!B$5:L$125,10)),0)) -> 0 | J177: 0 | K177: 0 | L177: =I177*IF(I177=0,0,VLOOKUP(B177,'Mtrl em'!B$5:Z$124,24)*IF(E177="",I$473,IF(E177>=50,Avskrivningstider!G$5,IF(E177>=40,Avskrivningstider!G$6,IF(E177>=20,Avskrivningstider!G$7,Avskrivningstider!G$13))))) -> 0 | M177: 0 | O177: 0
A178: U-värde/Tjockl. | B178: =IF(J178=0,0,1/(J178+Z17)) -> 0 | C178: =C166+IF(A167=A166,0,C167)+IF(A168=A167,0,C168)+IF(A169=A168,0,C169)+IF(A170=A169,0,C170)+IF(A171=A170,0,C171)+IF(A172=A171,0,C172)+IF(A173=A172,0,C173)+IF(A174=A173,0,C174)+IF(A175=A174,0,C175)+IF(A176=A175,0,C176)+IF(A177=A176,0,C177) -> 0 | G178: Summa | H178: =SUM(H166:H177) -> 0 | I178: =SUM(I166:I177) -> 0 | J178: =SUM(J166:J177) -> 0 | K178: =SUM(K166:K177) -> 0 | L178: =SUM(L166:L177) -> 0 | M178: =IF(K178=0,0,(K166*M166+K167*M167+K168*M168+K169*M169+K170*M170+K171*M171+K172*M172+K173*M173+K174*M174+K175*M175+K177*M176+K176*M177)/K178) -> 0 | N178: Totalt kgCO2 ekv
A179: Medel U, vind | B179: =B160*C146+B178*C164 -> 0 | C179: =IF(K146=0,0,(C160*C146+C164*C178)) -> 0 | G179: Summa vindsbjälklag | H179: =H160+H178 -> 0 | I179: =I160+I178 -> 0 | J179: =J160+J178 -> 0 | K179: =K160+K178 -> 0 | L179: =L160+L178 -> 0 | N179: kgCO2 ekv/m2konstr.,år
A180: Medel U, vind+yttertak | B180: =IF(J182=0,0,1/(J182+Z16)) -> 0 | J180: Totalt vindsbjälklagkgCO2 ekv/m2konstr.,år | K180: =IF(K164=0,0,K179/K164/F$2) -> 0 | L180: =IF(D$2=0,0,L179/K164/F$2) -> 0
J181: Totalt vindsbjälklag, kgCO2 ekv/m2 Atemp,år | K181: =IF(C$2=0,0,K179/$C$2/$F$2) -> 0 | L181: =IF(C$2=0,0,L179/$C$2/$F$2) -> 0
I182: Värmemotstånd vind + yttertak | J182: =J179+J142*0.5 -> 0
A184: Ytterväggar
A185: A | C185: 0.184 | D185: Andel, % | K185: =Basdata!I48 -> 0 | M185: =C185*(IF(OR(Undersök!E41,Undersök!E42>0),Energi!H42)) -> 0
A186: Skikt nr inifrån och ut | B186: Material | C186: Tjocklek mm | D186: Andel av skikt | E186: Avskriv-ningstid | F186: Återvin-ning | G186: Area, m2 | H186: Volym, m3 | I186: Vikt, kg (inkl.spill) | J186: Värmemotstånd m2 K/W | K186: kg CO2 ekv. | L186: Kolinlagring kgCO2e | M186: Data-kvalitet | N186: Kommentar
H187: =IF(G187>0,G187*C187/1000,C187*D187*C$185*K$185/1000) -> 0 | I187: =IF(B187="Luftspalt",0,IF(B187>0,H187*VLOOKUP(B187,Data,2,FALSE)*(1+VLOOKUP(B187,Material!B$5:L$125,6)),0)) -> 0 | J187: =IF(B187="Ground",2.5,IF(B187=0,0,(1/VLOOKUP(B187,Data,3,FALSE))*IF(G187>0,H187/G187,C187/1000*D187))) -> 0 | K187: =-IF(C187>0,I187*VLOOKUP(B187,Mtrl_emission,20,FALSE),0)*$F$2/IF(E187>0,E187,$F$2) -> 0 | L187: =I187*IF(I187=0,0,VLOOKUP(B187,'Mtrl em'!B$5:Z$124,24)*IF(E187="",I$473,IF(E187>=50,Avskrivningstider!G$5,IF(E187>=40,Avskrivningstider!G$6,IF(E187>=20,Avskrivningstider!G$7,Avskrivningstider!G$13))))) -> 0 | M187: =IF(B187="",0,VLOOKUP(B187,Mtrl_emission,23)) -> 0 | O187: 0
H188: 0 | I188: =IF(B188="Luftspalt",0,IF(B188>0,H188*VLOOKUP(B188,Data,2,FALSE)*(1+VLOOKUP(B188,Material!B$5:L$125,6)),0)) -> 0 | J188: 0 | K188: 0 | L188: =I188*IF(I188=0,0,VLOOKUP(B188,'Mtrl em'!B$5:Z$124,24)*IF(E188="",I$473,IF(E188>=50,Avskrivningstider!G$5,IF(E188>=40,Avskrivningstider!G$6,IF(E188>=20,Avskrivningstider!G$7,Avskrivningstider!G$13))))) -> 0 | M188: 0 | O188: 0
H189: 0 | I189: =IF(B189="Luftspalt",0,IF(B189>0,H189*VLOOKUP(B189,Data,2,FALSE)*(1+VLOOKUP(B189,Material!B$5:L$125,6)),0)) -> 0 | J189: 0 | K189: 0 | L189: =I189*IF(I189=0,0,VLOOKUP(B189,'Mtrl em'!B$5:Z$124,24)*IF(E189="",I$473,IF(E189>=50,Avskrivningstider!G$5,IF(E189>=40,Avskrivningstider!G$6,IF(E189>=20,Avskrivningstider!G$7,Avskrivningstider!G$13))))) -> 0 | M189: 0 | O189: 0
H190: 0 | I190: =IF(B190="Luftspalt",0,IF(B190>0,H190*VLOOKUP(B190,Data,2,FALSE)*(1+VLOOKUP(B190,Material!B$5:L$125,6)),0)) -> 0 | J190: 0 | K190: 0 | L190: =I190*IF(I190=0,0,VLOOKUP(B190,'Mtrl em'!B$5:Z$124,24)*IF(E190="",I$473,IF(E190>=50,Avskrivningstider!G$5,IF(E190>=40,Avskrivningstider!G$6,IF(E190>=20,Avskrivningstider!G$7,Avskrivningstider!G$13))))) -> 0 | M190: 0 | O190: 0
H191: 0 | I191: =IF(B191="Luftspalt",0,IF(B191>0,H191*VLOOKUP(B191,Data,2,FALSE)*(1+VLOOKUP(B191,Material!B$5:L$125,6)),0)) -> 0 | J191: 0 | K191: 0 | L191: =I191*IF(I191=0,0,VLOOKUP(B191,'Mtrl em'!B$5:Z$124,24)*IF(E191="",I$473,IF(E191>=50,Avskrivningstider!G$5,IF(E191>=40,Avskrivningstider!G$6,IF(E191>=20,Avskrivningstider!G$7,Avskrivningstider!G$13))))) -> 0 | M191: 0 | O191: 0
H192: 0 | I192: =IF(B192="Luftspalt",0,IF(B192>0,H192*VLOOKUP(B192,Data,2,FALSE)*(1+VLOOKUP(B192,Material!B$5:L$125,6)),0)) -> 0 | J192: 0 | K192: 0 | L192: =I192*IF(I192=0,0,VLOOKUP(B192,'Mtrl em'!B$5:Z$124,24)*IF(E192="",I$473,IF(E192>=50,Avskrivningstider!G$5,IF(E192>=40,Avskrivningstider!G$6,IF(E192>=20,Avskrivningstider!G$7,Avskrivningstider!G$13))))) -> 0 | M192: 0 | O192: 0
H193: 0 | I193: =IF(B193="Luftspalt",0,IF(B193>0,H193*VLOOKUP(B193,Data,2,FALSE)*(1+VLOOKUP(B193,Material!B$5:L$125,6)),0)) -> 0 | J193: 0 | K193: 0 | L193: =I193*IF(I193=0,0,VLOOKUP(B193,'Mtrl em'!B$5:Z$124,24)*IF(E193="",I$473,IF(E193>=50,Avskrivningstider!G$5,IF(E193>=40,Avskrivningstider!G$6,IF(E193>=20,Avskrivningstider!G$7,Avskrivningstider!G$13))))) -> 0 | M193: 0 | O193: 0
H194: 0 | I194: =IF(B194="Luftspalt",0,IF(B194>0,H194*VLOOKUP(B194,Data,2,FALSE)*(1+VLOOKUP(B194,Material!B$5:L$125,6)),0)) -> 0 | J194: 0 | K194: 0 | L194: =I194*IF(I194=0,0,VLOOKUP(B194,'Mtrl em'!B$5:Z$124,24)*IF(E194="",I$473,IF(E194>=50,Avskrivningstider!G$5,IF(E194>=40,Avskrivningstider!G$6,IF(E194>=20,Avskrivningstider!G$7,Avskrivningstider!G$13))))) -> 0 | M194: 0 | O194: 0
H195: 0 | I195: =IF(B195="Luftspalt",0,IF(B195>0,H195*VLOOKUP(B195,Data,2,FALSE)*(1+VLOOKUP(B195,Material!B$5:L$125,6)),0)) -> 0 | J195: 0 | K195: 0 | L195: =I195*IF(I195=0,0,VLOOKUP(B195,'Mtrl em'!B$5:Z$124,24)*IF(E195="",I$473,IF(E195>=50,Avskrivningstider!G$5,IF(E195>=40,Avskrivningstider!G$6,IF(E195>=20,Avskrivningstider!G$7,Avskrivningstider!G$13))))) -> 0 | M195: 0 | O195: 0
H196: 0 | I196: =IF(B196="Luftspalt",0,IF(B196>0,H196*VLOOKUP(B196,Data,2,FALSE)*(1+VLOOKUP(B196,Material!B$5:L$125,6)),0)) -> 0 | J196: 0 | K196: 0 | L196: =I196*IF(I196=0,0,VLOOKUP(B196,'Mtrl em'!B$5:Z$124,24)*IF(E196="",I$473,IF(E196>=50,Avskrivningstider!G$5,IF(E196>=40,Avskrivningstider!G$6,IF(E196>=20,Avskrivningstider!G$7,Avskrivningstider!G$13))))) -> 0 | M196: 0 | O196: 0
H197: 0 | I197: =IF(B197="Luftspalt",0,IF(B197>0,H197*VLOOKUP(B197,Data,2,FALSE)*(1+VLOOKUP(B197,Material!B$5:L$125,6)),0)) -> 0 | J197: 0 | K197: 0 | L197: =I197*IF(I197=0,0,VLOOKUP(B197,'Mtrl em'!B$5:Z$124,24)*IF(E197="",I$473,IF(E197>=50,Avskrivningstider!G$5,IF(E197>=40,Avskrivningstider!G$6,IF(E197>=20,Avskrivningstider!G$7,Avskrivningstider!G$13))))) -> 0 | M197: 0 | O197: 0
H198: 0 | I198: =IF(B198="Luftspalt",0,IF(B198>0,H198*VLOOKUP(B198,Data,2,FALSE)*(1+VLOOKUP(B198,Material!B$5:L$125,6)),0)) -> 0 | J198: 0 | K198: 0 | L198: =I198*IF(I198=0,0,VLOOKUP(B198,'Mtrl em'!B$5:Z$124,24)*IF(E198="",I$473,IF(E198>=50,Avskrivningstider!G$5,IF(E198>=40,Avskrivningstider!G$6,IF(E198>=20,Avskrivningstider!G$7,Avskrivningstider!G$13))))) -> 0 | M198: 0 | O198: 0
H199: =IF(B199="Luftspalt",0,IF(C199>0,K$185*(C199/1000)*D199*VLOOKUP(B199,Data,2,FALSE),0)) -> 0 | I199: =IF(B199="Luftspalt",0,IF(B199>0,H199*VLOOKUP(B199,Data,2,FALSE)*(1+VLOOKUP(B199,Material!B$5:L$125,6)),0)) -> 0 | J199: =IF(B199="Ground",2.5,IF(B199=0,0,(1/VLOOKUP(B199,'Mtrl data'!$B$7:$D$110,3,FALSE))*(C199/1000)*D199)) -> 0 | K199: 0 | L199: =I199*IF(I199=0,0,VLOOKUP(B199,'Mtrl em'!B$5:Z$124,24)*IF(E199="",I$473,IF(E199>=50,Avskrivningstider!G$5,IF(E199>=40,Avskrivningstider!G$6,IF(E199>=20,Avskrivningstider!G$7,Avskrivningstider!G$13))))) -> 0 | M199: 0 | O199: 0
A200: U-värde/Tjockl. | B200: =IF(J200=0,0,1/(J200+$Z$16)) -> 0 | C200: =C187+IF(A188=A187,0,C188)+IF(A189=A188,0,C189)+IF(A190=A189,0,C190)+IF(A191=A190,0,C191)+IF(A192=A191,0,C192)+IF(A193=A192,0,C193)+IF(A194=A193,0,C194)+IF(A195=A194,0,C195)+IF(A196=A195,0,C196)+IF(A197=A196,0,C197)+IF(A198=A197,0,C198) -> 0 | G200: Summa | H200: =SUM(H187:H199) -> 0 | I200: =SUM(I187:I199) -> 0 | J200: =SUM(J187:J199) -> 0 | K200: =SUM(K187:K199) -> 0 | L200: =SUM(L187:L199) -> 0 | M200: =IF(K200=0,0,(K187*M187+K188*M188+K189*M189+K190*M190+K191*M191+K192*M192+K193*M193+K194*M194+K195*M195+K196*M196+K197*M197+K198*M198+K199*M199)/K200) -> 0 | N200: Totalt kgCO2 ekv
J201: kgCO2 ekv/m2konstr.,år | K201: =IF(K185=0,0,K200/K185/$F$2) -> 0 | L201: =IF(K185=0,0,L200/K185/$F$2) -> 0 | N201: kgCO2 ekv/m2konstr.,år
J202: kgCO2 ekv/m2 Atemp,år | K202: =IF(C$2=0,0,K200/$C$2/$F$2) -> 0 | L202: =IF(C$2=0,0,L200/$C$2/$F$2) -> 0 | N202: kgCO2 ekv/m2 Atemp,år
A204: B | D204: Andel, % | K204: =Basdata!I48 -> 0 | M204: =H204*IF(M185=0,K204,M185/C185) -> 0
A205: Skikt nr inifrån och ut | B205: Material | C205: Tjocklek mm | D205: Andel av skikt | E205: Avskriv-ningstid | F205: Återvin-ning | G205: Area, m2 | H205: Volym, m3 | I205: Vikt, kg (inkl.spill) | J205: Värmemotstånd m2 K/W | K205: kg CO2 ekv. | L205: Kolinlagring kgCO2e | M205: Data-kvalitet | N205: Kommentar
H206: =IF(G206>0,G206*C206/1000,C206*D206*C$204*K$204/1000) -> 0 | I206: =IF(B206="Luftspalt",0,IF(B206>0,H206*VLOOKUP(B206,Data,2,FALSE)*(1+VLOOKUP(B206,Material!B$5:L$125,6)),0)) -> 0 | J206: =IF(B206="Ground",2.5,IF(B206=0,0,(1/VLOOKUP(B206,Data,3,FALSE))*IF(G206>0,H206/G206,C206/1000*D206))) -> 0 | K206: =-IF(C206>0,I206*VLOOKUP(B206,Mtrl_emission,20,FALSE),0)*$F$2/IF(E206>0,E206,$F$2) -> 0 | L206: =I206*IF(I206=0,0,VLOOKUP(B206,'Mtrl em'!B$5:Z$124,24)*IF(E206="",I$473,IF(E206>=50,Avskrivningstider!G$5,IF(E206>=40,Avskrivningstider!G$6,IF(E206>=20,Avskrivningstider!G$7,Avskrivningstider!G$13))))) -> 0 | M206: =IF(B206="",0,VLOOKUP(B206,Mtrl_emission,23)) -> 0 | O206: =K206*M206 -> 0
H207: 0 | I207: =IF(B207="Luftspalt",0,IF(B207>0,H207*VLOOKUP(B207,Data,2,FALSE)*(1+VLOOKUP(B207,Material!B$5:L$125,6)),0)) -> 0 | J207: 0 | K207: 0 | L207: =I207*IF(I207=0,0,VLOOKUP(B207,'Mtrl em'!B$5:Z$124,24)*IF(E207="",I$473,IF(E207>=50,Avskrivningstider!G$5,IF(E207>=40,Avskrivningstider!G$6,IF(E207>=20,Avskrivningstider!G$7,Avskrivningstider!G$13))))) -> 0 | M207: 0 | O207: 0
H208: 0 | I208: =IF(B208="Luftspalt",0,IF(B208>0,H208*VLOOKUP(B208,Data,2,FALSE)*(1+VLOOKUP(B208,Material!B$5:L$125,6)),0)) -> 0 | J208: 0 | K208: 0 | L208: =I208*IF(I208=0,0,VLOOKUP(B208,'Mtrl em'!B$5:Z$124,24)*IF(E208="",I$473,IF(E208>=50,Avskrivningstider!G$5,IF(E208>=40,Avskrivningstider!G$6,IF(E208>=20,Avskrivningstider!G$7,Avskrivningstider!G$13))))) -> 0 | M208: 0 | O208: 0
H209: 0 | I209: =IF(B209="Luftspalt",0,IF(B209>0,H209*VLOOKUP(B209,Data,2,FALSE)*(1+VLOOKUP(B209,Material!B$5:L$125,6)),0)) -> 0 | J209: 0 | K209: 0 | L209: =I209*IF(I209=0,0,VLOOKUP(B209,'Mtrl em'!B$5:Z$124,24)*IF(E209="",I$473,IF(E209>=50,Avskrivningstider!G$5,IF(E209>=40,Avskrivningstider!G$6,IF(E209>=20,Avskrivningstider!G$7,Avskrivningstider!G$13))))) -> 0 | M209: 0 | O209: 0
... 252 more rows

Sheet Energi
B1: Uppskattat energibehov | P1: Average
O2: City | P2: temperature ** | Q2: DVUT | S2: Energy source | T2: Electricity source
B3: Stad | C3: =IF(Basdata!C5<>"Ingen",Basdata!C5,'3. Gen info'!C12) -> 0 | O3: =Basdata!L6 -> Gävle | P3: =Klimatdata!Q81 -> 5.175 | Q3: -20 | S3: ='Energi em'!A5 -> Elektricitet - Europeisk mix | T3: ='Energi em'!A44 -> 0
B4: Uppvärmd yta, Atemp | C4: =Basdata!I8 -> 0 | O4: =Basdata!L7 -> Göteborg | P4: =Klimatdata!Q30 -> 7.675 | Q4: -13.9 | S4: ='Energi em'!A7 -> Elektricitet - Lokal | T4: ='Energi em'!A43 -> 0
B5: Ventilerad volym, m3 | C5: =IF(Basdata!D69>0,Basdata!D69,Basdata!C69) -> 0 | O5: =Basdata!L8 -> Jönköping | P5: =Klimatdata!Q42 -> 6.333333333 | Q5: -17.2 | S5: ='Energi em'!A8 -> Elektricitet - Nordisk mix | T5: ='Energi em'!#REF! -> 
B6: Luftomsättning, l/s,m2 | C6: =Basdata!I42+Basdata!I43 -> 0.38 | O6: =Basdata!L9 -> Kalmar | P6: =Klimatdata!Q18 -> 6.75 | Q6: -13.8 | S6: ='Energi em'!A10 -> Elektricitet - Solceller kisel | T6: ='Energi em'!A45 -> 0
B7: Värmeåtervinning ventilation , η% | C7: =Basdata!I41 -> 0 | G7: Alla tillskott har postiva värden och förluster/belastningar negativa värden | O7: =Basdata!L10 -> Kiruna | P7: =Klimatdata!Q129 -> -1.691666667 | Q7: -29.9 | S7: ='Energi em'!A11 -> Elektricitet - Solceller Tunnfilm | T7: ='Energi em'!A46 -> 1
B8: Inntemperatur vinter, oC | C8: =Basdata!I39 -> 21 | O8: =Basdata!L11 -> Ljusdal | P8: =Klimatdata!Q93 -> 3.216666667 | Q8: -22 | S8: ='Energi em'!A12 -> Elektricitet - Svensk elmix | T8: ='Energi em'!A47 -> 0
O9: =Basdata!L12 -> Luleå | P9: =Klimatdata!Q117 -> 1.316666667 | Q9: -27.3 | S9: ='Energi em'!A13 -> Elektricitet - Vattenkraft
D10: Före | E10: Efter - Värme | F10: Efter - El | O10: =Basdata!L13 -> Malmö | P10: =Klimatdata!Q6 -> 7.8 | Q10: -10.8 | S10: ='Energi em'!A14 -> Elektricitet - vindenergi 2 MW
B11: BEHOV OCH TILLFÖRSEL AV ENERGI | D11: Beräknat från basdata, kWh/år | E11: Efter ändring i Undersök kWh/år | G11: Specifikt värde kWh/m2,år | H11: Efter ändring i Undersök kWh/m2,år | I11: Energikällor - värme resp. el | J11: Andel | K11: Före kg CO2 ekv/m2,år | L11: Efter ändr. kg CO2 ekv/m2,år | M11: kg Cu-e/kWh | N11: Utarmning kg Cu-e/kg | O11: =Basdata!L14 -> Stockholm | P11: =Klimatdata!Q54 -> 6.116666667 | Q11: -16.2 | S11: ='Energi em'!A15 -> Fjärrvärme - Bollnäs
A12: Energibehov för värme och kyla | B12: Transmissionsförluster under uppvärmningssäsongen | D12: =IF(C4=0,0,'Energibalans 1'!T22) -> 0 | E12: ='Energibalans 2'!T22 -> 0 | F12: - | G12: =IF(C4=0,0,D12/C$4) -> 0 | H12: =IF(C$4=0,0,E12/C4) -> 0 | I12: =IF(Basdata!C13="Tom",Basdata!C14,Basdata!C13) -> 0 | J12: 1 | K12: =IF(Basdata!D$13=0,0,G12*J12*IF(I12="Ingen",0,VLOOKUP($I12,Energy_emissions,21))/1000) -> 0 | L12: =H12*J12*IF(I12=0,0,VLOOKUP($I12,Energy_emissions,21))/1000 -> 0 | O12: =Basdata!L15 -> Västerås | P12: 6 | Q12: -18 | S12: ='Energi em'!A16 -> Fjärrvärme - Falun
O13: =Basdata!L16 -> Östersund | P13: =Klimatdata!Q105 -> 2.608333333 | Q13: -24.4 | S13: ='Energi em'!A21 -> Fjärrvärme - Ljusdal
B14: Ventilationsförluster under uppvärmningssäsongen | D14: =IF('Energibalans 1'!T39=0,0,'Energibalans 1'!T39) -> 0 | E14: ='Energibalans 2'!T39 -> 0 | F14: - | G14: =IF(C4=0,0,D14/C$4) -> 0 | H14: =IF(C$4=0,0,E14/C4) -> 0 | I14: =IF(Basdata!C13="Tom",Basdata!C14,Basdata!C13) -> 0 | J14: 1 | K14: =IF(Basdata!D$13=0,0,G14*J14*IF(I14="Ingen",0,VLOOKUP($I14,Energy_emissions,21))/1000) -> 0 | L14: =H14*J14*IF(I14=0,0,VLOOKUP($I14,Energy_emissions,21))/1000 -> 0 | S14: ='Energi em'!A28 -> Fjärrvärme - Sollentuna
S15: ='Energi em'!A34 -> Fjärrvärme 60% Naturg. 40% VP
B16: Transmissions- och ventilationsförluster | D16: =D12+D14 -> 0 | E16: =E12+E14 -> 0 | F16: - | G16: =IF(C4=0,0,D16/C4) -> 0 | H16: =SUM(H12:H15) -> 0 | K16: =SUM(K12:K15) -> 0 | L16: =SUM(L12:L15) -> 0 | S16: ='Energi em'!A35 -> Fossilbränsle - eldningsolja
B17: Internvärme från människor och apparater | D17: =IF(C4=0,0,'Energibalans 1'!T45) -> 0 | E17: ='Energibalans 2'!T45 -> 0 | F17: - | G17: =IF(C4=0,0,D17/C$4) -> 0 | H17: =IF(C$4=0,0,E17/C$4) -> 0 | I17: =I12 -> 0 | J17: 1 | K17: =IF(Basdata!D$13=0,0,G17*J17*IF(I17="Ingen",0,VLOOKUP($I17,Energy_emissions,21))/1000) -> 0 | L17: =H17*J17*IF(I17=0,0,VLOOKUP($I17,Energy_emissions,21))/1000 -> 0 | S17: ='Energi em'!A36 -> Fossilbränsle - kol
B18: Tillgodogjord solvärme genom fönster | D18: =IF(C4=0,0,'Energibalans 1'!T31) -> 0 | E18: ='Energibalans 2'!T31 -> 0 | F18: - | G18: =IF(C4=0,0,D18/C$4) -> 0 | H18: =IF(C$4=0,0,E18/C$4) -> 0 | I18: =I12 -> 0 | J18: 1 | K18: =IF(Basdata!D$13=0,0,G18*J18*IF(I18="Ingen",0,VLOOKUP($I18,Energy_emissions,21))/1000) -> 0 | L18: =H18*J18*IF(I18=0,0,VLOOKUP($I18,Energy_emissions,21))/1000 -> 0 | S18: ='Energi em'!A37 -> Fossilbränsle - torv
B19: Värmebehov för rumsuppvärmning | D19: =D16+D17+D18 -> 0 | E19: =E16+E17+E18 -> 0 | F19: - | G19: =G16+G17+G18 -> 0 | H19: =H16+H17+H18 -> 0 | J19: Summa | K19: =K16+K17+K18 -> 0 | L19: =L16+L17+L18 -> 0 | S19: ='Energi em'!A38 -> Fossilbränsle -naturgas
B20: Energi för kylning | S20: ='Energi em'!A39 -> Solfångare - plana
B21: Värmebehov för varmvatten | D21: =Basdata!I92*C4 -> 0 | E21: =Undersök!H67 -> 0 | F21: - | G21: =IF(C4=0,0,D21/C$4) -> 0 | H21: =IF(C$4=0,0,E21/C$4) -> 0 | I21: =I12 -> 0 | J21: =J12 -> 1 | K21: =IF(Basdata!D$13=0,0,G21*J21*IF(I21="Ingen",0,VLOOKUP($I21,Energy_emissions,21))/1000) -> 0 | L21: =H21*J21*IF(I21=0,0,VLOOKUP($I21,Energy_emissions,21))/1000 -> 0 | O21: Varmvatten+ uppvärmning | S21: ='Energi em'!A40 -> Träbränsle - flis
L22: =H22*J22*IF(I22="Ingen",0,VLOOKUP($I22,Energy_emissions,21))/1000 ->  | O22: 1771 | P22: =-O22*VLOOKUP(I14,Energy_emissions,21)/1000 ->  | S22: ='Energi em'!A41 -> Träbränsle - panna 100 kW
B23: Totalt värmebehov | D23: =D19+D21 -> 0 | E23: =E19+E21 -> 0 | F23: - | G23: =G19+G21 -> 0 | H23: =H19+H21 -> 0 | J23: Summa uppvärmning | K23: =SUM(K19:K22) -> 0 | L23: =L19+L21 -> 0 | O23: El vid VP | S23: ='Energi em'!#REF! -> 
B24: Energisparåtgärder (lågenergiutr., byggnadsautomat.) värme | E24: =Undersök!H83 -> 0 | H24: =IF(C$4=0,0,E24/C4) -> 0 | I24: =I12 -> 0 | J24: =J12 -> 1 | L24: =H24*J24*IF(I24=0,0,VLOOKUP($I24,Energy_emissions,21))/1000 -> 0 | O24: =O22/(1+Basdata!C98) -> 1771 | S24: ='Energi em'!A44 -> 0
B25: -"- el | E25: =Undersök!K83 -> 0 | F25: =Undersök!K81+Undersök!K82 -> 0 | H25: =IF(C$4=0,0,(F25)/C$4) -> 0 | I25: =I30 -> 0 | J25: =J30 -> 1 | L25: =H25*J25*IF(I25=0,0,VLOOKUP($I25,Energy_emissions,21))/1000 -> 0 | O25: OM(Undersök!C48<>Undersök!D48;OM(Undersök!D48="ja";-2;2);0)+Basdata!I92)
B26: Lokal energitillförsel (värmepumpar) | D26: =(Basdata!F97) -> 0 | E26: =SUM(Undersök!H91:H93) -> 0 | F26: =Undersök!K92+Undersök!K91+Undersök!K93 -> 0 | G26: =IF(C4=0,0,D26/C$4) -> 0 | H26: =IF(C$4=0,0,(E26)/C$4) -> 0 | I26: =I29 -> 0 | J26: =J29 -> 1 | K26: =IF(Basdata!D$13=0,0,G26*J26*IF(I26="Ingen",0,VLOOKUP($I26,Energy_emissions,21))/1000) -> 0 | L26: =H26*J26*IF(I26=0,0,VLOOKUP($I26,Energy_emissions,21))/1000 -> 0 | O26: =D29+IF(Undersök!C49<>Undersök!D49,IF(Undersök!D49="ja",Basdata!E101,-Basdata!E101),0) -> 0
B27: Solvärme | D27: ='Energibalans 1'!S55 -> 0 | E27: =Undersök!H86 -> 0 | G27: =IF(C4=0,0,D27/C$4) -> 0 | H27: =IF(C$4=0,0,(E27+F27)/C$4) -> 0 | I27: =IF((G27+H27)=0,0,'Energi em'!A39) -> 0 | J27: =J12 -> 1 | K27: =G27*J27*IF(I27="Ingen",0,VLOOKUP('Energi em'!A39,Energy_emissions,21))/1000 -> 0 | L27: =-H27*J27*IF(I27="Ingen",0,VLOOKUP('Energi em'!A39,Energy_emissions,21))/1000 -> 0 | N27: =K27*C$4 -> 0 | X27: =SUM(D24:D27)+D31+D32 -> 0
B28: Värmebalans | D28: =SUM(D23:D27) -> 0 | E28: =SUM(E23:E27) -> 0 | F28: - | G28: =IF(C$4=0,0,D28/C4) -> 0 | H28: =IF(C$4=0,0,E28/C4) -> 0 | J28: Summa värmebalans | K28: =SUM(K23:K27) -> 0 | L28: =SUM(L23:L27) -> 0 | N28: =K28*C$4 -> 0
B29: Fastighetsel | D29: =(Basdata!I8*Basdata!J93+Basdata!E101) -> 0 | E29: - | F29: =D29+Undersök!K82 -> 0 | G29: =IF(C4=0,0,D29/C$4) -> 0 | H29: =IF(C$4=0,0,F29/C$4) -> 0 | I29: =Basdata!C14 -> 0 | J29: 1 | K29: =IF(I29=0,0,G29*J29*(VLOOKUP(I29,Energy_emissions,21))/1000) -> 0 | L29: =H29*J29*IF(I29=0,0,VLOOKUP($I29,Energy_emissions,21))/1000 -> 0 | N29: =K29*C$4 -> 0
B30: Brukarel (hyresgästel) | D30: =IF(Basdata!C7="Lokal",0,C4*Basdata!I94) -> 0 | E30: - | F30: =D30+Undersök!K81 -> 0 | G30: =IF(C4=0,0,D30/C$4) -> 0 | H30: =IF(C$4=0,0,F30/C$4) -> 0 | I30: =Basdata!C14 -> 0 | J30: 1 | K30: =IF(I30=0,0,G30*J30*(VLOOKUP(I30,Energy_emissions,21))/1000) -> 0 | L30: =H30*J30*IF(I30=0,0,VLOOKUP($I30,Energy_emissions,21))/1000 -> 0 | N30: 0 | S30: ∑(U*A)*ΔT*h | T30: c*ρ=1,21/3,6 W/m3,K
B31: Solel (eget utnyttjande) | D31: ='Energibalans 1'!S72 -> 0 | E31: - | F31: ='Energibalans 2'!S72 -> 0 | G31: =IF(C$4=0,0,D31/C$4) -> 0 | H31: 0 | I31: =IF((G31+H31)=0,0,'Energi em'!A10) -> 0 | J31: =IF(Basdata!D13>0,Basdata!D14,1) -> 1 | K31: =-IF(I31=0,0,G31*J31*(VLOOKUP(I31,Energy_emissions,21))/1000) -> 0 | L31: =-H31*J31*IF(I31=0,0,VLOOKUP($I31,Energy_emissions,21))/1000 -> 0 | N31: 0
B32: Vindel | D32: =Undersök!J88 -> 0 | F32: =Undersök!K88 -> 0 | G32: =IF(C$4=0,0,D32/C$4) -> 0 | H32: 0 | I32: =IF((G32+H32)=0,0,'Energi em'!A14) -> 0 | J32: =IF(Basdata!D13>0,Basdata!D14,1) -> 1 | K32: =IF(I32=0,0,G32*J32*(VLOOKUP(I32,Energy_emissions,21))/1000) -> 0 | L32: =-H32*J32*IF(I32=0,0,VLOOKUP($I32,Energy_emissions,21))/1000 -> 0 | N32: 0
B33: Elbalans | D33: =D31+D29+D30+D32 -> 0 | E33: - | F33: =SUM(F29:F32) -> 0 | G33: =IF(C4=0,0,D33/C$4) -> 0 | H33: =IF(C$4=0,0,F33/C4) -> 0 | J33: Summa el | K33: =SUM(K29:K32) -> 0 | L33: =H33*J33*IF(I33="Ingen",0,VLOOKUP($I33,Energy_emissions,21))/1000 ->  | N33: 0
B34: Totalt energibehov | D34: =D28+D33 -> 0 | E34: =E28+F33 -> 0 | G34: =IF(C4=0,0,D34/C$4) -> 0 | H34: =IF(C$4=0,0,E34/C4) -> 0 | J34: Total klimatpåverkan | K34: =K28+K33 -> 0 | L34: =SUM(L24:L33) ->  | N34: =SUM(N28:N33) -> 0
B35: Totalt energibehov exklusive brukarel | D35: =D34-D30 -> 0 | E35: =E34-Undersök!F110 -> 0 | G35: =G34-G30 -> 0 | H35: =IF(C$4=0,0,E35/C4) -> 0 | J35: Total klimatpåverkan, tonCO2e/år | K35: =K34*C4/1000 -> 0 | N35: =SUM(K28:K33) -> 0 | O35: Östersund | P35: 2.9 | R35: ACR*V*c*ρ*(1-η)*ΔT*h
P36: Ja | R36: Trans-mission | S36: 0
B37: DATA FÖR BERÄKNING AV RUMSUPPVÄRMNNG | P37: Nej | R37: Ventilation | S37: 0.1 | T37: 0 | U37: 0
C38: Heat loss factor, W/K U*A*konst | D38: Från Undersök - Efter ändring | E38: VFT, Effekt vid dim temp vinter, W/m2 Atemp | F38: Efter | G38: Omslutnings-area, m2 | H38: Omslutnings-area, m2 | J38: Mean U-value, W/m2,K | K38: Umedel från Undersök | P38: Enkel | R38: 0 | S38: 0.2 | T38: 0.05 | U38: 0.5
B39: Bottenbjälklag, golv mot mark | C39: =G39*J39*0.61 -> 0 | D39: =G39*K39*0.61 -> 0 | E39: =IF(C$4=0,0,C39*($C$8-VLOOKUP($C$3,Temperaturer,3))/$C$4) -> 0 | F39: =IF(C$4=0,0,D39*($C$8-VLOOKUP($C$3,Temperaturer,3))/$C$4) -> 0 | G39: =Basdata!I55 -> 0 | H39: =G39 -> 0 | J39: =IF(Basdata!D64>0,Basdata!I64,IF(Konstruktion!B53>0,Konstruktion!B53,Basdata!I64)) -> 0 | K39: =Undersök!D29 -> 0 | P39: Avancerad | R39: 0.75 | S39: yes | T39: 0.1 | U39: 0.75
B40: Yttervägg mot mark | C40: =G40*J40*0.61 -> 0 | D40: =G40*K40*0.61 -> 0 | E40: 0 | F40: 0 | G40: =Basdata!I57 -> 0 | H40: =G40 -> 0 | J40: =IF(Basdata!D65>0,Basdata!D65,IF(Konstruktion!B88>0,Konstruktion!B88,Basdata!I65)) -> 0 | K40: =Undersök!D30 -> 0 | P40: No | S40: no | T40: 0.15
B41: Vindsbjälklag + yttertak | C41: =G41*J41 -> 0 | D41: =G41*K41 -> 0 | E41: 0 | F41: 0 | G41: =Basdata!I53 -> 0 | H41: =G41 -> 0 | J41: =IF(OR(Basdata!D62>0,Basdata!D63>0),Basdata!J62,IF(Konstruktion!B180>0,Konstruktion!B180,Basdata!J62)) -> 0 | K41: =Undersök!D32 -> 0
B42: Ytterväggar | C42: =G42*J42 -> 0 | D42: =G42*K42 -> 0 | E42: 0 | F42: 0 | G42: =Basdata!I48 -> 0 | H42: =SUM(G42:G44)-H43-H44 -> 0 | J42: =IF(Basdata!D61>0,Basdata!D61,IF(Konstruktion!B241>0,Konstruktion!B241,Basdata!C61)) -> 0 | K42: =Undersök!D31 -> 0 | P42: Yes - existing building | T42: CO2 kgeq/m2,yr
B43: Fönster | C43: =G43*J43 -> 0 | D43: =G43*K43 -> 0 | E43: 0 | F43: 0 | G43: =Basdata!I46 -> 0 | H43: =IF(Undersök!E41="",Basdata!I46,Undersök!E41*Basdata!I8) -> 0 | J43: =IF(Basdata!D66>0,Basdata!D66,IF(Konstruktion!B366>0,Konstruktion!B366,Basdata!I66)) -> 0 | K43: =Undersök!D34 -> 0 | P43: Yes - new building | S43: CO2 kgeq/yr
B44: Ytterdörrar | C44: =G44*J44 -> 0 | D44: =G44*K44 -> 0 | E44: 0 | F44: 0 | G44: =Basdata!I47 -> 0 | H44: =IF(Undersök!E42>0,Undersök!E42*Basdata!I8,Basdata!I47) -> 0 | J44: =IF(Basdata!D67>0,Basdata!D67,IF(Konstruktion!B405>0,Konstruktion!B405,Basdata!I67)) -> 0 | K44: =Undersök!D35 -> 0
B45: Köldbryggor | C45: =Basdata!I68*SUM(C39:C44) -> 0 | D45: =Basdata!I68*SUM(D39:D44) -> 0 | E45: 0 | F45: 0 | G45: - | J45: =Basdata!I68 -> 0.1 | K45: =Undersök!D36 -> 0.1
B46: Transmission - totalt | C46: =SUM(C39:C45) -> 0 | D46: =SUM(D39:D45) -> 0 | E46: =SUM(E39:E45) -> 0 | F46: =SUM(F39:F45) -> 0 | G46: =SUM(G39:G44) -> 0 | H46: =SUM(H39:H44) -> 0 | I46: Medel exkl. köldbryggor | J46: =IF(G46=0,0,SUM(C39:C44)/G46) -> 0 | K46: =IF(H46=0,0,SUM(D39:D44)/H46) -> 0 | P46: kWh/yr | Q46: kWh/yr,m2 | R46: kWh/user,yr
B47: Ventilation | C47: =0.34*3.6*C6*C4*(1-C7) -> 0 | D47: =IF(Undersök!D50="nej",C47,34*3.6*C6*C4*(1-Undersök!D50)) -> 0 | E47: =IF(C3=0,0,$C6*(C8-VLOOKUP(C3,Temperaturer,3))*0.34*3.6*(1-Basdata!I41)) -> 0 | F47: =IF(Undersök!D50="nej",Energi!E47,$C6*(Basdata!I39-VLOOKUP(C3,Temperaturer,3))*0.34*3.6*(1-Undersök!D50)) -> 0 | I47: Medel inkl köldbryggor | J47: =IF(G46=0,0,C46/G46) -> 0
B48: Totalt | C48: =SUM(C46:C47) -> 0 | D48: =SUM(D46:D47) -> 0 | E48: =E47+E46 -> 0 | F48: =F47+F46 -> 0 | O48: +10 | P48: yes
B49: Specifikt Värmeförlusttal (W/K,m2 Atemp) | C49: =IF(C4=0,0,C48/C4) -> 0 | D49: =IF(C4=0,0,D48/C4) -> 0 | P49: no
C50: Byggnaden, kW | E50: =E48*C4/1000 -> 0 | F50: =F48*C4/1000 -> 0
C51: "Gratisvärme", kW | E51: =-Basdata!C88*C4/1000 -> 0 | F51: =-'Energibalans 2'!E44*C4/1000 -> 0
B52: Effektbehov - uppvärmning + ventilation, kW | E52: =E50+E51 -> 0 | F52: =F50+F51 -> 0 | G52: Medeleffekt vv, kW | O52: =N54*G$12 -> 0
C53: Effekt varmvatteberedare, kW | E53: =IF(Energi!G53<1,2*G53,Energi!G53) -> 0 | F53: =IF(Energi!H53<1,2*H53,Energi!H53) -> 0 | G53: =Basdata!I92*C4/(24*365) -> 0 | H53: =G53*(1-Undersök!C67) -> 0 | O53: =N55*G$12 -> 0
D54: Summa effektbehov, kW | E54: =E52+E53 -> 0 | F54: =F52+F53 -> 0 | O54: =N56*G$12 -> 0 | P54: Årlig solinstrålning (kWh/m2): IPH
D55: Summa effektbehov, W/m2 Atemp | E55: =IF(C$4=0,0,E54/$C4*1000) -> 0 | F55: =IF(C$4=0,0,F54/$C4*1000) -> 0 | O55: 0 | P55: Ort | Q55: Norr | R55: Öster | S55: Söder | T55: Väster
D56: Motsv. tempdiff. oC | E56: =IF(C$4=0,0,E54*1000/($C6*$C4*3.6*0.34)) -> 0 | F56: =IF(C$4=0,0,F54*1000/($C6*$C4*3.6*0.34)) -> 0 | O56: 0 | P56: Stockholm | Q56: 140 | R56: 285 | S56: 510 | T56: 287
D57: '-"- utan vent. | E57: =E46*C4/1000 -> 0 | F57: =F46*C4/1000 -> 0 | O57: 0
D58: Max Effektbehov luftvärmepump, kW | E58: =IF(C3=0,0,$C6*$C4*3.6*($C$8-VLOOKUP($C$3,Temperaturer,3))*0.34/1000) -> 0 | F58: =IF(C3=0,0,$C6*$C4*3.6*($C$8-VLOOKUP($C$3,Temperaturer,3))*0.34/1000) -> 0 | O58: 0
D59: Max Effektbehov luftvärmepump, W/m2, Atemp | E59: =IF(C4=0,0,E58*0.8/$C$4*1000) -> 0 | F59: =IF(C4=0,0,F58*0.8/$C$4*1000) -> 0 | O59: 0

Sheet Undersök
B1: URSPRUNGLIG KONSTRUKTION | C1: Typ | E1: m2 Atemp | F1: Beräkningsperiod, år | I1: Formfaktor | L1: Tot takyta, m2 | O1: Våningshöjd,m
C2: =Basdata!C7 -> 0 | E2: =Basdata!I8 -> 0 | F2: =Basdata!I37 -> 50 | I2: =Basdata!F9 -> 0 | L2: =Basdata!I53 -> 0 | O2: =Basdata!I60 -> 2.8
B3: Ändra värden i ljusbå celler | C3: Observera att ändringsvärden är relativa. De verkliga värden är annorlunda eftersom åtgärder ändrar uppvärmningssäsongens längd.
C4: Energianvändning | F4: Klimatpåverkan driftenergi | L4: Klimatpåverkan byggmaterial | R4: Kostnad Driftenergi
B5: BERÄKNINGSRESULTAT | C5: kWh/m2,år | D5: kWh/m2,år | E5: kWh/m2,år | F5: Före | I5: Efter | L5: kgCO2e/m2,år Modul A1-A3 | R5: Kr/m2,år
C6: Före ändring | E6: Efter ändring | F6: kgCO2e/m2,år | L6: Före ändring | O6: Efter ändring | R6: Efter ändring
B7: Transmissionsförluster | C7: =E105 -> 0 | E7: =G105 -> 0 | F7: =I116 -> 0 | I7: =L116 -> 0 | L7: =O107 -> 0 | O7: =R107 -> 0 | R7: =-E7*Basdata!I$14 -> 0
B8: Ventilationsförluster | C8: =E106 -> 0 | E8: =G106 -> 0 | F8: kgCO2e/m2 och beräkningsperiod, år | L8: kgCO2e/m2 Modul A1-A3 | R8: =-E8*Basdata!I$14 -> 0
B9: Solvärme genom fönster + spillvärme | C9: =E107 -> 0 | E9: =G107 -> 0 | F9: =F7*F2 -> 0 | I9: =I7*F2 -> 0 | L9: =L7*F2 -> 0 | O9: =Q107 -> 0
B10: Varmvatten | C10: =E108 -> 0 | E10: =G108 -> 0 | F10: Tot. under beräkningsper.,ton CO2e | R10: =-E10*Basdata!I$14 -> 0
B11: Fastighetsel | C11: =IF(E$2=0,0,Energi!D29/E$2) -> 0 | E11: =IF(E$2=0,0,F109/E2) -> 0 | F11: =F9*E2/1000 -> 0 | I11: =I9*E2/1000 -> 0 | L11: Totalt material, ton CO2e | R11: =-E11*Basdata!I$15 -> 0
B12: Brukarel | C12: =IF(E$2=0,0,Energi!D30/E$2) -> 0 | E12: =IF(E$2=0,0,F110/E2) -> 0 | F12: Uppvärmningsperiod (ej varmvatten), dagar/år | L12: =N107/1000 -> 0 | O12: =P107/1000 -> 0 | R12: =-E12*Basdata!I$15 -> 0
B13: Summa energibehov - uppvärmning + el | C13: =SUM(C7:C12) -> 0 | E13: =SUM(E7:E12) -> 0 | F13: ='Energibalans 1'!S49 -> 0 | I13: ='Energibalans 2'!S49 -> 0 | R13: =-E13*Basdata!I$15 -> 0
B14: Sparåtgärder och lokal energitillförsel | C14: =E112+E113 -> 0 | E14: =G112+G113 -> 0 | F14: Solvärme | L14: TOTALT ENERGI + MATERIAL
B15: Köpt energi (Klimatpåv. för köpt och egen energi) | C15: =C13+C14 -> 0 | E15: =E13+E14 -> 0 | F15: Egenanvändning | L15: Före | O15: Efter
B16: -"- utan brukarel | C16: =C15-C12 -> 0 | E16: =E15-E12 -> 0 | F16: ='Energibalans 1'!T55 -> 0 | I16: ='Energibalans 2'!T55 -> 0 | L16: =F11+L12 -> 0 | M16: =G11+M12 -> 0 | N16: =H11+N12 -> 0 | O16: =I11+O12 -> 0 | R16: =-E16*Basdata!I$15 -> 0
B17: Uppvärmning, ventilation och fastighetsel | C17: =-H121 -> 0 | E17: =-J121 -> 0 | F17: Antal dagar med överproduktion
B18: Primärenergital, kWh/m2,år (EPpet) | C18: =(E114+1.6*E115) -> 0 | E18: =(G114+1.6*G115) -> 0 | F18: =Interpolering!H372 -> 0 | I18: =Interpolering!T372 -> 0
B19: Max värmeeffektbehov, uppv. + vent., W/m2 | C19: =IF(E$2=0,0,Energi!E52/E$2*1000) -> 0 | E19: =IF(E$2=0,0,Energi!F52/E$2*1000) -> 0 | F19: Solel | J19: Egen el - självförsörjningsgrad | L19: kgCO2-e/m2,år
B20: Max eleffektbeh. för värmep. luft-luft, W/m2 | C20: =IF(Energi!E59=0,0,Energi!E59) -> 0 | E20: =Energi!F59 -> 0 | F20: Egenanvändning | L20: =(F7+L7) -> 0 | O20: =I7+O7 -> 0
B21: Specifik Eleffekt, W/m2Atemp | C21: =IF(E$2=0,0,Energi!E54*1000/E2) -> 0 | E21: =IF(E$2=0,0,1000*Energi!F54/E2) -> 0 | F21: ='Energibalans 1'!$T$71 -> 0 | I21: ='Energibalans 2'!T71 -> 0 | J21: Före | K21: Efter | L21: Totalt för beräkningsperioden ton CO2-e
B22: Specifikt Värmeförlusttal, W/m2Atemp,K | C22: =Energi!C49 -> 0 | E22: =Energi!D49 -> 0 | F22: Antal dagar med överproduktion | J22: ='Energibalans 1'!T73 -> 0 | K22: ='Energibalans 2'!T73 -> 0 | L22: =(L20*F2*E2)/1000 -> 0 | O22: =(O20*E2*F2)/1000 -> 0
B23: Medel U-värde, W/m2,K | C23: =Energi!J46 -> 0 | E23: =Energi!K46 -> 0 | F23: =Interpolering!K372 -> 0 | I23: =Interpolering!W372 -> 0 | AI23: nej
B25: UNDERSÖK-FÖRÄNDRINGAR | G25: ENERGIANVÄNDNING | M25: KLIMATPÅVERKAN DRIFT | S25: KLIMATPÅV. MTRL | V25: Vikt tilläggisolering | W25: Kolinlagring | AI25: enkel
G26: kWh/år | H26: kWh/år | I26: kWh/år | J26: kWh/år | K26: kWh/år | L26: kWh/år | M26: kg CO2-e | N26: kg CO2-e | O26: kg CO2-e | P26: kg CO2-e | Q26: kg CO2-e | R26: kg CO2-e | S26: kg CO2-e | T26: kg CO2-e | U26: kg CO2-e | V26: kg | W26: kgCO2e | AI26: avancerad
B27: VÄRMEFÖRLUSTER BYGGNADSSKAL | G27: Värme | J27: El (fast.+brukar) | M27: Driftenergi värme | P27: Driftenergi el | S27: Byggmaterial | U27: Byggmaterial
B28: U-värden; W/m2,K | C28: Före ändring | D28: Använt | G28: Före | H28: Efter | I28: Ändring | J28: Före | K28: Efter | L28: Ändring | M28: Före | N28: Efter | O28: Ändring | P28: Före | Q28: Efter | R28: Ändring | S28: Före | T28: Efter | U28: Ändring | AI28: Hjälpberäkning U-värde tak
B29: Golv mot mark | C29: =Energi!J39 -> 0 | D29: =IF(C29=0,0,IF(E29>0,1/(E29/0.04/1000+1/C29),IF(F29='Golv, vägg mot mark'!B3,'Golv, vägg mot mark'!F15,IF(F29='Golv, vägg mot mark'!B4,'Golv, vägg mot mark'!F32,IF(F29='Golv, vägg mot mark'!B5,'Golv, vägg mot mark'!F53,1/(1/C29+E29/0.04/1000)))))) -> 0 | G29: ='Energibalans 1'!S13*'Energibalans 1'!V22 -> 0 | H29: ='Energibalans 2'!S13*'Energibalans 2'!V22 -> 0 | I29: =H29-G29 -> 0 | J29: Ingen elanvändning | L29: Ingen elanvänd-ning | M29: =IF(G29=0,0,G29*(VLOOKUP(IF($E$99>0,$E$99,$C$99),Energy_emissions,21,FALSE))/1000) -> 0 | N29: 0 | O29: =N29-M29 -> 0 | P29: Ingen elanvändning | R29: Ingen elanvändning | S29: =Konstruktion!K53 -> 0 | T29: =Konstruktion!K53+IF(E29>0,E29/1000*40*0.19*Basdata!I55,IF(F29='Golv, vägg mot mark'!B3,'Golv, vägg mot mark'!G16,IF(F29='Golv, vägg mot mark'!B4,'Golv, vägg mot mark'!G33,IF(F29='Golv, vägg mot mark'!B5,'Golv, vägg mot mark'!G54,Konstruktion!K53)))-Konstruktion!K53) -> 0 | U29: =T29-S29 -> 0 | V29: =U29/0.19 -> 0 | W29: =-V29*Z$32 -> 0 | AI29: =IF(F32=Yttertak!B3,Yttertak!C29,IF(F32=Yttertak!B4,Yttertak!C53,IF(F32=Yttertak!B5,Yttertak!C75,IF(F32=Yttertak!B6,Yttertak!C94,IF(F32=Yttertak!B7,Yttertak!C112,0))))) -> 0 | AJ29: =IF(AI29+AI30=0,0,1/(1/AI29+IF(AI30=0,0,1/AI30))) -> 0
B30: Källarväggar mot mark | C30: =IF(Energi!G40=0,0,Energi!J40) -> 0 | D30: =IF(C30=0,0,IF(E30>0,1/(E30/0.04/1000+1/C30),IF(F30='Golv, vägg mot mark'!B64,'Golv, vägg mot mark'!F76,IF(F30='Golv, vägg mot mark'!B65,'Golv, vägg mot mark'!F96,IF(C30=0,0,1/(1/C30+E30/0.04/1000)))))) -> 0 | G30: ='Energibalans 1'!S14*'Energibalans 1'!V22 -> 0 | H30: ='Energibalans 2'!S14*'Energibalans 2'!V22 -> 0 | I30: =H30-G30 -> 0 | M30: 0 | N30: 0 | O30: =N30-M30 -> 0 | S30: =Konstruktion!K88 -> 0 | T30: =Konstruktion!K70+IF(E30>0,E30/1000*40*0.19*Basdata!I57,IF(F30='Golv, vägg mot mark'!B64,'Golv, vägg mot mark'!G77,IF(F30='Golv, vägg mot mark'!B65,'Golv, vägg mot mark'!G97,Konstruktion!K70))-Konstruktion!K70) -> 0 | U30: =T30-S30 -> 0 | V30: =U30/0.19 -> 0 | W30: =-V30*Z$32 -> 0 | Y30: Värdering av Kolinlagring | AI30: =IF(F33=Vindsbjälklag!B3,Vindsbjälklag!F16,IF(F33=Vindsbjälklag!B4,Vindsbjälklag!F30,IF(F33=Vindsbjälklag!B5,Vindsbjälklag!F45,0))) -> 0
B31: Ytterväggar | C31: =Energi!J42 -> 0 | D31: =IF(C31=0,0,IF(E31>0,1/(E31/0.04/1000+1/C31),IF(F31=Ytterväggar!B4,Ytterväggar!F15,IF(F31=Ytterväggar!B5,Ytterväggar!F29,IF(F31=Ytterväggar!B6,Ytterväggar!F50,IF(F31=Ytterväggar!B7,Ytterväggar!F69,1/(1/C31+E31/0.04/1000))))))) -> 0 | G31: ='Energibalans 1'!S15*'Energibalans 1'!V22 -> 0 | H31: ='Energibalans 2'!S15*'Energibalans 2'!V22 -> 0 | I31: 0 | M31: 0 | N31: 0 | O31: 0 | S31: =Konstruktion!K241 -> 0 | T31: =IF(C41=0,0,(D41/C41)*Konstruktion!K241+IF(E31>0,E31/1000*40*0.19*Basdata!I48,IF(F31=Ytterväggar!B4,Ytterväggar!G16,IF(F31=Ytterväggar!B5,Ytterväggar!G30,IF(F31=Ytterväggar!B6,Ytterväggar!G51,IF(F31=Ytterväggar!B7,Ytterväggar!G70,(D41/C41)*Konstruktion!K241))))-(D41/C41)*Konstruktion!K241)) -> 0 | U31: =T31-S31 -> 0 | V31: =U31/0.19 -> 0 | W31: =-V31*Z$32 -> 0 | Y31: Livslängd | Z31: kgCO2e/kg trä | AI31: ja
B32: Yttertak + vindsbjälklag | C32: =Energi!J41 -> 0 | D32: =IF(E32>0,1/(E32/0.04/1000+1/C32),IF(AI29>0,AJ29,C32)) -> 0 | G32: ='Energibalans 1'!S16*'Energibalans 1'!V22 -> 0 | H32: ='Energibalans 2'!S16*'Energibalans 2'!V22 -> 0 | I32: 0 | M32: 0 | N32: 0 | O32: 0 | S32: =Konstruktion!K142+Konstruktion!K179 -> 0 | T32: =(Konstruktion!K106+Konstruktion!K123+Konstruktion!K160+Konstruktion!K178)+IF(E32>0,E32/1000*40*0.19*IF(Basdata!I51>0,Basdata!I51,Basdata!I53),IF(F32=Yttertak!B3,Yttertak!D30,IF(F32=Yttertak!B4,Yttertak!D30,IF(F32=Yttertak!B5,Yttertak!D76,IF(F32=Yttertak!B6,Yttertak!D95,IF(F32=Yttertak!B7,Yttertak!D113,Konstruktion!K106+Konstruktion!K123+Konstruktion!K160+Konstruktion!K178)))))-(Konstruktion!K106+Konstruktion!K123+Konstruktion!K160+Konstruktion!K178))+IF(F33=Vindsbjälklag!B3,Vindsbjälklag!G17,IF(F33=Vindsbjälklag!B4,Vindsbjälklag!G31,IF(F33=Vindsbjälklag!B5,Vindsbjälklag!G46,0))) -> 0 | U32: 0 | V32: =U32/0.19 -> 0 | W32: =-V32*Z$32 -> 0 | Y32: Lång => 50 år | Z32: 0.779875 | AI32: nej
I33: 0 | M33: 0 | N33: 0 | O33: 0 | U33: 0 | V33: =U33/0.19 -> 0 | W33: =-V33*Z$32 -> 0 | Y33: Medel 25-50 år | Z33: 0.6239 | AI33: enkel | AJ33: U fönster utan fönsterluckor
B34: Fönster | C34: =Energi!J43 -> 0 | D34: =IF(AJ34=0,0,IF(D43=0,AJ34,1/(1/AJ34+0.5*E43*'Fönster nya'!D54))) -> 0 | G34: ='Energibalans 1'!S17*'Energibalans 1'!V22 -> 0 | H34: ='Energibalans 2'!S17*'Energibalans 2'!V22 -> 0 | I34: 0 | M34: 0 | N34: 0 | O34: 0 | S34: =Konstruktion!K366 -> 0 | T34: =IF(C41=0,0,(D41/C41)*Konstruktion!K366+IF(E34>0,E34,IF(F34='Fönster nya'!B4,'Fönster nya'!D21,IF(F34='Fönster nya'!B5,'Fönster nya'!D40,(Konstruktion!K341+Konstruktion!K366)))-(Konstruktion!K341+Konstruktion!K366))+IF(F34='Fönster nya'!B6,'Fönster nya'!G55,0)) -> 0 | U34: 0 | Y34: Kort <25 år | Z34: 0.31195 | AI34: avancerad | AJ34: =IF(E34>0,E34,IF(F34='Fönster nya'!B4,'Fönster nya'!C19,IF(F34='Fönster nya'!B5,'Fönster nya'!C38,C34))) -> 0
B35: Ytterdörrar | C35: =Energi!J44 -> 0 | D35: =IF(E35>0,E35,IF(F35='Ytterdörrar nya'!B4,'Ytterdörrar nya'!C23,IF(F35='Ytterdörrar nya'!B5,'Ytterdörrar nya'!C44,IF(F35='Ytterdörrar nya'!B6,'Ytterdörrar nya'!C65,IF(F35='Ytterdörrar nya'!B7,'Ytterdörrar nya'!C84,IF(E35>0,E35,IF(R35>0,R35,C35))))))) -> 0 | G35: ='Energibalans 1'!S18*'Energibalans 1'!V22 -> 0 | H35: ='Energibalans 2'!S18*'Energibalans 2'!V22 -> 0 | I35: 0 | M35: 0 | N35: 0 | O35: 0 | S35: =Konstruktion!K404 -> 0 | T35: =IF(C42=0,0,(D42/C42)*Konstruktion!K379+IF(E35>0,E35,IF(F35='Ytterdörrar nya'!B4,'Ytterdörrar nya'!D24,IF(F35='Ytterdörrar nya'!B5,'Ytterdörrar nya'!D45,IF(F35='Ytterdörrar nya'!B6,'Ytterdörrar nya'!D66,IF(F35='Ytterdörrar nya'!B7,'Ytterdörrar nya'!D85,(Konstruktion!K379+Konstruktion!K391)))))-(Konstruktion!K379+Konstruktion!K391))) -> 0 | U35: 0 | AI35: =SUM(G29:G36) -> 0
B36: Köldbryggor | C36: =Basdata!I68 -> 0.1 | D36: =IF(E36>0,E36,C36) -> 0.1 | G36: ='Energibalans 1'!S19*'Energibalans 1'!V22 -> 0 | H36: ='Energibalans 2'!S19*'Energibalans 2'!V22 -> 0 | I36: 0 | M36: 0 | N36: 0 | O36: 0 | S36: - | T36: - | Y36: OBS! Jämför med flik Avskrivningstider | AI36: S
F37: Fastighetsel | G37: ='Energibalans 1'!S22 -> 0 | H37: ='Energibalans 2'!S22 -> 0 | I37: =H37-G37 -> 0 | J37: =Energi!D29 -> 0 | K37: =Energi!F29 -> 0 | L37: =K37-J37 -> 0 | M37: =SUM(M29:M36) -> 0 | N37: =SUM(N29:N36) -> 0 | O37: =SUM(O29:O36) -> 0 | P37: =IF(J37=0,0,J37*(VLOOKUP(IF($E$100>0,$E$100,$C$100),Energy_emissions,21,FALSE))/1000) -> 0 | Q37: =IF(K37=0,0,K37*(VLOOKUP(IF($E$100>0,$E$100,$C$100),Energy_emissions,21,FALSE))/1000) -> 0 | R37: =Q37-P37 -> 0 | S37: =SUM(S29:S36) -> 0 | T37: =SUM(T29:T36)+T44+U43 -> 0 | U37: 0 | V37: =SUM(V29:V35) -> 0 | W37: =SUM(W29:W35) -> 0 | AI37: F
F38: Brukarel | J38: =Energi!D30 -> 0 | K38: =Energi!F30 -> 0 | L38: =K38-J38 -> 0 | V38: Resultat | W38: =U37+W37 -> 0
AI39: FT
B40: FÖRLUSTER FÖNSTER OCH DÖRRAR | C40: Före ändring | D40: Använt | E40: Annat värde | F40: Energivärdena för jämförelse - de in-kluderas på andra ställen. Luckor och inglasning läggs till fönsterförlusterna. | G40: Före | H40: Efter | I40: Ändring | M40: Före | N40: Efter | O40: Ändring | P40: Före | Q40: Efter | R40: Ändring | S40: Före | T40: Efter | U40: Ändring | AJ40: Fönsterarea,tot | AK40: Sydfasad,m2 | AL40: Fönsterluckor,m2
B41: Fönsterarea (inkl. karm o båge), andel av Atemp | C41: =Basdata!G46 -> 0 | D41: =IF(E41="",C41,E41) -> 0 | G41: ='Energibalans 1'!S31+'Energibalans 1'!V17*'Energibalans 1'!S22 -> 0 | H41: ='Energibalans 2'!S31+'Energibalans 2'!V17*'Energibalans 2'!S22 -> 0 | I41: =H41-G41 -> 0 | J41: Ingen påverkan på elanvändningen | L41: Ingen elanvänd-ning | M41: =IF(G41=0,0,G41*(VLOOKUP(IF($E$99>0,$E$99,$C$99),Energy_emissions,21,FALSE))/1000) -> 0 | N41: 0 | O41: =N41-M41 -> 0 | P41: Ingen elanvändning | R41: Ingen driftel | S41: Kommer med ovan | AJ41: =D41*E2 -> 0 | AK41: =Basdata!I49-AJ43 -> 0 | AL41: =E43*AJ41*1.05 -> 0
B42: Ytterdörrsarea, andel av Atemp | C42: =Basdata!G47 -> 0 | D42: =IF(E42="",C42,E42) -> 0 | G42: ='Energibalans 1'!V18*'Energibalans 1'!S22 -> 0 | H42: ='Energibalans 2'!V18*'Energibalans 2'!S22 -> 0 | I42: =H42-G42 -> 0 | M42: 0 | N42: 0 | O42: =N42-M42 -> 0 | S42: Kommer med ovan | AJ42: Fönsterarea, S | AK42: Umedel S-fasad | AL42: Uinglasn.
B43: Fönsterluckor, andel av totala fönsterytan | C43: nej | D43: =IF(E43="",0,E43) -> 0 | G43: =G34 -> 0 | H43: =H34 -> 0 | I43: =H43-G43 -> 0 | M43: 0 | N43: 0 | O43: =N43-M43 -> 0 | S43: 0 | T43: =AL41*'Fönster nya'!D55 -> 0 | U43: =T43-S43 -> 0 | AJ43: =D57*D41*E2 -> 0 | AK43: =IF((AK41+AJ43)=0,0,AJ43/(AK41+AJ43)*C34+AK41/(AK41+AJ43)*C31) -> 0 | AL43: =IF(F44>0,F44,3) -> 3
B44: Inglasning av södersida, andel | C44: nej | D44: =IF(E44="",0,E44) -> 0 | G44: 0 | H44: ='Energibalans 2'!S20 -> 0 | I44: =H44-G44 -> 0 | M44: 0 | N44: 0 | O44: =N44-M44 -> 0 | S44: 0 | T44: =IF(E44=0,0,AK41*0.004*VLOOKUP("Glas Planglas",Mtrl_emission,21,FALSE)) -> 0 | U44: =T44-S44 -> 0 | AJ44: Specifikt. kg CO2-e/m2,år
G45: =SUM(G41:G44) -> 0 | H45: =SUM(H41:H44) -> 0 | I45: =H45-G45 -> 0 | M45: =SUM(M41:M44) -> 0 | N45: =SUM(N41:N44) -> 0 | O45: =SUM(O41:O44) -> 0 | S45: =SUM(S41:S44) -> 0 | T45: =SUM(T41:T44) -> 0 | U45: =SUM(U41:U44) -> 0 | AJ45: Fönsterbalans | AK45: =-'Energibalans 2'!S32 -> 0
B47: VENTILATIONSFÖRLUSTER | D47: Använt
B48: System | C48: =Basdata!I40 -> F | D48: =IF(F47>0,F47,C48) -> F | E48: Lista | F48: Annat värde | G48: Före | H48: Efter | I48: Ändring | J48: Före | K48: Efter | L48: Ändring | M48: Före | N48: Efter | O48: Ändring | P48: Före | Q48: Efter | R48: Ändring | S48: Före | T48: Efter | U48: Ändring
B49: Markkulvert, oC | C49: =Basdata!I100 -> nej | D49: =IF(E49>0,E49,C49) -> nej | G49: ='Energibalans 1'!S39 -> 0 | H49: =IF(C49=D49,G49,'Energibalans 2'!S39) -> 0 | I49: =H49-G49 -> 0 | J49: =J37+J38 -> 0 | K49: =J49-0.25*(H49-G49) -> 0 | L49: =K49-J49 -> 0 | M49: =IF(G49=0,0,G49*(VLOOKUP(IF($E$99>0,$E$99,$C$99),Energy_emissions,21,FALSE))/1000) -> 0 | N49: =IF(H49=0,0,H49*(VLOOKUP(IF($E$99>0,$E$99,$C$99),Energy_emissions,21,FALSE))/1000) -> 0 | O49: =N49-M49 -> 0 | P49: - | Q49: =IF(K49=0,0,K49*(VLOOKUP(IF($E$100>0,$E$100,$C$100),Energy_emissions,21,FALSE))/1000) -> 0 | R49: =IF(L49=0,0,L49*(VLOOKUP(IF($E$100>0,$E$100,$C$100),Energy_emissions,21,FALSE))/1000) -> 0 | S49: Inga uppgifter | U49: Inga uppgifter
B50: Värmeåtervinning, FTX | C50: =IF(OR(Basdata!C40=Basdata!L46,Basdata!D40=Basdata!L46),"ja","nej") -> nej | D50: =IF(C50="ja",'Energibalans 1'!F38,IF(F50>0,F50,IF(E50="enkel",0.75,IF(E50="avancerad",0.83,C50)))) -> nej | G50: ='Energibalans 1'!S39 -> 0 | H50: =IF(C50=D50,G50,'Energibalans 2'!S39) -> 0 | I50: =H50-G50 -> 0 | J50: =J37+J38 -> 0 | K50: =J50+0.25*(H50-G50) -> 0 | L50: =K50-J50 -> 0 | M50: =IF(G50=0,0,G50*(VLOOKUP(IF($E$99>0,$E$99,$C$99),Energy_emissions,21,FALSE))/1000) -> 0 | N50: =IF(H50=0,0,H50*(VLOOKUP(IF($E$99>0,$E$99,$C$99),Energy_emissions,21,FALSE))/1000) -> 0 | O50: =N50-M50 -> 0 | P50: - | Q50: =IF(K50=0,0,K50*(VLOOKUP(IF($E$100>0,$E$100,$C$100),Energy_emissions,21,FALSE))/1000) -> 0 | R50: =IF(L50=0,0,L50*(VLOOKUP(IF($E$100>0,$E$100,$C$100),Energy_emissions,21,FALSE))/1000) -> 0
B52: SUMMA VÄRMEFÖRLUSTER OCH EL SAMT KLIMATPÅVERKAN | G52: ='Energibalans 1'!S42 -> 0 | H52: ='Energibalans 2'!S42 -> 0 | I52: =H52-G52 -> 0 | J52: =J37+J38 -> 0 | K52: =K37+K38+L49+L50 -> 0 | L52: =K52-J52 -> 0 | M52: =IF(G52=0,0,G52*(VLOOKUP(IF($E$99>0,$E$99,$C$99),Energy_emissions,21,FALSE))/1000) -> 0 | N52: =IF(H52=0,0,H52*(VLOOKUP(IF($E$99>0,$E$99,$C$99),Energy_emissions,21,FALSE))/1000) -> 0 | O52: =N52-M52 -> 0 | P52: =P37 -> 0 | Q52: =Q37+Q49+Q50 -> 0 | R52: =R37+R49+R50 -> 0 | S52: =S37+S45+S46 -> 0 | T52: =T37+T45+T46 -> 0 | U52: =T52-S52 -> 0
B54: FÖNSTER SOLVÄRMETILLSKOTT under uppvärmningssäsongen | D54: Använt | E54: Annan fördeln. | F54: Annan glasandel, % | G54: Före | H54: Efter | I54: Ändring | J54: Före | K54: Efter | L54: Ändring | O54: Ändring | P54: Före | Q54: Efter | R54: Ändring | S54: Före | T54: Efter | U54: Ändring
B55: Fönsterare mot Norr | C55: =Basdata!I73 -> 0.3 | D55: =IF(E55>0,E55,C55) -> 0.3 | G55: ='Energibalans 1'!V25*'Energibalans 1'!S31 -> 0 | H55: ='Energibalans 2'!V25*'Energibalans 2'!$S$31 -> 0 | I55: =H55-G55 -> 0 | J55: Ingen påverkan på elanvändningen | L55: Ingen elanvändning | M55: =IF(G55=0,0,G55*(VLOOKUP(IF($E$99>0,$E$99,$C$99),Energy_emissions,21,FALSE))/1000) -> 0 | N55: 0 | O55: =N55-M55 -> 0 | P55: Ingen driftel | R55: Ingen driftel | S55: Endast omgruppering av fönster - Ingen klimatpåverkan från tillverkning | U55: Ingen klimatpåverkan
B56: Fönsterare mot Öster | C56: =Basdata!I74 -> 0.2 | D56: =IF(E56>0,E56,C56) -> 0.2 | G56: ='Energibalans 1'!V26*'Energibalans 1'!S$31 -> 0 | H56: ='Energibalans 2'!V26*'Energibalans 2'!$S$31 -> 0 | I56: =H56-G56 -> 0 | M56: 0 | N56: 0 | O56: =N56-M56 -> 0
B57: Fönsterare mot Söder | C57: =Basdata!I75 -> 0.3 | D57: =IF(E57>0,E57,C57) -> 0.3 | G57: ='Energibalans 1'!V27*'Energibalans 1'!S31 -> 0 | H57: ='Energibalans 2'!V27*'Energibalans 2'!$S$31 -> 0 | I57: =H57-G57 -> 0 | M57: 0 | N57: 0 | O57: =N57-M57 -> 0
B58: Fönsterare mot Väster | C58: =Basdata!I76 -> 0.2 | D58: =IF(E58>0,E58,C58) -> 0.2 | G58: ='Energibalans 1'!V28*'Energibalans 1'!S31 -> 0 | H58: ='Energibalans 2'!V28*'Energibalans 2'!$S$31 -> 0 | I58: =H58-G58 -> 0 | M58: 0 | N58: 0 | O58: =N58-M58 -> 0
B59: Tillgodogjord solstrålning | E59: =SUM(E55:E58) -> 0 | G59: =SUM(G55:G58) -> 0 | H59: =SUM(H55:H58) -> 0 | I59: =H59-G59 -> 0 | M59: =SUM(M55:M58) -> 0 | N59: =SUM(N55:N58) -> 0 | O59: =N59-M59 -> 0
B61: Spillvärme | G61: ='Energibalans 1'!S45 -> 0 | H61: ='Energibalans 2'!S45 -> 0 | I61: =H61-G61 -> 0 | J61: - | K61: - | L61: - | M61: =IF(G61=0,0,G61*(VLOOKUP(IF($E$99>0,$E$99,$C$99),Energy_emissions,21,FALSE))/1000) -> 0 | N61: =IF(H61=0,0,H61*(VLOOKUP(IF($E$99>0,$E$99,$C$99),Energy_emissions,21,FALSE))/1000) -> 0 | O61: =N61-M61 -> 0 | P61: - | Q61: - | R61: - | S61: - | T61: - | U61: -
G62: =G59+G61 -> 0 | H62: =H59+H61 -> 0 | I62: =H62-G62 -> 0 | M62: =M59+M61 -> 0 | N62: =N59+N61 -> 0 | O62: =N62-M62 -> 0
B64: VÄRMEBALANS BYGGNADSSKAL + EL | G64: ='Energibalans 1'!S48 -> 0 | H64: ='Energibalans 2'!S48 -> 0 | I64: =H64-G64 -> 0 | J64: =J52 -> 0 | K64: =K52 -> 0 | L64: =K64-J64 -> 0 | M64: =IF(G64=0,0,G64*(VLOOKUP(IF($E$99>0,$E$99,$C$99),Energy_emissions,21,FALSE))/1000) -> 0 | N64: =IF(H64=0,0,H64*(VLOOKUP(IF($E$99>0,$E$99,$C$99),Energy_emissions,21,FALSE))/1000) -> 0 | O64: =N64-M64 -> 0 | P64: =P52 -> 0 | Q64: =Q52 -> 0 | R64: =Q64-P64 -> 0 | S64: =S37+S45 -> 0 | T64: =T37+T45 -> 0 | U64: =T64-S64 -> 0
B66: VARMVATTEN | E66: Lista | F66: Annat värde | G66: Före | H66: Efter | I66: Ändring | J66: Före | K66: Efter | L66: Ändring | M66: Före | N66: Efter | O66: Ändring | P66: Före | Q66: Efter | R66: Ändring | S66: Före | T66: Efter | U66: Ändring
B67: Värmeåtervinning avloppsvatten | C67: =IF(F67>0,F67,IF(E67="enkel",0.1,IF(E67="avancerad",0.2,0 ))) -> 0 | D67: =IF(E67>0,E67,C67) -> 0 | G67: =Energi!D21 -> 0 | H67: =(1-C67)*Energi!D21 -> 0 | I67: =H67-G67 -> 0 | J67: - | K67: - | L67: - | M67: =IF(G67=0,0,G67*(VLOOKUP(IF($E$99>0,$E$99,$C$99),Energy_emissions,21,FALSE))/1000) -> 0 | N67: =IF(H67=0,0,H67*(VLOOKUP(IF($E$99>0,$E$99,$C$99),Energy_emissions,21,FALSE))/1000) -> 0 | O67: =N67-M67 -> 0 | P67: - | Q67: - | R67: - | S67: Inga uppgifter | U67: -
B68: VÄRME OCH EL TOTALT | G68: ='Energibalans 1'!S48+G67 -> 0 | H68: ='Energibalans 2'!S48+H67 -> 0 | I68: =H68-G68 -> 0 | J68: =J64 -> 0 | K68: =K64 -> 0 | L68: =K68-J68 -> 0 | M68: =IF(G68=0,0,G68*(VLOOKUP(IF($E$99>0,$E$99,$C$99),Energy_emissions,21,FALSE))/1000) -> 0 | N68: =IF(H68=0,0,H68*(VLOOKUP(IF($E$99>0,$E$99,$C$99),Energy_emissions,21,FALSE))/1000) -> 0 | O68: =N68-M68 -> 0 | P68: =IF(J68=0,0,J68*(VLOOKUP(IF($E$100>0,$E$100,$C$100),Energy_emissions,21,FALSE))/1000) -> 0 | Q68: =IF(K68=0,0,K68*(VLOOKUP(IF($E$100>0,$E$100,$C$100),Energy_emissions,21,FALSE))/1000) -> 0 | R68: =Q68-P68 -> 0 | S68: =S64 -> 0 | T68: =T64 -> 0 | U68: =T68-S68 -> 0
B70: ÖVRIG KONSTRUKTION (Enbart Klimatpåverkan) | E70: Infoga volym, m3 | F70: Välj i rullista | I70: Ändring | J70: Före | K70: Efter | L70: Ändring | M70: Före | N70: Efter | O70: Ändring | P70: Före | Q70: Efter | R70: Ändring | S70: Före | T70: Efter | U70: Ändring
B71: Mellanbjälklag | C71: =IF(Konstruktion!K257>0,"Se flik Konstruktion","") ->  | G71: Påverkar inte driftenergin | I71: Påverkar inte driftenergin | J71: Påverkar inte driftenergin | L71: Påverkar inte elanvändning | M71: Ingen driftenergi | O71: Ingen driftenergi | P71: Ingen driftenergi | Q71: Ingen driftenergi | R71: Ingen driftenergi | S71: =Konstruktion!K272 -> 0 | T71: =IF(F71>0,IF(F71=Mellanbjälklag!B3,Mellanbjälklag!F16,IF(F71=Mellanbjälklag!B4,Mellanbjälklag!F30,IF(F71=Mellanbjälklag!B5,Mellanbjälklag!F47)))*Basdata!I50,S71) -> 0 | U71: =T71-S71 -> 0
B72: Innerväggar, lägenhetsskiljande | C72: =IF(Konstruktion!K286>0,"Se flik Konstruktion","") ->  | S72: =Konstruktion!K301 -> 0 | T72: =IF(F72>0,IF(F72=Innerväggar!B3,Innerväggar!F20,IF(F72=Innerväggar!B4,Innerväggar!F35,IF(F72=Innerväggar!B5,Innerväggar!F57)))*Basdata!I58,S72) -> 0 | U72: 0
B73: Innerväggar inom lägenhet | C73: =IF(Konstruktion!K300>0,"Se flik Konstruktion","") ->  | S73: =Konstruktion!K330 -> 0 | T73: =IF(F73>0,IF(F73=Innerväggar!B6,Innerväggar!F73,IF(F73=Innerväggar!B7,Innerväggar!F88,IF(F73=Innerväggar!B8,Innerväggar!F104,IF(F73=Innerväggar!B9,Innerväggar!F120,S73))))*Basdata!I59,S73) -> 0 | U73: 0
B74: Innerdörrar | S74: =Konstruktion!K391+Konstruktion!K403 -> 0 | T74: =IF(F74>0,IF(F74=Innerväggar!B7,Innerväggar!F74,IF(F74=Innerväggar!B8,Innerväggar!F89,IF(F74=Innerväggar!B9,Innerväggar!F105,IF(F74=Innerväggar!B10,Innerväggar!F121,S74))))*Basdata!I60,S74) -> 0 | U74: 0
B75: Annat | S75: =Konstruktion!K464 -> 0 | T75: =S75+IF(E75=0,0,E75*VLOOKUP(F75,Mtrl_emission,2,FALSE)*VLOOKUP(F75,Mtrl_emission,20,FALSE)) -> 0 | U75: 0
B76: Annat | S76: =Konstruktion!K465 -> 0 | T76: =S76+IF(E76=0,0,E76*VLOOKUP(F76,Mtrl_emission,2,FALSE)*VLOOKUP(F76,Mtrl_emission,20,FALSE)) -> 0 | U76: 0
R77: Summa | S77: =SUM(S71:S76) -> 0 | T77: =SUM(T71:T76) -> 0 | U77: =SUM(U71:U76) -> 0
B79: ENERGISPARÅTGÄRDET OCH LOKAL ENERGIPRODUKTION
B80: SPARÅTGÄRDER | C80: Besparing | E80: Lista | F80: Annan spar-% | G80: Före | H80: Efter | I80: Ändring | J80: Före | K80: Efter | L80: Ändring | M80: Före | N80: Efter | O80: Ändring | P80: Före | Q80: Efter | R80: Ändring | S80: Före | T80: Efter | U80: Ändring
B81: Lågenergiutrustning | C81: nej | D81: =IF(F81>0,F81,IF(E81="enkel",0.1,IF(E81="avancerad",0.2,0))) -> 0 | G81: - | H81: - | I81: - | J81: - | K81: =-D81*Energi!D30 -> 0 | L81: =K81 -> 0 | M81: - | N81: - | O81: - | P81: - | Q81: =IF(K81=0,0,K81*(VLOOKUP(IF($E$100>0,$E$100,$C$100),Energy_emissions,21,FALSE))/1000) -> 0 | R81: =Q81 -> 0 | S81: Ingen uppgift om tillverkning | U81: Ingen uppgift
B82: Byggnadsautomatisering | C82: nej | D82: =IF(F82>0,F82,IF(E82="enkel",0.05,IF(E82="avancerad",0.1,0))) -> 0 | G82: - | H82: =-D82*Energi!E14 -> 0 | I82: =H82 -> 0 | J82: - | K82: =D82*Basdata!I93*E2 -> 0 | L82: =K82 -> 0 | M82: - | N82: =IF(H82=0,0,H82*(VLOOKUP(IF($E$99>0,$E$99,$C$99),Energy_emissions,21,FALSE))/1000) -> 0 | O82: =N82 -> 0 | P82: - | Q82: =IF(K82=0,0,K82*(VLOOKUP(IF($E$100>0,$E$100,$C$100),Energy_emissions,21,FALSE))/1000) -> 0 | R82: =Q82 -> 0
C83: Tot. takyta, m2 | F83: Summa | G83: =SUM(G81:G82) -> 0 | H83: =SUM(H81:H82) -> 0 | J83: =SUM(J81:J82) -> 0 | K83: =SUM(K81:K82) -> 0 | L83: =K83-J83 -> 0
AM84: Hälften av varmvattnet | AN84: =H67/2 -> 0
B85: ENERGITILLFÖRSEL LOKALT | C85: =Basdata!I53 -> 0 | D85: Använt | E85: Annan area | F85: Annan verkningsgrad | G85: Före | H85: Efter | I85: Ändring | J85: Före | K85: Efter | L85: Ändring | M85: Före | N85: Efter | O85: Ändring | P85: Före | Q85: Efter | R85: Ändring | S85: Före | T85: Efter | U85: Ändring | AI85: =0.5*K87 -> 0 | AJ85: =0.5*K87 -> 0 | AL85: Vindel spec
B86: Solfångare 27o lutn. mot S, m2 - egen användn. | C86: =Basdata!D107 -> 0 | D86: =IF(E86="",C86,E86) -> 0 | G86: ='Energibalans 1'!S55 -> 0 | H86: ='Energibalans 2'!S55 -> 0 | I86: =H86-G86 -> 0 | J86: - | K86: - | L86: - | M86: =-'Energibalans 1'!$F$53*(VLOOKUP('Energi em'!A39,Energy_emissions,21,FALSE))/1000 -> 0 | N86: =-'Energibalans 2'!F53*(VLOOKUP('Energi em'!A39,Energy_emissions,21,FALSE))/1000 -> 0 | O86: =N86-M86 -> 0 | P86: - | Q86: - | R86: - | S86: Klimatpåverkan för tillverkning inbakat i utsläppsvärdet | U86: Klimatpåverkan inbakat i utsläpps-värdet | AI86: =0.5*K88 -> 0 | AJ86: =0.5*K88 -> 0 | AK86: Diameter | AM86: Area, m2 | AN86: =(AL86/2)*(AL86/2)*PI() -> 0 | AO86: =K88/E2 -> 
B87: Solceller 27o lutn. mot söder, m2 -egen användn. | C87: =Basdata!D108 -> 0 | D87: =IF(E87="",C87,E87) -> 0 | G87: - | H87: - | I87: - | J87: ='Energibalans 1'!S72 -> 0 | K87: ='Energibalans 2'!S72 -> 0 | L87: =K87-J87 -> 0 | M87: - | N87: - | O87: - | P87: =-'Energibalans 1'!$F$70*(VLOOKUP('Energi em'!A10,Energy_emissions,21,FALSE))/1000 -> 0 | Q87: =-'Energibalans 2'!F70*(VLOOKUP('Energi em'!A10,Energy_emissions,21,FALSE))/1000 -> 0 | R87: =Q87-P87 -> 0
B88: Vindturbin, rotordiameter,m | C88: =Basdata!D109 -> 0 | D88: =IF(E88>0,(E88/2)*(E88/2)*PI(),(C88/2)*(C88/2)*PI()) -> 0 | G88: - | H88: - | I88: - | J88: =IF(F88>0,F88,200)*(C88/2*C88/2)*PI() -> 0 | K88: =IF(F88>0,F88,200)*D88 -> 0 | L88: =K88-J88 -> 0 | M88: - | N88: - | O88: - | P88: =-J88*(VLOOKUP('Energi em'!A14,Energy_emissions,21,FALSE))/1000 -> 0 | Q88: =-K88*(VLOOKUP('Energi em'!A14,Energy_emissions,21,FALSE))/1000 -> 0 | R88: =Q88-P88 -> 0
E89: 100 | AJ89: =K91 -> 0 | AL89: nej
B90: VÄRMEPUMPAR | C90: Värmefaktor | D90: Använt | E90: Välj annat | F90: Annan värmefaktor | G90: Före | H90: Efter | I90: Ändring | J90: Före | K90: Efter | L90: Ändring | M90: Före | N90: Efter | O90: Ändring | P90: Före | Q90: Efter | R90: Ändring | S90: Före | T90: Efter | U90: Ändring | AJ90: =K92 -> 0 | AL90: enkel
B91: Bergvärmepump | C91: =Basdata!I97 -> 0 | D91: =IF(F91>0,F91,IF(C91="ja",Basdata!C97,IF(E91="enkel",3,IF(E91="avancerad",5,0)))) -> 0 | G91: =IF(C91=0,0,Basdata!F97) -> 0 | H91: =-(H68+H86) -> 0 | I91: =H91-G91 -> 0 | J91: =Basdata!E97 -> 0 | K91: =IF(E91="",J91,IF(D91=0,0,IF(F91>0,-H91/F91,-H91/D91))) -> 0 | L91: =K91-J91 -> 0 | M91: - | N91: - | O91: - | P91: =IF(J91=0,0,J91*(VLOOKUP(IF($E$100>0,$E$100,$C$100),Energy_emissions,21,FALSE))/1000) -> 0 | Q91: 0 | R91: =Q91-P91 -> 0 | S91: Ingen uppgift om klimatpåverkan för tillverkning | U91: Ingen uppgift om klimatpåverkan för tillverkning | AJ91: =K93 -> 0 | AL91: avancerad
B92: Frånluftvärmepump | C92: =Basdata!I98 -> 0 | D92: =IF(F92>0,F92,IF(E92="enkel",2.5,IF(E92="avancerad",3,Basdata!C98))) -> 0 | G92: =IF(C92=0,0,Basdata!F98) -> 0 | H92: =IF(E92="",0,IF(F92>0,'Energibalans 2'!S57,IF(E92>0,'Energibalans 2'!S57,0))) -> 0 | I92: =H92-G92 -> 0 | J92: =Basdata!E98 -> 0 | K92: =IF(E92="",J92,IF(D92=0,0,IF(F92>0,-H92/F92,-H92/D92))) -> 0 | L92: =K92-J92 -> 0 | M92: - | N92: - | O92: - | P92: 0 | Q92: 0 | R92: =Q92-P92 -> 0
B93: Luft/luft värmepump | C93: =Basdata!I99 -> 0 | D93: =IF(F93>0,F93,IF(E93="enkel",4,IF(E93="avancerad",4.5,Basdata!C99))) -> 0 | G93: =Basdata!F99 -> 0 | H93: =IF(E93="",0,IF(D93>0,-H68,0)) -> 0 | I93: =H93-G93 -> 0 | J93: =Basdata!E99 -> 0 | K93: =IF(E93="",J93,IF(D93=0,0,IF(F93>0,-H93/F93,-H93/D93))) -> 0 | L93: =K93-J93 -> 0 | M93: - | N93: - | O93: - | P93: 0 | Q93: 0 | R93: =Q93-P93 -> 0 | AK93: Brukarel | AL93: Fastighetsel
F94: Summa besparingar och lokal tillförsel | G94: =G83+G86+G91+G92+G93 -> 0 | H94: =H83+H86+H91+H92+H93 -> 0 | I94: =H94-G94 -> 0 | J94: =J87+J88+J91+J92+J93 -> 0 | K94: =K83+K87+K88+K91+K92+K93 -> 0 | L94: =K94-J94 -> 0 | M94: =IF(G94=0,0,G94*(VLOOKUP(IF($E$99>0,$E$99,$C$99),Energy_emissions,21,FALSE))/1000) -> 0 | N94: =IF(H94=0,0,H94*(VLOOKUP(IF($E$99>0,$E$99,$C$99),Energy_emissions,21,FALSE))/1000) -> 0 | O94: =N94-M94 -> 0 | P94: =P87+P88+P91+P92+P93 -> 0 | Q94: =Q81+Q82+Q87+Q88+Q91+Q92+Q93 -> 0 | R94: =R81+R82+R87+R88+R91+R92+R93 -> 0
F95: Resultat - värme, el och byggmaterial | G95: =G68+G94 -> 0 | H95: =H68+H94 -> 0 | I95: =H95-G95 -> 0 | J95: =J68+J94 -> 0 | K95: =K68+K94 -> 0 | L95: =K95-J95 -> 0 | M95: =M68+M94 -> 0 | N95: =N68+N94 -> 0 | O95: =O68+O94 -> 0 | P95: =P68+P94 -> 0 | Q95: =Q68+Q94 -> 0 | R95: =Q94-P94 -> 0 | S95: =S68+S77 -> 0 | T95: =T68+T77 -> 0 | U95: =T95-S95 -> 0
J96: Tillförd el | K96: =J87+J88 -> 0 | L96: Använd el | M96: =J68 -> 0 | N96: Diff | O96: =K96+M96 -> 0
B98: EXTERN ENERGILEVARANTÖR | C98: Före | E98: Efter | U98: KLIMAT TOTALT
B99: Värme | C99: =Basdata!C13 -> 0 | S99: Före | T99: Efter | U99: Ändring
B100: El | C100: =Basdata!C14 -> 0 | S100: =-S95+M95+P95 -> 0 | T100: =-T95+N95+Q95 -> 0 | U100: =T100-S100 -> 0
B102: DETALJERAT REULTAT | C102: ENERGIANVÄNDNING | H102: KLIMATPÅVERKAN DRIFTENERGI | M102: KLIMATPÅVERKAN TILLVERKNING
C103: Före | E103: Före | F103: Efter | H103: Före | I103: Före | J103: Efter | L103: Efter | N103: Före | O103: Före | P103: Efter | Q103: Efter | R103: Efter
C104: kWh/år | E104: kWh/m2,år | F104: kWh/år | G104: kWh/m2,år | H104: kg CO2-e/år | I104: kg CO2-e/m2,år | J104: kg CO2-e/år | L104: kg CO2-e/m2,år | N104: kgCO-e | O104: kgCO-e/m2,år | P104: kgCO-e | Q104: kgCO-e/m2 | R104: kgCO-e/m2,år
B105: Transmissionsförluster | C105: ='Energibalans 1'!T22 -> 0 | E105: =IF(E$2=0,0,C105/E$2) -> 0 | F105: ='Energibalans 2'!T22 -> 0 | G105: =IF(E$2=0,0,F105/E$2) -> 0 | H105: =IF($C$99=0,0,C105*VLOOKUP($C$99,Energy_emissions,21)/1000) -> 0 | I105: =IF(E$2=0,0,H105/E$2) -> 0 | J105: =IF(F105=0,0,F105*VLOOKUP(IF(E$99>0,E$99,$C$99),Energy_emissions,21)/1000) -> 0 | L105: =IF(E$2=0,0,J105/E$2) -> 0 | M105: Klimatskal | N105: =S68 -> 0 | O105: =IF(E$2=0,0,N105/E$2/F$2) -> 0 | P105: =T68 -> 0 | Q105: =IF(E$2=0,0,P105/E$2) -> 0 | R105: =Q105/F$2 -> 0 | U105: Klimatskal
B106: Ventilationsförluster | C106: ='Energibalans 1'!T39 -> 0 | E106: =IF(E$2=0,0,C106/E$2) -> 0 | F106: ='Energibalans 2'!T39 -> 0 | G106: =IF(E$2=0,0,F106/E$2) -> 0 | H106: =IF($C$99=0,0,C106*VLOOKUP($C$99,Energy_emissions,21)/1000) -> 0 | I106: =IF(E$2=0,0,H106/E$2) -> 0 | J106: =IF(F106=0,0,F106*VLOOKUP(IF(E$99>0,E$99,$C$99),Energy_emissions,21)/1000) -> 0 | L106: =IF(E$2=0,0,J106/E$2) -> 0 | M106: Övrig konstr. | N106: =S$77 -> 0 | O106: =IF(E$2=0,0,N106/E$2/F$2) -> 0 | P106: =T77 -> 0 | Q106: =IF(E$2=0,0,P106/E$2) -> 0 | R106: =Q106/F$2 -> 0 | U106: Övrig konstr.
B107: Solvärme genom fönster + spillvärme | C107: ='Energibalans 1'!T31+'Energibalans 1'!T45 -> 0 | E107: 0 | F107: ='Energibalans 2'!T31+'Energibalans 2'!T45 -> 0 | G107: 0 | H107: =IF($C$99=0,0,C107*VLOOKUP($C$99,Energy_emissions,21)/1000) -> 0 | I107: 0 | J107: =IF(F107=0,0,F107*VLOOKUP(IF(E$99>0,E$99,$C$99),Energy_emissions,21)/1000) -> 0 | L107: 0 | M107: Summa | N107: =SUM(N105:N106) -> 0 | O107: 0 | P107: =SUM(P105:P106) -> 0 | Q107: 0 | R107: =SUM(R105:R106) -> 0 | U107: Summa
B108: Varmvatten | C108: =G67 -> 0 | E108: =IF(E$2=0,0,C108/E$2) -> 0 | F108: =H67 -> 0 | G108: 0 | H108: =IF($C$99=0,0,C108*VLOOKUP($C$99,Energy_emissions,21)/1000) -> 0 | I108: 0 | J108: =IF(F108=0,0,F108*VLOOKUP(IF(E$99>0,E$99,$C$99),Energy_emissions,21)/1000) -> 0 | L108: 0
B109: El för fastighetsdrift | C109: =IF(E$2=0,0,C11*E$2) -> 0 | E109: =IF(E$2=0,0,C109/E$2) -> 0 | F109: =Energi!F29 -> 0 | G109: 0 | H109: =IF($C$99=0,0,C109*VLOOKUP($C$100,Energy_emissions,21)/1000) -> 0 | I109: 0 | J109: =IF(F109=0,0,F109*VLOOKUP(IF(E$100>0,E$100,$C$100),Energy_emissions,21)/1000) -> 0 | L109: 0
B110: El för verksamhet (brukarel) | C110: =IF(E$2=0,0,C12*E$2) -> 0 | E110: 0 | F110: =C110+K81+0.5*K82 -> 0 | G110: 0 | H110: =IF($C$99=0,0,C110*VLOOKUP($C$100,Energy_emissions,21)/1000) -> 0 | I110: 0 | J110: =IF(F110=0,0,F110*VLOOKUP(IF(E$100>0,E$100,$C$100),Energy_emissions,21)/1000) -> 0 | L110: 0
B111: Totalt, värme + el före lokal energitillförsel | C111: =SUM(C105:C110) -> 0 | E111: 0 | F111: =SUM(F105:F110) -> 0 | G111: 0 | H111: =SUM(H105:H110) -> 0 | I111: =SUM(I105:I110) -> 0 | J111: =SUM(J105:J110) -> 0 | L111: 0
B112: Sparåtgärder och lokal tillförsel värme | C112: =Energi!D26+Energi!D27 -> 0 | E112: 0 | F112: =H82+H86+H91 -> 0 | G112: 0 | H112: =IF($C$99=0,0,C112*VLOOKUP($C$99,Energy_emissions,21)/1000) -> 0 | I112: 0 | J112: =IF(F112=0,0,F112*VLOOKUP(IF(E$99>0,E$99,$C$99),Energy_emissions,21)/1000) -> 0 | L112: 0
B113: Sparåtgärder och lokal tillförsel el | C113: =J87+J88 -> 0 | E113: 0 | F113: =K87+K88 -> 0 | G113: 0 | H113: =IF($C$99=0,0,C113*VLOOKUP($C$99,Energy_emissions,21)/1000) -> 0 | I113: 0 | J113: =IF(F113=0,0,F113*VLOOKUP(IF(E$100>0,E$100,$C$100),Energy_emissions,21)/1000) -> 0 | L113: 0
B114: Totalt värme | C114: =C105+C106+C107+C108+C112 -> 0 | E114: 0 | F114: =F105+F106+F107+F108+F112 -> 0 | G114: 0 | H114: =H105+H106+H107+H108+H112 -> 0 | I114: 0 | J114: =J105+J106+J107+J108+J112 -> 0 | L114: 0
B115: Totalt el | C115: =C109+C110+C113 -> 0 | E115: 0 | F115: =F109+F110+F113 -> 0 | G115: 0 | H115: =IF($C$100=0,0,C115*VLOOKUP($C$100,Energy_emissions,21)/1000) -> 0 | I115: 0 | J115: =J109+J110+J113 -> 0 | L115: 0
B116: Totalt värm + el efter lokal tillförsel | C116: =C114+C115 -> 0 | E116: 0 | F116: =F114+F115 -> 0 | G116: 0 | H116: =H114+H115+M86 -> 0 | I116: 0 | J116: =J114+J115+N86 -> 0 | L116: 0
B117: Totalt utan brukarel (Energiprestanda) | C117: =C116-C110 -> 0 | E117: 0 | F117: =F116-F110 -> 0 | G117: 0 | H117: =H116-H110 -> 0 | I117: 0 | J117: =J116-J110 -> 0 | L117: 0
B118: Primärenergital (värme + uppräknad fast.el) | C118: =C114+1.6*C117 -> 0 | E118: 0 | F118: =F114+1.6*F117 -> 0 | G118: 0 | H118: 10 år | J118: 10 år
H119: =H116*10/1000 -> 0 | J119: =J116*10/1000 -> 0
B120: Uppvärmningsbehov | C120: =C105+C106+C107+C108 -> 0 | F120: =F105+F106+F107+F108 -> 0 | H120: Uppv./Vent./Fast.el | J120: Uppv./Vent./Fast.el
B121: Elbehov | C121: =C109+C110 -> 0 | F121: =F109+F110 -> 0 | H121: =(H105+H106+H109)*10/1000 -> 0 | J121: =(J105+J106+J109)*10/1000 -> 0

Sheet Utanför klimatskalet (hidden)
A1: UTANFÖR KLIMATSKALET
A3: Alternativ | D3: Material | E3: Area | F3: Vikt | G3: kg Co2-e
A4: 1 | B4: Taksprång, trä o plåt
A5: 2 | B5: Taksprång, trä o tegel

Sheet 8. Result (hidden)
B2: Summary of specific yearly use and impact
B4: Anticipated building life time, year | C4: =Konstruktion!F2 -> 50 | D4: ATemp | E4: =Basdata!I8 -> 0 | F4: Users | G4: =Basdata!I38 -> 0
C6: Per m2 | G6: Per user
B7: YEARLY ENERGY FOR OPERATION | C7: kWh/m2,yr | D7: % | E7: kg equiv CO2/m2,yr | F7: % | G7: kWh/pers,yr | H7: kg equiv CO2/pers,yr
B8: Building Electricity | C8: =Energi!G29 -> 0 | D8: =C8/$C$25 ->  | E8: =Energi!L29 -> 0 | F8: =E8/E$25 ->  | G8: =C8*E4/G4 ->  | H8: =E8*E$4/G$4 -> 
B9: User Electricity | C9: =Energi!G30 -> 0 | D9: =C9/$C$25 ->  | E9: =Energi!L30 -> 0 | F9: =E9/E$25 ->  | G9: =Energi!F30/G4 ->  | H9: =E9*E$4/G$4 -> 
B10: Space cooling electricity | C10: 0 | D10: 0 | E10: =Energi!L20 -> 0 | F10: =E10/E$25 ->  | G10: =Energi!E20/Basdata!I$38 ->  | H10: =E10*E$4/G$4 -> 
B11: Total electricity demand | C11: =SUM(C8:C10) -> 0 | D11: =C11/$C$25 ->  | E11: =SUM(E8:E10) -> 0 | F11: =E11/E$25 ->  | G11: =SUM(G8:G10) ->  | H11: =SUM(H8:H10) -> 
B12: Electricity saving measures | C12: =(Undersök!K81+Undersök!K82)/E4 ->  | D12: =C12/$C$25 ->  | E12: =(Undersök!T81+Undersök!T82)/E4 ->  | F12: =E12/E$25 ->  | G12: =C12*E$4/G$4 ->  | H12: =E12*E$4/G$4 -> 
B13: Local electricity production | C13: =(Undersök!K87+Undersök!K88)/E4 ->  | D13: =C13/$C$25 ->  | E13: =(Undersök!T87+Undersök!T88)/E4 ->  | F13: =E13/E$25 ->  | G13: =C13*E$4/G$4 ->  | H13: =E13*E$4/G$4 -> 
B14: External bought electricity | C14: =SUM(C11:C13) ->  | D14: =D11+D13 ->  | E14: =SUM(E11:E13) ->  | G14: =G11+G13 ->  | H14: =H11+H13 -> 
B15: Total electricity without user electricity | C15: =C14-C9 ->  | D15: =D14-D9 ->  | E15: =E14-E9 ->  | G15: =G14-G9 ->  | H15: =H14-H9 -> 
B16: Space heating | C16: =Energi!G12 -> 0 | D16: =C16/$C$25 ->  | E16: =(Energi!K12)/E4 ->  | G16: =C16*E$4/G$4 ->  | H16: =E16*E$4/G$4 -> 
B17: Ventilation | C17: =Energi!G14 -> 0 | E17: =(Energi!K14)/E4 ->  | G17: =C17*E$4/G$4 ->  | H17: =E17*E$4/G$4 -> 
B18: Hot water | C18: =Energi!G21 -> 0 | E18: =(Energi!K21+Energi!K22)/E4 ->  | G18: =C18*E$4/G$4 ->  | H18: =E18*E$4/G$4 -> 
B19: Total heating demand | C19: =SUM(C16:C18) -> 0 | D19: =C19/$C$25 ->  | E19: =SUM(E16:E18) ->  | G19: =SUM(G16:G18) ->  | H19: =SUM(H16:H18) -> 
B20: Heat recovery | C20: =Undersök!H86/'8. Result'!E4 ->  | E20: =Undersök!T86/'8. Result'!E4 ->  | G20: =C20*E$4/G$4 ->  | H20: =E20*E$4/G$4 -> 
B21: Heat pump | C21: =-IF(Basdata!C97>0,'8. Result'!C19*(1-1/Basdata!C97),IF(Basdata!C98>0,'8. Result'!E19*(1-1/Basdata!C98),IF(Basdata!C99>0,'8. Result'!C19*(1-1/Basdata!C99),0))) -> 0 | E21: =Undersök!AI90+Undersök!AI91 -> 0 | G21: =C21*E$4/G$4 ->  | H21: =E21*E$4/G$4 -> 
B22: Local heat production | C22: =Basdata!F107+Basdata!E108+Basdata!E109 -> 0 | D22: =C22/$C$25 ->  | E22: =Undersök!#REF! ->  | G22: =C22*E$4/G$4 ->  | H22: =E22*E$4/G$4 -> 
B23: Total bought energy for heating | C23: =SUM(C19:C22) ->  | E23: =SUM(E19:E22) ->  | G23: =SUM(G19:G22) ->  | H23: =SUM(H19:H22) -> 
B25: Total energy demand | C25: =C11+C19 -> 0 | D25: =C25/$C$25 ->  | E25: =E11+E19 ->  | F25: =E25/E$25 ->  | G25: =G11+G19 ->  | H25: =H11+H19 ->  | J25: Demand and recover
B26: Total bought energy | C26: =C14+C23 ->  | D26: =C26/$C$25 ->  | E26: =E14+E23 ->  | F26: =E26/E$25 ->  | G26: =G14+G23 ->  | H26: =H14+H23 -> 
B27: Total bought energy use without user electricity | C27: =C26-C9 ->  | D27: =D25-D9 ->  | E27: =E25-E9 ->  | F27: =E27/E$25 ->  | G27: =G26-G9 ->  | H27: =H26-H9 -> 
B30: MATERIALS (exclusive waste) | C30: kg/m2 | D30: % | E30: kg equiv CO2/m2,yr | F30: % | G30: kg/pers,yr | H30: kg equiv CO2/pers,yr
B31: Basement | C31: =(Konstruktion!H20+Konstruktion!H70)/Konstruktion!C2 ->  | D31: =C31/$C$36 ->  | E31: =(Konstruktion!K22+Konstruktion!K72)/C4 -> 0 | F31: =E31/E$36 ->  | G31: =(Konstruktion!H20+Konstruktion!H70)/IF(Basdata!D38>0,Basdata!D38,Basdata!C38)/Konstruktion!F2 ->  | H31: =(Konstruktion!K20+Konstruktion!K70)/IF(Basdata!D38>0,Basdata!D38,Basdata!C38)/Konstruktion!F2 -> 
B32: Attic and roof | C32: =(Konstruktion!H106+Konstruktion!H123+Konstruktion!H160+Konstruktion!H178)/Konstruktion!C2 ->  | E32: =(Konstruktion!K108+Konstruktion!K125+Konstruktion!K162+Konstruktion!K182)/Konstruktion!F2 -> 0 | G32: =(Konstruktion!H106+Konstruktion!H123+Konstruktion!H160+Konstruktion!H178)/IF(Basdata!D38>0,Basdata!D38,Basdata!C38)/Konstruktion!F2 ->  | H32: =(Konstruktion!K106+Konstruktion!K123+Konstruktion!K160+Konstruktion!K178)/IF(Basdata!D38>0,Basdata!D38,Basdata!C38)/Konstruktion!F2 -> 
B33: Exterior walls including windows and doors | C33: =(Konstruktion!H200+Konstruktion!H219+Konstruktion!H341+Konstruktion!#REF!+Konstruktion!H379+Konstruktion!H391)/Konstruktion!C2 ->  | E33: =(Konstruktion!K202+Konstruktion!K221+Konstruktion!K343+Konstruktion!K368+Konstruktion!K381+Konstruktion!K393)/Konstruktion!F2 -> 0 | G33: =(Konstruktion!H200+Konstruktion!H219+Konstruktion!H341+Konstruktion!#REF!+Konstruktion!H379+Konstruktion!H391)/IF(Basdata!D38>0,Basdata!D38,Basdata!C38)/Konstruktion!F2 ->  | H33: =(Konstruktion!K200+Konstruktion!K219+Konstruktion!K341+Konstruktion!K366+Konstruktion!K379+Konstruktion!K391)/IF(Basdata!D38>0,Basdata!D38,Basdata!C38)/Konstruktion!F2 -> 
B34: Slabs | C34: =(Konstruktion!H257+Konstruktion!H271)/Konstruktion!C2 ->  | E34: =(Konstruktion!K259+Konstruktion!#REF!)/Konstruktion!F2 ->  | G34: =(Konstruktion!H257+Konstruktion!H271)/IF(Basdata!D38>0,Basdata!D38,Basdata!C38)/Konstruktion!F2 ->  | H34: =(Konstruktion!K257+Konstruktion!K271)/IF(Basdata!D38>0,Basdata!D38,Basdata!C38)/Konstruktion!F2 -> 
B35: Internal walls | C35: =(Konstruktion!H286+Konstruktion!H300)/Konstruktion!C2 ->  | E35: =(Konstruktion!K288+Konstruktion!K302)/Konstruktion!F2 -> 0 | G35: =(Konstruktion!H286+Konstruktion!H300)/IF(Basdata!D38>0,Basdata!D38,Basdata!C38)/Konstruktion!F2 ->  | H35: =(Konstruktion!K286+Konstruktion!K300)/IF(Basdata!D38>0,Basdata!D38,Basdata!C38)/Konstruktion!F2 -> 
B36: Total material use/impact | C36: =SUM(C31:C35) ->  | E36: =SUM(E31:E35) ->  | G36: =SUM(G31:G35) ->  | H36: =SUM(H31:H35) -> 

Sheet Material
A1: Basic calculations to estimate external impact from a building in a life cycle perspective | G1: m2 Atemp | H1: =Basdata!I8 -> 0 | I1: BTA, m2 | J1: =Basdata!H8 -> 0 | L1: Beräkningsperiod, år | M1: =Basdata!I37 -> 50 | N1: Fukthalt trä | O1: 0.15 | Q1: Atomvikt C/CO2 | R1: =(12.011+2*15.9994)/12.011 -> 3.664124552 | S1: =R1*Konstruktion!I473/Avskrivningstider!J2 -> 0.5862599284
A2: Estimated matrerial use and climate impact
B3: Choosen matrerials | C3: Värme-ledning, W/m,K | D3: Volym, m3 | E3: Densitet, kg/m3 | F3: Beräknad mängd, kg | G3: Spil, % | H3: Köpt mängd, kg | I3: kgCO2e för beräknad mängd | J3: kgCO2e för köpt mängd | K3: Viktandel köpt mängd, % | L3: CO2e-andel köpt mängd,% | M3: Andel trä | N3: Mängd trä | O3: Mängd kol i träet | P3: Värderat kolidoxid-upptag | Q3: Värderad koldioxid-balans | R3: Rangordning inverkan | S3: rf | T3: RF | U3: Klimatbelastning produktgrupper | Y3: Material som används i projektet
B4: ='Mtrl data'!B7 -> MATERIAL | C4: W/m,K | D4: m3 | E4: kg/m3 | F4: kg | G4: % | H4: kg | I4: kg CO2e | J4: kg CO2e | K4: % | L4: % | M4: % | N4: kg | O4: kg | P4: kg CO2e | Q4: kg CO2e | R4: självsatt | S4: kg Cu-e/kg | T4: kg Cu-e | AA4: Utan kolinlagr | AH4: Material | AI4: Weight kg/10 | AJ4: kg CO2ekv
A5: 0 | B5: ='Mtrl data'!B8 -> Luftspalt | C5: ='Mtrl em'!D5 -> 0.08 | AA5: kgCO2e | AH5: =B6 -> Byggdel Balkong/Trappa betong 170 mm
A6: 1 | B6: ='Mtrl data'!B9 -> Byggdel Balkong/Trappa betong 170 mm | C6: ='Mtrl em'!D6 -> 0 | D6: =SUMIFS(Konstruktion!H$8:H$464,Konstruktion!B$8:B$464,B6) -> 0 | E6: ='Mtrl em'!C6 -> 2400 | F6: =D6*E6 -> 0 | G6: 0 | H6: =F6*(1+G6) -> 0 | I6: =-IF(F6=0,0,F6*VLOOKUP(B6,Mtrl_emission,20,FALSE)) -> 0 | J6: =-IF(H6=0,0,H6*VLOOKUP(B6,Mtrl_emission,20,FALSE)) -> 0 | K6: =IF(H$126=0,0,H6/H$126) -> 0 | L6: =IF(J$126=0,0,J6/J$126) -> 0 | M6: ='Mtrl em'!Y6 -> 0 | N6: =H6*M6 -> 0 | O6: =N6*0.5*(1-O$1) -> 0 | P6: =O6*S$1 -> 0 | Q6: =P6+J6 -> 0 | S6: 0.54 | T6: =H6*S6 -> 0 | U6: Byggdel | V6: =SUM(J6:J14) -> 0 | W6: =J6*K6 -> 0 | Y6: =AH11 -> Byggdel Fönster färdigt glasandel 105 mm | AA6: =AJ11 -> 0 | AH6: Byggdel Trappa Trä 60 mm
A7: 2 | B7: ='Mtrl data'!B10 -> Byggdel Trappa Trä 60 mm | C7: ='Mtrl em'!D7 -> 0 | D7: =SUMIFS(Konstruktion!H$8:H$464,Konstruktion!B$8:B$464,B7) -> 0 | E7: ='Mtrl em'!C7 -> 470 | F7: 0 | G7: 0 | H7: =F7*(1+G7) -> 0 | I7: 0 | J7: 0 | K7: =IF(H$126=0,0,H7/H$126) -> 0 | L7: =IF(J$126=0,0,J7/J$126) -> 0 | M7: ='Mtrl em'!Y7 -> 1 | N7: 0 | O7: =N7*0.5*(1-O$1) -> 0 | P7: =O7*S$1 -> 0 | Q7: =P7+J7 -> 0 | S7: 0.54 | T7: =H7*S7 -> 0 | U7: Cementkonstruktion | V7: =SUM(J15:J22) -> 0 | W7: 0 | Y7: =AH12 -> Byggdel Fönster färdigt metall mm 105 mm | AA7: =AJ12 -> 0 | AH7: Byggdel Dörr Aluminium och glas 25 mm
A8: 3 | B8: ='Mtrl data'!B11 -> Byggdel Dörr Aluminium och glas 25 mm | C8: ='Mtrl em'!D8 -> 0 | D8: =SUMIFS(Konstruktion!H$8:H$464,Konstruktion!B$8:B$464,B8) -> 0 | E8: ='Mtrl em'!C8 -> 2600 | F8: 0 | G8: 0 | H8: 0 | I8: 0 | J8: 0 | K8: 0 | L8: 0 | M8: ='Mtrl em'!Y8 -> 0 | N8: 0 | O8: 0 | P8: 0 | Q8: 0 | S8: 0.54 | T8: 0 | U8: Färg | V8: =SUM(J23:J24) -> 0 | W8: 0 | Y8: =AH13 -> Byggdel Fönster färdigt träandel 105 mm | AA8: =AJ13 -> 0 | AH8: Byggdel Dörr Ytter- stål brandklassad 62 mm
A9: 4 | B9: ='Mtrl data'!B12 -> Byggdel Dörr Ytter- stål brandklassad 62 mm | C9: ='Mtrl em'!D9 -> 0 | D9: =SUMIFS(Konstruktion!H$8:H$464,Konstruktion!B$8:B$464,B9) -> 0 | E9: ='Mtrl em'!C9 -> 665 | F9: 0 | G9: 0 | H9: 0 | I9: 0 | J9: 0 | K9: 0 | L9: 0 | M9: ='Mtrl em'!Y9 -> 0 | N9: 0 | O9: 0 | P9: 0 | Q9: 0 | S9: 0.54 | T9: 0 | U9: Glas | V9: =SUM(J25:J28) -> 0 | W9: 0 | Y9: =AH14 -> Cementkonstr Betong arm vägg, bjälkl klimatförbättrad | AA9: =AJ14 -> 0 | AH9: Byggdel Dörr Ytter- trä 25 mm
A10: 5 | B10: ='Mtrl data'!B13 -> Byggdel Dörr Ytter- trä 25 mm | C10: ='Mtrl em'!D10 -> 0 | D10: =SUMIFS(Konstruktion!H$8:H$464,Konstruktion!B$8:B$464,B10) -> 0 | E10: ='Mtrl em'!C10 -> 500 | F10: 0 | G10: 0 | H10: 0 | I10: 0 | J10: 0 | K10: 0 | L10: 0 | M10: ='Mtrl em'!Y10 -> 0 | N10: 0 | O10: 0 | P10: 0 | Q10: 0 | S10: 0.54 | T10: 0 | U10: Isolering | V10: =SUM(J29:J42) -> 0 | W10: 0 | Y10: =AH16 -> Cementkonstr Betongvaror | AA10: =AJ16 -> 0 | AH10: Byggdel Fönster 3 glas trä aluminium IVL 11 mm
A11: 6 | B11: ='Mtrl data'!B14 -> Byggdel Fönster 3 glas trä aluminium IVL 11 mm | C11: ='Mtrl em'!D11 -> 0 | D11: =SUMIFS(Konstruktion!H$8:H$464,Konstruktion!B$8:B$464,B11) -> 0 | E11: ='Mtrl em'!C11 -> 2500 | F11: 0 | G11: 0 | H11: 0 | I11: 0 | J11: 0 | K11: 0 | L11: 0 | M11: ='Mtrl em'!Y11 -> 0.1 | N11: 0 | O11: 0 | P11: 0 | Q11: 0 | S11: 0.54 | T11: 0 | U11: Klinker | V11: =SUM(J43:J48) -> 0 | W11: 0 | Y11: =AH20 -> Cementkonstr Puts | AA11: =AJ20 -> 0 | AH11: Byggdel Fönster färdigt glasandel 105 mm
A12: 7 | B12: ='Mtrl data'!B15 -> Byggdel Fönster färdigt glasandel 105 mm | C12: ='Mtrl em'!D12 -> 0 | D12: =SUMIFS(Konstruktion!H$8:H$464,Konstruktion!B$8:B$464,B12) -> 0 | E12: ='Mtrl em'!C12 -> 2500 | F12: 0 | G12: 0 | H12: 0 | I12: 0 | J12: 0 | K12: 0 | L12: 0 | M12: ='Mtrl em'!Y12 -> 0 | N12: 0 | O12: 0 | P12: 0 | Q12: 0 | S12: 0.54 | T12: 0 | U12: Membran | V12: =SUM(J49:J67) -> 0 | W12: 0 | Y12: =AH25 -> Glas Lamellglas | AA12: =AJ25 -> 0 | AH12: Byggdel Fönster färdigt metall mm 105 mm
A13: 8 | B13: ='Mtrl data'!B16 -> Byggdel Fönster färdigt metall mm 105 mm | C13: ='Mtrl em'!D13 -> 0 | D13: =SUMIFS(Konstruktion!H$8:H$464,Konstruktion!B$8:B$464,B13) -> 0 | E13: ='Mtrl em'!C13 -> 6000 | F13: 0 | G13: 0 | H13: 0 | I13: 0 | J13: 0 | K13: 0 | L13: 0 | M13: ='Mtrl em'!Y13 -> 0 | N13: 0 | O13: 0 | P13: 0 | Q13: 0 | S13: 0.54 | T13: 0 | U13: Metall | V13: =SUM(J68:J89) -> 0 | W13: 0 | Y13: =AH30 -> Isolering Expanderad polystyren, EPS | AA13: =AJ30 -> 0 | AH13: Byggdel Fönster färdigt träandel 105 mm
A14: 9 | B14: ='Mtrl data'!B17 -> Byggdel Fönster färdigt träandel 105 mm | C14: ='Mtrl em'!D14 -> 0 | D14: =SUMIFS(Konstruktion!H$8:H$464,Konstruktion!B$8:B$464,B14) -> 0 | E14: ='Mtrl em'!C14 -> 450 | F14: 0 | G14: 0.05 | H14: 0 | I14: 0 | J14: 0 | K14: 0 | L14: 0 | M14: ='Mtrl em'!Y14 -> 0.15 | N14: 0 | O14: 0 | P14: 0 | Q14: 0 | S14: 0.54 | T14: 0 | U14: Mineral | V14: =SUM(J90:J94) -> 0 | W14: 0 | Y14: =AH31 -> Isolering Extruderad polystyren, XPS | AA14: =AJ31 -> 0 | AH14: Cementkonstr Betong arm vägg, bjälkl klimatförbättrad
A15: 10 | B15: ='Mtrl data'!B18 -> Cementkonstr Betong arm vägg, bjälkl klimatförbättrad | C15: ='Mtrl em'!D15 -> 1.1 | D15: =SUMIFS(Konstruktion!H$8:H$464,Konstruktion!B$8:B$464,B15) -> 0 | E15: ='Mtrl em'!C15 -> 2100 | F15: 0 | G15: 0.05 | H15: 0 | I15: 0 | J15: =-IF(H15=0,0,H15*VLOOKUP(B15,Mtrl_emission,20,FALSE)) -> 0 | K15: 0 | L15: 0 | M15: ='Mtrl em'!Y15 -> 0 | N15: 0 | O15: 0 | P15: 0 | Q15: 0 | S15: 0.6 | T15: 0 | U15: Skivor | V15: =SUM(J95:J113) -> 0 | W15: 0 | Y15: =AH37 -> Isolering Steico träullsisolering | AA15: =AJ37 -> 0 | AH15: Cementkonstr Betong armerad vägg, bjälklag
A16: 11 | B16: ='Mtrl data'!B19 -> Cementkonstr Betong armerad vägg, bjälklag | C16: ='Mtrl em'!D16 -> 1.1 | D16: =SUMIFS(Konstruktion!H$8:H$464,Konstruktion!B$8:B$464,B16) -> 0 | E16: ='Mtrl em'!C16 -> 2100 | F16: 0 | G16: 0 | H16: 0 | I16: 0 | J16: 0 | K16: 0 | L16: 0 | M16: ='Mtrl em'!Y16 -> 0 | N16: 0 | O16: 0 | P16: 0 | Q16: 0 | S16: 0.6 | T16: 0 | U16: Tegel | V16: =SUM(J114:J115) -> 0 | W16: 0 | Y16: =AH42 -> Klinker Plattor | AA16: =AJ42 -> 0 | AH16: Cementkonstr Betongvaror
A17: 12 | B17: ='Mtrl data'!B20 -> Cementkonstr Betongvaror | C17: ='Mtrl em'!D17 -> 1.1 | D17: =SUMIFS(Konstruktion!H$8:H$464,Konstruktion!B$8:B$464,B17) -> 0 | E17: ='Mtrl em'!C17 -> 2100 | F17: 0 | G17: 0.05 | H17: 0 | I17: 0 | J17: 0 | K17: 0 | L17: 0 | M17: ='Mtrl em'!Y17 -> 0 | N17: 0 | O17: 0 | P17: 0 | Q17: 0 | S17: 0.6 | T17: 0 | U17: Trä | V17: =SUM(J116:J125) -> 0 | W17: 0 | Y17: =AH51 -> Membran Bitumenmatta | AA17: =AJ51 -> 0 | AH17: Cementkonstr Cement Portland (torrbruk)
A18: 13 | B18: ='Mtrl data'!B21 -> Cementkonstr Cement Portland (torrbruk) | C18: ='Mtrl em'!D18 -> 0.29 | D18: =SUMIFS(Konstruktion!H$8:H$464,Konstruktion!B$8:B$464,B18) -> 0 | E18: ='Mtrl em'!C18 -> 3150 | F18: 0 | G18: 0.05 | H18: 0 | I18: 0 | J18: 0 | K18: 0 | L18: 0 | M18: ='Mtrl em'!Y18 -> 0 | N18: 0 | O18: 0 | P18: 0 | Q18: 0 | S18: 0.6 | T18: 0 | W18: 0 | Y18: =AH57 -> Membran Papp och kartong | AA18: =AJ57 -> 0 | AH18: Cementkonstr Lättbetong
A19: 14 | B19: ='Mtrl data'!B22 -> Cementkonstr Lättbetong | C19: ='Mtrl em'!D19 -> 0.2 | D19: =SUMIFS(Konstruktion!H$8:H$464,Konstruktion!B$8:B$464,B19) -> 0 | E19: ='Mtrl em'!C19 -> 500 | F19: 0 | G19: 0.05 | H19: 0 | I19: 0 | J19: 0 | K19: 0 | L19: 0 | M19: ='Mtrl em'!Y19 -> 0 | N19: 0 | O19: 0 | P19: 0 | Q19: 0 | S19: 0.73 | T19: 0 | U19: Summa | V19: =SUM(V6:V17) -> 0 | W19: 0 | Y19: =AH61 -> Membran Polyethylene LDPE (low dens.) | AA19: =AJ61 -> 0 | AH19: Cementkonstr Prefab Högpresterande
A20: 15 | B20: ='Mtrl data'!B23 -> Cementkonstr Prefab Högpresterande | C20: ='Mtrl em'!D20 -> 1.4 | D20: =SUMIFS(Konstruktion!H$8:H$464,Konstruktion!B$8:B$464,B20) -> 0 | E20: ='Mtrl em'!C20 -> 2400 | F20: 0 | G20: 0.05 | H20: 0 | I20: 0 | J20: 0 | K20: 0 | L20: 0 | M20: ='Mtrl em'!Y20 -> 0 | N20: 0 | O20: 0 | P20: 0 | Q20: 0 | S20: 0.24 | T20: 0 | W20: 0 | Y20: =AH67 -> Metall Aluminium | AA20: =AJ67 -> 0 | AH20: Cementkonstr Puts
A21: 16 | B21: ='Mtrl data'!B24 -> Cementkonstr Puts | C21: ='Mtrl em'!D21 -> 0.72 | D21: =SUMIFS(Konstruktion!H$8:H$464,Konstruktion!B$8:B$464,B21) -> 0 | E21: ='Mtrl em'!C21 -> 1800 | F21: 0 | G21: 0.05 | H21: 0 | I21: 0 | J21: 0 | K21: 0 | L21: 0 | M21: ='Mtrl em'!Y21 -> 0 | N21: 0 | O21: 0 | P21: 0 | Q21: 0 | S21: 0.24 | T21: 0 | W21: 0 | Y21: =AL74 | AA21: =AJ74 -> 0 | AH21: Cementkonstr Ytong Xella Porbetong
A22: 17 | B22: ='Mtrl data'!B25 -> Cementkonstr Ytong Xella Porbetong | C22: ='Mtrl em'!D22 -> 0.07 | D22: =SUMIFS(Konstruktion!H$8:H$464,Konstruktion!B$8:B$464,B22) -> 0 | E22: ='Mtrl em'!C22 -> 275 | F22: 0 | G22: 0.05 | H22: 0 | I22: 0 | J22: 0 | K22: 0 | L22: 0 | M22: ='Mtrl em'!Y22 -> 0 | N22: 0 | O22: 0 | P22: 0 | Q22: 0 | S22: 0.73 | T22: 0 | U22: Trä | W22: 0 | Y22: =AH81 -> Metall Stål Pålar | AA22: =AJ81 -> 0 | AH22: Färg Fasadfärg utomhus, alkyd
A23: 18 | B23: ='Mtrl data'!B26 -> Färg Fasadfärg utomhus, alkyd | C23: ='Mtrl em'!D23 -> 0 | D23: =SUMIFS(Konstruktion!H$8:H$464,Konstruktion!B$8:B$464,B23) -> 0 | E23: ='Mtrl em'!C23 -> 0 | F23: =D23*E23 -> 0 | G23: 0.05 | H23: =F23*(1+G23) -> 0 | I23: 0 | J23: 0 | K23: 0 | L23: 0 | M23: ='Mtrl em'!Y23 -> 0 | N23: 0 | O23: 0 | P23: 0 | Q23: 0 | S23: 0.73 | T23: 0 | U23: =B38 -> Isolering Steico träullsisolering | V23: =J38 -> 0 | W23: 0 | Y23: =AH83 -> Metall Stål Rostfritt | AA23: =AJ83 -> 0 | AH23: Färg Plåt och stålfärg utomhus, alkyd TS 70%
A24: 19 | B24: ='Mtrl data'!B27 -> Färg Plåt och stålfärg utomhus, alkyd TS 70% | C24: ='Mtrl em'!D24 -> 0 | D24: =SUMIFS(Konstruktion!H$8:H$464,Konstruktion!B$8:B$464,B24) -> 0 | E24: ='Mtrl em'!C24 -> 0 | F24: 0 | G24: 0.05 | H24: 0 | I24: 0 | J24: 0 | K24: 0 | L24: 0 | M24: ='Mtrl em'!Y24 -> 0 | N24: 0 | O24: 0 | P24: 0 | Q24: 0 | S24: 0.6 | T24: 0 | U24: =B120 -> Trä Balk Steico | V24: =J120 -> 0 | W24: 0 | Y24: =AH90 -> Mineral Grus (vikt 1,5 ton/m3) | AA24: =AJ90 -> 0 | AH24: Glas härdat
A25: 20 | B25: ='Mtrl data'!B28 -> Glas härdat | C25: ='Mtrl em'!D25 -> 0.96 | D25: =SUMIFS(Konstruktion!H$8:H$464,Konstruktion!B$8:B$464,B25) -> 0 | E25: ='Mtrl em'!C25 -> 2530 | F25: 0 | G25: 0.05 | H25: 0 | I25: 0 | J25: 0 | K25: 0 | L25: 0 | M25: ='Mtrl em'!Y25 -> 0 | N25: 0 | O25: 0 | P25: 0 | Q25: 0 | S25: 0.6 | T25: 0 | U25: =B121 -> Trä Gran, tall sågad och hyvlad | V25: =J121 -> 0 | W25: 0 | Y25: =AH93 -> Mineral Sand o putssand | AA25: =AJ93 -> 0 | AH25: Glas Lamellglas
A26: 21 | B26: ='Mtrl data'!B29 -> Glas Lamellglas | C26: ='Mtrl em'!D26 -> 0.8 | D26: =SUMIFS(Konstruktion!H$8:H$464,Konstruktion!B$8:B$464,B26) -> 0 | E26: ='Mtrl em'!C26 -> 2400 | F26: 0 | G26: 0.05 | H26: 0 | I26: 0 | J26: 0 | K26: 0 | L26: 0 | M26: ='Mtrl em'!Y26 -> 0 | N26: 0 | O26: 0 | P26: 0 | Q26: 0 | S26: 0.6 | T26: 0 | U26: =B123 -> Trä Steico LVL | V26: =J123 -> 0 | W26: 0 | Y26: =AH100 -> Skiva Fiber cement | AA26: =AJ100 -> 0 | AH26: Glas Planglas
A27: 22 | B27: ='Mtrl data'!B30 -> Glas Planglas | C27: ='Mtrl em'!D27 -> 0.81 | D27: =SUMIFS(Konstruktion!H$8:H$464,Konstruktion!B$8:B$464,B27) -> 0 | E27: ='Mtrl em'!C27 -> 2500 | F27: 0 | G27: 0.05 | H27: 0 | I27: 0 | J27: 0 | K27: 0 | L27: 0 | M27: ='Mtrl em'!Y27 -> 0 | N27: 0 | O27: 0 | P27: 0 | Q27: 0 | S27: 0.73 | T27: 0 | U27: =B125 -> Trä värmebehandlat | V27: =J125 -> 0 | W27: 0 | Y27: =AH103 -> Skiva Gips utan kartong, våtrum | AA27: =AJ103 -> 0 | AH27: Glas Plexiglas
A28: 23 | B28: ='Mtrl data'!B31 -> Glas Plexiglas | C28: ='Mtrl em'!D28 -> 0.19 | D28: =SUMIFS(Konstruktion!H$8:H$464,Konstruktion!B$8:B$464,B28) -> 0 | E28: ='Mtrl em'!C28 -> 1.19 | F28: 0 | G28: 0.05 | H28: 0 | I28: 0 | J28: 0 | K28: 0 | L28: 0 | M28: ='Mtrl em'!Y28 -> 0 | N28: 0 | O28: 0 | P28: 0 | Q28: 0 | S28: 0.6 | T28: 0 | W28: 0 | Y28: =AH107 -> Skiva Plywood | AA28: =AJ107 -> 0 | AH28: Isolering Cellulosafiber bjälklag
A29: 24 | B29: ='Mtrl data'!B32 -> Isolering Cellulosafiber bjälklag | C29: ='Mtrl em'!D29 -> 0.039 | D29: =SUMIFS(Konstruktion!H$8:H$464,Konstruktion!B$8:B$464,B29) -> 0 | E29: ='Mtrl em'!C29 -> 35 | F29: 0 | G29: 0.05 | H29: 0 | I29: 0 | J29: 0 | K29: 0 | L29: 0 | M29: ='Mtrl em'!Y29 -> 1 | N29: 0 | O29: 0 | P29: 0 | Q29: 0 | S29: 0.6 | T29: 0 | U29: Summa | V29: =SUM(V23:V28) -> 0 | W29: 0 | Y29: =AH112 -> Skiva Våtrum Fibo Plywood + HPL 76% trä | AA29: =AJ112 -> 0 | AH29: Isolering Cellulosafiber vägg
A30: 25 | B30: ='Mtrl data'!B33 -> Isolering Cellulosafiber vägg | C30: ='Mtrl em'!D30 -> 0.039 | D30: =SUMIFS(Konstruktion!H$8:H$464,Konstruktion!B$8:B$464,B30) -> 0 | E30: ='Mtrl em'!C30 -> 45 | F30: 0 | G30: 0.05 | H30: 0 | I30: 0 | J30: 0 | K30: 0 | L30: 0 | M30: ='Mtrl em'!Y30 -> 1 | N30: 0 | O30: 0 | P30: 0 | Q30: 0 | S30: 0.6 | T30: 0 | W30: 0 | Y30: =AH119 -> Trä Gran, tall sågad och hyvlad | AA30: =AJ119 -> 0 | AH30: Isolering Expanderad polystyren, EPS
A31: 26 | B31: ='Mtrl data'!B34 -> Isolering Expanderad polystyren, EPS | C31: ='Mtrl em'!D31 -> 0.035 | D31: =SUMIFS(Konstruktion!H$8:H$464,Konstruktion!B$8:B$464,B31) -> 0 | E31: ='Mtrl em'!C31 -> 15 | F31: 0 | G31: 0.05 | H31: 0 | I31: 0 | J31: 0 | K31: 0 | L31: 0 | M31: ='Mtrl em'!Y31 -> 0 | N31: 0 | O31: 0 | P31: 0 | Q31: 0 | S31: 0.24 | T31: 0 | W31: 0 | Y31: =AH120 -> Trä Korslimmat KL | AA31: =AJ120 -> 0 | AH31: Isolering Extruderad polystyren, XPS
A32: 27 | B32: ='Mtrl data'!B35 -> Isolering Extruderad polystyren, XPS | C32: ='Mtrl em'!D32 -> 0.034 | D32: =SUMIFS(Konstruktion!H$8:H$464,Konstruktion!B$8:B$464,B32) -> 0 | E32: ='Mtrl em'!C32 -> 40 | F32: 0 | G32: 0.05 | H32: 0 | I32: 0 | J32: 0 | K32: 0 | L32: 0 | M32: ='Mtrl em'!Y32 -> 0 | N32: 0 | O32: 0 | P32: 0 | Q32: 0 | S32: 0.35 | T32: 0 | W32: 0 | Y32: =AH122 -> Trä Tryckimpregnerat | AA32: =AJ122 -> 0 | AH32: Isolering Foamglas T4+
A33: 28 | B33: ='Mtrl data'!B36 -> Isolering Foamglas T4+ | C33: ='Mtrl em'!D33 -> 0.039 | D33: =SUMIFS(Konstruktion!H$8:H$464,Konstruktion!B$8:B$464,B33) -> 0 | E33: ='Mtrl em'!C33 -> 115 | F33: 0 | G33: 0.05 | H33: 0 | I33: 0 | J33: 0 | K33: 0 | L33: 0 | M33: ='Mtrl em'!Y33 -> 0 | N33: 0 | O33: 0 | P33: 0 | Q33: 0 | S33: 0.24 | T33: 0 | W33: 0 | AH33: Isolering Glasull
A34: 29 | B34: ='Mtrl data'!B37 -> Isolering Glasull | C34: ='Mtrl em'!D34 -> 0.036 | D34: =SUMIFS(Konstruktion!H$8:H$464,Konstruktion!B$8:B$464,B34) -> 0 | E34: ='Mtrl em'!C34 -> 16 | F34: 0 | G34: 0.05 | H34: 0 | I34: 0 | J34: 0 | K34: 0 | L34: 0 | M34: ='Mtrl em'!Y34 -> 0 | N34: 0 | O34: 0 | P34: 0 | Q34: 0 | S34: 0.35 | T34: 0 | W34: 0 | AH34: Isolering Glasull fasadskiva
A35: 30 | B35: ='Mtrl data'!B38 -> Isolering Glasull fasadskiva | C35: ='Mtrl em'!D35 -> 0.03 | D35: =SUMIFS(Konstruktion!H$8:H$464,Konstruktion!B$8:B$464,B35) -> 0 | E35: ='Mtrl em'!C35 -> 55 | F35: 0 | G35: 0.05 | H35: 0 | I35: 0 | J35: 0 | K35: 0 | L35: 0 | M35: ='Mtrl em'!Y35 -> 0 | N35: 0 | O35: 0 | P35: 0 | Q35: 0 | S35: 0.35 | T35: 0 | W35: 0 | Y35: Summa | AA35: =SUM(AA6:AA34) -> 0 | AH35: Isolering Polyurethane PIR/PUR
A36: 31 | B36: ='Mtrl data'!B39 -> Isolering Polyurethane PIR/PUR | C36: ='Mtrl em'!D36 -> 0.025 | D36: =SUMIFS(Konstruktion!H$8:H$464,Konstruktion!B$8:B$464,B36) -> 0 | E36: ='Mtrl em'!C36 -> 30 | F36: 0 | G36: 0.05 | H36: 0 | I36: 0 | J36: 0 | K36: 0 | L36: 0 | M36: ='Mtrl em'!Y36 -> 0 | N36: 0 | O36: 0 | P36: 0 | Q36: 0 | S36: 0.35 | T36: 0 | W36: 0 | Y36: =AH125 -> Totalt utan kolinlagring | AA36: =AJ125 -> 0 | AH36: Isolering Skumglas
A37: 32 | B37: ='Mtrl data'!B40 -> Isolering Skumglas | C37: ='Mtrl em'!D37 -> 0.1 | D37: =SUMIFS(Konstruktion!H$8:H$464,Konstruktion!B$8:B$464,B37) -> 0 | E37: ='Mtrl em'!C37 -> 180 | F37: 0 | G37: 0.05 | H37: 0 | I37: 0 | J37: 0 | K37: 0 | L37: 0 | M37: ='Mtrl em'!Y37 -> 0 | N37: 0 | O37: 0 | P37: 0 | Q37: 0 | S37: 0.35 | T37: 0 | W37: 0 | Y37: =AH126 -> Totalt per m2 Atemp | AA37: =AJ126 -> 0 | AH37: =B38 -> Isolering Steico träullsisolering
A38: 33 | B38: ='Mtrl data'!B41 -> Isolering Steico träullsisolering | C38: ='Mtrl em'!D38 -> 0.038 | D38: =SUMIFS(Konstruktion!H$8:H$464,Konstruktion!B$8:B$464,B38) -> 0 | E38: ='Mtrl em'!C38 -> 157 | F38: 0 | G38: 0.05 | H38: 0 | I38: =-IF(F38=0,0,F38*VLOOKUP(B38,Mtrl_emission,20,FALSE)) -> 0 | J38: =-IF(H38=0,0,H38*VLOOKUP(B38,Mtrl_emission,20,FALSE)) -> 0 | K38: 0 | L38: 0 | M38: ='Mtrl em'!Y38 -> 1 | N38: =H38*M38 -> 0 | O38: 0 | P38: 0 | Q38: =P38+J38 -> 0 | S38: 0.35 | T38: 0 | W38: =J38*K38 -> 0 | Y38: 0 | AA38: 0 | AH38: Isolering Stenull
A39: 34 | B39: ='Mtrl data'!B42 -> Isolering Stenull | C39: ='Mtrl em'!D39 -> 0.037 | D39: =SUMIFS(Konstruktion!H$8:H$464,Konstruktion!B$8:B$464,B39) -> 0 | E39: ='Mtrl em'!C39 -> 30 | F39: 0 | G39: 0.05 | H39: 0 | I39: 0 | J39: 0 | K39: 0 | L39: 0 | M39: ='Mtrl em'!Y39 -> 0 | N39: 0 | O39: 0 | P39: 0 | Q39: 0 | S39: 0.73 | T39: 0 | W39: 0 | Y39: Totalt utan kolinlagring | AA39: 0 | AH39: Isolering Stenullsskiva Rockwool
A40: 5 | B40: ='Mtrl data'!B43 -> Isolering Stenullsskiva Rockwool | C40: ='Mtrl em'!D40 -> 0.039 | D40: =SUMIFS(Konstruktion!H$8:H$464,Konstruktion!B$8:B$464,B40) -> 0 | E40: ='Mtrl em'!C40 -> 144 | F40: 0 | G40: 0.05 | H40: 0 | I40: 0 | J40: 0 | K40: 0 | L40: 0 | M40: ='Mtrl em'!Y40 -> 0 | N40: 0 | O40: 0 | P40: 0 | Q40: 0 | S40: 0.73 | T40: 0 | W40: 0 | Y40: 0 | AA40: 0 | AH40: Isolering Träullsfibrer
A41: 36 | B41: ='Mtrl data'!B44 -> Isolering Träullsfibrer | C41: ='Mtrl em'!D41 -> 0.085 | D41: =SUMIFS(Konstruktion!H$8:H$464,Konstruktion!B$8:B$464,B41) -> 0 | E41: ='Mtrl em'!C41 -> 340 | F41: 0 | G41: 0.05 | H41: 0 | I41: 0 | J41: 0 | K41: 0 | L41: 0 | M41: ='Mtrl em'!Y41 -> 1 | N41: 0 | O41: 0 | P41: 0 | Q41: 0 | S41: 0.73 | T41: 0 | W41: 0 | AH41: Isolering Vulkaniskt granulat, Perlite
A42: 37 | B42: ='Mtrl data'!B45 -> Isolering Vulkaniskt granulat, Perlite | C42: ='Mtrl em'!D42 -> 0.04 | D42: =SUMIFS(Konstruktion!H$8:H$464,Konstruktion!B$8:B$464,B42) -> 0 | E42: ='Mtrl em'!C42 -> 90 | F42: 0 | G42: 0.05 | H42: 0 | I42: 0 | J42: 0 | K42: 0 | L42: 0 | M42: ='Mtrl em'!Y42 -> 0 | N42: 0 | O42: 0 | P42: 0 | Q42: 0 | S42: 0.73 | T42: 0 | W42: 0 | Z42: Summa | AA42: =SUM(AA6:AA15) -> 0 | AH42: Klinker Plattor
A43: 38 | B43: ='Mtrl data'!B46 -> Klinker Plattor | C43: ='Mtrl em'!D43 -> 2 | D43: =SUMIFS(Konstruktion!H$8:H$464,Konstruktion!B$8:B$464,B43) -> 0 | E43: ='Mtrl em'!C43 -> 2470 | F43: 0 | G43: 0.02 | H43: 0 | I43: 0 | J43: 0 | K43: 0 | L43: 0 | M43: ='Mtrl em'!Y43 -> 0 | N43: 0 | O43: 0 | P43: 0 | Q43: 0 | S43: 0.73 | T43: 0 | W43: 0 | AH43: Klinker Lättklinkerbalk/-element (Leca) 10% armering
A44: 39 | B44: ='Mtrl data'!B47 -> Klinker Lättklinkerbalk/-element (Leca) 10% armering | C44: ='Mtrl em'!D44 -> 0.34 | D44: =SUMIFS(Konstruktion!H$8:H$464,Konstruktion!B$8:B$464,B44) -> 0 | E44: ='Mtrl em'!C44 -> 1650 | F44: 0 | G44: 0.01 | H44: 0 | I44: 0 | J44: 0 | K44: 0 | L44: 0 | M44: ='Mtrl em'!Y44 -> 0 | N44: 0 | O44: 0 | P44: 0 | Q44: 0 | S44: 0.73 | T44: 0 | W44: 0 | AA44: Summa | AH44: Klinker Lösa kulor Leca
A45: 40 | B45: ='Mtrl data'!B48 -> Klinker Lösa kulor Leca | C45: ='Mtrl em'!D45 -> 0.09 | D45: =SUMIFS(Konstruktion!H$8:H$464,Konstruktion!B$8:B$464,B45) -> 0 | E45: ='Mtrl em'!C45 -> 250 | F45: 0 | G45: 0.05 | H45: 0 | I45: 0 | J45: 0 | K45: 0 | L45: 0 | M45: ='Mtrl em'!Y45 -> 0 | N45: 0 | O45: 0 | P45: 0 | Q45: 0 | S45: 0.73 | T45: 0 | W45: 0 | Y45: Träprodukter inbyggda | Z45: kg | AH45: Klinker Murblock med expanderad polystyren, EPS
A46: 41 | B46: ='Mtrl data'!B49 -> Klinker Murblock med expanderad polystyren, EPS | C46: ='Mtrl em'!D46 -> 0.13 | D46: =SUMIFS(Konstruktion!H$8:H$464,Konstruktion!B$8:B$464,B46) -> 0 | E46: ='Mtrl em'!C46 -> 400 | F46: 0 | G46: 0.05 | H46: 0 | I46: 0 | J46: 0 | K46: 0 | L46: 0 | M46: ='Mtrl em'!Y46 -> 0 | N46: 0 | O46: 0 | P46: 0 | Q46: 0 | S46: 0.73 | T46: 0 | W46: 0 | Y46: Fönster färdigt träandel | Z46: =K18 -> 0 | AH46: Klinker Murblock med med polyuretan, PU
A47: 42 | B47: ='Mtrl data'!B50 -> Klinker Murblock med med polyuretan, PU | C47: ='Mtrl em'!D47 -> 0.12 | D47: =SUMIFS(Konstruktion!H$8:H$464,Konstruktion!B$8:B$464,B47) -> 0 | E47: ='Mtrl em'!C47 -> 400 | F47: 0 | G47: 0.05 | H47: 0 | I47: 0 | J47: 0 | K47: 0 | L47: 0 | M47: ='Mtrl em'!Y47 -> 0 | N47: 0 | O47: 0 | P47: 0 | Q47: 0 | S47: 0.24 | T47: 0 | W47: 0 | Y47: =B111 -> Skiva Spånskiva Cement (typ Cetris, VST) | Z47: =K111 -> 0 | AH47: Klinker- Murblock oarmerade
A48: 43 | B48: ='Mtrl data'!B51 -> Klinker- Murblock oarmerade | C48: ='Mtrl em'!D48 -> 0.2 | D48: =SUMIFS(Konstruktion!H$8:H$464,Konstruktion!B$8:B$464,B48) -> 0 | E48: ='Mtrl em'!C48 -> 670 | F48: 0 | G48: 0.05 | H48: 0 | I48: 0 | J48: 0 | K48: 0 | L48: 0 | M48: ='Mtrl em'!Y48 -> 0 | N48: 0 | O48: 0 | P48: 0 | Q48: 0 | S48: 0.73 | T48: 0 | W48: 0 | Y48: =B112 -> Skiva Vindskydd Gyproc | Z48: =K112 -> 0 | AH48: Membran Asfalt slitlager
A49: 44 | B49: ='Mtrl data'!B52 -> Membran Asfalt slitlager | C49: ='Mtrl em'!D49 -> 0.17 | D49: =SUMIFS(Konstruktion!H$8:H$464,Konstruktion!B$8:B$464,B49) -> 0 | E49: ='Mtrl em'!C49 -> 1040 | F49: 0 | G49: 0.05 | H49: 0 | I49: 0 | J49: 0 | K49: 0 | L49: 0 | M49: ='Mtrl em'!Y49 -> 0 | N49: 0 | O49: 0 | P49: 0 | Q49: 0 | S49: 0.73 | T49: 0 | W49: 0 | Y49: =B114 -> Tegel Massivt | Z49: =K114 -> 0 | AH49: Membran Asfalt, 6,5% bitumen
A50: 45 | B50: ='Mtrl data'!B53 -> Membran Asfalt, 6,5% bitumen | C50: ='Mtrl em'!D50 -> 0.75 | D50: =SUMIFS(Konstruktion!H$8:H$464,Konstruktion!B$8:B$464,B50) -> 0 | E50: ='Mtrl em'!C50 -> 2360 | F50: 0 | G50: 0.05 | H50: 0 | I50: 0 | J50: 0 | K50: 0 | L50: 0 | M50: ='Mtrl em'!Y50 -> 0 | N50: 0 | O50: 0 | P50: 0 | Q50: 0 | S50: 0.73 | T50: 0 | W50: 0 | Y50: =B116 -> Trä Balk Fanerträ (LVL) Typ Kerto | Z50: =K116 -> 0 | AH50: Membran Bitumen
A51: 46 | B51: ='Mtrl data'!B54 -> Membran Bitumen | C51: ='Mtrl em'!D51 -> 0.17 | D51: =SUMIFS(Konstruktion!H$8:H$464,Konstruktion!B$8:B$464,B51) -> 0 | E51: ='Mtrl em'!C51 -> 1030 | F51: 0 | G51: 0.05 | H51: 0 | I51: 0 | J51: 0 | K51: 0 | L51: 0 | M51: ='Mtrl em'!Y51 -> 0 | N51: 0 | O51: 0 | P51: 0 | Q51: 0 | S51: 0.73 | T51: 0 | W51: 0 | Y51: Summa | Z51: =SUM(Z46:Z50) -> 0 | AA51: =Z51/300 -> 0 | AB51: träd a 300kg inkl rötter, DBH=25 cm, H=20 m. Halva trädvikten sågas | AH51: Membran Bitumenmatta
A52: 47 | B52: ='Mtrl data'!B55 -> Membran Bitumenmatta | C52: ='Mtrl em'!D52 -> 0.12 | D52: =SUMIFS(Konstruktion!H$8:H$464,Konstruktion!B$8:B$464,B52) -> 0 | E52: ='Mtrl em'!C52 -> 1300 | F52: 0 | G52: 0.05 | H52: 0 | I52: 0 | J52: 0 | K52: 0 | L52: 0 | M52: ='Mtrl em'!Y52 -> 0 | N52: 0 | O52: 0 | P52: 0 | Q52: 0 | S52: 0.73 | T52: 0 | W52: 0 | Y52: Kolinlagring -1,67 kgCO2e/kg | Z52: =-Z51*1.67 -> 0 | AA52: =-AA51*7.6 -> 0 | AB52: kgCO2e/år | AH52: Membran EPDM tätningslist
A53: 48 | B53: ='Mtrl data'!B56 -> Membran EPDM tätningslist | C53: ='Mtrl em'!D53 -> 0.2 | D53: =SUMIFS(Konstruktion!H$8:H$464,Konstruktion!B$8:B$464,B53) -> 0 | E53: ='Mtrl em'!C53 -> 600 | F53: 0 | G53: 0.05 | H53: 0 | I53: 0 | J53: 0 | K53: 0 | L53: 0 | M53: ='Mtrl em'!Y53 -> 0 | N53: 0 | O53: 0 | P53: 0 | Q53: 0 | S53: 0.24 | T53: 0 | W53: 0 | Z53: =AA42+Z52 -> 0 | AA53: =AA52*100 -> 0 | AB53: kgCO2e/100år | AH53: Membran Geotextil, PolyPropylen textil
A54: 49 | B54: ='Mtrl data'!B57 -> Membran Geotextil, PolyPropylen textil | C54: ='Mtrl em'!D54 -> 0.5 | D54: =SUMIFS(Konstruktion!H$8:H$464,Konstruktion!B$8:B$464,B54) -> 0 | E54: ='Mtrl em'!C54 -> 195 | F54: 0 | G54: 0.05 | H54: 0 | I54: 0 | J54: 0 | K54: 0 | L54: 0 | M54: ='Mtrl em'!Y54 -> 0 | N54: 0 | O54: 0 | P54: 0 | Q54: 0 | S54: 0.73 | T54: 0 | W54: 0 | AA54: =AA51*300*0.5*1.67 -> 0 | AB54: kgCO2e | AH54: Membran Kallasfalt strykbar
A55: 50 | B55: ='Mtrl data'!B58 -> Membran Kallasfalt strykbar | C55: ='Mtrl em'!D55 -> 0.17 | D55: =SUMIFS(Konstruktion!H$8:H$464,Konstruktion!B$8:B$464,B55) -> 0 | E55: ='Mtrl em'!C55 -> 900 | F55: 0 | G55: 0.05 | H55: 0 | I55: 0 | J55: 0 | K55: 0 | L55: 0 | M55: ='Mtrl em'!Y55 -> 0 | N55: 0 | O55: 0 | P55: 0 | Q55: 0 | S55: 0.59 | T55: 0 | W55: 0 | AA55: =AA52*300*0.5*1.67 -> 0 | AB55: år för att kompensera bygget | AH55: Membran Neoprene elastomer
A56: 51 | B56: ='Mtrl data'!B59 -> Membran Neoprene elastomer | C56: ='Mtrl em'!D56 -> 0.05 | D56: =SUMIFS(Konstruktion!H$8:H$464,Konstruktion!B$8:B$464,B56) -> 0 | E56: ='Mtrl em'!C56 -> 960 | F56: 0 | G56: 0.05 | H56: 0 | I56: 0 | J56: 0 | K56: 0 | L56: 0 | M56: ='Mtrl em'!Y56 -> 0 | N56: 0 | O56: 0 | P56: 0 | Q56: 0 | S56: 0 | T56: 0 | W56: 0 | AA56: 0 | AB56: år för att kompensera pålade betonggrunden | AH56: Membran Nylon
A57: 52 | B57: ='Mtrl data'!B60 -> Membran Nylon | C57: ='Mtrl em'!D57 -> 0.25 | D57: =SUMIFS(Konstruktion!H$8:H$464,Konstruktion!B$8:B$464,B57) -> 0 | E57: ='Mtrl em'!C57 -> 1150 | F57: 0 | G57: 0.05 | H57: 0 | I57: 0 | J57: 0 | K57: 0 | L57: 0 | M57: ='Mtrl em'!Y57 -> 0 | N57: 0 | O57: 0 | P57: 0 | Q57: 0 | S57: 0.59 | T57: 0 | W57: 0 | Y57: Schablon barrträd | Z57: Viktsprocent | AH57: Membran Papp och kartong
A58: 53 | B58: ='Mtrl data'!B61 -> Membran Papp och kartong | C58: ='Mtrl em'!D58 -> 0.05 | D58: =SUMIFS(Konstruktion!H$8:H$464,Konstruktion!B$8:B$464,B58) -> 0 | E58: ='Mtrl em'!C58 -> 750 | F58: 0 | G58: 0.05 | H58: 0 | I58: 0 | J58: 0 | K58: 0 | L58: 0 | M58: ='Mtrl em'!Y58 -> 1 | N58: 0 | O58: 0 | P58: 0 | Q58: 0 | S58: 1 | T58: 0 | W58: 0 | Y58: Stam | Z58: 0.7 | AH58: Membran Polyamide, PA, Tex Nylon
A59: 54 | B59: ='Mtrl data'!B62 -> Membran Polyamide, PA, Tex Nylon | C59: ='Mtrl em'!D59 -> 1.14 | D59: =SUMIFS(Konstruktion!H$8:H$464,Konstruktion!B$8:B$464,B59) -> 0 | E59: ='Mtrl em'!C59 -> 1100 | F59: 0 | G59: 0.05 | H59: 0 | I59: 0 | J59: 0 | K59: 0 | L59: 0 | M59: ='Mtrl em'!Y59 -> 0 | N59: 0 | O59: 0 | P59: 0 | Q59: 0 | S59: 0.68 | T59: 0 | W59: 0 | Y59: Bark | Z59: 0.05 | AH59: Membran Polyesterväv
A60: 55 | B60: ='Mtrl data'!B63 -> Membran Polyesterväv | C60: ='Mtrl em'!D60 -> 0.05 | D60: =SUMIFS(Konstruktion!H$8:H$464,Konstruktion!B$8:B$464,B60) -> 0 | E60: ='Mtrl em'!C60 -> 60 | F60: 0 | G60: 0.05 | H60: 0 | I60: 0 | J60: 0 | K60: 0 | L60: 0 | M60: ='Mtrl em'!Y60 -> 0 | N60: 0 | O60: 0 | P60: 0 | Q60: 0 | S60: 0.68 | T60: 0 | W60: 0 | Y60: Grenar | Z60: 0.06 | AH60: Membran Polyethylene HDPE (high dens.)
A61: 56 | B61: ='Mtrl data'!B64 -> Membran Polyethylene HDPE (high dens.) | C61: ='Mtrl em'!D61 -> 0.46 | D61: =SUMIFS(Konstruktion!H$8:H$464,Konstruktion!B$8:B$464,B61) -> 0 | E61: ='Mtrl em'!C61 -> 960 | F61: 0 | G61: 0.05 | H61: 0 | I61: 0 | J61: 0 | K61: 0 | L61: 0 | M61: ='Mtrl em'!Y61 -> 0 | N61: 0 | O61: 0 | P61: 0 | Q61: 0 | S61: 0.68 | T61: 0 | W61: 0 | Y61: Barr | Z61: 0.04 | AH61: Membran Polyethylene LDPE (low dens.)
A62: 57 | B62: ='Mtrl data'!B65 -> Membran Polyethylene LDPE (low dens.) | C62: ='Mtrl em'!D62 -> 0.33 | D62: =SUMIFS(Konstruktion!H$8:H$464,Konstruktion!B$8:B$464,B62) -> 0 | E62: ='Mtrl em'!C62 -> 940 | F62: 0 | G62: 0.05 | H62: 0 | I62: 0 | J62: 0 | K62: 0 | L62: 0 | M62: ='Mtrl em'!Y62 -> 0 | N62: 0 | O62: 0 | P62: 0 | Q62: 0 | S62: 0.68 | T62: 0 | W62: 0 | Y62: Rötter | Z62: 0.15 | AH62: Membran Polypropylen
A63: 58 | B63: ='Mtrl data'!B66 -> Membran Polypropylen | C63: ='Mtrl em'!D63 -> 0.2 | D63: =SUMIFS(Konstruktion!H$8:H$464,Konstruktion!B$8:B$464,B63) -> 0 | E63: ='Mtrl em'!C63 -> 910 | F63: 0 | G63: 0.05 | H63: 0 | I63: 0 | J63: 0 | K63: 0 | L63: 0 | M63: ='Mtrl em'!Y63 -> 0 | N63: 0 | O63: 0 | P63: 0 | Q63: 0 | S63: 0.68 | T63: 0 | W63: 0 | Y63: Summa | Z63: =SUM(Z58:Z62) -> 1 | AH63: Membran PVC
A64: 59 | B64: ='Mtrl data'!B67 -> Membran PVC | C64: ='Mtrl em'!D64 -> 0.19 | D64: =SUMIFS(Konstruktion!H$8:H$464,Konstruktion!B$8:B$464,B64) -> 0 | E64: ='Mtrl em'!C64 -> 1410 | F64: 0 | G64: 0.1 | H64: 0 | I64: 0 | J64: 0 | K64: 0 | L64: 0 | M64: ='Mtrl em'!Y64 -> 0 | N64: 0 | O64: 0 | P64: 0 | Q64: 0 | S64: 0.68 | T64: 0 | W64: 0 | Y64: Summa | Z64: =SUM(Z6:Z26) -> 0 | AH64: Membran Underlagspapp o ytpapp
A65: 60 | B65: ='Mtrl data'!B68 -> Membran Underlagspapp o ytpapp | C65: ='Mtrl em'!D65 -> 0.1 | D65: =SUMIFS(Konstruktion!H$8:H$464,Konstruktion!B$8:B$464,B65) -> 0 | E65: ='Mtrl em'!C65 -> 2000 | F65: 0 | G65: 0.05 | H65: 0 | I65: 0 | J65: 0 | K65: 0 | L65: 0 | M65: ='Mtrl em'!Y65 -> 0.4 | N65: 0 | O65: 0 | P65: 0 | Q65: 0 | S65: 0.68 | T65: 0 | W65: 0 | AH65: Membran Ångspärr
A66: 61 | B66: ='Mtrl data'!B69 -> Membran Ångspärr | C66: ='Mtrl em'!D66 -> 0.24 | D66: =SUMIFS(Konstruktion!H$8:H$464,Konstruktion!B$8:B$464,B66) -> 0 | E66: ='Mtrl em'!C66 -> 400 | F66: 0 | G66: 0.05 | H66: 0 | I66: 0 | J66: 0 | K66: 0 | L66: 0 | M66: ='Mtrl em'!Y66 -> 0 | N66: 0 | O66: 0 | P66: 0 | Q66: 0 | S66: 0.68 | T66: 0 | W66: 0 | Y66: Kolinlagring | AH66: MembranTarkett Aquarelle våtrumsvägg
A67: 62 | B67: ='Mtrl data'!B70 -> MembranTarkett Aquarelle våtrumsvägg | C67: ='Mtrl em'!D67 -> 0.25 | D67: =SUMIFS(Konstruktion!H$8:H$464,Konstruktion!B$8:B$464,B67) -> 0 | E67: ='Mtrl em'!C67 -> 1728 | F67: 0 | G67: 0.1 | H67: 0 | I67: 0 | J67: 0 | K67: 0 | L67: 0 | M67: ='Mtrl em'!Y67 -> 0 | N67: 0 | O67: 0 | P67: 0 | Q67: 0 | S67: 0.68 | T67: 0 | W67: 0 | Z67: Atomvikt | AH67: Metall Aluminium
A68: 63 | B68: ='Mtrl data'!B71 -> Metall Aluminium | C68: ='Mtrl em'!D68 -> 200 | D68: =SUMIFS(Konstruktion!H$8:H$464,Konstruktion!B$8:B$464,B68) -> 0 | E68: ='Mtrl em'!C68 -> 2700 | F68: 0 | G68: 0.1 | H68: 0 | I68: 0 | J68: 0 | K68: 0 | L68: 0 | M68: ='Mtrl em'!Y68 -> 0 | N68: 0 | O68: 0 | P68: 0 | Q68: 0 | S68: 0.68 | T68: 0 | W68: 0 | Y68: Kol, C | Z68: 12.001 | AH68: Metall Aluminium, återvunnen
A69: 64 | B69: ='Mtrl data'!B72 -> Metall Aluminium, återvunnen | C69: ='Mtrl em'!D69 -> 200 | D69: =SUMIFS(Konstruktion!H$8:H$464,Konstruktion!B$8:B$464,B69) -> 0 | E69: ='Mtrl em'!C69 -> 2700 | F69: 0 | G69: 0.1 | H69: 0 | I69: 0 | J69: 0 | K69: 0 | L69: 0 | M69: ='Mtrl em'!Y69 -> 0 | N69: 0 | O69: 0 | P69: 0 | Q69: 0 | S69: 0.68 | T69: 0 | W69: 0 | Y69: Syre, O | Z69: 15.999 | AH69: =B70 -> Metall Aluzink plåt
A70: 65 | B70: ='Mtrl data'!B73 -> Metall Aluzink plåt | C70: ='Mtrl em'!D70 -> 50 | D70: =SUMIFS(Konstruktion!H$8:H$464,Konstruktion!B$8:B$464,B70) -> 0 | E70: ='Mtrl em'!C70 -> 7800 | F70: 0 | G70: 0.1 | H70: 0 | I70: =-IF(F70=0,0,F70*VLOOKUP(B70,Mtrl_emission,20,FALSE)) -> 0 | J70: =-IF(H70=0,0,H70*VLOOKUP(B70,Mtrl_emission,20,FALSE)) -> 0 | K70: 0 | L70: 0 | M70: ='Mtrl em'!Y70 -> 0 | N70: =H70*M70 -> 0 | O70: 0 | P70: 0 | Q70: 0 | S70: 0.68 | T70: 0 | W70: =J70*K70 -> 0 | Y70: Koldioxid, CO2 | Z70: =Z68+2*Z69 -> 43.999 | AH70: Metall Bly
A71: 66 | B71: ='Mtrl data'!B74 -> Metall Bly | C71: ='Mtrl em'!D71 -> 35 | D71: =SUMIFS(Konstruktion!H$8:H$464,Konstruktion!B$8:B$464,B71) -> 0 | E71: ='Mtrl em'!C71 -> 11350 | F71: 0 | G71: 0.1 | H71: 0 | I71: 0 | J71: 0 | K71: =IF(H$126=0,0,H71/H$126) -> 0 | L71: =IF(J$126=0,0,J71/J$126) -> 0 | M71: ='Mtrl em'!Y71 -> 0 | N71: 0 | O71: =N71*0.5*(1-O$1) -> 0 | P71: =O71*S$1 -> 0 | Q71: =P71+J71 -> 0 | S71: 0.68 | T71: =H71*S71 -> 0 | W71: 0 | Y71: Kolandel | Z71: =Z68/Z70 -> 0.272756199 | AH71: Metall Koppar
A72: 67 | B72: ='Mtrl data'!B75 -> Metall Koppar | C72: ='Mtrl em'!D72 -> 401 | D72: =SUMIFS(Konstruktion!H$8:H$464,Konstruktion!B$8:B$464,B72) -> 0 | E72: ='Mtrl em'!C72 -> 8930 | F72: 0 | G72: 0.1 | H72: 0 | I72: 0 | J72: 0 | K72: 0 | L72: 0 | M72: ='Mtrl em'!Y72 -> 0 | N72: 0 | O72: 0 | P72: 0 | Q72: 0 | S72: 0.68 | T72: 0 | W72: 0 | Y72: Träets koldioxidupptag ur luften | Z72: =1/Z71 -> 3.66627781 | AH72: Metall Stål Armering Förzinkad
A73: 68 | B73: ='Mtrl data'!B76 -> Metall Stål Armering Förzinkad | C73: ='Mtrl em'!D73 -> 43 | D73: =SUMIFS(Konstruktion!H$8:H$464,Konstruktion!B$8:B$464,B73) -> 0 | E73: ='Mtrl em'!C73 -> 7850 | F73: 0 | G73: 0.05 | H73: 0 | I73: 0 | J73: 0 | K73: 0 | L73: 0 | M73: ='Mtrl em'!Y73 -> 0 | N73: 0 | O73: 0 | P73: 0 | Q73: 0 | S73: 0.68 | T73: 0 | W73: 0 | Y73: Hälften av trä utgörs av kol | Z73: =Z72/2 -> 1.833138905 | AA73: Värde att multiplicera torrmassan med | AH73: Metall Stål Armering Högvärdig Spännarmering (skrotbaserat)
A74: 69 | B74: ='Mtrl data'!B77 -> Metall Stål Armering Högvärdig Spännarmering (skrotbaserat) | C74: ='Mtrl em'!D74 -> 43 | D74: =SUMIFS(Konstruktion!H$8:H$464,Konstruktion!B$8:B$464,B74) -> 0 | E74: ='Mtrl em'!C74 -> 7850 | F74: 0 | G74: 0.05 | H74: 0 | I74: 0 | J74: 0 | K74: 0 | L74: 0 | M74: ='Mtrl em'!Y74 -> 0 | N74: 0 | O74: 0 | P74: 0 | Q74: 0 | S74: 0.68 | T74: 0 | W74: 0 | Y74: Vid 15% fuktkvot väger träet 85% av totalvikten | AH74: Metall Stål EU Medel Varmförzinkat
A75: 70 | B75: ='Mtrl data'!B78 -> Metall Stål EU Medel Varmförzinkat | C75: ='Mtrl em'!D75 -> 43 | D75: =SUMIFS(Konstruktion!H$8:H$464,Konstruktion!B$8:B$464,B75) -> 0 | E75: ='Mtrl em'!C75 -> 7850 | F75: 0 | G75: 0.05 | H75: 0 | I75: 0 | J75: 0 | K75: 0 | L75: 0 | M75: ='Mtrl em'!Y75 -> 0 | N75: 0 | O75: 0 | P75: 0 | Q75: 0 | S75: 1.04 | T75: 0 | W75: 0 | Y75: Att multiplicera trävikten, kg, med | Z75: =0.85*Z73 -> 1.558168069 | AA75: för att kg CO2 upptag | AH75: Metall Stål Armering Rostfritt
A76: 71 | B76: ='Mtrl data'!B79 -> Metall Stål Armering Rostfritt | C76: ='Mtrl em'!D76 -> 16 | D76: =SUMIFS(Konstruktion!H$8:H$464,Konstruktion!B$8:B$464,B76) -> 0 | E76: ='Mtrl em'!C76 -> 7900 | F76: 0 | G76: 0.02 | H76: 0 | I76: 0 | J76: 0 | K76: 0 | L76: 0 | M76: ='Mtrl em'!Y76 -> 0 | N76: 0 | O76: 0 | P76: 0 | Q76: 0 | S76: 0.6 | T76: 0 | W76: 0 | Y76: fuktkvot = vattnets vikt/totalvikt | AH76: Metall Stål Armeringsstång
A77: 72 | B77: ='Mtrl data'!B80 -> Metall Stål Armeringsstång | C77: ='Mtrl em'!D77 -> 43 | D77: =SUMIFS(Konstruktion!H$8:H$464,Konstruktion!B$8:B$464,B77) -> 0 | E77: ='Mtrl em'!C77 -> 7800 | F77: 0 | G77: 0.1 | H77: 0 | I77: 0 | J77: 0 | K77: 0 | L77: 0 | M77: ='Mtrl em'!Y77 -> 0 | N77: 0 | O77: 0 | P77: 0 | Q77: 0 | S77: 0.43 | T77: 0 | W77: 0 | Y77: För ett växande träd lagras ungefär ungefär 0,9 ton atmosfärisk koldioxid per kubikmeter | AH77: Metall Stål Armeringsstång Skrotbaserad
A78: 73 | B78: ='Mtrl data'!B81 -> Metall Stål Armeringsstång Skrotbaserad | C78: ='Mtrl em'!D78 -> 43 | D78: =SUMIFS(Konstruktion!H$8:H$464,Konstruktion!B$8:B$464,B78) -> 0 | E78: ='Mtrl em'!C78 -> 7800 | F78: 0 | G78: 0.1 | H78: 0 | I78: 0 | J78: 0 | K78: 0 | L78: 0 | M78: ='Mtrl em'!Y78 -> 0 | N78: 0 | O78: 0 | P78: 0 | Q78: 0 | S78: 0.6 | T78: 0 | W78: 0 | AH78: Metall Stål Armeringstråd
A79: 74 | B79: ='Mtrl data'!B82 -> Metall Stål Armeringstråd | C79: ='Mtrl em'!D79 -> 43 | D79: =SUMIFS(Konstruktion!H$8:H$464,Konstruktion!B$8:B$464,B79) -> 0 | E79: ='Mtrl em'!C79 -> 7800 | F79: 0 | G79: 0.1 | H79: 0 | I79: 0 | J79: 0 | K79: 0 | L79: 0 | M79: ='Mtrl em'!Y79 -> 0 | N79: 0 | O79: 0 | P79: 0 | Q79: 0 | S79: 0.6 | T79: 0 | W79: 0 | AH79: Metall Stål Elförsinkad spik, skruv, beslag
A80: 75 | B80: ='Mtrl data'!B83 -> Metall Stål Elförsinkad spik, skruv, beslag | C80: ='Mtrl em'!D80 -> 100 | D80: =SUMIFS(Konstruktion!H$8:H$464,Konstruktion!B$8:B$464,B80) -> 0 | E80: ='Mtrl em'!C80 -> 7900 | F80: 0 | G80: 0.05 | H80: 0 | I80: 0 | J80: 0 | K80: 0 | L80: 0 | M80: ='Mtrl em'!Y80 -> 0 | N80: 0 | O80: 0 | P80: 0 | Q80: 0 | S80: 0.6 | T80: 0 | W80: 0 | AH80: Metall Stål Konstruktion Obelagd
A81: 76 | B81: ='Mtrl data'!B84 -> Metall Stål Konstruktion Obelagd | C81: ='Mtrl em'!D81 -> 43 | D81: =SUMIFS(Konstruktion!H$8:H$464,Konstruktion!B$8:B$464,B81) -> 0 | E81: ='Mtrl em'!C81 -> 7800 | F81: 0 | G81: 0.1 | H81: 0 | I81: 0 | J81: 0 | K81: 0 | L81: 0 | M81: ='Mtrl em'!Y81 -> 0 | N81: 0 | O81: 0 | P81: 0 | Q81: 0 | S81: 0.24 | T81: 0 | W81: 0 | Z81: =SUMIF(AB6:AB15,"<0") -> 0 | AD81: Summa <0 | AH81: Metall Stål Pålar
A82: 77 | B82: ='Mtrl data'!B85 -> Metall Stål Pålar | C82: ='Mtrl em'!D82 -> 43 | D82: =SUMIFS(Konstruktion!H$8:H$464,Konstruktion!B$8:B$464,B82) -> 0 | E82: ='Mtrl em'!C82 -> 7800 | F82: 0 | G82: 0.1 | H82: 0 | I82: 0 | J82: 0 | K82: 0 | L82: 0 | M82: ='Mtrl em'!Y82 -> 0 | N82: 0 | O82: 0 | P82: 0 | Q82: 0 | S82: 0.24 | T82: 0 | W82: 0 | Z82: =Z93 -> utsläpp från grenar, toppar, rötter etc motsv halva trädet | AH82: Metall Stål Reglar Obelagt
A83: 78 | B83: ='Mtrl data'!B86 -> Metall Stål Reglar Obelagt | C83: ='Mtrl em'!D83 -> 43 | D83: =SUMIFS(Konstruktion!H$8:H$464,Konstruktion!B$8:B$464,B83) -> 0 | E83: ='Mtrl em'!C83 -> 7800 | F83: 0 | G83: 0.1 | H83: 0 | I83: 0 | J83: 0 | K83: 0 | L83: 0 | M83: ='Mtrl em'!Y83 -> 0 | N83: 0 | O83: 0 | P83: 0 | Q83: 0 | S83: 0.59 | T83: 0 | W83: 0 | AH83: Metall Stål Rostfritt
A84: 79 | B84: ='Mtrl data'!B87 -> Metall Stål Rostfritt | C84: ='Mtrl em'!D84 -> 16 | D84: =SUMIFS(Konstruktion!H$8:H$464,Konstruktion!B$8:B$464,B84) -> 0 | E84: ='Mtrl em'!C84 -> 7900 | F84: 0 | G84: 0.05 | H84: 0 | I84: 0 | J84: 0 | K84: 0 | L84: 0 | M84: ='Mtrl em'!Y84 -> 0 | N84: 0 | O84: 0 | P84: 0 | Q84: 0 | S84: 0.6 | T84: 0 | W84: 0 | Z84: kgCO2/m2Atemp | AH84: Metall Stålplåt Tunn Obelagd
A85: 80 | B85: ='Mtrl data'!B88 -> Metall Stålplåt Tunn Obelagd | C85: ='Mtrl em'!D85 -> 43 | D85: =SUMIFS(Konstruktion!H$8:H$464,Konstruktion!B$8:B$464,B85) -> 0 | E85: ='Mtrl em'!C85 -> 7850 | F85: 0 | G85: 0.05 | H85: 0 | I85: 0 | J85: 0 | K85: 0 | L85: 0 | M85: ='Mtrl em'!Y85 -> 0 | N85: 0 | O85: 0 | P85: 0 | Q85: 0 | S85: 0.48 | T85: 0 | W85: 0 | AH85: Metall Stålplåt Reglar Förzinkade
A86: 81 | B86: ='Mtrl data'!B89 -> Metall Stålplåt Reglar Förzinkade | C86: ='Mtrl em'!D86 -> 43 | D86: =SUMIFS(Konstruktion!H$8:H$464,Konstruktion!B$8:B$464,B86) -> 0 | E86: ='Mtrl em'!C86 -> 7850 | F86: 0 | G86: 0.05 | H86: 0 | I86: 0 | J86: 0 | K86: 0 | L86: 0 | M86: ='Mtrl em'!Y86 -> 0 | N86: 0 | O86: 0 | P86: 0 | Q86: 0 | S86: 0.43 | T86: 0 | W86: 0 | AH86: Metall Stålplåt Tunn galvad
A87: 82 | B87: ='Mtrl data'!B90 -> Metall Stålplåt Tunn galvad | C87: ='Mtrl em'!D87 -> 43 | D87: =SUMIFS(Konstruktion!H$8:H$464,Konstruktion!B$8:B$464,B87) -> 0 | E87: ='Mtrl em'!C87 -> 7850 | F87: =D87*E87 -> 0 | G87: 0.1 | H87: =F87*(1+G87) -> 0 | I87: 0 | J87: 0 | K87: 0 | L87: 0 | M87: ='Mtrl em'!Y87 -> 0 | N87: 0 | O87: 0 | P87: 0 | Q87: 0 | S87: 0.43 | T87: 0 | W87: 0 | AH87: Metall Takplåt Förzinkad Målad
A88: 83 | B88: ='Mtrl data'!B91 -> Metall Takplåt Förzinkad Målad | C88: ='Mtrl em'!D88 -> 43 | D88: =SUMIFS(Konstruktion!H$8:H$464,Konstruktion!B$8:B$464,B88) -> 0 | E88: ='Mtrl em'!C88 -> 7850 | F88: 0 | G88: 0.1 | H88: 0 | I88: 0 | J88: 0 | K88: 0 | L88: 0 | M88: ='Mtrl em'!Y88 -> 0 | N88: 0 | O88: 0 | P88: 0 | Q88: 0 | S88: 0.39 | T88: 0 | W88: 0 | AH88: Metall Zink
A89: 84 | B89: ='Mtrl data'!B92 -> Metall Zink | C89: ='Mtrl em'!D89 -> 116 | D89: =SUMIFS(Konstruktion!H$8:H$464,Konstruktion!B$8:B$464,B89) -> 0 | E89: ='Mtrl em'!C89 -> 7140 | F89: 0 | G89: 0.1 | H89: 0 | I89: 0 | J89: 0 | K89: 0 | L89: 0 | M89: ='Mtrl em'!Y89 -> 0 | N89: =H89*M89 -> 0 | O89: =N89*0.5*(1-O$1) -> 0 | P89: =O89*S$1 -> 0 | Q89: =P89+J89 -> 0 | S89: 0.43 | T89: 0 | W89: 0 | AH89: Mineral Granit
A90: 85 | B90: ='Mtrl data'!B93 -> Mineral Granit | C90: ='Mtrl em'!D90 -> 3 | D90: =SUMIFS(Konstruktion!H$8:H$464,Konstruktion!B$8:B$464,B90) -> 0 | E90: ='Mtrl em'!C90 -> 2700 | F90: 0 | G90: 0.05 | H90: 0 | I90: 0 | J90: 0 | K90: 0 | L90: 0 | M90: ='Mtrl em'!Y90 -> 0 | N90: 0 | O90: 0 | P90: 0 | Q90: 0 | S90: 0.6 | T90: 0 | W90: 0 | AH90: Mineral Grus (vikt 1,5 ton/m3)
